Workbook

Sheet Simulador (hidden)
A1: Simulador de Crédito Imobiliário
K5: =IF(E6=Parâmetros!D25,'Simulador Bradesco'!O10:P10,IF(E6=Parâmetros!D24,'Simulador Bradesco'!O13:P13,"")) -> 
C6: Produto | E6: ='Simulador Bradesco'!D9 -> Repasse/Aquisição | K6: =INT(K5) ->  | M6: Resultado*
I7: Painel Para Término de Construção
A8: Data da Simulação | C8: =TODAY() -> 2026-04-02 | M8: Carteira | O8: =IF(AND(C14=Parâmetros!B2,Simulador!C17<2250000,Simulador!O23<12.01%),"SFH",IF(AND(C14=Parâmetros!B2,Simulador!C17<2250000),"CHH FGTS",IF(Simulador!C14=Parâmetros!B3,"CHC",IF(Simulador!C14=Parâmetros!B4,"LOTE",IF(AND(Simulador!C10=Parâmetros!C3,Simulador!C14=Parâmetros!B2),Parâmetros!C15,IF(AND(Simulador!C10=Parâmetros!C3,Simulador!C14=Parâmetros!B3),Parâmetros!C16,IF(AND(Simulador!C10=Parâmetros!C3,Simulador!C14=Parâmetros!B4),Parâmetros!B4,"CHH"))))))) -> CHH FGTS | Q8: Idade do Cliente | S8: =IF(C10=Parâmetros!C3,"Proponente PJ",_xlfn.DAYS(TODAY(),G14)/365) -> 36.57260274
E9: =IF(G10="NÃO","",IF(AND(G10="SIM",C10=Parâmetros!C3),"NÃO PERMITIDO",IF(Simulador!G11>0.05*Simulador!C17,"VALOR NÃO PERMITIDO","OK"))) ->  | I9: =IF(K10>O27,'Base de Dados'!AA2,"") -> SIMULAÇÃO NOK
A10: Tipo de Pessoa | C10: ='Simulador Bradesco'!D13 -> PESSOA FÍSICA | E10: Custas Cartorárias | G10: ='Simulador Bradesco'!D17 -> NÃO | I10: Prazo de Construção restante | K10: =IF(E6=Parâmetros!D25,INT(K5),IF(E6=Parâmetros!D24,'Simulador Bradesco'!O13:P13)) -> FALSE | M10: Total Financiamento ($) | O10: =IF(AND(G10=Parâmetros!E2,Simulador!E9="OK"),Simulador!G11+Simulador!C20,Simulador!C20) -> 1024000 | Q10: Prazo +Idade | S10: =IF(C10=Parâmetros!C3,"",IF(Simulador!S8+(Simulador!K19/12)>80.5,"Prazo Superior",Simulador!S8+(K19/12))) -> 71.57260274 | U10: =ROUNDUP(K10,2) -> 0
E11: =VLOOKUP(Parâmetros!J2,'Base de Dados'!N1:Z102950,13,FALSE) -> SIM | G11: ='Simulador Bradesco'!I19 -> 0 | K11: =Parâmetros!O2-K10 -> 50 | O11: =IF(OR(C17=0,C17=""),"",O10) -> 1024000
M13: Renda Necessária | O13: =IFERROR(IF(C10=Parâmetros!C3,"",('Simulador Bradesco'!Q10*100)/S13/100),"") -> 41479.10857 | Q13: Limite Renda Carteira | S13: =IF(Parâmetros!K2="N/A","",Parâmetros!K2) -> 0.25
A14: Tipo de Imóvel | C14: ='Simulador Bradesco'!D15 -> RESIDENCIAL | E14: Ano de Nascimento | G14: ='Simulador Bradesco'!D21 -> 1989-09-14 | I14: Prazo de Carência | K14: =IF(VLOOKUP(Parâmetros!J2,'Base de Dados'!N1:V310200303,9,FALSE)="","",VLOOKUP(Parâmetros!J2,'Base de Dados'!N1:V32994003,9,FALSE)) -> 
E16: =IF(OR(G17>O21,G17<O19),"VERIFICAR PRAZO","PRAZO ENQUADRADO") -> PRAZO ENQUADRADO | M16: LTV | O16: =IF((O10/C17)>Parâmetros!L2,'Base de Dados'!AA3,O10/C17) -> 0.7710843373 | P16: =100%-O16 -> 0.2289156627 | Q16: CET | S16: =IFERROR(XIRR('Base de Dados'!M2:M422,'Base de Dados'!L2:L422),"") -> 0.1291888297
A17: Valor do Imóvel | C17: ='Simulador Bradesco'!I15 -> 1328000 | E17: Prazo de Pagamento | G17: ='Simulador Bradesco'!I21 -> 420 | I17: Evolução de Obra | K17: =IF(E6=Parâmetros!D25,IF(Parâmetros!O2<>"",Simulador!K11/Parâmetros!O2,""),"") ->  | L17: =K17-100% ->  | M17: LTV Máximo | O17: =_xlfn.XLOOKUP(Parâmetros!J2,'Base de Dados'!N:N,'Base de Dados'!P:P,"",0,1) -> 0.8
L18: =IF(E6=Parâmetros!D25,Simulador!K17,"") -> 
A19: =IF(O16="LTV NÃO PERMITIDO","VALOR NÃO PERMITIDO","VALOR ENQUADRADO") -> VALOR ENQUADRADO | I19: Prazo Total | K19: =IF(Parâmetros!N3=Parâmetros!E22,SUM(Simulador!G17,Simulador!K10,Simulador!K14),Simulador!G17) -> 420 | M19: Prazo Mínimo Carteira | O19: =VLOOKUP(Parâmetros!J2,'Base de Dados'!N1:S10000,6,FALSE) -> 121 | Q19: Tem IOF? | S19: =Parâmetros!P2 -> NÃO
A20: Valor de Financiamento | C20: ='Simulador Bradesco'!I17 -> 1024000 | E20: Sistema de Amortização | G20: ='Simulador Bradesco'!D19 -> PRICE | I20: 0.05 | K20: =Parâmetros!L2-Simulador!O16 -> 0.02891566265
K21: =IF(I20>K20,K20,I20) -> 0.02891566265 | M21: Prazo Máximo Carteira | O21: =VLOOKUP(Parâmetros!J2,'Base de Dados'!N1:T100000,7,FALSE) -> 420 | Q21: Valor IOF | S21: =S23*O10 -> 0
A23: Valor máximo permitido | C23: =IFERROR(ROUNDDOWN((C17*O17),2),0) -> 1062400 | E23: Financiado | G23: =IFERROR(O11/C23,"") -> 0.9638554217 | H23: =G23-100% -> -0.03614457831 | I23: Despesas máx | K23: =IF(O17-K24>I20,I20,O17-K24) -> 0.02891566265 | M23: Tx Efetiva a.a. | O23: =Parâmetros!T2 -> 0.123 | Q23: Alíquota Aplicada | S23: =Parâmetros!Q2 -> 0
K24: =C20/C17 -> 0.7710843373
E25: Depesa Máxima | G25: =K23*C17 -> 38400 | K25: =SUM(K26:K27) -> 80 | M25: Tx Efetiva a.m. | O25: =(1+O23)^(1/12)-1 -> 0.009713849091 | Q25: Tarifa de Avaliação | S25: =VLOOKUP(Parâmetros!J2,'Base de Dados'!N1:R10000,5,FALSE) -> 2114.03
A26: Segmento | C26: =IF(C10=Parâmetros!C3,C10,'Simulador Bradesco'!I13) -> PRINCIPAL | E26: Despesa Permitida | G26: =IF(VLOOKUP(Parâmetros!J2,'Base de Dados'!N1:Z1000000,13,FALSE)="SIM",ROUNDDOWN(K21*C17,2),0) -> 38400 | I26: =IF(VLOOKUP(Parâmetros!J2,'Base de Dados'!N1:Z100003,13,FALSE)="SIM",ROUNDDOWN(K23*C17,2),0) -> 38400 | K26: =396/12 -> 33
K27: 47 | M27: =IF(E6=Parâmetros!D24,"Prazo Máx Construção","") ->  | O27: =VLOOKUP(Parâmetros!J2,'Base de Dados'!N1:U100000,8,FALSE) -> 0 | Q27: =O16*C17 -> 1024000 | T27: Máx
A31: DATA DO ENCARGO | C31: N PREST | E31: Tipo de encargo | G31: AMORTIZAÇÃO | I31: JUROS | K31: Tarifas* | M31: MIP* | O31: DFI* | Q31: ENCARGO | S31: SALDO DEVEDOR | U31: =IF(Parâmetros!N3=Parâmetros!E22,"Liberações","") -> 
A32: =C8 -> 2026-04-02 | S32: =IFERROR(IF(AND(C14=Parâmetros!B7,Simulador!C20<750000),"SIMULAÇÃO NOK",IF(OR(G17>O21,G17<O19),"SIMULAÇÃO NOK",IF(S10="Prazo Superior","SIMULAÇÃO NOK",IF(Parâmetros!$N$3=Parâmetros!$E$22,U32*-1,IF(G11>G25,"SIMULAÇÃO NOK",IF(Parâmetros!R2<18,"SIMULAÇÃO NOK",$O$10)))))),"") -> 1024000 | U32: =IF(E6=Parâmetros!D25,Simulador!O10*'Simulador Bradesco'!$N$21*-1,0) -> 0
A33: =IF(C33="","",C8) -> 2026-04-02 | C33: =IFERROR(IF(O16='Base de Dados'!AA3,"",IF(S32='Base de Dados'!AA2,"",0)),"") -> 0 | E33: =IF(C33="","","Seguro") -> Seguro | G33: =IF(C33="","",0) -> 0 | I33: =IF(C33="","",0) -> 0 | K33: =IF(C33="","",IF(Simulador!O8=Parâmetros!C8,SUM(Simulador!S25,Simulador!S21,25),SUM(Simulador!S25+Simulador!S21))) -> 2114.03 | M33: =IFERROR(IF(C33="","",IF($C$10=Parâmetros!$C$3,0,VLOOKUP(A33,'Base de Dados'!$E$2:$G$422,3,FALSE)*Simulador!S32)),"") -> 181.8624 | O33: =IF(C33="","",IF(E33="Construção",0,IF(E33="Seguro",$C$17*'Base de Dados'!$C$2,IF($C$14=Parâmetros!$B$4,0,Simulador!$C$17*'Base de Dados'!$C$2)))) -> 66.4 | Q33: =IF(C33="","",SUM(G33:O33)) -> 2362.2924 | S33: =IF(C33="","",S32) -> 1024000 | U33: =U32 -> 0 | V33: =SUM(O10,U33) -> 1024000 | W33: =V33/40 -> 25600
A34: =IF(C34="","",IF(C33>$G$17,0,EDATE(A33,1))) -> 2026-05-02 | B34: =IF(AND(E34="Retorno",E33<>"Retorno"),"Primeira",IF(AND(E34="Retorno",E33=""),"Primeira","")) -> Primeira | C34: =IF(OR(C33>=$K$19,C33=""),"",C33+1) -> 1 | D34: =C34 -> 1900-01-01 | E34: =IF(C34="","","Retorno") -> Retorno | G34: =IFERROR(IF(C34="","",IF(E34<>"Retorno",0,IF($G$20=Parâmetros!$D$2,Simulador!$O$10/$G$17,IF($G$20=Parâmetros!$D$3,Simulador!Q34-Simulador!O34-Simulador!M34-Simulador!K34-Simulador!I34,"")))),"") -> 174.5642767 | I34: =IFERROR(IF(C34="","",FV($O$25,1,,-S33,0)-S33),"") -> 9946.981469 | K34: =IF(C34="","",IF(AND($O$23<12.01%,$C$17<2250000.01),25,0)) -> 0 | M34: =IFERROR(IF(C34="","",IF($C$10=Parâmetros!$C$3,0,VLOOKUP(A34,'Base de Dados'!$E$3:$G$422,3,FALSE)*S34)),0) -> 181.8313974 | O34: =IF(C34="","",IF(C35="",0,IF(E34="Construção",0,IF(E34="Seguro",$C$17*'Base de Dados'!$C$2,IF($C$14=Parâmetros!$B$4,0,Simulador!$C$17*'Base de Dados'!$C$2))))) -> 66.4 | Q34: =IF(C34="","",IF(E34<>"Retorno",(I34+K34+M34),IF($G$20=Parâmetros!$D$2,SUM(G34,I34,K34,M34,O34),PMT($O$25,$G$17,($O$10)*-1)+O34+M34+K34))) -> 10369.77714 | S34: =IF(E34="Construção",S33+(U34*-1),IF(E34="Carência",S33,IF(E34="Retorno",S33-G34,""))) -> 1023825.436 | U34: =IF(E34="Construção",(($O$10+$U$33)/$K$10)*-1,"") -> 
A35: =IF(C35="","",IF(C34>$G$17,0,EDATE(A34,1))) -> 2026-06-02 | B35: =IF(AND(E35="Retorno",E34<>"Retorno"),"Primeira",IF(AND(E35="Retorno",E34=""),"Primeira","")) ->  | C35: =IF(OR(C34>=$K$19,C34=""),"",C34+1) -> 2 | D35: =C35 -> 1900-01-02 | E35: =IF(C35="","","Retorno") -> Retorno | G35: =IF(C35="","",IF(E35<>"Retorno",0,IF($G$20=Parâmetros!$D$2,Simulador!$O$10/$G$17,IF($G$20=Parâmetros!$D$3,Simulador!Q35-Simulador!O35-Simulador!M35-Simulador!K35-Simulador!I35,"")))) -> 176.2599677 | I35: =IFERROR(IF(C35="","",FV($O$25,1,,-S34,0)-S34),"") -> 9945.285778 | K35: =IF(C35="","",IF(AND($O$23<12.01%,$C$17<2250000.01),25,0)) -> 0 | M35: =IFERROR(IF(C35="","",IF($C$10=Parâmetros!$C$3,0,VLOOKUP(A35,'Base de Dados'!$E$3:$G$422,3,FALSE)*S35)),0) -> 181.8000936 | O35: =IF(C35="","",IF(C36="",0,IF(E35="Construção",0,IF(E35="Seguro",$C$17*'Base de Dados'!$C$2,IF($C$14=Parâmetros!$B$4,0,Simulador!$C$17*'Base de Dados'!$C$2))))) -> 66.4 | Q35: =IF(C35="","",IF(E35<>"Retorno",(I35+K35+M35),IF($G$20=Parâmetros!$D$2,SUM(G35,I35,K35,M35,O35),PMT($O$25,$G$17,($O$10)*-1)+O35+M35+K35))) -> 10369.74584 | S35: =IF(E35="Construção",S34+(U35*-1),IF(E35="Carência",S34,IF(E35="Retorno",S34-G35,""))) -> 1023649.176 | U35: =IF(E35="Construção",(($O$10+$U$33)/$K$10)*-1,"") -> 
A36: 2026-07-02 | C36: 3 | D36: 1900-01-03 | E36: Retorno | G36: =IFERROR(IF(C36="","",IF(E36<>"Retorno",0,IF($G$20=Parâmetros!$D$2,Simulador!$O$10/$G$17,IF($G$20=Parâmetros!$D$3,Simulador!Q36-Simulador!O36-Simulador!M36-Simulador!K36-Simulador!I36,"")))),"") -> 177.9721304 | I36: =IFERROR(IF(C36="","",FV($O$25,1,,-S35,0)-S35),"") -> 9943.573616 | K36: 0 | M36: =IFERROR(IF(C36="","",IF($C$10=Parâmetros!$C$3,0,VLOOKUP(A36,'Base de Dados'!$E$3:$G$422,3,FALSE)*S36)),0) -> 181.7684858 | O36: =IF(C36="","",IF(C37="",0,IF(E36="Construção",0,IF(E36="Seguro",$C$17*'Base de Dados'!$C$2,IF($C$14=Parâmetros!$B$4,0,Simulador!$C$17*'Base de Dados'!$C$2))))) -> 66.4 | Q36: =IF(C36="","",IF(E36<>"Retorno",(I36+K36+M36),IF($G$20=Parâmetros!$D$2,SUM(G36,I36,K36,M36,O36),PMT($O$25,SUM($G$17),($O$10)*-1)+O36+M36+K36))) -> 10369.71423 | S36: =IF(E36="Construção",S35+(U36*-1),IF(E36="Carência",S35,IF(E36="Retorno",S35-G36,""))) -> 1023471.204
A37: 2026-08-02 | C37: 4 | D37: 1900-01-04 | E37: Retorno | G37: =IFERROR(IF(C37="","",IF(E37<>"Retorno",0,IF($G$20=Parâmetros!$D$2,Simulador!$O$10/$G$17,IF($G$20=Parâmetros!$D$3,Simulador!Q37-Simulador!O37-Simulador!M37-Simulador!K37-Simulador!I37,"")))),"") -> 179.7009248 | I37: 9941.844821 | K37: 0 | M37: =IFERROR(IF(C37="","",IF($C$10=Parâmetros!$C$3,0,VLOOKUP(A37,'Base de Dados'!$E$3:$G$422,3,FALSE)*S37)),0) -> 181.7365709 | O37: =IF(C37="","",IF(C38="",0,IF(E37="Construção",0,IF(E37="Seguro",$C$17*'Base de Dados'!$C$2,IF($C$14=Parâmetros!$B$4,0,Simulador!$C$17*'Base de Dados'!$C$2))))) -> 66.4 | Q37: =IF(C37="","",IF(E37<>"Retorno",(I37+K37+M37),IF($G$20=Parâmetros!$D$2,SUM(G37,I37,K37,M37,O37),PMT($O$25,SUM($G$17),($O$10)*-1)+O37+M37+K37))) -> 10369.68232 | S37: 1023291.503
A38: 2026-09-02 | C38: 5 | D38: 1900-01-05 | E38: Retorno | G38: =IFERROR(IF(C38="","",IF(E38<>"Retorno",0,IF($G$20=Parâmetros!$D$2,Simulador!$O$10/$G$17,IF($G$20=Parâmetros!$D$3,Simulador!Q38-Simulador!O38-Simulador!M38-Simulador!K38-Simulador!I38,"")))),"") -> 181.4465125 | I38: 9940.099234 | K38: 0 | M38: =IFERROR(IF(C38="","",IF($C$10=Parâmetros!$C$3,0,VLOOKUP(A38,'Base de Dados'!$E$3:$G$422,3,FALSE)*S38)),0) -> 181.704346 | O38: =IF(C38="","",IF(C39="",0,IF(E38="Construção",0,IF(E38="Seguro",$C$17*'Base de Dados'!$C$2,IF($C$14=Parâmetros!$B$4,0,Simulador!$C$17*'Base de Dados'!$C$2))))) -> 66.4 | Q38: =IF(C38="","",IF(E38<>"Retorno",(I38+K38+M38),IF($G$20=Parâmetros!$D$2,SUM(G38,I38,K38,M38,O38),PMT($O$25,SUM($G$17),($O$10)*-1)+O38+M38+K38))) -> 10369.65009 | S38: 1023110.056
A39: 2026-10-02 | C39: 6 | D39: 1900-01-06 | E39: Retorno | G39: =IFERROR(IF(C39="","",IF(E39<>"Retorno",0,IF($G$20=Parâmetros!$D$2,Simulador!$O$10/$G$17,IF($G$20=Parâmetros!$D$3,Simulador!Q39-Simulador!O39-Simulador!M39-Simulador!K39-Simulador!I39,"")))),"") -> 183.2090565 | I39: 9938.33669 | K39: 0 | M39: =IFERROR(IF(C39="","",IF($C$10=Parâmetros!$C$3,0,VLOOKUP(A39,'Base de Dados'!$E$3:$G$422,3,FALSE)*S39)),0) -> 181.6718081 | O39: =IF(C39="","",IF(C40="",0,IF(E39="Construção",0,IF(E39="Seguro",$C$17*'Base de Dados'!$C$2,IF($C$14=Parâmetros!$B$4,0,Simulador!$C$17*'Base de Dados'!$C$2))))) -> 66.4 | Q39: =IF(C39="","",IF(E39<>"Retorno",(I39+K39+M39),IF($G$20=Parâmetros!$D$2,SUM(G39,I39,K39,M39,O39),PMT($O$25,SUM($G$17),($O$10)*-1)+O39+M39+K39))) -> 10369.61755 | S39: 1022926.847
A40: 2026-11-02 | C40: 7 | D40: 1900-01-07 | E40: Retorno | G40: =IFERROR(IF(C40="","",IF(E40<>"Retorno",0,IF($G$20=Parâmetros!$D$2,Simulador!$O$10/$G$17,IF($G$20=Parâmetros!$D$3,Simulador!Q40-Simulador!O40-Simulador!M40-Simulador!K40-Simulador!I40,"")))),"") -> 184.9887217 | I40: 9936.557024 | K40: 0 | M40: =IFERROR(IF(C40="","",IF($C$10=Parâmetros!$C$3,0,VLOOKUP(A40,'Base de Dados'!$E$3:$G$422,3,FALSE)*S40)),0) -> 181.6389541 | O40: =IF(C40="","",IF(C41="",0,IF(E40="Construção",0,IF(E40="Seguro",$C$17*'Base de Dados'!$C$2,IF($C$14=Parâmetros!$B$4,0,Simulador!$C$17*'Base de Dados'!$C$2))))) -> 66.4 | Q40: =IF(C40="","",IF(E40<>"Retorno",(I40+K40+M40),IF($G$20=Parâmetros!$D$2,SUM(G40,I40,K40,M40,O40),PMT($O$25,SUM($G$17),($O$10)*-1)+O40+M40+K40))) -> 10369.5847 | S40: 1022741.858
A41: 2026-12-02 | C41: 8 | D41: 1900-01-08 | E41: Retorno | G41: =IFERROR(IF(C41="","",IF(E41<>"Retorno",0,IF($G$20=Parâmetros!$D$2,Simulador!$O$10/$G$17,IF($G$20=Parâmetros!$D$3,Simulador!Q41-Simulador!O41-Simulador!M41-Simulador!K41-Simulador!I41,"")))),"") -> 186.7856742 | I41: 9934.760072 | K41: 0 | M41: =IFERROR(IF(C41="","",IF($C$10=Parâmetros!$C$3,0,VLOOKUP(A41,'Base de Dados'!$E$3:$G$422,3,FALSE)*S41)),0) -> 181.6057809 | O41: =IF(C41="","",IF(C42="",0,IF(E41="Construção",0,IF(E41="Seguro",$C$17*'Base de Dados'!$C$2,IF($C$14=Parâmetros!$B$4,0,Simulador!$C$17*'Base de Dados'!$C$2))))) -> 66.4 | Q41: =IF(C41="","",IF(E41<>"Retorno",(I41+K41+M41),IF($G$20=Parâmetros!$D$2,SUM(G41,I41,K41,M41,O41),PMT($O$25,SUM($G$17),($O$10)*-1)+O41+M41+K41))) -> 10369.55153 | S41: 1022555.073
A42: 2027-01-02 | C42: 9 | D42: 1900-01-09 | E42: Retorno | G42: =IFERROR(IF(C42="","",IF(E42<>"Retorno",0,IF($G$20=Parâmetros!$D$2,Simulador!$O$10/$G$17,IF($G$20=Parâmetros!$D$3,Simulador!Q42-Simulador!O42-Simulador!M42-Simulador!K42-Simulador!I42,"")))),"") -> 188.6000821 | I42: 9932.945664 | K42: 0 | M42: =IFERROR(IF(C42="","",IF($C$10=Parâmetros!$C$3,0,VLOOKUP(A42,'Base de Dados'!$E$3:$G$422,3,FALSE)*S42)),0) -> 181.5722855 | O42: =IF(C42="","",IF(C43="",0,IF(E42="Construção",0,IF(E42="Seguro",$C$17*'Base de Dados'!$C$2,IF($C$14=Parâmetros!$B$4,0,Simulador!$C$17*'Base de Dados'!$C$2))))) -> 66.4 | Q42: =IF(C42="","",IF(E42<>"Retorno",(I42+K42+M42),IF($G$20=Parâmetros!$D$2,SUM(G42,I42,K42,M42,O42),PMT($O$25,SUM($G$17),($O$10)*-1)+O42+M42+K42))) -> 10369.51803 | S42: 1022366.473
A43: 2027-02-02 | C43: 10 | D43: 1900-01-10 | E43: Retorno | G43: =IFERROR(IF(C43="","",IF(E43<>"Retorno",0,IF($G$20=Parâmetros!$D$2,Simulador!$O$10/$G$17,IF($G$20=Parâmetros!$D$3,Simulador!Q43-Simulador!O43-Simulador!M43-Simulador!K43-Simulador!I43,"")))),"") -> 190.4321148 | I43: 9931.113631 | K43: 0 | M43: =IFERROR(IF(C43="","",IF($C$10=Parâmetros!$C$3,0,VLOOKUP(A43,'Base de Dados'!$E$3:$G$422,3,FALSE)*S43)),0) -> 181.5384648 | O43: =IF(C43="","",IF(C44="",0,IF(E43="Construção",0,IF(E43="Seguro",$C$17*'Base de Dados'!$C$2,IF($C$14=Parâmetros!$B$4,0,Simulador!$C$17*'Base de Dados'!$C$2))))) -> 66.4 | Q43: =IF(C43="","",IF(E43<>"Retorno",(I43+K43+M43),IF($G$20=Parâmetros!$D$2,SUM(G43,I43,K43,M43,O43),PMT($O$25,SUM($G$17),($O$10)*-1)+O43+M43+K43))) -> 10369.48421 | S43: 1022176.041
A44: 2027-03-02 | C44: 11 | D44: 1900-01-11 | E44: Retorno | G44: =IFERROR(IF(C44="","",IF(E44<>"Retorno",0,IF($G$20=Parâmetros!$D$2,Simulador!$O$10/$G$17,IF($G$20=Parâmetros!$D$3,Simulador!Q44-Simulador!O44-Simulador!M44-Simulador!K44-Simulador!I44,"")))),"") -> 192.2819436 | I44: 9929.263802 | K44: 0 | M44: =IFERROR(IF(C44="","",IF($C$10=Parâmetros!$C$3,0,VLOOKUP(A44,'Base de Dados'!$E$3:$G$422,3,FALSE)*S44)),0) -> 181.5043155 | O44: =IF(C44="","",IF(C45="",0,IF(E44="Construção",0,IF(E44="Seguro",$C$17*'Base de Dados'!$C$2,IF($C$14=Parâmetros!$B$4,0,Simulador!$C$17*'Base de Dados'!$C$2))))) -> 66.4 | Q44: =IF(C44="","",IF(E44<>"Retorno",(I44+K44+M44),IF($G$20=Parâmetros!$D$2,SUM(G44,I44,K44,M44,O44),PMT($O$25,SUM($G$17),($O$10)*-1)+O44+M44+K44))) -> 10369.45006 | S44: 1021983.759
A45: 2027-04-02 | C45: 12 | D45: 1900-01-12 | E45: Retorno | G45: =IFERROR(IF(C45="","",IF(E45<>"Retorno",0,IF($G$20=Parâmetros!$D$2,Simulador!$O$10/$G$17,IF($G$20=Parâmetros!$D$3,Simulador!Q45-Simulador!O45-Simulador!M45-Simulador!K45-Simulador!I45,"")))),"") -> 194.1497414 | I45: 9927.396005 | K45: 0 | M45: =IFERROR(IF(C45="","",IF($C$10=Parâmetros!$C$3,0,VLOOKUP(A45,'Base de Dados'!$E$3:$G$422,3,FALSE)*S45)),0) -> 181.4698345 | O45: =IF(C45="","",IF(C46="",0,IF(E45="Construção",0,IF(E45="Seguro",$C$17*'Base de Dados'!$C$2,IF($C$14=Parâmetros!$B$4,0,Simulador!$C$17*'Base de Dados'!$C$2))))) -> 66.4 | Q45: =IF(C45="","",IF(E45<>"Retorno",(I45+K45+M45),IF($G$20=Parâmetros!$D$2,SUM(G45,I45,K45,M45,O45),PMT($O$25,SUM($G$17),($O$10)*-1)+O45+M45+K45))) -> 10369.41558 | S45: 1021789.609
A46: 2027-05-02 | C46: 13 | D46: 1900-01-13 | E46: Retorno | G46: =IFERROR(IF(C46="","",IF(E46<>"Retorno",0,IF($G$20=Parâmetros!$D$2,Simulador!$O$10/$G$17,IF($G$20=Parâmetros!$D$3,Simulador!Q46-Simulador!O46-Simulador!M46-Simulador!K46-Simulador!I46,"")))),"") -> 196.0356827 | I46: 9925.510063 | K46: 0 | M46: =IFERROR(IF(C46="","",IF($C$10=Parâmetros!$C$3,0,VLOOKUP(A46,'Base de Dados'!$E$3:$G$422,3,FALSE)*S46)),0) -> 181.4350186 | O46: =IF(C46="","",IF(C47="",0,IF(E46="Construção",0,IF(E46="Seguro",$C$17*'Base de Dados'!$C$2,IF($C$14=Parâmetros!$B$4,0,Simulador!$C$17*'Base de Dados'!$C$2))))) -> 66.4 | Q46: =IF(C46="","",IF(E46<>"Retorno",(I46+K46+M46),IF($G$20=Parâmetros!$D$2,SUM(G46,I46,K46,M46,O46),PMT($O$25,SUM($G$17),($O$10)*-1)+O46+M46+K46))) -> 10369.38076 | S46: 1021593.573
A47: 2027-06-02 | C47: 14 | D47: 1900-01-14 | E47: Retorno | G47: =IFERROR(IF(C47="","",IF(E47<>"Retorno",0,IF($G$20=Parâmetros!$D$2,Simulador!$O$10/$G$17,IF($G$20=Parâmetros!$D$3,Simulador!Q47-Simulador!O47-Simulador!M47-Simulador!K47-Simulador!I47,"")))),"") -> 197.9399437 | I47: 9923.605802 | K47: 0 | M47: =IFERROR(IF(C47="","",IF($C$10=Parâmetros!$C$3,0,VLOOKUP(A47,'Base de Dados'!$E$3:$G$422,3,FALSE)*S47)),0) -> 181.3998645 | O47: =IF(C47="","",IF(C48="",0,IF(E47="Construção",0,IF(E47="Seguro",$C$17*'Base de Dados'!$C$2,IF($C$14=Parâmetros!$B$4,0,Simulador!$C$17*'Base de Dados'!$C$2))))) -> 66.4 | Q47: =IF(C47="","",IF(E47<>"Retorno",(I47+K47+M47),IF($G$20=Parâmetros!$D$2,SUM(G47,I47,K47,M47,O47),PMT($O$25,SUM($G$17),($O$10)*-1)+O47+M47+K47))) -> 10369.34561 | S47: 1021395.633
A48: 2027-07-02 | C48: 15 | D48: 1900-01-15 | E48: Retorno | G48: =IFERROR(IF(C48="","",IF(E48<>"Retorno",0,IF($G$20=Parâmetros!$D$2,Simulador!$O$10/$G$17,IF($G$20=Parâmetros!$D$3,Simulador!Q48-Simulador!O48-Simulador!M48-Simulador!K48-Simulador!I48,"")))),"") -> 199.8627025 | I48: 9921.683044 | K48: 0 | M48: =IFERROR(IF(C48="","",IF($C$10=Parâmetros!$C$3,0,VLOOKUP(A48,'Base de Dados'!$E$3:$G$422,3,FALSE)*S48)),0) -> 181.3643688 | O48: =IF(C48="","",IF(C49="",0,IF(E48="Construção",0,IF(E48="Seguro",$C$17*'Base de Dados'!$C$2,IF($C$14=Parâmetros!$B$4,0,Simulador!$C$17*'Base de Dados'!$C$2))))) -> 66.4 | Q48: =IF(C48="","",IF(E48<>"Retorno",(I48+K48+M48),IF($G$20=Parâmetros!$D$2,SUM(G48,I48,K48,M48,O48),PMT($O$25,SUM($G$17),($O$10)*-1)+O48+M48+K48))) -> 10369.31011 | S48: 1021195.771
A49: 2027-08-02 | C49: 16 | D49: 1900-01-16 | E49: Retorno | G49: =IFERROR(IF(C49="","",IF(E49<>"Retorno",0,IF($G$20=Parâmetros!$D$2,Simulador!$O$10/$G$17,IF($G$20=Parâmetros!$D$3,Simulador!Q49-Simulador!O49-Simulador!M49-Simulador!K49-Simulador!I49,"")))),"") -> 201.8041386 | I49: 9919.741608 | K49: 0 | M49: =IFERROR(IF(C49="","",IF($C$10=Parâmetros!$C$3,0,VLOOKUP(A49,'Base de Dados'!$E$3:$G$422,3,FALSE)*S49)),0) -> 181.3285284 | O49: =IF(C49="","",IF(C50="",0,IF(E49="Construção",0,IF(E49="Seguro",$C$17*'Base de Dados'!$C$2,IF($C$14=Parâmetros!$B$4,0,Simulador!$C$17*'Base de Dados'!$C$2))))) -> 66.4 | Q49: =IF(C49="","",IF(E49<>"Retorno",(I49+K49+M49),IF($G$20=Parâmetros!$D$2,SUM(G49,I49,K49,M49,O49),PMT($O$25,SUM($G$17),($O$10)*-1)+O49+M49+K49))) -> 10369.27427 | S49: 1020993.966
A50: 2027-09-02 | C50: 17 | D50: 1900-01-17 | E50: Retorno | G50: =IFERROR(IF(C50="","",IF(E50<>"Retorno",0,IF($G$20=Parâmetros!$D$2,Simulador!$O$10/$G$17,IF($G$20=Parâmetros!$D$3,Simulador!Q50-Simulador!O50-Simulador!M50-Simulador!K50-Simulador!I50,"")))),"") -> 203.7644335 | I50: 9917.781313 | K50: 0 | M50: =IFERROR(IF(C50="","",IF($C$10=Parâmetros!$C$3,0,VLOOKUP(A50,'Base de Dados'!$E$3:$G$422,3,FALSE)*S50)),0) -> 181.2923399 | O50: =IF(C50="","",IF(C51="",0,IF(E50="Construção",0,IF(E50="Seguro",$C$17*'Base de Dados'!$C$2,IF($C$14=Parâmetros!$B$4,0,Simulador!$C$17*'Base de Dados'!$C$2))))) -> 66.4 | Q50: =IF(C50="","",IF(E50<>"Retorno",(I50+K50+M50),IF($G$20=Parâmetros!$D$2,SUM(G50,I50,K50,M50,O50),PMT($O$25,SUM($G$17),($O$10)*-1)+O50+M50+K50))) -> 10369.23809 | S50: 1020790.202
A51: 2027-10-02 | C51: 18 | D51: 1900-01-18 | E51: Retorno | G51: =IFERROR(IF(C51="","",IF(E51<>"Retorno",0,IF($G$20=Parâmetros!$D$2,Simulador!$O$10/$G$17,IF($G$20=Parâmetros!$D$3,Simulador!Q51-Simulador!O51-Simulador!M51-Simulador!K51-Simulador!I51,"")))),"") -> 205.7437705 | I51: 9915.801976 | K51: 0 | M51: =IFERROR(IF(C51="","",IF($C$10=Parâmetros!$C$3,0,VLOOKUP(A51,'Base de Dados'!$E$3:$G$422,3,FALSE)*S51)),0) -> 181.2557998 | O51: =IF(C51="","",IF(C52="",0,IF(E51="Construção",0,IF(E51="Seguro",$C$17*'Base de Dados'!$C$2,IF($C$14=Parâmetros!$B$4,0,Simulador!$C$17*'Base de Dados'!$C$2))))) -> 66.4 | Q51: =IF(C51="","",IF(E51<>"Retorno",(I51+K51+M51),IF($G$20=Parâmetros!$D$2,SUM(G51,I51,K51,M51,O51),PMT($O$25,SUM($G$17),($O$10)*-1)+O51+M51+K51))) -> 10369.20155 | S51: 1020584.458
A52: 2027-11-02 | C52: 19 | D52: 1900-01-19 | E52: Retorno | G52: =IFERROR(IF(C52="","",IF(E52<>"Retorno",0,IF($G$20=Parâmetros!$D$2,Simulador!$O$10/$G$17,IF($G$20=Parâmetros!$D$3,Simulador!Q52-Simulador!O52-Simulador!M52-Simulador!K52-Simulador!I52,"")))),"") -> 207.7423344 | I52: 9913.803412 | K52: 0 | M52: =IFERROR(IF(C52="","",IF($C$10=Parâmetros!$C$3,0,VLOOKUP(A52,'Base de Dados'!$E$3:$G$422,3,FALSE)*S52)),0) -> 181.2189047 | O52: =IF(C52="","",IF(C53="",0,IF(E52="Construção",0,IF(E52="Seguro",$C$17*'Base de Dados'!$C$2,IF($C$14=Parâmetros!$B$4,0,Simulador!$C$17*'Base de Dados'!$C$2))))) -> 66.4 | Q52: =IF(C52="","",IF(E52<>"Retorno",(I52+K52+M52),IF($G$20=Parâmetros!$D$2,SUM(G52,I52,K52,M52,O52),PMT($O$25,SUM($G$17),($O$10)*-1)+O52+M52+K52))) -> 10369.16465 | S52: 1020376.716
A53: 2027-12-02 | C53: 20 | D53: 1900-01-20 | E53: Retorno | G53: =IFERROR(IF(C53="","",IF(E53<>"Retorno",0,IF($G$20=Parâmetros!$D$2,Simulador!$O$10/$G$17,IF($G$20=Parâmetros!$D$3,Simulador!Q53-Simulador!O53-Simulador!M53-Simulador!K53-Simulador!I53,"")))),"") -> 209.7603121 | I53: 9911.785434 | K53: 0 | M53: =IFERROR(IF(C53="","",IF($C$10=Parâmetros!$C$3,0,VLOOKUP(A53,'Base de Dados'!$E$3:$G$422,3,FALSE)*S53)),0) -> 181.1816513 | O53: =IF(C53="","",IF(C54="",0,IF(E53="Construção",0,IF(E53="Seguro",$C$17*'Base de Dados'!$C$2,IF($C$14=Parâmetros!$B$4,0,Simulador!$C$17*'Base de Dados'!$C$2))))) -> 66.4 | Q53: =IF(C53="","",IF(E53<>"Retorno",(I53+K53+M53),IF($G$20=Parâmetros!$D$2,SUM(G53,I53,K53,M53,O53),PMT($O$25,SUM($G$17),($O$10)*-1)+O53+M53+K53))) -> 10369.1274 | S53: 1020166.956
A54: 2028-01-02 | C54: 21 | D54: 1900-01-21 | E54: Retorno | G54: =IFERROR(IF(C54="","",IF(E54<>"Retorno",0,IF($G$20=Parâmetros!$D$2,Simulador!$O$10/$G$17,IF($G$20=Parâmetros!$D$3,Simulador!Q54-Simulador!O54-Simulador!M54-Simulador!K54-Simulador!I54,"")))),"") -> 211.7978921 | I54: 9909.747854 | K54: 0 | M54: =IFERROR(IF(C54="","",IF($C$10=Parâmetros!$C$3,0,VLOOKUP(A54,'Base de Dados'!$E$3:$G$422,3,FALSE)*S54)),0) -> 181.144036 | O54: =IF(C54="","",IF(C55="",0,IF(E54="Construção",0,IF(E54="Seguro",$C$17*'Base de Dados'!$C$2,IF($C$14=Parâmetros!$B$4,0,Simulador!$C$17*'Base de Dados'!$C$2))))) -> 66.4 | Q54: =IF(C54="","",IF(E54<>"Retorno",(I54+K54+M54),IF($G$20=Parâmetros!$D$2,SUM(G54,I54,K54,M54,O54),PMT($O$25,SUM($G$17),($O$10)*-1)+O54+M54+K54))) -> 10369.08978 | S54: 1019955.158
A55: 2028-02-02 | C55: 22 | D55: 1900-01-22 | E55: Retorno | G55: =IFERROR(IF(C55="","",IF(E55<>"Retorno",0,IF($G$20=Parâmetros!$D$2,Simulador!$O$10/$G$17,IF($G$20=Parâmetros!$D$3,Simulador!Q55-Simulador!O55-Simulador!M55-Simulador!K55-Simulador!I55,"")))),"") -> 213.8552649 | I55: 9907.690481 | K55: 0 | M55: =IFERROR(IF(C55="","",IF($C$10=Parâmetros!$C$3,0,VLOOKUP(A55,'Base de Dados'!$E$3:$G$422,3,FALSE)*S55)),0) -> 181.1060553 | O55: =IF(C55="","",IF(C56="",0,IF(E55="Construção",0,IF(E55="Seguro",$C$17*'Base de Dados'!$C$2,IF($C$14=Parâmetros!$B$4,0,Simulador!$C$17*'Base de Dados'!$C$2))))) -> 66.4 | Q55: =IF(C55="","",IF(E55<>"Retorno",(I55+K55+M55),IF($G$20=Parâmetros!$D$2,SUM(G55,I55,K55,M55,O55),PMT($O$25,SUM($G$17),($O$10)*-1)+O55+M55+K55))) -> 10369.0518 | S55: 1019741.302
A56: 2028-03-02 | C56: 23 | D56: 1900-01-23 | E56: Retorno | G56: =IFERROR(IF(C56="","",IF(E56<>"Retorno",0,IF($G$20=Parâmetros!$D$2,Simulador!$O$10/$G$17,IF($G$20=Parâmetros!$D$3,Simulador!Q56-Simulador!O56-Simulador!M56-Simulador!K56-Simulador!I56,"")))),"") -> 215.9326227 | I56: 9905.613123 | K56: 0 | M56: =IFERROR(IF(C56="","",IF($C$10=Parâmetros!$C$3,0,VLOOKUP(A56,'Base de Dados'!$E$3:$G$422,3,FALSE)*S56)),0) -> 181.0677057 | O56: =IF(C56="","",IF(C57="",0,IF(E56="Construção",0,IF(E56="Seguro",$C$17*'Base de Dados'!$C$2,IF($C$14=Parâmetros!$B$4,0,Simulador!$C$17*'Base de Dados'!$C$2))))) -> 66.4 | Q56: =IF(C56="","",IF(E56<>"Retorno",(I56+K56+M56),IF($G$20=Parâmetros!$D$2,SUM(G56,I56,K56,M56,O56),PMT($O$25,SUM($G$17),($O$10)*-1)+O56+M56+K56))) -> 10369.01345 | S56: 1019525.37
A57: 2028-04-02 | C57: 24 | D57: 1900-01-24 | E57: Retorno | G57: =IFERROR(IF(C57="","",IF(E57<>"Retorno",0,IF($G$20=Parâmetros!$D$2,Simulador!$O$10/$G$17,IF($G$20=Parâmetros!$D$3,Simulador!Q57-Simulador!O57-Simulador!M57-Simulador!K57-Simulador!I57,"")))),"") -> 218.0301596 | I57: 9903.515587 | K57: 0 | M57: =IFERROR(IF(C57="","",IF($C$10=Parâmetros!$C$3,0,VLOOKUP(A57,'Base de Dados'!$E$3:$G$422,3,FALSE)*S57)),0) -> 181.0289835 | O57: =IF(C57="","",IF(C58="",0,IF(E57="Construção",0,IF(E57="Seguro",$C$17*'Base de Dados'!$C$2,IF($C$14=Parâmetros!$B$4,0,Simulador!$C$17*'Base de Dados'!$C$2))))) -> 66.4 | Q57: =IF(C57="","",IF(E57<>"Retorno",(I57+K57+M57),IF($G$20=Parâmetros!$D$2,SUM(G57,I57,K57,M57,O57),PMT($O$25,SUM($G$17),($O$10)*-1)+O57+M57+K57))) -> 10368.97473 | S57: 1019307.34
A58: 2028-05-02 | C58: 25 | D58: 1900-01-25 | E58: Retorno | G58: =IFERROR(IF(C58="","",IF(E58<>"Retorno",0,IF($G$20=Parâmetros!$D$2,Simulador!$O$10/$G$17,IF($G$20=Parâmetros!$D$3,Simulador!Q58-Simulador!O58-Simulador!M58-Simulador!K58-Simulador!I58,"")))),"") -> 220.1480717 | I58: 9901.397674 | K58: 0 | M58: =IFERROR(IF(C58="","",IF($C$10=Parâmetros!$C$3,0,VLOOKUP(A58,'Base de Dados'!$E$3:$G$422,3,FALSE)*S58)),0) -> 180.9898852 | O58: =IF(C58="","",IF(C59="",0,IF(E58="Construção",0,IF(E58="Seguro",$C$17*'Base de Dados'!$C$2,IF($C$14=Parâmetros!$B$4,0,Simulador!$C$17*'Base de Dados'!$C$2))))) -> 66.4 | Q58: =IF(C58="","",IF(E58<>"Retorno",(I58+K58+M58),IF($G$20=Parâmetros!$D$2,SUM(G58,I58,K58,M58,O58),PMT($O$25,SUM($G$17),($O$10)*-1)+O58+M58+K58))) -> 10368.93563 | S58: 1019087.192
A59: 2028-06-02 | C59: 26 | D59: 1900-01-26 | E59: Retorno | G59: =IFERROR(IF(C59="","",IF(E59<>"Retorno",0,IF($G$20=Parâmetros!$D$2,Simulador!$O$10/$G$17,IF($G$20=Parâmetros!$D$3,Simulador!Q59-Simulador!O59-Simulador!M59-Simulador!K59-Simulador!I59,"")))),"") -> 222.2865568 | I59: 9899.259189 | K59: 0 | M59: =IFERROR(IF(C59="","",IF($C$10=Parâmetros!$C$3,0,VLOOKUP(A59,'Base de Dados'!$E$3:$G$422,3,FALSE)*S59)),0) -> 180.9504071 | O59: =IF(C59="","",IF(C60="",0,IF(E59="Construção",0,IF(E59="Seguro",$C$17*'Base de Dados'!$C$2,IF($C$14=Parâmetros!$B$4,0,Simulador!$C$17*'Base de Dados'!$C$2))))) -> 66.4 | Q59: =IF(C59="","",IF(E59<>"Retorno",(I59+K59+M59),IF($G$20=Parâmetros!$D$2,SUM(G59,I59,K59,M59,O59),PMT($O$25,SUM($G$17),($O$10)*-1)+O59+M59+K59))) -> 10368.89615 | S59: 1018864.905
A60: 2028-07-02 | C60: 27 | D60: 1900-01-27 | E60: Retorno | G60: =IFERROR(IF(C60="","",IF(E60<>"Retorno",0,IF($G$20=Parâmetros!$D$2,Simulador!$O$10/$G$17,IF($G$20=Parâmetros!$D$3,Simulador!Q60-Simulador!O60-Simulador!M60-Simulador!K60-Simulador!I60,"")))),"") -> 224.4458149 | I60: 9897.099931 | K60: 0 | M60: =IFERROR(IF(C60="","",IF($C$10=Parâmetros!$C$3,0,VLOOKUP(A60,'Base de Dados'!$E$3:$G$422,3,FALSE)*S60)),0) -> 180.9105455 | O60: =IF(C60="","",IF(C61="",0,IF(E60="Construção",0,IF(E60="Seguro",$C$17*'Base de Dados'!$C$2,IF($C$14=Parâmetros!$B$4,0,Simulador!$C$17*'Base de Dados'!$C$2))))) -> 66.4 | Q60: =IF(C60="","",IF(E60<>"Retorno",(I60+K60+M60),IF($G$20=Parâmetros!$D$2,SUM(G60,I60,K60,M60,O60),PMT($O$25,SUM($G$17),($O$10)*-1)+O60+M60+K60))) -> 10368.85629 | S60: 1018640.459
A61: 2028-08-02 | C61: 28 | D61: 1900-01-28 | E61: Retorno | G61: =IFERROR(IF(C61="","",IF(E61<>"Retorno",0,IF($G$20=Parâmetros!$D$2,Simulador!$O$10/$G$17,IF($G$20=Parâmetros!$D$3,Simulador!Q61-Simulador!O61-Simulador!M61-Simulador!K61-Simulador!I61,"")))),"") -> 226.6260476 | I61: 9894.919698 | K61: 0 | M61: =IFERROR(IF(C61="","",IF($C$10=Parâmetros!$C$3,0,VLOOKUP(A61,'Base de Dados'!$E$3:$G$422,3,FALSE)*S61)),0) -> 180.8702968 | O61: =IF(C61="","",IF(C62="",0,IF(E61="Construção",0,IF(E61="Seguro",$C$17*'Base de Dados'!$C$2,IF($C$14=Parâmetros!$B$4,0,Simulador!$C$17*'Base de Dados'!$C$2))))) -> 66.4 | Q61: =IF(C61="","",IF(E61<>"Retorno",(I61+K61+M61),IF($G$20=Parâmetros!$D$2,SUM(G61,I61,K61,M61,O61),PMT($O$25,SUM($G$17),($O$10)*-1)+O61+M61+K61))) -> 10368.81604 | S61: 1018413.833
A62: 2028-09-02 | C62: 29 | D62: 1900-01-29 | E62: Retorno | G62: =IFERROR(IF(C62="","",IF(E62<>"Retorno",0,IF($G$20=Parâmetros!$D$2,Simulador!$O$10/$G$17,IF($G$20=Parâmetros!$D$3,Simulador!Q62-Simulador!O62-Simulador!M62-Simulador!K62-Simulador!I62,"")))),"") -> 228.8274589 | I62: 9892.718287 | K62: 0 | M62: =IFERROR(IF(C62="","",IF($C$10=Parâmetros!$C$3,0,VLOOKUP(A62,'Base de Dados'!$E$3:$G$422,3,FALSE)*S62)),0) -> 180.829657 | O62: =IF(C62="","",IF(C63="",0,IF(E62="Construção",0,IF(E62="Seguro",$C$17*'Base de Dados'!$C$2,IF($C$14=Parâmetros!$B$4,0,Simulador!$C$17*'Base de Dados'!$C$2))))) -> 66.4 | Q62: =IF(C62="","",IF(E62<>"Retorno",(I62+K62+M62),IF($G$20=Parâmetros!$D$2,SUM(G62,I62,K62,M62,O62),PMT($O$25,SUM($G$17),($O$10)*-1)+O62+M62+K62))) -> 10368.7754 | S62: 1018185.006
A63: 2028-10-02 | C63: 30 | D63: 1900-01-30 | E63: Retorno | G63: =IFERROR(IF(C63="","",IF(E63<>"Retorno",0,IF($G$20=Parâmetros!$D$2,Simulador!$O$10/$G$17,IF($G$20=Parâmetros!$D$3,Simulador!Q63-Simulador!O63-Simulador!M63-Simulador!K63-Simulador!I63,"")))),"") -> 231.0502543 | I63: 9890.495492 | K63: 0 | M63: =IFERROR(IF(C63="","",IF($C$10=Parâmetros!$C$3,0,VLOOKUP(A63,'Base de Dados'!$E$3:$G$422,3,FALSE)*S63)),0) -> 222.8301208 | O63: =IF(C63="","",IF(C64="",0,IF(E63="Construção",0,IF(E63="Seguro",$C$17*'Base de Dados'!$C$2,IF($C$14=Parâmetros!$B$4,0,Simulador!$C$17*'Base de Dados'!$C$2))))) -> 66.4 | Q63: =IF(C63="","",IF(E63<>"Retorno",(I63+K63+M63),IF($G$20=Parâmetros!$D$2,SUM(G63,I63,K63,M63,O63),PMT($O$25,SUM($G$17),($O$10)*-1)+O63+M63+K63))) -> 10410.77587 | S63: 1017953.955
A64: 2028-11-02 | C64: 31 | D64: 1900-01-31 | E64: Retorno | G64: =IFERROR(IF(C64="","",IF(E64<>"Retorno",0,IF($G$20=Parâmetros!$D$2,Simulador!$O$10/$G$17,IF($G$20=Parâmetros!$D$3,Simulador!Q64-Simulador!O64-Simulador!M64-Simulador!K64-Simulador!I64,"")))),"") -> 233.2946416 | I64: 9888.251105 | K64: 0 | M64: =IFERROR(IF(C64="","",IF($C$10=Parâmetros!$C$3,0,VLOOKUP(A64,'Base de Dados'!$E$3:$G$422,3,FALSE)*S64)),0) -> 222.7790526 | O64: =IF(C64="","",IF(C65="",0,IF(E64="Construção",0,IF(E64="Seguro",$C$17*'Base de Dados'!$C$2,IF($C$14=Parâmetros!$B$4,0,Simulador!$C$17*'Base de Dados'!$C$2))))) -> 66.4 | Q64: =IF(C64="","",IF(E64<>"Retorno",(I64+K64+M64),IF($G$20=Parâmetros!$D$2,SUM(G64,I64,K64,M64,O64),PMT($O$25,SUM($G$17),($O$10)*-1)+O64+M64+K64))) -> 10410.7248 | S64: 1017720.661
A65: 2028-12-02 | C65: 32 | D65: 1900-02-01 | E65: Retorno | G65: =IFERROR(IF(C65="","",IF(E65<>"Retorno",0,IF($G$20=Parâmetros!$D$2,Simulador!$O$10/$G$17,IF($G$20=Parâmetros!$D$3,Simulador!Q65-Simulador!O65-Simulador!M65-Simulador!K65-Simulador!I65,"")))),"") -> 235.5608305 | I65: 9885.984916 | K65: 0 | M65: =IFERROR(IF(C65="","",IF($C$10=Parâmetros!$C$3,0,VLOOKUP(A65,'Base de Dados'!$E$3:$G$422,3,FALSE)*S65)),0) -> 222.7274884 | O65: =IF(C65="","",IF(C66="",0,IF(E65="Construção",0,IF(E65="Seguro",$C$17*'Base de Dados'!$C$2,IF($C$14=Parâmetros!$B$4,0,Simulador!$C$17*'Base de Dados'!$C$2))))) -> 66.4 | Q65: =IF(C65="","",IF(E65<>"Retorno",(I65+K65+M65),IF($G$20=Parâmetros!$D$2,SUM(G65,I65,K65,M65,O65),PMT($O$25,SUM($G$17),($O$10)*-1)+O65+M65+K65))) -> 10410.67323 | S65: 1017485.1
A66: 2029-01-02 | C66: 33 | D66: 1900-02-02 | E66: Retorno | G66: =IFERROR(IF(C66="","",IF(E66<>"Retorno",0,IF($G$20=Parâmetros!$D$2,Simulador!$O$10/$G$17,IF($G$20=Parâmetros!$D$3,Simulador!Q66-Simulador!O66-Simulador!M66-Simulador!K66-Simulador!I66,"")))),"") -> 237.8490329 | I66: 9883.696713 | K66: 0 | M66: =IFERROR(IF(C66="","",IF($C$10=Parâmetros!$C$3,0,VLOOKUP(A66,'Base de Dados'!$E$3:$G$422,3,FALSE)*S66)),0) -> 222.6754232 | O66: =IF(C66="","",IF(C67="",0,IF(E66="Construção",0,IF(E66="Seguro",$C$17*'Base de Dados'!$C$2,IF($C$14=Parâmetros!$B$4,0,Simulador!$C$17*'Base de Dados'!$C$2))))) -> 66.4 | Q66: =IF(C66="","",IF(E66<>"Retorno",(I66+K66+M66),IF($G$20=Parâmetros!$D$2,SUM(G66,I66,K66,M66,O66),PMT($O$25,SUM($G$17),($O$10)*-1)+O66+M66+K66))) -> 10410.62117 | S66: 1017247.251
A67: 2029-02-02 | C67: 34 | D67: 1900-02-03 | E67: Retorno | G67: =IFERROR(IF(C67="","",IF(E67<>"Retorno",0,IF($G$20=Parâmetros!$D$2,Simulador!$O$10/$G$17,IF($G$20=Parâmetros!$D$3,Simulador!Q67-Simulador!O67-Simulador!M67-Simulador!K67-Simulador!I67,"")))),"") -> 240.1594625 | I67: 9881.386284 | K67: 0 | M67: =IFERROR(IF(C67="","",IF($C$10=Parâmetros!$C$3,0,VLOOKUP(A67,'Base de Dados'!$E$3:$G$422,3,FALSE)*S67)),0) -> 222.6228523 | O67: =IF(C67="","",IF(C68="",0,IF(E67="Construção",0,IF(E67="Seguro",$C$17*'Base de Dados'!$C$2,IF($C$14=Parâmetros!$B$4,0,Simulador!$C$17*'Base de Dados'!$C$2))))) -> 66.4 | Q67: =IF(C67="","",IF(E67<>"Retorno",(I67+K67+M67),IF($G$20=Parâmetros!$D$2,SUM(G67,I67,K67,M67,O67),PMT($O$25,SUM($G$17),($O$10)*-1)+O67+M67+K67))) -> 10410.5686 | S67: 1017007.091
A68: 2029-03-02 | C68: 35 | D68: 1900-02-04 | E68: Retorno | G68: =IFERROR(IF(C68="","",IF(E68<>"Retorno",0,IF($G$20=Parâmetros!$D$2,Simulador!$O$10/$G$17,IF($G$20=Parâmetros!$D$3,Simulador!Q68-Simulador!O68-Simulador!M68-Simulador!K68-Simulador!I68,"")))),"") -> 242.4923353 | I68: 9879.053411 | K68: 0 | M68: =IFERROR(IF(C68="","",IF($C$10=Parâmetros!$C$3,0,VLOOKUP(A68,'Base de Dados'!$E$3:$G$422,3,FALSE)*S68)),0) -> 222.5697707 | O68: =IF(C68="","",IF(C69="",0,IF(E68="Construção",0,IF(E68="Seguro",$C$17*'Base de Dados'!$C$2,IF($C$14=Parâmetros!$B$4,0,Simulador!$C$17*'Base de Dados'!$C$2))))) -> 66.4 | Q68: =IF(C68="","",IF(E68<>"Retorno",(I68+K68+M68),IF($G$20=Parâmetros!$D$2,SUM(G68,I68,K68,M68,O68),PMT($O$25,SUM($G$17),($O$10)*-1)+O68+M68+K68))) -> 10410.51552 | S68: 1016764.599
A69: 2029-04-02 | C69: 36 | D69: 1900-02-05 | E69: Retorno | G69: =IFERROR(IF(C69="","",IF(E69<>"Retorno",0,IF($G$20=Parâmetros!$D$2,Simulador!$O$10/$G$17,IF($G$20=Parâmetros!$D$3,Simulador!Q69-Simulador!O69-Simulador!M69-Simulador!K69-Simulador!I69,"")))),"") -> 244.8478692 | I69: 9876.697877 | K69: 0 | M69: =IFERROR(IF(C69="","",IF($C$10=Parâmetros!$C$3,0,VLOOKUP(A69,'Base de Dados'!$E$3:$G$422,3,FALSE)*S69)),0) -> 222.5161735 | O69: =IF(C69="","",IF(C70="",0,IF(E69="Construção",0,IF(E69="Seguro",$C$17*'Base de Dados'!$C$2,IF($C$14=Parâmetros!$B$4,0,Simulador!$C$17*'Base de Dados'!$C$2))))) -> 66.4 | Q69: =IF(C69="","",IF(E69<>"Retorno",(I69+K69+M69),IF($G$20=Parâmetros!$D$2,SUM(G69,I69,K69,M69,O69),PMT($O$25,SUM($G$17),($O$10)*-1)+O69+M69+K69))) -> 10410.46192 | S69: 1016519.751
A70: 2029-05-02 | C70: 37 | D70: 1900-02-06 | E70: Retorno | G70: =IFERROR(IF(C70="","",IF(E70<>"Retorno",0,IF($G$20=Parâmetros!$D$2,Simulador!$O$10/$G$17,IF($G$20=Parâmetros!$D$3,Simulador!Q70-Simulador!O70-Simulador!M70-Simulador!K70-Simulador!I70,"")))),"") -> 247.2262845 | I70: 9874.319462 | K70: 0 | M70: =IFERROR(IF(C70="","",IF($C$10=Parâmetros!$C$3,0,VLOOKUP(A70,'Base de Dados'!$E$3:$G$422,3,FALSE)*S70)),0) -> 222.4620557 | O70: =IF(C70="","",IF(C71="",0,IF(E70="Construção",0,IF(E70="Seguro",$C$17*'Base de Dados'!$C$2,IF($C$14=Parâmetros!$B$4,0,Simulador!$C$17*'Base de Dados'!$C$2))))) -> 66.4 | Q70: =IF(C70="","",IF(E70<>"Retorno",(I70+K70+M70),IF($G$20=Parâmetros!$D$2,SUM(G70,I70,K70,M70,O70),PMT($O$25,SUM($G$17),($O$10)*-1)+O70+M70+K70))) -> 10410.4078 | S70: 1016272.525
A71: 2029-06-02 | C71: 38 | D71: 1900-02-07 | E71: Retorno | G71: =IFERROR(IF(C71="","",IF(E71<>"Retorno",0,IF($G$20=Parâmetros!$D$2,Simulador!$O$10/$G$17,IF($G$20=Parâmetros!$D$3,Simulador!Q71-Simulador!O71-Simulador!M71-Simulador!K71-Simulador!I71,"")))),"") -> 249.6278033 | I71: 9871.917943 | K71: 0 | M71: =IFERROR(IF(C71="","",IF($C$10=Parâmetros!$C$3,0,VLOOKUP(A71,'Base de Dados'!$E$3:$G$422,3,FALSE)*S71)),0) -> 222.4074122 | O71: =IF(C71="","",IF(C72="",0,IF(E71="Construção",0,IF(E71="Seguro",$C$17*'Base de Dados'!$C$2,IF($C$14=Parâmetros!$B$4,0,Simulador!$C$17*'Base de Dados'!$C$2))))) -> 66.4 | Q71: =IF(C71="","",IF(E71<>"Retorno",(I71+K71+M71),IF($G$20=Parâmetros!$D$2,SUM(G71,I71,K71,M71,O71),PMT($O$25,SUM($G$17),($O$10)*-1)+O71+M71+K71))) -> 10410.35316 | S71: 1016022.897
A72: 2029-07-02 | C72: 39 | D72: 1900-02-08 | E72: Retorno | G72: =IFERROR(IF(C72="","",IF(E72<>"Retorno",0,IF($G$20=Parâmetros!$D$2,Simulador!$O$10/$G$17,IF($G$20=Parâmetros!$D$3,Simulador!Q72-Simulador!O72-Simulador!M72-Simulador!K72-Simulador!I72,"")))),"") -> 252.0526501 | I72: 9869.493096 | K72: 0 | M72: =IFERROR(IF(C72="","",IF($C$10=Parâmetros!$C$3,0,VLOOKUP(A72,'Base de Dados'!$E$3:$G$422,3,FALSE)*S72)),0) -> 222.3522379 | O72: =IF(C72="","",IF(C73="",0,IF(E72="Construção",0,IF(E72="Seguro",$C$17*'Base de Dados'!$C$2,IF($C$14=Parâmetros!$B$4,0,Simulador!$C$17*'Base de Dados'!$C$2))))) -> 66.4 | Q72: =IF(C72="","",IF(E72<>"Retorno",(I72+K72+M72),IF($G$20=Parâmetros!$D$2,SUM(G72,I72,K72,M72,O72),PMT($O$25,SUM($G$17),($O$10)*-1)+O72+M72+K72))) -> 10410.29798 | S72: 1015770.844
A73: 2029-08-02 | C73: 40 | D73: 1900-02-09 | E73: Retorno | G73: =IFERROR(IF(C73="","",IF(E73<>"Retorno",0,IF($G$20=Parâmetros!$D$2,Simulador!$O$10/$G$17,IF($G$20=Parâmetros!$D$3,Simulador!Q73-Simulador!O73-Simulador!M73-Simulador!K73-Simulador!I73,"")))),"") -> 254.5010515 | I73: 9867.044695 | K73: 0 | M73: =IFERROR(IF(C73="","",IF($C$10=Parâmetros!$C$3,0,VLOOKUP(A73,'Base de Dados'!$E$3:$G$422,3,FALSE)*S73)),0) -> 222.2965276 | O73: =IF(C73="","",IF(C74="",0,IF(E73="Construção",0,IF(E73="Seguro",$C$17*'Base de Dados'!$C$2,IF($C$14=Parâmetros!$B$4,0,Simulador!$C$17*'Base de Dados'!$C$2))))) -> 66.4 | Q73: =IF(C73="","",IF(E73<>"Retorno",(I73+K73+M73),IF($G$20=Parâmetros!$D$2,SUM(G73,I73,K73,M73,O73),PMT($O$25,SUM($G$17),($O$10)*-1)+O73+M73+K73))) -> 10410.24227 | S73: 1015516.343
A74: 2029-09-02 | C74: 41 | D74: 1900-02-10 | E74: Retorno | G74: =IFERROR(IF(C74="","",IF(E74<>"Retorno",0,IF($G$20=Parâmetros!$D$2,Simulador!$O$10/$G$17,IF($G$20=Parâmetros!$D$3,Simulador!Q74-Simulador!O74-Simulador!M74-Simulador!K74-Simulador!I74,"")))),"") -> 256.9732363 | I74: =IFERROR(IF(C74="","",FV($O$25,1,,-S73,0)-S73),"") -> 9864.57251 | K74: 0 | M74: =IFERROR(IF(C74="","",IF($C$10=Parâmetros!$C$3,0,VLOOKUP(A74,'Base de Dados'!$E$3:$G$422,3,FALSE)*S74)),0) -> 222.2402761 | O74: =IF(C74="","",IF(C75="",0,IF(E74="Construção",0,IF(E74="Seguro",$C$17*'Base de Dados'!$C$2,IF($C$14=Parâmetros!$B$4,0,Simulador!$C$17*'Base de Dados'!$C$2))))) -> 66.4 | Q74: =IF(C74="","",IF(E74<>"Retorno",(I74+K74+M74),IF($G$20=Parâmetros!$D$2,SUM(G74,I74,K74,M74,O74),PMT($O$25,SUM($G$17),($O$10)*-1)+O74+M74+K74))) -> 10410.18602 | S74: 1015259.37
A75: 2029-10-02 | C75: 42 | D75: 1900-02-11 | E75: Retorno | G75: =IFERROR(IF(C75="","",IF(E75<>"Retorno",0,IF($G$20=Parâmetros!$D$2,Simulador!$O$10/$G$17,IF($G$20=Parâmetros!$D$3,Simulador!Q75-Simulador!O75-Simulador!M75-Simulador!K75-Simulador!I75,"")))),"") -> 259.4694355 | I75: 9862.076311 | K75: 0 | M75: =IFERROR(IF(C75="","",IF($C$10=Parâmetros!$C$3,0,VLOOKUP(A75,'Base de Dados'!$E$3:$G$422,3,FALSE)*S75)),0) -> 222.1834783 | O75: =IF(C75="","",IF(C76="",0,IF(E75="Construção",0,IF(E75="Seguro",$C$17*'Base de Dados'!$C$2,IF($C$14=Parâmetros!$B$4,0,Simulador!$C$17*'Base de Dados'!$C$2))))) -> 66.4 | Q75: =IF(C75="","",IF(E75<>"Retorno",(I75+K75+M75),IF($G$20=Parâmetros!$D$2,SUM(G75,I75,K75,M75,O75),PMT($O$25,SUM($G$17),($O$10)*-1)+O75+M75+K75))) -> 10410.12922 | S75: 1014999.901
A76: 2029-11-02 | C76: 43 | D76: 1900-02-12 | E76: Retorno | G76: =IFERROR(IF(C76="","",IF(E76<>"Retorno",0,IF($G$20=Parâmetros!$D$2,Simulador!$O$10/$G$17,IF($G$20=Parâmetros!$D$3,Simulador!Q76-Simulador!O76-Simulador!M76-Simulador!K76-Simulador!I76,"")))),"") -> 261.9898825 | I76: 9859.555864 | K76: 0 | M76: =IFERROR(IF(C76="","",IF($C$10=Parâmetros!$C$3,0,VLOOKUP(A76,'Base de Dados'!$E$3:$G$422,3,FALSE)*S76)),0) -> 222.1261287 | O76: =IF(C76="","",IF(C77="",0,IF(E76="Construção",0,IF(E76="Seguro",$C$17*'Base de Dados'!$C$2,IF($C$14=Parâmetros!$B$4,0,Simulador!$C$17*'Base de Dados'!$C$2))))) -> 66.4 | Q76: =IF(C76="","",IF(E76<>"Retorno",(I76+K76+M76),IF($G$20=Parâmetros!$D$2,SUM(G76,I76,K76,M76,O76),PMT($O$25,SUM($G$17),($O$10)*-1)+O76+M76+K76))) -> 10410.07187 | S76: 1014737.911
A77: 2029-12-02 | C77: 44 | D77: 1900-02-13 | E77: Retorno | G77: =IFERROR(IF(C77="","",IF(E77<>"Retorno",0,IF($G$20=Parâmetros!$D$2,Simulador!$O$10/$G$17,IF($G$20=Parâmetros!$D$3,Simulador!Q77-Simulador!O77-Simulador!M77-Simulador!K77-Simulador!I77,"")))),"") -> 264.5348127 | I77: 9857.010933 | K77: 0 | M77: =IFERROR(IF(C77="","",IF($C$10=Parâmetros!$C$3,0,VLOOKUP(A77,'Base de Dados'!$E$3:$G$422,3,FALSE)*S77)),0) -> 222.068222 | O77: =IF(C77="","",IF(C78="",0,IF(E77="Construção",0,IF(E77="Seguro",$C$17*'Base de Dados'!$C$2,IF($C$14=Parâmetros!$B$4,0,Simulador!$C$17*'Base de Dados'!$C$2))))) -> 66.4 | Q77: =IF(C77="","",IF(E77<>"Retorno",(I77+K77+M77),IF($G$20=Parâmetros!$D$2,SUM(G77,I77,K77,M77,O77),PMT($O$25,SUM($G$17),($O$10)*-1)+O77+M77+K77))) -> 10410.01397 | S77: 1014473.376
A78: 2030-01-02 | C78: 45 | D78: 1900-02-14 | E78: Retorno | G78: =IFERROR(IF(C78="","",IF(E78<>"Retorno",0,IF($G$20=Parâmetros!$D$2,Simulador!$O$10/$G$17,IF($G$20=Parâmetros!$D$3,Simulador!Q78-Simulador!O78-Simulador!M78-Simulador!K78-Simulador!I78,"")))),"") -> 267.1044639 | I78: 9854.441282 | K78: 0 | M78: =IFERROR(IF(C78="","",IF($C$10=Parâmetros!$C$3,0,VLOOKUP(A78,'Base de Dados'!$E$3:$G$422,3,FALSE)*S78)),0) -> 222.0097529 | O78: =IF(C78="","",IF(C79="",0,IF(E78="Construção",0,IF(E78="Seguro",$C$17*'Base de Dados'!$C$2,IF($C$14=Parâmetros!$B$4,0,Simulador!$C$17*'Base de Dados'!$C$2))))) -> 66.4 | Q78: =IF(C78="","",IF(E78<>"Retorno",(I78+K78+M78),IF($G$20=Parâmetros!$D$2,SUM(G78,I78,K78,M78,O78),PMT($O$25,SUM($G$17),($O$10)*-1)+O78+M78+K78))) -> 10409.9555 | S78: 1014206.272
A79: 2030-02-02 | C79: 46 | D79: 1900-02-15 | E79: Retorno | G79: =IFERROR(IF(C79="","",IF(E79<>"Retorno",0,IF($G$20=Parâmetros!$D$2,Simulador!$O$10/$G$17,IF($G$20=Parâmetros!$D$3,Simulador!Q79-Simulador!O79-Simulador!M79-Simulador!K79-Simulador!I79,"")))),"") -> 269.6990764 | I79: 9851.84667 | K79: 0 | M79: =IFERROR(IF(C79="","",IF($C$10=Parâmetros!$C$3,0,VLOOKUP(A79,'Base de Dados'!$E$3:$G$422,3,FALSE)*S79)),0) -> 221.9507157 | O79: =IF(C79="","",IF(C80="",0,IF(E79="Construção",0,IF(E79="Seguro",$C$17*'Base de Dados'!$C$2,IF($C$14=Parâmetros!$B$4,0,Simulador!$C$17*'Base de Dados'!$C$2))))) -> 66.4 | Q79: =IF(C79="","",IF(E79<>"Retorno",(I79+K79+M79),IF($G$20=Parâmetros!$D$2,SUM(G79,I79,K79,M79,O79),PMT($O$25,SUM($G$17),($O$10)*-1)+O79+M79+K79))) -> 10409.89646 | S79: 1013936.573
A80: 2030-03-02 | C80: 47 | D80: 1900-02-16 | E80: Retorno | G80: =IFERROR(IF(C80="","",IF(E80<>"Retorno",0,IF($G$20=Parâmetros!$D$2,Simulador!$O$10/$G$17,IF($G$20=Parâmetros!$D$3,Simulador!Q80-Simulador!O80-Simulador!M80-Simulador!K80-Simulador!I80,"")))),"") -> 272.3188925 | I80: 9849.226854 | K80: 0 | M80: =IFERROR(IF(C80="","",IF($C$10=Parâmetros!$C$3,0,VLOOKUP(A80,'Base de Dados'!$E$3:$G$422,3,FALSE)*S80)),0) -> 221.8911051 | O80: =IF(C80="","",IF(C81="",0,IF(E80="Construção",0,IF(E80="Seguro",$C$17*'Base de Dados'!$C$2,IF($C$14=Parâmetros!$B$4,0,Simulador!$C$17*'Base de Dados'!$C$2))))) -> 66.4 | Q80: =IF(C80="","",IF(E80<>"Retorno",(I80+K80+M80),IF($G$20=Parâmetros!$D$2,SUM(G80,I80,K80,M80,O80),PMT($O$25,$G$17,($O$10)*-1)+O80+M80+K80))) -> 10409.83685 | S80: 1013664.254
A81: 2030-04-02 | C81: 48 | D81: 1900-02-17 | E81: Retorno | G81: =IFERROR(IF(C81="","",IF(E81<>"Retorno",0,IF($G$20=Parâmetros!$D$2,Simulador!$O$10/$G$17,IF($G$20=Parâmetros!$D$3,Simulador!Q81-Simulador!O81-Simulador!M81-Simulador!K81-Simulador!I81,"")))),"") -> 274.9641571 | I81: 9846.581589 | K81: 0 | M81: =IFERROR(IF(C81="","",IF($C$10=Parâmetros!$C$3,0,VLOOKUP(A81,'Base de Dados'!$E$3:$G$422,3,FALSE)*S81)),0) -> 221.8309155 | O81: =IF(C81="","",IF(C82="",0,IF(E81="Construção",0,IF(E81="Seguro",$C$17*'Base de Dados'!$C$2,IF($C$14=Parâmetros!$B$4,0,Simulador!$C$17*'Base de Dados'!$C$2))))) -> 66.4 | Q81: =IF(C81="","",IF(E81<>"Retorno",(I81+K81+M81),IF($G$20=Parâmetros!$D$2,SUM(G81,I81,K81,M81,O81),PMT($O$25,SUM($G$17),($O$10)*-1)+O81+M81+K81))) -> 10409.77666 | S81: 1013389.289
A82: 2030-05-02 | C82: 49 | D82: 1900-02-18 | E82: Retorno | G82: =IFERROR(IF(C82="","",IF(E82<>"Retorno",0,IF($G$20=Parâmetros!$D$2,Simulador!$O$10/$G$17,IF($G$20=Parâmetros!$D$3,Simulador!Q82-Simulador!O82-Simulador!M82-Simulador!K82-Simulador!I82,"")))),"") -> 277.6351175 | I82: 9843.910629 | K82: 0 | M82: =IFERROR(IF(C82="","",IF($C$10=Parâmetros!$C$3,0,VLOOKUP(A82,'Base de Dados'!$E$3:$G$422,3,FALSE)*S82)),0) -> 221.7701411 | O82: =IF(C82="","",IF(C83="",0,IF(E82="Construção",0,IF(E82="Seguro",$C$17*'Base de Dados'!$C$2,IF($C$14=Parâmetros!$B$4,0,Simulador!$C$17*'Base de Dados'!$C$2))))) -> 66.4 | Q82: =IF(C82="","",IF(E82<>"Retorno",(I82+K82+M82),IF($G$20=Parâmetros!$D$2,SUM(G82,I82,K82,M82,O82),PMT($O$25,SUM($G$17),($O$10)*-1)+O82+M82+K82))) -> 10409.71589 | S82: 1013111.654
A83: 2030-06-02 | C83: 50 | D83: 1900-02-19 | E83: Retorno | G83: =IFERROR(IF(C83="","",IF(E83<>"Retorno",0,IF($G$20=Parâmetros!$D$2,Simulador!$O$10/$G$17,IF($G$20=Parâmetros!$D$3,Simulador!Q83-Simulador!O83-Simulador!M83-Simulador!K83-Simulador!I83,"")))),"") -> 280.3320231 | I83: 9841.213723 | K83: 0 | M83: =IFERROR(IF(C83="","",IF($C$10=Parâmetros!$C$3,0,VLOOKUP(A83,'Base de Dados'!$E$3:$G$422,3,FALSE)*S83)),0) -> 221.7087765 | O83: =IF(C83="","",IF(C84="",0,IF(E83="Construção",0,IF(E83="Seguro",$C$17*'Base de Dados'!$C$2,IF($C$14=Parâmetros!$B$4,0,Simulador!$C$17*'Base de Dados'!$C$2))))) -> 66.4 | Q83: =IF(C83="","",IF(E83<>"Retorno",(I83+K83+M83),IF($G$20=Parâmetros!$D$2,SUM(G83,I83,K83,M83,O83),PMT($O$25,SUM($G$17),($O$10)*-1)+O83+M83+K83))) -> 10409.65452 | S83: 1012831.322
A84: 2030-07-02 | C84: 51 | D84: 1900-02-20 | E84: Retorno | G84: =IFERROR(IF(C84="","",IF(E84<>"Retorno",0,IF($G$20=Parâmetros!$D$2,Simulador!$O$10/$G$17,IF($G$20=Parâmetros!$D$3,Simulador!Q84-Simulador!O84-Simulador!M84-Simulador!K84-Simulador!I84,"")))),"") -> 283.0551261 | I84: 9838.49062 | K84: 0 | M84: =IFERROR(IF(C84="","",IF($C$10=Parâmetros!$C$3,0,VLOOKUP(A84,'Base de Dados'!$E$3:$G$422,3,FALSE)*S84)),0) -> 221.6468157 | O84: =IF(C84="","",IF(C85="",0,IF(E84="Construção",0,IF(E84="Seguro",$C$17*'Base de Dados'!$C$2,IF($C$14=Parâmetros!$B$4,0,Simulador!$C$17*'Base de Dados'!$C$2))))) -> 66.4 | Q84: =IF(C84="","",IF(E84<>"Retorno",(I84+K84+M84),IF($G$20=Parâmetros!$D$2,SUM(G84,I84,K84,M84,O84),PMT($O$25,SUM($G$17),($O$10)*-1)+O84+M84+K84))) -> 10409.59256 | S84: 1012548.267
A85: 2030-08-02 | C85: 52 | D85: 1900-02-21 | E85: Retorno | G85: =IFERROR(IF(C85="","",IF(E85<>"Retorno",0,IF($G$20=Parâmetros!$D$2,Simulador!$O$10/$G$17,IF($G$20=Parâmetros!$D$3,Simulador!Q85-Simulador!O85-Simulador!M85-Simulador!K85-Simulador!I85,"")))),"") -> 285.8046808 | I85: 9835.741065 | K85: 0 | M85: =IFERROR(IF(C85="","",IF($C$10=Parâmetros!$C$3,0,VLOOKUP(A85,'Base de Dados'!$E$3:$G$422,3,FALSE)*S85)),0) -> 221.584253 | O85: =IF(C85="","",IF(C86="",0,IF(E85="Construção",0,IF(E85="Seguro",$C$17*'Base de Dados'!$C$2,IF($C$14=Parâmetros!$B$4,0,Simulador!$C$17*'Base de Dados'!$C$2))))) -> 66.4 | Q85: =IF(C85="","",IF(E85<>"Retorno",(I85+K85+M85),IF($G$20=Parâmetros!$D$2,SUM(G85,I85,K85,M85,O85),PMT($O$25,SUM($G$17),($O$10)*-1)+O85+M85+K85))) -> 10409.53 | S85: 1012262.463
A86: 2030-09-02 | C86: 53 | D86: 1900-02-22 | E86: Retorno | G86: =IFERROR(IF(C86="","",IF(E86<>"Retorno",0,IF($G$20=Parâmetros!$D$2,Simulador!$O$10/$G$17,IF($G$20=Parâmetros!$D$3,Simulador!Q86-Simulador!O86-Simulador!M86-Simulador!K86-Simulador!I86,"")))),"") -> 288.5809444 | I86: 9832.964802 | K86: 0 | M86: =IFERROR(IF(C86="","",IF($C$10=Parâmetros!$C$3,0,VLOOKUP(A86,'Base de Dados'!$E$3:$G$422,3,FALSE)*S86)),0) -> 221.5210827 | O86: =IF(C86="","",IF(C87="",0,IF(E86="Construção",0,IF(E86="Seguro",$C$17*'Base de Dados'!$C$2,IF($C$14=Parâmetros!$B$4,0,Simulador!$C$17*'Base de Dados'!$C$2))))) -> 66.4 | Q86: =IF(C86="","",IF(E86<>"Retorno",(I86+K86+M86),IF($G$20=Parâmetros!$D$2,SUM(G86,I86,K86,M86,O86),PMT($O$25,SUM($G$17),($O$10)*-1)+O86+M86+K86))) -> 10409.46683 | S86: 1011973.882
A87: 2030-10-02 | C87: 54 | D87: 1900-02-23 | E87: Retorno | G87: =IFERROR(IF(C87="","",IF(E87<>"Retorno",0,IF($G$20=Parâmetros!$D$2,Simulador!$O$10/$G$17,IF($G$20=Parâmetros!$D$3,Simulador!Q87-Simulador!O87-Simulador!M87-Simulador!K87-Simulador!I87,"")))),"") -> 291.3841761 | I87: 9830.16157 | K87: 0 | M87: =IFERROR(IF(C87="","",IF($C$10=Parâmetros!$C$3,0,VLOOKUP(A87,'Base de Dados'!$E$3:$G$422,3,FALSE)*S87)),0) -> 221.4572987 | O87: =IF(C87="","",IF(C88="",0,IF(E87="Construção",0,IF(E87="Seguro",$C$17*'Base de Dados'!$C$2,IF($C$14=Parâmetros!$B$4,0,Simulador!$C$17*'Base de Dados'!$C$2))))) -> 66.4 | Q87: =IF(C87="","",IF(E87<>"Retorno",(I87+K87+M87),IF($G$20=Parâmetros!$D$2,SUM(G87,I87,K87,M87,O87),PMT($O$25,SUM($G$17),($O$10)*-1)+O87+M87+K87))) -> 10409.40304 | S87: 1011682.497
A88: 2030-11-02 | C88: 55 | D88: 1900-02-24 | E88: Retorno | G88: =IFERROR(IF(C88="","",IF(E88<>"Retorno",0,IF($G$20=Parâmetros!$D$2,Simulador!$O$10/$G$17,IF($G$20=Parâmetros!$D$3,Simulador!Q88-Simulador!O88-Simulador!M88-Simulador!K88-Simulador!I88,"")))),"") -> 294.214638 | I88: 9827.331108 | K88: 0 | M88: =IFERROR(IF(C88="","",IF($C$10=Parâmetros!$C$3,0,VLOOKUP(A88,'Base de Dados'!$E$3:$G$422,3,FALSE)*S88)),0) -> 221.3928951 | O88: =IF(C88="","",IF(C89="",0,IF(E88="Construção",0,IF(E88="Seguro",$C$17*'Base de Dados'!$C$2,IF($C$14=Parâmetros!$B$4,0,Simulador!$C$17*'Base de Dados'!$C$2))))) -> 66.4 | Q88: =IF(C88="","",IF(E88<>"Retorno",(I88+K88+M88),IF($G$20=Parâmetros!$D$2,SUM(G88,I88,K88,M88,O88),PMT($O$25,SUM($G$17),($O$10)*-1)+O88+M88+K88))) -> 10409.33864 | S88: 1011388.283
A89: 2030-12-02 | C89: 56 | D89: 1900-02-25 | E89: Retorno | G89: =IFERROR(IF(C89="","",IF(E89<>"Retorno",0,IF($G$20=Parâmetros!$D$2,Simulador!$O$10/$G$17,IF($G$20=Parâmetros!$D$3,Simulador!Q89-Simulador!O89-Simulador!M89-Simulador!K89-Simulador!I89,"")))),"") -> 297.0725946 | I89: 9824.473151 | K89: 0 | M89: =IFERROR(IF(C89="","",IF($C$10=Parâmetros!$C$3,0,VLOOKUP(A89,'Base de Dados'!$E$3:$G$422,3,FALSE)*S89)),0) -> 221.3278659 | O89: =IF(C89="","",IF(C90="",0,IF(E89="Construção",0,IF(E89="Seguro",$C$17*'Base de Dados'!$C$2,IF($C$14=Parâmetros!$B$4,0,Simulador!$C$17*'Base de Dados'!$C$2))))) -> 66.4 | Q89: =IF(C89="","",IF(E89<>"Retorno",(I89+K89+M89),IF($G$20=Parâmetros!$D$2,SUM(G89,I89,K89,M89,O89),PMT($O$25,SUM($G$17),($O$10)*-1)+O89+M89+K89))) -> 10409.27361 | S89: 1011091.21
A90: 2031-01-02 | C90: 57 | D90: 1900-02-26 | E90: Retorno | G90: =IFERROR(IF(C90="","",IF(E90<>"Retorno",0,IF($G$20=Parâmetros!$D$2,Simulador!$O$10/$G$17,IF($G$20=Parâmetros!$D$3,Simulador!Q90-Simulador!O90-Simulador!M90-Simulador!K90-Simulador!I90,"")))),"") -> 299.958313 | I90: 9821.587433 | K90: 0 | M90: =IFERROR(IF(C90="","",IF($C$10=Parâmetros!$C$3,0,VLOOKUP(A90,'Base de Dados'!$E$3:$G$422,3,FALSE)*S90)),0) -> 221.262205 | O90: =IF(C90="","",IF(C91="",0,IF(E90="Construção",0,IF(E90="Seguro",$C$17*'Base de Dados'!$C$2,IF($C$14=Parâmetros!$B$4,0,Simulador!$C$17*'Base de Dados'!$C$2))))) -> 66.4 | Q90: =IF(C90="","",IF(E90<>"Retorno",(I90+K90+M90),IF($G$20=Parâmetros!$D$2,SUM(G90,I90,K90,M90,O90),PMT($O$25,SUM($G$17),($O$10)*-1)+O90+M90+K90))) -> 10409.20795 | S90: 1010791.252
A91: 2031-02-02 | C91: 58 | D91: 1900-02-27 | E91: Retorno | G91: =IFERROR(IF(C91="","",IF(E91<>"Retorno",0,IF($G$20=Parâmetros!$D$2,Simulador!$O$10/$G$17,IF($G$20=Parâmetros!$D$3,Simulador!Q91-Simulador!O91-Simulador!M91-Simulador!K91-Simulador!I91,"")))),"") -> 302.8720628 | I91: 9818.673683 | K91: 0 | M91: =IFERROR(IF(C91="","",IF($C$10=Parâmetros!$C$3,0,VLOOKUP(A91,'Base de Dados'!$E$3:$G$422,3,FALSE)*S91)),0) -> 221.1959063 | O91: =IF(C91="","",IF(C92="",0,IF(E91="Construção",0,IF(E91="Seguro",$C$17*'Base de Dados'!$C$2,IF($C$14=Parâmetros!$B$4,0,Simulador!$C$17*'Base de Dados'!$C$2))))) -> 66.4 | Q91: =IF(C91="","",IF(E91<>"Retorno",(I91+K91+M91),IF($G$20=Parâmetros!$D$2,SUM(G91,I91,K91,M91,O91),PMT($O$25,SUM($G$17),($O$10)*-1)+O91+M91+K91))) -> 10409.14165 | S91: 1010488.38
A92: 2031-03-02 | C92: 59 | D92: 1900-02-28 | E92: Retorno | G92: =IFERROR(IF(C92="","",IF(E92<>"Retorno",0,IF($G$20=Parâmetros!$D$2,Simulador!$O$10/$G$17,IF($G$20=Parâmetros!$D$3,Simulador!Q92-Simulador!O92-Simulador!M92-Simulador!K92-Simulador!I92,"")))),"") -> 305.8141163 | I92: 9815.73163 | K92: 0 | M92: =IFERROR(IF(C92="","",IF($C$10=Parâmetros!$C$3,0,VLOOKUP(A92,'Base de Dados'!$E$3:$G$422,3,FALSE)*S92)),0) -> 221.1289636 | O92: =IF(C92="","",IF(C93="",0,IF(E92="Construção",0,IF(E92="Seguro",$C$17*'Base de Dados'!$C$2,IF($C$14=Parâmetros!$B$4,0,Simulador!$C$17*'Base de Dados'!$C$2))))) -> 66.4 | Q92: =IF(C92="","",IF(E92<>"Retorno",(I92+K92+M92),IF($G$20=Parâmetros!$D$2,SUM(G92,I92,K92,M92,O92),PMT($O$25,SUM($G$17),($O$10)*-1)+O92+M92+K92))) -> 10409.07471 | S92: 1010182.566
A93: 2031-04-02 | C93: 60 | D93: 60 | E93: Retorno | G93: =IFERROR(IF(C93="","",IF(E93<>"Retorno",0,IF($G$20=Parâmetros!$D$2,Simulador!$O$10/$G$17,IF($G$20=Parâmetros!$D$3,Simulador!Q93-Simulador!O93-Simulador!M93-Simulador!K93-Simulador!I93,"")))),"") -> 308.7847485 | I93: 9812.760998 | K93: 0 | M93: =IFERROR(IF(C93="","",IF($C$10=Parâmetros!$C$3,0,VLOOKUP(A93,'Base de Dados'!$E$3:$G$422,3,FALSE)*S93)),0) -> 221.0613706 | O93: =IF(C93="","",IF(C94="",0,IF(E93="Construção",0,IF(E93="Seguro",$C$17*'Base de Dados'!$C$2,IF($C$14=Parâmetros!$B$4,0,Simulador!$C$17*'Base de Dados'!$C$2))))) -> 66.4 | Q93: =IF(C93="","",IF(E93<>"Retorno",(I93+K93+M93),IF($G$20=Parâmetros!$D$2,SUM(G93,I93,K93,M93,O93),PMT($O$25,SUM($G$17),($O$10)*-1)+O93+M93+K93))) -> 10409.00712 | S93: 1009873.781
A94: 2031-05-02 | C94: 61 | D94: 1900-03-01 | E94: Retorno | G94: =IFERROR(IF(C94="","",IF(E94<>"Retorno",0,IF($G$20=Parâmetros!$D$2,Simulador!$O$10/$G$17,IF($G$20=Parâmetros!$D$3,Simulador!Q94-Simulador!O94-Simulador!M94-Simulador!K94-Simulador!I94,"")))),"") -> 311.7842369 | I94: 9809.761509 | K94: 0 | M94: =IFERROR(IF(C94="","",IF($C$10=Parâmetros!$C$3,0,VLOOKUP(A94,'Base de Dados'!$E$3:$G$422,3,FALSE)*S94)),0) -> 220.9931211 | O94: =IF(C94="","",IF(C95="",0,IF(E94="Construção",0,IF(E94="Seguro",$C$17*'Base de Dados'!$C$2,IF($C$14=Parâmetros!$B$4,0,Simulador!$C$17*'Base de Dados'!$C$2))))) -> 66.4 | Q94: =IF(C94="","",IF(E94<>"Retorno",(I94+K94+M94),IF($G$20=Parâmetros!$D$2,SUM(G94,I94,K94,M94,O94),PMT($O$25,SUM($G$17),($O$10)*-1)+O94+M94+K94))) -> 10408.93887 | S94: 1009561.997
A95: 2031-06-02 | C95: 62 | D95: 1900-03-02 | E95: Retorno | G95: =IFERROR(IF(C95="","",IF(E95<>"Retorno",0,IF($G$20=Parâmetros!$D$2,Simulador!$O$10/$G$17,IF($G$20=Parâmetros!$D$3,Simulador!Q95-Simulador!O95-Simulador!M95-Simulador!K95-Simulador!I95,"")))),"") -> 314.8128619 | I95: 9806.732884 | K95: 0 | M95: =IFERROR(IF(C95="","",IF($C$10=Parâmetros!$C$3,0,VLOOKUP(A95,'Base de Dados'!$E$3:$G$422,3,FALSE)*S95)),0) -> 220.9242085 | O95: =IF(C95="","",IF(C96="",0,IF(E95="Construção",0,IF(E95="Seguro",$C$17*'Base de Dados'!$C$2,IF($C$14=Parâmetros!$B$4,0,Simulador!$C$17*'Base de Dados'!$C$2))))) -> 66.4 | Q95: =IF(C95="","",IF(E95<>"Retorno",(I95+K95+M95),IF($G$20=Parâmetros!$D$2,SUM(G95,I95,K95,M95,O95),PMT($O$25,SUM($G$17),($O$10)*-1)+O95+M95+K95))) -> 10408.86995 | S95: 1009247.184
A96: 2031-07-02 | C96: 63 | D96: 1900-03-03 | E96: Retorno | G96: =IFERROR(IF(C96="","",IF(E96<>"Retorno",0,IF($G$20=Parâmetros!$D$2,Simulador!$O$10/$G$17,IF($G$20=Parâmetros!$D$3,Simulador!Q96-Simulador!O96-Simulador!M96-Simulador!K96-Simulador!I96,"")))),"") -> 317.8709066 | I96: 9803.67484 | K96: 0 | M96: =IFERROR(IF(C96="","",IF($C$10=Parâmetros!$C$3,0,VLOOKUP(A96,'Base de Dados'!$E$3:$G$422,3,FALSE)*S96)),0) -> 220.8546266 | O96: =IF(C96="","",IF(C97="",0,IF(E96="Construção",0,IF(E96="Seguro",$C$17*'Base de Dados'!$C$2,IF($C$14=Parâmetros!$B$4,0,Simulador!$C$17*'Base de Dados'!$C$2))))) -> 66.4 | Q96: =IF(C96="","",IF(E96<>"Retorno",(I96+K96+M96),IF($G$20=Parâmetros!$D$2,SUM(G96,I96,K96,M96,O96),PMT($O$25,SUM($G$17),($O$10)*-1)+O96+M96+K96))) -> 10408.80037 | S96: 1008929.313
A97: 2031-08-02 | C97: 64 | D97: 1900-03-04 | E97: Retorno | G97: =IFERROR(IF(C97="","",IF(E97<>"Retorno",0,IF($G$20=Parâmetros!$D$2,Simulador!$O$10/$G$17,IF($G$20=Parâmetros!$D$3,Simulador!Q97-Simulador!O97-Simulador!M97-Simulador!K97-Simulador!I97,"")))),"") -> 320.9586566 | I97: 9800.58709 | K97: 0 | M97: =IFERROR(IF(C97="","",IF($C$10=Parâmetros!$C$3,0,VLOOKUP(A97,'Base de Dados'!$E$3:$G$422,3,FALSE)*S97)),0) -> 220.7843687 | O97: =IF(C97="","",IF(C98="",0,IF(E97="Construção",0,IF(E97="Seguro",$C$17*'Base de Dados'!$C$2,IF($C$14=Parâmetros!$B$4,0,Simulador!$C$17*'Base de Dados'!$C$2))))) -> 66.4 | Q97: =IF(C97="","",IF(E97<>"Retorno",(I97+K97+M97),IF($G$20=Parâmetros!$D$2,SUM(G97,I97,K97,M97,O97),PMT($O$25,SUM($G$17),($O$10)*-1)+O97+M97+K97))) -> 10408.73011 | S97: 1008608.354
A98: 2031-09-02 | C98: 65 | D98: 1900-03-05 | E98: Retorno | G98: =IFERROR(IF(C98="","",IF(E98<>"Retorno",0,IF($G$20=Parâmetros!$D$2,Simulador!$O$10/$G$17,IF($G$20=Parâmetros!$D$3,Simulador!Q98-Simulador!O98-Simulador!M98-Simulador!K98-Simulador!I98,"")))),"") -> 324.0764005 | I98: =IFERROR(IF(C98="","",FV($O$25,1,,-S97,0)-S97),"") -> 9797.469346 | K98: 0 | M98: =IFERROR(IF(C98="","",IF($C$10=Parâmetros!$C$3,0,VLOOKUP(A98,'Base de Dados'!$E$3:$G$422,3,FALSE)*S98)),0) -> 220.7134284 | O98: =IF(C98="","",IF(C99="",0,IF(E98="Construção",0,IF(E98="Seguro",$C$17*'Base de Dados'!$C$2,IF($C$14=Parâmetros!$B$4,0,Simulador!$C$17*'Base de Dados'!$C$2))))) -> 66.4 | Q98: =IF(C98="","",IF(E98<>"Retorno",(I98+K98+M98),IF($G$20=Parâmetros!$D$2,SUM(G98,I98,K98,M98,O98),PMT($O$25,SUM($G$17),($O$10)*-1)+O98+M98+K98))) -> 10408.65917 | S98: 1008284.278
A99: =IF(C99="","",IF(C98>$G$17,0,EDATE(A98,1))) -> 2031-10-02 | B99: =IF(AND(E99="Retorno",E98<>"Retorno"),"Primeira",IF(AND(E99="Retorno",E98=""),"Primeira","")) ->  | C99: =IF(OR(C98>=$K$19,C98=""),"",C98+1) -> 66 | D99: =C99 -> 1900-03-06 | E99: =IF(C99="","","Retorno") -> Retorno | G99: =IFERROR(IF(C99="","",IF(E99<>"Retorno",0,IF($G$20=Parâmetros!$D$2,Simulador!$O$10/$G$17,IF($G$20=Parâmetros!$D$3,Simulador!Q99-Simulador!O99-Simulador!M99-Simulador!K99-Simulador!I99,"")))),"") -> 327.2244298 | I99: 9794.321316 | K99: =IF(C99="","",IF(AND($O$23<12.01%,$C$17<2250000.01),25,0)) -> 0 | M99: =IFERROR(IF(C99="","",IF($C$10=Parâmetros!$C$3,0,VLOOKUP(A99,'Base de Dados'!$E$3:$G$422,3,FALSE)*S99)),0) -> 312.8698694 | O99: =IF(C99="","",IF(C100="",0,IF(E99="Construção",0,IF(E99="Seguro",$C$17*'Base de Dados'!$C$2,IF($C$14=Parâmetros!$B$4,0,Simulador!$C$17*'Base de Dados'!$C$2))))) -> 66.4 | Q99: =IF(C99="","",IF(E99<>"Retorno",(I99+K99+M99),IF($G$20=Parâmetros!$D$2,SUM(G99,I99,K99,M99,O99),PMT($O$25,SUM($G$17),($O$10)*-1)+O99+M99+K99))) -> 10500.81562 | S99: =IF(E99="Construção",S98+(U99*-1),IF(E99="Carência",S98,IF(E99="Retorno",S98-G99,""))) -> 1007957.053 | U99: =IF(E99="Construção",(($O$10+$U$33)/$K$10)*-1,"") -> 
A100: 2031-11-02 | C100: 67 | D100: 1900-03-07 | E100: Retorno | G100: =IFERROR(IF(C100="","",IF(E100<>"Retorno",0,IF($G$20=Parâmetros!$D$2,Simulador!$O$10/$G$17,IF($G$20=Parâmetros!$D$3,Simulador!Q100-Simulador!O100-Simulador!M100-Simulador!K100-Simulador!I100,"")))),"") -> 330.4030385 | I100: 9791.142708 | K100: 0 | M100: =IFERROR(IF(C100="","",IF($C$10=Parâmetros!$C$3,0,VLOOKUP(A100,'Base de Dados'!$E$3:$G$422,3,FALSE)*S100)),0) -> 312.7673123 | O100: =IF(C100="","",IF(C101="",0,IF(E100="Construção",0,IF(E100="Seguro",$C$17*'Base de Dados'!$C$2,IF($C$14=Parâmetros!$B$4,0,Simulador!$C$17*'Base de Dados'!$C$2))))) -> 66.4 | Q100: =IF(C100="","",IF(E100<>"Retorno",(I100+K100+M100),IF($G$20=Parâmetros!$D$2,SUM(G100,I100,K100,M100,O100),PMT($O$25,SUM($G$17),($O$10)*-1)+O100+M100+K100))) -> 10500.71306 | S100: 1007626.65
A101: 2031-12-02 | C101: 68 | D101: 1900-03-08 | E101: Retorno | G101: =IFERROR(IF(C101="","",IF(E101<>"Retorno",0,IF($G$20=Parâmetros!$D$2,Simulador!$O$10/$G$17,IF($G$20=Parâmetros!$D$3,Simulador!Q101-Simulador!O101-Simulador!M101-Simulador!K101-Simulador!I101,"")))),"") -> 333.6125238 | I101: 9787.933222 | K101: 0 | M101: =IFERROR(IF(C101="","",IF($C$10=Parâmetros!$C$3,0,VLOOKUP(A101,'Base de Dados'!$E$3:$G$422,3,FALSE)*S101)),0) -> 312.663759 | O101: =IF(C101="","",IF(C102="",0,IF(E101="Construção",0,IF(E101="Seguro",$C$17*'Base de Dados'!$C$2,IF($C$14=Parâmetros!$B$4,0,Simulador!$C$17*'Base de Dados'!$C$2))))) -> 66.4 | Q101: =IF(C101="","",IF(E101<>"Retorno",(I101+K101+M101),IF($G$20=Parâmetros!$D$2,SUM(G101,I101,K101,M101,O101),PMT($O$25,SUM($G$17),($O$10)*-1)+O101+M101+K101))) -> 10500.60951 | S101: 1007293.038
A102: 2032-01-02 | C102: 69 | D102: 1900-03-09 | E102: Retorno | G102: =IFERROR(IF(C102="","",IF(E102<>"Retorno",0,IF($G$20=Parâmetros!$D$2,Simulador!$O$10/$G$17,IF($G$20=Parâmetros!$D$3,Simulador!Q102-Simulador!O102-Simulador!M102-Simulador!K102-Simulador!I102,"")))),"") -> 336.8531855 | I102: 9784.692561 | K102: 0 | M102: =IFERROR(IF(C102="","",IF($C$10=Parâmetros!$C$3,0,VLOOKUP(A102,'Base de Dados'!$E$3:$G$422,3,FALSE)*S102)),0) -> 312.5591997 | O102: =IF(C102="","",IF(C103="",0,IF(E102="Construção",0,IF(E102="Seguro",$C$17*'Base de Dados'!$C$2,IF($C$14=Parâmetros!$B$4,0,Simulador!$C$17*'Base de Dados'!$C$2))))) -> 66.4 | Q102: =IF(C102="","",IF(E102<>"Retorno",(I102+K102+M102),IF($G$20=Parâmetros!$D$2,SUM(G102,I102,K102,M102,O102),PMT($O$25,SUM($G$17),($O$10)*-1)+O102+M102+K102))) -> 10500.50495 | S102: 1006956.185
A103: 2032-02-02 | C103: 70 | D103: 1900-03-10 | E103: Retorno | G103: =IFERROR(IF(C103="","",IF(E103<>"Retorno",0,IF($G$20=Parâmetros!$D$2,Simulador!$O$10/$G$17,IF($G$20=Parâmetros!$D$3,Simulador!Q103-Simulador!O103-Simulador!M103-Simulador!K103-Simulador!I103,"")))),"") -> 340.1253265 | I103: 9781.42042 | K103: 0 | M103: =IFERROR(IF(C103="","",IF($C$10=Parâmetros!$C$3,0,VLOOKUP(A103,'Base de Dados'!$E$3:$G$422,3,FALSE)*S103)),0) -> 312.4536248 | O103: =IF(C103="","",IF(C104="",0,IF(E103="Construção",0,IF(E103="Seguro",$C$17*'Base de Dados'!$C$2,IF($C$14=Parâmetros!$B$4,0,Simulador!$C$17*'Base de Dados'!$C$2))))) -> 66.4 | Q103: =IF(C103="","",IF(E103<>"Retorno",(I103+K103+M103),IF($G$20=Parâmetros!$D$2,SUM(G103,I103,K103,M103,O103),PMT($O$25,SUM($G$17),($O$10)*-1)+O103+M103+K103))) -> 10500.39937 | S103: 1006616.059
A104: 2032-03-02 | C104: 71 | D104: 1900-03-11 | E104: Retorno | G104: =IFERROR(IF(C104="","",IF(E104<>"Retorno",0,IF($G$20=Parâmetros!$D$2,Simulador!$O$10/$G$17,IF($G$20=Parâmetros!$D$3,Simulador!Q104-Simulador!O104-Simulador!M104-Simulador!K104-Simulador!I104,"")))),"") -> 343.4292526 | I104: 9778.116494 | K104: 0 | M104: =IFERROR(IF(C104="","",IF($C$10=Parâmetros!$C$3,0,VLOOKUP(A104,'Base de Dados'!$E$3:$G$422,3,FALSE)*S104)),0) -> 312.3470244 | O104: =IF(C104="","",IF(C105="",0,IF(E104="Construção",0,IF(E104="Seguro",$C$17*'Base de Dados'!$C$2,IF($C$14=Parâmetros!$B$4,0,Simulador!$C$17*'Base de Dados'!$C$2))))) -> 66.4 | Q104: =IF(C104="","",IF(E104<>"Retorno",(I104+K104+M104),IF($G$20=Parâmetros!$D$2,SUM(G104,I104,K104,M104,O104),PMT($O$25,SUM($G$17),($O$10)*-1)+O104+M104+K104))) -> 10500.29277 | S104: 1006272.63
A105: 2032-04-02 | C105: 72 | D105: 1900-03-12 | E105: Retorno | G105: =IFERROR(IF(C105="","",IF(E105<>"Retorno",0,IF($G$20=Parâmetros!$D$2,Simulador!$O$10/$G$17,IF($G$20=Parâmetros!$D$3,Simulador!Q105-Simulador!O105-Simulador!M105-Simulador!K105-Simulador!I105,"")))),"") -> 346.7652725 | I105: 9774.780474 | K105: 0 | M105: =IFERROR(IF(C105="","",IF($C$10=Parâmetros!$C$3,0,VLOOKUP(A105,'Base de Dados'!$E$3:$G$422,3,FALSE)*S105)),0) -> 312.2393884 | O105: =IF(C105="","",IF(C106="",0,IF(E105="Construção",0,IF(E105="Seguro",$C$17*'Base de Dados'!$C$2,IF($C$14=Parâmetros!$B$4,0,Simulador!$C$17*'Base de Dados'!$C$2))))) -> 66.4 | Q105: =IF(C105="","",IF(E105<>"Retorno",(I105+K105+M105),IF($G$20=Parâmetros!$D$2,SUM(G105,I105,K105,M105,O105),PMT($O$25,SUM($G$17),($O$10)*-1)+O105+M105+K105))) -> 10500.18513 | S105: 1005925.865
A106: 2032-05-02 | C106: 73 | D106: 1900-03-13 | E106: Retorno | G106: =IFERROR(IF(C106="","",IF(E106<>"Retorno",0,IF($G$20=Parâmetros!$D$2,Simulador!$O$10/$G$17,IF($G$20=Parâmetros!$D$3,Simulador!Q106-Simulador!O106-Simulador!M106-Simulador!K106-Simulador!I106,"")))),"") -> 350.133698 | I106: 9771.412048 | K106: 0 | M106: =IFERROR(IF(C106="","",IF($C$10=Parâmetros!$C$3,0,VLOOKUP(A106,'Base de Dados'!$E$3:$G$422,3,FALSE)*S106)),0) -> 312.1307069 | O106: =IF(C106="","",IF(C107="",0,IF(E106="Construção",0,IF(E106="Seguro",$C$17*'Base de Dados'!$C$2,IF($C$14=Parâmetros!$B$4,0,Simulador!$C$17*'Base de Dados'!$C$2))))) -> 66.4 | Q106: =IF(C106="","",IF(E106<>"Retorno",(I106+K106+M106),IF($G$20=Parâmetros!$D$2,SUM(G106,I106,K106,M106,O106),PMT($O$25,SUM($G$17),($O$10)*-1)+O106+M106+K106))) -> 10500.07645 | S106: 1005575.731
A107: 2032-06-02 | C107: 74 | D107: 1900-03-14 | E107: Retorno | G107: =IFERROR(IF(C107="","",IF(E107<>"Retorno",0,IF($G$20=Parâmetros!$D$2,Simulador!$O$10/$G$17,IF($G$20=Parâmetros!$D$3,Simulador!Q107-Simulador!O107-Simulador!M107-Simulador!K107-Simulador!I107,"")))),"") -> 353.5348439 | I107: 9768.010902 | K107: 0 | M107: =IFERROR(IF(C107="","",IF($C$10=Parâmetros!$C$3,0,VLOOKUP(A107,'Base de Dados'!$E$3:$G$422,3,FALSE)*S107)),0) -> 312.0209697 | O107: =IF(C107="","",IF(C108="",0,IF(E107="Construção",0,IF(E107="Seguro",$C$17*'Base de Dados'!$C$2,IF($C$14=Parâmetros!$B$4,0,Simulador!$C$17*'Base de Dados'!$C$2))))) -> 66.4 | Q107: =IF(C107="","",IF(E107<>"Retorno",(I107+K107+M107),IF($G$20=Parâmetros!$D$2,SUM(G107,I107,K107,M107,O107),PMT($O$25,SUM($G$17),($O$10)*-1)+O107+M107+K107))) -> 10499.96672 | S107: 1005222.196
A108: 2032-07-02 | C108: 75 | D108: 1900-03-15 | E108: Retorno | G108: =IFERROR(IF(C108="","",IF(E108<>"Retorno",0,IF($G$20=Parâmetros!$D$2,Simulador!$O$10/$G$17,IF($G$20=Parâmetros!$D$3,Simulador!Q108-Simulador!O108-Simulador!M108-Simulador!K108-Simulador!I108,"")))),"") -> 356.9690281 | I108: 9764.576718 | K108: 0 | M108: =IFERROR(IF(C108="","",IF($C$10=Parâmetros!$C$3,0,VLOOKUP(A108,'Base de Dados'!$E$3:$G$422,3,FALSE)*S108)),0) -> 311.9101665 | O108: =IF(C108="","",IF(C109="",0,IF(E108="Construção",0,IF(E108="Seguro",$C$17*'Base de Dados'!$C$2,IF($C$14=Parâmetros!$B$4,0,Simulador!$C$17*'Base de Dados'!$C$2))))) -> 66.4 | Q108: =IF(C108="","",IF(E108<>"Retorno",(I108+K108+M108),IF($G$20=Parâmetros!$D$2,SUM(G108,I108,K108,M108,O108),PMT($O$25,SUM($G$17),($O$10)*-1)+O108+M108+K108))) -> 10499.85591 | S108: 1004865.227
A109: 2032-08-02 | C109: 76 | D109: 1900-03-16 | E109: Retorno | G109: =IFERROR(IF(C109="","",IF(E109<>"Retorno",0,IF($G$20=Parâmetros!$D$2,Simulador!$O$10/$G$17,IF($G$20=Parâmetros!$D$3,Simulador!Q109-Simulador!O109-Simulador!M109-Simulador!K109-Simulador!I109,"")))),"") -> 360.4365713 | I109: 9761.109175 | K109: 0 | M109: =IFERROR(IF(C109="","",IF($C$10=Parâmetros!$C$3,0,VLOOKUP(A109,'Base de Dados'!$E$3:$G$422,3,FALSE)*S109)),0) -> 311.798287 | O109: =IF(C109="","",IF(C110="",0,IF(E109="Construção",0,IF(E109="Seguro",$C$17*'Base de Dados'!$C$2,IF($C$14=Parâmetros!$B$4,0,Simulador!$C$17*'Base de Dados'!$C$2))))) -> 66.4 | Q109: =IF(C109="","",IF(E109<>"Retorno",(I109+K109+M109),IF($G$20=Parâmetros!$D$2,SUM(G109,I109,K109,M109,O109),PMT($O$25,SUM($G$17),($O$10)*-1)+O109+M109+K109))) -> 10499.74403 | S109: 1004504.791
A110: 2032-09-02 | C110: 77 | D110: 1900-03-17 | E110: Retorno | G110: =IFERROR(IF(C110="","",IF(E110<>"Retorno",0,IF($G$20=Parâmetros!$D$2,Simulador!$O$10/$G$17,IF($G$20=Parâmetros!$D$3,Simulador!Q110-Simulador!O110-Simulador!M110-Simulador!K110-Simulador!I110,"")))),"") -> 363.9377978 | I110: 9757.607948 | K110: 0 | M110: =IFERROR(IF(C110="","",IF($C$10=Parâmetros!$C$3,0,VLOOKUP(A110,'Base de Dados'!$E$3:$G$422,3,FALSE)*S110)),0) -> 311.6853207 | O110: =IF(C110="","",IF(C111="",0,IF(E110="Construção",0,IF(E110="Seguro",$C$17*'Base de Dados'!$C$2,IF($C$14=Parâmetros!$B$4,0,Simulador!$C$17*'Base de Dados'!$C$2))))) -> 66.4 | Q110: =IF(C110="","",IF(E110<>"Retorno",(I110+K110+M110),IF($G$20=Parâmetros!$D$2,SUM(G110,I110,K110,M110,O110),PMT($O$25,SUM($G$17),($O$10)*-1)+O110+M110+K110))) -> 10499.63107 | S110: 1004140.853
A111: 2032-10-02 | C111: 78 | D111: 1900-03-18 | E111: Retorno | G111: =IFERROR(IF(C111="","",IF(E111<>"Retorno",0,IF($G$20=Parâmetros!$D$2,Simulador!$O$10/$G$17,IF($G$20=Parâmetros!$D$3,Simulador!Q111-Simulador!O111-Simulador!M111-Simulador!K111-Simulador!I111,"")))),"") -> 367.4730346 | I111: 9754.072711 | K111: 0 | M111: =IFERROR(IF(C111="","",IF($C$10=Parâmetros!$C$3,0,VLOOKUP(A111,'Base de Dados'!$E$3:$G$422,3,FALSE)*S111)),0) -> 311.5712571 | O111: =IF(C111="","",IF(C112="",0,IF(E111="Construção",0,IF(E111="Seguro",$C$17*'Base de Dados'!$C$2,IF($C$14=Parâmetros!$B$4,0,Simulador!$C$17*'Base de Dados'!$C$2))))) -> 66.4 | Q111: =IF(C111="","",IF(E111<>"Retorno",(I111+K111+M111),IF($G$20=Parâmetros!$D$2,SUM(G111,I111,K111,M111,O111),PMT($O$25,SUM($G$17),($O$10)*-1)+O111+M111+K111))) -> 10499.517 | S111: 1003773.38
A112: 2032-11-02 | C112: 79 | D112: 1900-03-19 | E112: Retorno | G112: =IFERROR(IF(C112="","",IF(E112<>"Retorno",0,IF($G$20=Parâmetros!$D$2,Simulador!$O$10/$G$17,IF($G$20=Parâmetros!$D$3,Simulador!Q112-Simulador!O112-Simulador!M112-Simulador!K112-Simulador!I112,"")))),"") -> 371.0426123 | I112: 9750.503134 | K112: 0 | M112: =IFERROR(IF(C112="","",IF($C$10=Parâmetros!$C$3,0,VLOOKUP(A112,'Base de Dados'!$E$3:$G$422,3,FALSE)*S112)),0) -> 311.4560855 | O112: =IF(C112="","",IF(C113="",0,IF(E112="Construção",0,IF(E112="Seguro",$C$17*'Base de Dados'!$C$2,IF($C$14=Parâmetros!$B$4,0,Simulador!$C$17*'Base de Dados'!$C$2))))) -> 66.4 | Q112: =IF(C112="","",IF(E112<>"Retorno",(I112+K112+M112),IF($G$20=Parâmetros!$D$2,SUM(G112,I112,K112,M112,O112),PMT($O$25,SUM($G$17),($O$10)*-1)+O112+M112+K112))) -> 10499.40183 | S112: 1003402.337
A113: 2032-12-02 | C113: 80 | D113: 1900-03-20 | E113: Retorno | G113: =IFERROR(IF(C113="","",IF(E113<>"Retorno",0,IF($G$20=Parâmetros!$D$2,Simulador!$O$10/$G$17,IF($G$20=Parâmetros!$D$3,Simulador!Q113-Simulador!O113-Simulador!M113-Simulador!K113-Simulador!I113,"")))),"") -> 374.6468642 | I113: 9746.898882 | K113: 0 | M113: =IFERROR(IF(C113="","",IF($C$10=Parâmetros!$C$3,0,VLOOKUP(A113,'Base de Dados'!$E$3:$G$422,3,FALSE)*S113)),0) -> 311.3397951 | O113: =IF(C113="","",IF(C114="",0,IF(E113="Construção",0,IF(E113="Seguro",$C$17*'Base de Dados'!$C$2,IF($C$14=Parâmetros!$B$4,0,Simulador!$C$17*'Base de Dados'!$C$2))))) -> 66.4 | Q113: =IF(C113="","",IF(E113<>"Retorno",(I113+K113+M113),IF($G$20=Parâmetros!$D$2,SUM(G113,I113,K113,M113,O113),PMT($O$25,SUM($G$17),($O$10)*-1)+O113+M113+K113))) -> 10499.28554 | S113: 1003027.69
A114: 2033-01-02 | C114: 81 | D114: 1900-03-21 | E114: Retorno | G114: =IFERROR(IF(C114="","",IF(E114<>"Retorno",0,IF($G$20=Parâmetros!$D$2,Simulador!$O$10/$G$17,IF($G$20=Parâmetros!$D$3,Simulador!Q114-Simulador!O114-Simulador!M114-Simulador!K114-Simulador!I114,"")))),"") -> 378.2861273 | I114: 9743.259619 | K114: 0 | M114: =IFERROR(IF(C114="","",IF($C$10=Parâmetros!$C$3,0,VLOOKUP(A114,'Base de Dados'!$E$3:$G$422,3,FALSE)*S114)),0) -> 311.2223751 | O114: =IF(C114="","",IF(C115="",0,IF(E114="Construção",0,IF(E114="Seguro",$C$17*'Base de Dados'!$C$2,IF($C$14=Parâmetros!$B$4,0,Simulador!$C$17*'Base de Dados'!$C$2))))) -> 66.4 | Q114: =IF(C114="","",IF(E114<>"Retorno",(I114+K114+M114),IF($G$20=Parâmetros!$D$2,SUM(G114,I114,K114,M114,O114),PMT($O$25,SUM($G$17),($O$10)*-1)+O114+M114+K114))) -> 10499.16812 | S114: 1002649.404
A115: 2033-02-02 | C115: 82 | D115: 1900-03-22 | E115: Retorno | G115: =IFERROR(IF(C115="","",IF(E115<>"Retorno",0,IF($G$20=Parâmetros!$D$2,Simulador!$O$10/$G$17,IF($G$20=Parâmetros!$D$3,Simulador!Q115-Simulador!O115-Simulador!M115-Simulador!K115-Simulador!I115,"")))),"") -> 381.9607416 | I115: 9739.585004 | K115: 0 | M115: =IFERROR(IF(C115="","",IF($C$10=Parâmetros!$C$3,0,VLOOKUP(A115,'Base de Dados'!$E$3:$G$422,3,FALSE)*S115)),0) -> 311.1038145 | O115: =IF(C115="","",IF(C116="",0,IF(E115="Construção",0,IF(E115="Seguro",$C$17*'Base de Dados'!$C$2,IF($C$14=Parâmetros!$B$4,0,Simulador!$C$17*'Base de Dados'!$C$2))))) -> 66.4 | Q115: =IF(C115="","",IF(E115<>"Retorno",(I115+K115+M115),IF($G$20=Parâmetros!$D$2,SUM(G115,I115,K115,M115,O115),PMT($O$25,SUM($G$17),($O$10)*-1)+O115+M115+K115))) -> 10499.04956 | S115: 1002267.444
A116: 2033-03-02 | C116: 83 | D116: 1900-03-23 | E116: Retorno | G116: =IFERROR(IF(C116="","",IF(E116<>"Retorno",0,IF($G$20=Parâmetros!$D$2,Simulador!$O$10/$G$17,IF($G$20=Parâmetros!$D$3,Simulador!Q116-Simulador!O116-Simulador!M116-Simulador!K116-Simulador!I116,"")))),"") -> 385.6710507 | I116: 9735.874695 | K116: 0 | M116: =IFERROR(IF(C116="","",IF($C$10=Parâmetros!$C$3,0,VLOOKUP(A116,'Base de Dados'!$E$3:$G$422,3,FALSE)*S116)),0) -> 310.9841022 | O116: =IF(C116="","",IF(C117="",0,IF(E116="Construção",0,IF(E116="Seguro",$C$17*'Base de Dados'!$C$2,IF($C$14=Parâmetros!$B$4,0,Simulador!$C$17*'Base de Dados'!$C$2))))) -> 66.4 | Q116: =IF(C116="","",IF(E116<>"Retorno",(I116+K116+M116),IF($G$20=Parâmetros!$D$2,SUM(G116,I116,K116,M116,O116),PMT($O$25,SUM($G$17),($O$10)*-1)+O116+M116+K116))) -> 10498.92985 | S116: 1001881.772
A117: 2033-04-02 | C117: 84 | D117: 1900-03-24 | E117: Retorno | G117: =IFERROR(IF(C117="","",IF(E117<>"Retorno",0,IF($G$20=Parâmetros!$D$2,Simulador!$O$10/$G$17,IF($G$20=Parâmetros!$D$3,Simulador!Q117-Simulador!O117-Simulador!M117-Simulador!K117-Simulador!I117,"")))),"") -> 389.417401 | I117: 9732.128345 | K117: 0 | M117: =IFERROR(IF(C117="","",IF($C$10=Parâmetros!$C$3,0,VLOOKUP(A117,'Base de Dados'!$E$3:$G$422,3,FALSE)*S117)),0) -> 310.863227 | O117: =IF(C117="","",IF(C118="",0,IF(E117="Construção",0,IF(E117="Seguro",$C$17*'Base de Dados'!$C$2,IF($C$14=Parâmetros!$B$4,0,Simulador!$C$17*'Base de Dados'!$C$2))))) -> 66.4 | Q117: =IF(C117="","",IF(E117<>"Retorno",(I117+K117+M117),IF($G$20=Parâmetros!$D$2,SUM(G117,I117,K117,M117,O117),PMT($O$25,SUM($G$17),($O$10)*-1)+O117+M117+K117))) -> 10498.80897 | S117: 1001492.355
A118: 2033-05-02 | C118: 85 | D118: 1900-03-25 | E118: Retorno | G118: =IFERROR(IF(C118="","",IF(E118<>"Retorno",0,IF($G$20=Parâmetros!$D$2,Simulador!$O$10/$G$17,IF($G$20=Parâmetros!$D$3,Simulador!Q118-Simulador!O118-Simulador!M118-Simulador!K118-Simulador!I118,"")))),"") -> 393.2001429 | I118: 9728.345603 | K118: 0 | M118: =IFERROR(IF(C118="","",IF($C$10=Parâmetros!$C$3,0,VLOOKUP(A118,'Base de Dados'!$E$3:$G$422,3,FALSE)*S118)),0) -> 310.7411777 | O118: =IF(C118="","",IF(C119="",0,IF(E118="Construção",0,IF(E118="Seguro",$C$17*'Base de Dados'!$C$2,IF($C$14=Parâmetros!$B$4,0,Simulador!$C$17*'Base de Dados'!$C$2))))) -> 66.4 | Q118: =IF(C118="","",IF(E118<>"Retorno",(I118+K118+M118),IF($G$20=Parâmetros!$D$2,SUM(G118,I118,K118,M118,O118),PMT($O$25,SUM($G$17),($O$10)*-1)+O118+M118+K118))) -> 10498.68692 | S118: 1001099.155
A119: 2033-06-02 | C119: 86 | D119: 1900-03-26 | E119: Retorno | G119: =IFERROR(IF(C119="","",IF(E119<>"Retorno",0,IF($G$20=Parâmetros!$D$2,Simulador!$O$10/$G$17,IF($G$20=Parâmetros!$D$3,Simulador!Q119-Simulador!O119-Simulador!M119-Simulador!K119-Simulador!I119,"")))),"") -> 397.0196298 | I119: 9724.526116 | K119: 0 | M119: =IFERROR(IF(C119="","",IF($C$10=Parâmetros!$C$3,0,VLOOKUP(A119,'Base de Dados'!$E$3:$G$422,3,FALSE)*S119)),0) -> 310.6179428 | O119: =IF(C119="","",IF(C120="",0,IF(E119="Construção",0,IF(E119="Seguro",$C$17*'Base de Dados'!$C$2,IF($C$14=Parâmetros!$B$4,0,Simulador!$C$17*'Base de Dados'!$C$2))))) -> 66.4 | Q119: =IF(C119="","",IF(E119<>"Retorno",(I119+K119+M119),IF($G$20=Parâmetros!$D$2,SUM(G119,I119,K119,M119,O119),PMT($O$25,SUM($G$17),($O$10)*-1)+O119+M119+K119))) -> 10498.56369 | S119: 1000702.135
A120: 2033-07-02 | C120: 87 | D120: 1900-03-27 | E120: Retorno | G120: =IFERROR(IF(C120="","",IF(E120<>"Retorno",0,IF($G$20=Parâmetros!$D$2,Simulador!$O$10/$G$17,IF($G$20=Parâmetros!$D$3,Simulador!Q120-Simulador!O120-Simulador!M120-Simulador!K120-Simulador!I120,"")))),"") -> 400.8762185 | I120: 9720.669528 | K120: 0 | M120: =IFERROR(IF(C120="","",IF($C$10=Parâmetros!$C$3,0,VLOOKUP(A120,'Base de Dados'!$E$3:$G$422,3,FALSE)*S120)),0) -> 310.4935108 | O120: =IF(C120="","",IF(C121="",0,IF(E120="Construção",0,IF(E120="Seguro",$C$17*'Base de Dados'!$C$2,IF($C$14=Parâmetros!$B$4,0,Simulador!$C$17*'Base de Dados'!$C$2))))) -> 66.4 | Q120: =IF(C120="","",IF(E120<>"Retorno",(I120+K120+M120),IF($G$20=Parâmetros!$D$2,SUM(G120,I120,K120,M120,O120),PMT($O$25,SUM($G$17),($O$10)*-1)+O120+M120+K120))) -> 10498.43926 | S120: 1000301.259
A121: 2033-08-02 | C121: 88 | D121: 1900-03-28 | E121: Retorno | G121: =IFERROR(IF(C121="","",IF(E121<>"Retorno",0,IF($G$20=Parâmetros!$D$2,Simulador!$O$10/$G$17,IF($G$20=Parâmetros!$D$3,Simulador!Q121-Simulador!O121-Simulador!M121-Simulador!K121-Simulador!I121,"")))),"") -> 404.7702696 | I121: 9716.775476 | K121: 0 | M121: =IFERROR(IF(C121="","",IF($C$10=Parâmetros!$C$3,0,VLOOKUP(A121,'Base de Dados'!$E$3:$G$422,3,FALSE)*S121)),0) -> 310.3678701 | O121: =IF(C121="","",IF(C122="",0,IF(E121="Construção",0,IF(E121="Seguro",$C$17*'Base de Dados'!$C$2,IF($C$14=Parâmetros!$B$4,0,Simulador!$C$17*'Base de Dados'!$C$2))))) -> 66.4 | Q121: =IF(C121="","",IF(E121<>"Retorno",(I121+K121+M121),IF($G$20=Parâmetros!$D$2,SUM(G121,I121,K121,M121,O121),PMT($O$25,SUM($G$17),($O$10)*-1)+O121+M121+K121))) -> 10498.31362 | S121: 999896.4888
A122: 2033-09-02 | C122: 89 | D122: 1900-03-29 | E122: Retorno | G122: =IFERROR(IF(C122="","",IF(E122<>"Retorno",0,IF($G$20=Parâmetros!$D$2,Simulador!$O$10/$G$17,IF($G$20=Parâmetros!$D$3,Simulador!Q122-Simulador!O122-Simulador!M122-Simulador!K122-Simulador!I122,"")))),"") -> 408.7021469 | I122: 9712.843599 | K122: 0 | M122: =IFERROR(IF(C122="","",IF($C$10=Parâmetros!$C$3,0,VLOOKUP(A122,'Base de Dados'!$E$3:$G$422,3,FALSE)*S122)),0) -> 310.241009 | O122: =IF(C122="","",IF(C123="",0,IF(E122="Construção",0,IF(E122="Seguro",$C$17*'Base de Dados'!$C$2,IF($C$14=Parâmetros!$B$4,0,Simulador!$C$17*'Base de Dados'!$C$2))))) -> 66.4 | Q122: =IF(C122="","",IF(E122<>"Retorno",(I122+K122+M122),IF($G$20=Parâmetros!$D$2,SUM(G122,I122,K122,M122,O122),PMT($O$25,SUM($G$17),($O$10)*-1)+O122+M122+K122))) -> 10498.18676 | S122: 999487.7867
A123: 2033-10-02 | C123: 90 | D123: 1900-03-30 | E123: Retorno | G123: =IFERROR(IF(C123="","",IF(E123<>"Retorno",0,IF($G$20=Parâmetros!$D$2,Simulador!$O$10/$G$17,IF($G$20=Parâmetros!$D$3,Simulador!Q123-Simulador!O123-Simulador!M123-Simulador!K123-Simulador!I123,"")))),"") -> 412.6722179 | I123: 9708.873528 | K123: 0 | M123: =IFERROR(IF(C123="","",IF($C$10=Parâmetros!$C$3,0,VLOOKUP(A123,'Base de Dados'!$E$3:$G$422,3,FALSE)*S123)),0) -> 310.1129155 | O123: =IF(C123="","",IF(C124="",0,IF(E123="Construção",0,IF(E123="Seguro",$C$17*'Base de Dados'!$C$2,IF($C$14=Parâmetros!$B$4,0,Simulador!$C$17*'Base de Dados'!$C$2))))) -> 66.4 | Q123: =IF(C123="","",IF(E123<>"Retorno",(I123+K123+M123),IF($G$20=Parâmetros!$D$2,SUM(G123,I123,K123,M123,O123),PMT($O$25,SUM($G$17),($O$10)*-1)+O123+M123+K123))) -> 10498.05866 | S123: 999075.1144
A124: 2033-11-02 | C124: 91 | D124: 1900-03-31 | E124: Retorno | G124: =IFERROR(IF(C124="","",IF(E124<>"Retorno",0,IF($G$20=Parâmetros!$D$2,Simulador!$O$10/$G$17,IF($G$20=Parâmetros!$D$3,Simulador!Q124-Simulador!O124-Simulador!M124-Simulador!K124-Simulador!I124,"")))),"") -> 416.6808536 | I124: 9704.864893 | K124: 0 | M124: =IFERROR(IF(C124="","",IF($C$10=Parâmetros!$C$3,0,VLOOKUP(A124,'Base de Dados'!$E$3:$G$422,3,FALSE)*S124)),0) -> 309.9835778 | O124: =IF(C124="","",IF(C125="",0,IF(E124="Construção",0,IF(E124="Seguro",$C$17*'Base de Dados'!$C$2,IF($C$14=Parâmetros!$B$4,0,Simulador!$C$17*'Base de Dados'!$C$2))))) -> 66.4 | Q124: =IF(C124="","",IF(E124<>"Retorno",(I124+K124+M124),IF($G$20=Parâmetros!$D$2,SUM(G124,I124,K124,M124,O124),PMT($O$25,SUM($G$17),($O$10)*-1)+O124+M124+K124))) -> 10497.92932 | S124: 998658.4336
A125: 2033-12-02 | C125: 92 | D125: 1900-04-01 | E125: Retorno | G125: =IFERROR(IF(C125="","",IF(E125<>"Retorno",0,IF($G$20=Parâmetros!$D$2,Simulador!$O$10/$G$17,IF($G$20=Parâmetros!$D$3,Simulador!Q125-Simulador!O125-Simulador!M125-Simulador!K125-Simulador!I125,"")))),"") -> 420.7284285 | I125: 9700.817318 | K125: 0 | M125: =IFERROR(IF(C125="","",IF($C$10=Parâmetros!$C$3,0,VLOOKUP(A125,'Base de Dados'!$E$3:$G$422,3,FALSE)*S125)),0) -> 309.8529837 | O125: =IF(C125="","",IF(C126="",0,IF(E125="Construção",0,IF(E125="Seguro",$C$17*'Base de Dados'!$C$2,IF($C$14=Parâmetros!$B$4,0,Simulador!$C$17*'Base de Dados'!$C$2))))) -> 66.4 | Q125: =IF(C125="","",IF(E125<>"Retorno",(I125+K125+M125),IF($G$20=Parâmetros!$D$2,SUM(G125,I125,K125,M125,O125),PMT($O$25,SUM($G$17),($O$10)*-1)+O125+M125+K125))) -> 10497.79873 | S125: 998237.7052
A126: 2034-01-02 | C126: 93 | D126: 1900-04-02 | E126: Retorno | G126: =IFERROR(IF(C126="","",IF(E126<>"Retorno",0,IF($G$20=Parâmetros!$D$2,Simulador!$O$10/$G$17,IF($G$20=Parâmetros!$D$3,Simulador!Q126-Simulador!O126-Simulador!M126-Simulador!K126-Simulador!I126,"")))),"") -> 424.815321 | I126: 9696.730425 | K126: 0 | M126: =IFERROR(IF(C126="","",IF($C$10=Parâmetros!$C$3,0,VLOOKUP(A126,'Base de Dados'!$E$3:$G$422,3,FALSE)*S126)),0) -> 309.721121 | O126: =IF(C126="","",IF(C127="",0,IF(E126="Construção",0,IF(E126="Seguro",$C$17*'Base de Dados'!$C$2,IF($C$14=Parâmetros!$B$4,0,Simulador!$C$17*'Base de Dados'!$C$2))))) -> 66.4 | Q126: =IF(C126="","",IF(E126<>"Retorno",(I126+K126+M126),IF($G$20=Parâmetros!$D$2,SUM(G126,I126,K126,M126,O126),PMT($O$25,SUM($G$17),($O$10)*-1)+O126+M126+K126))) -> 10497.66687 | S126: 997812.8898
A127: 2034-02-02 | C127: 94 | D127: 1900-04-03 | E127: Retorno | G127: =IFERROR(IF(C127="","",IF(E127<>"Retorno",0,IF($G$20=Parâmetros!$D$2,Simulador!$O$10/$G$17,IF($G$20=Parâmetros!$D$3,Simulador!Q127-Simulador!O127-Simulador!M127-Simulador!K127-Simulador!I127,"")))),"") -> 428.9419129 | I127: 9692.603833 | K127: 0 | M127: =IFERROR(IF(C127="","",IF($C$10=Parâmetros!$C$3,0,VLOOKUP(A127,'Base de Dados'!$E$3:$G$422,3,FALSE)*S127)),0) -> 309.5879774 | O127: =IF(C127="","",IF(C128="",0,IF(E127="Construção",0,IF(E127="Seguro",$C$17*'Base de Dados'!$C$2,IF($C$14=Parâmetros!$B$4,0,Simulador!$C$17*'Base de Dados'!$C$2))))) -> 66.4 | Q127: =IF(C127="","",IF(E127<>"Retorno",(I127+K127+M127),IF($G$20=Parâmetros!$D$2,SUM(G127,I127,K127,M127,O127),PMT($O$25,SUM($G$17),($O$10)*-1)+O127+M127+K127))) -> 10497.53372 | S127: 997383.9479
A128: 2034-03-02 | C128: 95 | D128: 1900-04-04 | E128: Retorno | G128: =IFERROR(IF(C128="","",IF(E128<>"Retorno",0,IF($G$20=Parâmetros!$D$2,Simulador!$O$10/$G$17,IF($G$20=Parâmetros!$D$3,Simulador!Q128-Simulador!O128-Simulador!M128-Simulador!K128-Simulador!I128,"")))),"") -> 433.1085899 | I128: 9688.437156 | K128: 0 | M128: =IFERROR(IF(C128="","",IF($C$10=Parâmetros!$C$3,0,VLOOKUP(A128,'Base de Dados'!$E$3:$G$422,3,FALSE)*S128)),0) -> 309.4535405 | O128: =IF(C128="","",IF(C129="",0,IF(E128="Construção",0,IF(E128="Seguro",$C$17*'Base de Dados'!$C$2,IF($C$14=Parâmetros!$B$4,0,Simulador!$C$17*'Base de Dados'!$C$2))))) -> 66.4 | Q128: =IF(C128="","",IF(E128<>"Retorno",(I128+K128+M128),IF($G$20=Parâmetros!$D$2,SUM(G128,I128,K128,M128,O128),PMT($O$25,SUM($G$17),($O$10)*-1)+O128+M128+K128))) -> 10497.39929 | S128: 996950.8393
A129: 2034-04-02 | C129: 96 | D129: 1900-04-05 | E129: Retorno | G129: =IFERROR(IF(C129="","",IF(E129<>"Retorno",0,IF($G$20=Parâmetros!$D$2,Simulador!$O$10/$G$17,IF($G$20=Parâmetros!$D$3,Simulador!Q129-Simulador!O129-Simulador!M129-Simulador!K129-Simulador!I129,"")))),"") -> 437.3157414 | I129: 9684.230005 | K129: 0 | M129: =IFERROR(IF(C129="","",IF($C$10=Parâmetros!$C$3,0,VLOOKUP(A129,'Base de Dados'!$E$3:$G$422,3,FALSE)*S129)),0) -> 309.3177977 | O129: =IF(C129="","",IF(C130="",0,IF(E129="Construção",0,IF(E129="Seguro",$C$17*'Base de Dados'!$C$2,IF($C$14=Parâmetros!$B$4,0,Simulador!$C$17*'Base de Dados'!$C$2))))) -> 66.4 | Q129: =IF(C129="","",IF(E129<>"Retorno",(I129+K129+M129),IF($G$20=Parâmetros!$D$2,SUM(G129,I129,K129,M129,O129),PMT($O$25,SUM($G$17),($O$10)*-1)+O129+M129+K129))) -> 10497.26354 | S129: 996513.5236
A130: 2034-05-02 | C130: 97 | D130: 1900-04-06 | E130: Retorno | G130: =IFERROR(IF(C130="","",IF(E130<>"Retorno",0,IF($G$20=Parâmetros!$D$2,Simulador!$O$10/$G$17,IF($G$20=Parâmetros!$D$3,Simulador!Q130-Simulador!O130-Simulador!M130-Simulador!K130-Simulador!I130,"")))),"") -> 441.5637605 | I130: 9679.981986 | K130: 0 | M130: =IFERROR(IF(C130="","",IF($C$10=Parâmetros!$C$3,0,VLOOKUP(A130,'Base de Dados'!$E$3:$G$422,3,FALSE)*S130)),0) -> 309.1807363 | O130: =IF(C130="","",IF(C131="",0,IF(E130="Construção",0,IF(E130="Seguro",$C$17*'Base de Dados'!$C$2,IF($C$14=Parâmetros!$B$4,0,Simulador!$C$17*'Base de Dados'!$C$2))))) -> 66.4 | Q130: =IF(C130="","",IF(E130<>"Retorno",(I130+K130+M130),IF($G$20=Parâmetros!$D$2,SUM(G130,I130,K130,M130,O130),PMT($O$25,SUM($G$17),($O$10)*-1)+O130+M130+K130))) -> 10497.12648 | S130: 996071.9598
A131: 2034-06-02 | C131: 98 | D131: 1900-04-07 | E131: Retorno | G131: =IFERROR(IF(C131="","",IF(E131<>"Retorno",0,IF($G$20=Parâmetros!$D$2,Simulador!$O$10/$G$17,IF($G$20=Parâmetros!$D$3,Simulador!Q131-Simulador!O131-Simulador!M131-Simulador!K131-Simulador!I131,"")))),"") -> 445.8530442 | I131: 9675.692702 | K131: 0 | M131: =IFERROR(IF(C131="","",IF($C$10=Parâmetros!$C$3,0,VLOOKUP(A131,'Base de Dados'!$E$3:$G$422,3,FALSE)*S131)),0) -> 309.0423435 | O131: =IF(C131="","",IF(C132="",0,IF(E131="Construção",0,IF(E131="Seguro",$C$17*'Base de Dados'!$C$2,IF($C$14=Parâmetros!$B$4,0,Simulador!$C$17*'Base de Dados'!$C$2))))) -> 66.4 | Q131: =IF(C131="","",IF(E131<>"Retorno",(I131+K131+M131),IF($G$20=Parâmetros!$D$2,SUM(G131,I131,K131,M131,O131),PMT($O$25,SUM($G$17),($O$10)*-1)+O131+M131+K131))) -> 10496.98809 | S131: 995626.1068
A132: 2034-07-02 | C132: 99 | D132: 1900-04-08 | E132: Retorno | G132: =IFERROR(IF(C132="","",IF(E132<>"Retorno",0,IF($G$20=Parâmetros!$D$2,Simulador!$O$10/$G$17,IF($G$20=Parâmetros!$D$3,Simulador!Q132-Simulador!O132-Simulador!M132-Simulador!K132-Simulador!I132,"")))),"") -> 450.1839934 | I132: 9671.361753 | K132: 0 | M132: =IFERROR(IF(C132="","",IF($C$10=Parâmetros!$C$3,0,VLOOKUP(A132,'Base de Dados'!$E$3:$G$422,3,FALSE)*S132)),0) -> 308.9026064 | O132: =IF(C132="","",IF(C133="",0,IF(E132="Construção",0,IF(E132="Seguro",$C$17*'Base de Dados'!$C$2,IF($C$14=Parâmetros!$B$4,0,Simulador!$C$17*'Base de Dados'!$C$2))))) -> 66.4 | Q132: =IF(C132="","",IF(E132<>"Retorno",(I132+K132+M132),IF($G$20=Parâmetros!$D$2,SUM(G132,I132,K132,M132,O132),PMT($O$25,SUM($G$17),($O$10)*-1)+O132+M132+K132))) -> 10496.84835 | S132: 995175.9228
A133: 2034-08-02 | C133: 100 | D133: 1900-04-09 | E133: Retorno | G133: =IFERROR(IF(C133="","",IF(E133<>"Retorno",0,IF($G$20=Parâmetros!$D$2,Simulador!$O$10/$G$17,IF($G$20=Parâmetros!$D$3,Simulador!Q133-Simulador!O133-Simulador!M133-Simulador!K133-Simulador!I133,"")))),"") -> 454.5570128 | I133: 9666.988733 | K133: 0 | M133: =IFERROR(IF(C133="","",IF($C$10=Parâmetros!$C$3,0,VLOOKUP(A133,'Base de Dados'!$E$3:$G$422,3,FALSE)*S133)),0) -> 308.7615119 | O133: =IF(C133="","",IF(C134="",0,IF(E133="Construção",0,IF(E133="Seguro",$C$17*'Base de Dados'!$C$2,IF($C$14=Parâmetros!$B$4,0,Simulador!$C$17*'Base de Dados'!$C$2))))) -> 66.4 | Q133: =IF(C133="","",IF(E133<>"Retorno",(I133+K133+M133),IF($G$20=Parâmetros!$D$2,SUM(G133,I133,K133,M133,O133),PMT($O$25,SUM($G$17),($O$10)*-1)+O133+M133+K133))) -> 10496.70726 | S133: 994721.3658
A134: 2034-09-02 | C134: 101 | D134: 1900-04-10 | E134: Retorno | G134: =IFERROR(IF(C134="","",IF(E134<>"Retorno",0,IF($G$20=Parâmetros!$D$2,Simulador!$O$10/$G$17,IF($G$20=Parâmetros!$D$3,Simulador!Q134-Simulador!O134-Simulador!M134-Simulador!K134-Simulador!I134,"")))),"") -> 458.972511 | I134: 9662.573235 | K134: 0 | M134: =IFERROR(IF(C134="","",IF($C$10=Parâmetros!$C$3,0,VLOOKUP(A134,'Base de Dados'!$E$3:$G$422,3,FALSE)*S134)),0) -> 308.6190469 | O134: =IF(C134="","",IF(C135="",0,IF(E134="Construção",0,IF(E134="Seguro",$C$17*'Base de Dados'!$C$2,IF($C$14=Parâmetros!$B$4,0,Simulador!$C$17*'Base de Dados'!$C$2))))) -> 66.4 | Q134: =IF(C134="","",IF(E134<>"Retorno",(I134+K134+M134),IF($G$20=Parâmetros!$D$2,SUM(G134,I134,K134,M134,O134),PMT($O$25,SUM($G$17),($O$10)*-1)+O134+M134+K134))) -> 10496.56479 | S134: 994262.3933
A135: 2034-10-02 | C135: 102 | D135: 1900-04-11 | E135: Retorno | G135: =IFERROR(IF(C135="","",IF(E135<>"Retorno",0,IF($G$20=Parâmetros!$D$2,Simulador!$O$10/$G$17,IF($G$20=Parâmetros!$D$3,Simulador!Q135-Simulador!O135-Simulador!M135-Simulador!K135-Simulador!I135,"")))),"") -> 463.4309007 | I135: 9658.114845 | K135: 0 | M135: =IFERROR(IF(C135="","",IF($C$10=Parâmetros!$C$3,0,VLOOKUP(A135,'Base de Dados'!$E$3:$G$422,3,FALSE)*S135)),0) -> 423.5571178 | O135: =IF(C135="","",IF(C136="",0,IF(E135="Construção",0,IF(E135="Seguro",$C$17*'Base de Dados'!$C$2,IF($C$14=Parâmetros!$B$4,0,Simulador!$C$17*'Base de Dados'!$C$2))))) -> 66.4 | Q135: =IF(C135="","",IF(E135<>"Retorno",(I135+K135+M135),IF($G$20=Parâmetros!$D$2,SUM(G135,I135,K135,M135,O135),PMT($O$25,SUM($G$17),($O$10)*-1)+O135+M135+K135))) -> 10611.50286 | S135: 993798.9624
A136: 2034-11-02 | C136: 103 | D136: 1900-04-12 | E136: Retorno | G136: =IFERROR(IF(C136="","",IF(E136<>"Retorno",0,IF($G$20=Parâmetros!$D$2,Simulador!$O$10/$G$17,IF($G$20=Parâmetros!$D$3,Simulador!Q136-Simulador!O136-Simulador!M136-Simulador!K136-Simulador!I136,"")))),"") -> 467.9325985 | I136: 9653.613148 | K136: 0 | M136: =IFERROR(IF(C136="","",IF($C$10=Parâmetros!$C$3,0,VLOOKUP(A136,'Base de Dados'!$E$3:$G$422,3,FALSE)*S136)),0) -> 423.3576849 | O136: =IF(C136="","",IF(C137="",0,IF(E136="Construção",0,IF(E136="Seguro",$C$17*'Base de Dados'!$C$2,IF($C$14=Parâmetros!$B$4,0,Simulador!$C$17*'Base de Dados'!$C$2))))) -> 66.4 | Q136: =IF(C136="","",IF(E136<>"Retorno",(I136+K136+M136),IF($G$20=Parâmetros!$D$2,SUM(G136,I136,K136,M136,O136),PMT($O$25,SUM($G$17),($O$10)*-1)+O136+M136+K136))) -> 10611.30343 | S136: 993331.0298
A137: 2034-12-02 | C137: 104 | D137: 1900-04-13 | E137: Retorno | G137: =IFERROR(IF(C137="","",IF(E137<>"Retorno",0,IF($G$20=Parâmetros!$D$2,Simulador!$O$10/$G$17,IF($G$20=Parâmetros!$D$3,Simulador!Q137-Simulador!O137-Simulador!M137-Simulador!K137-Simulador!I137,"")))),"") -> 472.4780252 | I137: 9649.067721 | K137: 0 | M137: =IFERROR(IF(C137="","",IF($C$10=Parâmetros!$C$3,0,VLOOKUP(A137,'Base de Dados'!$E$3:$G$422,3,FALSE)*S137)),0) -> 423.1563148 | O137: =IF(C137="","",IF(C138="",0,IF(E137="Construção",0,IF(E137="Seguro",$C$17*'Base de Dados'!$C$2,IF($C$14=Parâmetros!$B$4,0,Simulador!$C$17*'Base de Dados'!$C$2))))) -> 66.4 | Q137: =IF(C137="","",IF(E137<>"Retorno",(I137+K137+M137),IF($G$20=Parâmetros!$D$2,SUM(G137,I137,K137,M137,O137),PMT($O$25,SUM($G$17),($O$10)*-1)+O137+M137+K137))) -> 10611.10206 | S137: 992858.5518
A138: 2035-01-02 | C138: 105 | D138: 1900-04-14 | E138: Retorno | G138: =IFERROR(IF(C138="","",IF(E138<>"Retorno",0,IF($G$20=Parâmetros!$D$2,Simulador!$O$10/$G$17,IF($G$20=Parâmetros!$D$3,Simulador!Q138-Simulador!O138-Simulador!M138-Simulador!K138-Simulador!I138,"")))),"") -> 477.0676054 | I138: 9644.478141 | K138: 0 | M138: =IFERROR(IF(C138="","",IF($C$10=Parâmetros!$C$3,0,VLOOKUP(A138,'Base de Dados'!$E$3:$G$422,3,FALSE)*S138)),0) -> 422.9529885 | O138: =IF(C138="","",IF(C139="",0,IF(E138="Construção",0,IF(E138="Seguro",$C$17*'Base de Dados'!$C$2,IF($C$14=Parâmetros!$B$4,0,Simulador!$C$17*'Base de Dados'!$C$2))))) -> 66.4 | Q138: =IF(C138="","",IF(E138<>"Retorno",(I138+K138+M138),IF($G$20=Parâmetros!$D$2,SUM(G138,I138,K138,M138,O138),PMT($O$25,SUM($G$17),($O$10)*-1)+O138+M138+K138))) -> 10610.89873 | S138: 992381.4841
A139: 2035-02-02 | C139: 106 | D139: 1900-04-15 | E139: Retorno | G139: =IFERROR(IF(C139="","",IF(E139<>"Retorno",0,IF($G$20=Parâmetros!$D$2,Simulador!$O$10/$G$17,IF($G$20=Parâmetros!$D$3,Simulador!Q139-Simulador!O139-Simulador!M139-Simulador!K139-Simulador!I139,"")))),"") -> 481.7017682 | I139: 9639.843978 | K139: 0 | M139: =IFERROR(IF(C139="","",IF($C$10=Parâmetros!$C$3,0,VLOOKUP(A139,'Base de Dados'!$E$3:$G$422,3,FALSE)*S139)),0) -> 422.7476872 | O139: =IF(C139="","",IF(C140="",0,IF(E139="Construção",0,IF(E139="Seguro",$C$17*'Base de Dados'!$C$2,IF($C$14=Parâmetros!$B$4,0,Simulador!$C$17*'Base de Dados'!$C$2))))) -> 66.4 | Q139: =IF(C139="","",IF(E139<>"Retorno",(I139+K139+M139),IF($G$20=Parâmetros!$D$2,SUM(G139,I139,K139,M139,O139),PMT($O$25,SUM($G$17),($O$10)*-1)+O139+M139+K139))) -> 10610.69343 | S139: 991899.7824
A140: 2035-03-02 | C140: 107 | D140: 1900-04-16 | E140: Retorno | G140: =IFERROR(IF(C140="","",IF(E140<>"Retorno",0,IF($G$20=Parâmetros!$D$2,Simulador!$O$10/$G$17,IF($G$20=Parâmetros!$D$3,Simulador!Q140-Simulador!O140-Simulador!M140-Simulador!K140-Simulador!I140,"")))),"") -> 486.3809464 | I140: 9635.1648 | K140: 0 | M140: =IFERROR(IF(C140="","",IF($C$10=Parâmetros!$C$3,0,VLOOKUP(A140,'Base de Dados'!$E$3:$G$422,3,FALSE)*S140)),0) -> 422.5403917 | O140: =IF(C140="","",IF(C141="",0,IF(E140="Construção",0,IF(E140="Seguro",$C$17*'Base de Dados'!$C$2,IF($C$14=Parâmetros!$B$4,0,Simulador!$C$17*'Base de Dados'!$C$2))))) -> 66.4 | Q140: =IF(C140="","",IF(E140<>"Retorno",(I140+K140+M140),IF($G$20=Parâmetros!$D$2,SUM(G140,I140,K140,M140,O140),PMT($O$25,SUM($G$17),($O$10)*-1)+O140+M140+K140))) -> 10610.48614 | S140: 991413.4014
A141: 2035-04-02 | C141: 108 | D141: 1900-04-17 | E141: Retorno | G141: =IFERROR(IF(C141="","",IF(E141<>"Retorno",0,IF($G$20=Parâmetros!$D$2,Simulador!$O$10/$G$17,IF($G$20=Parâmetros!$D$3,Simulador!Q141-Simulador!O141-Simulador!M141-Simulador!K141-Simulador!I141,"")))),"") -> 491.1055776 | I141: 9630.440169 | K141: 0 | M141: =IFERROR(IF(C141="","",IF($C$10=Parâmetros!$C$3,0,VLOOKUP(A141,'Base de Dados'!$E$3:$G$422,3,FALSE)*S141)),0) -> 422.3310825 | O141: =IF(C141="","",IF(C142="",0,IF(E141="Construção",0,IF(E141="Seguro",$C$17*'Base de Dados'!$C$2,IF($C$14=Parâmetros!$B$4,0,Simulador!$C$17*'Base de Dados'!$C$2))))) -> 66.4 | Q141: =IF(C141="","",IF(E141<>"Retorno",(I141+K141+M141),IF($G$20=Parâmetros!$D$2,SUM(G141,I141,K141,M141,O141),PMT($O$25,SUM($G$17),($O$10)*-1)+O141+M141+K141))) -> 10610.27683 | S141: 990922.2959
A142: 2035-05-02 | C142: 109 | D142: 1900-04-18 | E142: Retorno | G142: =IFERROR(IF(C142="","",IF(E142<>"Retorno",0,IF($G$20=Parâmetros!$D$2,Simulador!$O$10/$G$17,IF($G$20=Parâmetros!$D$3,Simulador!Q142-Simulador!O142-Simulador!M142-Simulador!K142-Simulador!I142,"")))),"") -> 495.876103 | I142: 9625.669643 | K142: 0 | M142: =IFERROR(IF(C142="","",IF($C$10=Parâmetros!$C$3,0,VLOOKUP(A142,'Base de Dados'!$E$3:$G$422,3,FALSE)*S142)),0) -> 422.1197401 | O142: =IF(C142="","",IF(C143="",0,IF(E142="Construção",0,IF(E142="Seguro",$C$17*'Base de Dados'!$C$2,IF($C$14=Parâmetros!$B$4,0,Simulador!$C$17*'Base de Dados'!$C$2))))) -> 66.4 | Q142: =IF(C142="","",IF(E142<>"Retorno",(I142+K142+M142),IF($G$20=Parâmetros!$D$2,SUM(G142,I142,K142,M142,O142),PMT($O$25,SUM($G$17),($O$10)*-1)+O142+M142+K142))) -> 10610.06549 | S142: 990426.4198
A143: 2035-06-02 | C143: 110 | D143: 1900-04-19 | E143: Retorno | G143: =IFERROR(IF(C143="","",IF(E143<>"Retorno",0,IF($G$20=Parâmetros!$D$2,Simulador!$O$10/$G$17,IF($G$20=Parâmetros!$D$3,Simulador!Q143-Simulador!O143-Simulador!M143-Simulador!K143-Simulador!I143,"")))),"") -> 500.6929687 | I143: 9620.852777 | K143: 0 | M143: =IFERROR(IF(C143="","",IF($C$10=Parâmetros!$C$3,0,VLOOKUP(A143,'Base de Dados'!$E$3:$G$422,3,FALSE)*S143)),0) -> 421.9063448 | O143: =IF(C143="","",IF(C144="",0,IF(E143="Construção",0,IF(E143="Seguro",$C$17*'Base de Dados'!$C$2,IF($C$14=Parâmetros!$B$4,0,Simulador!$C$17*'Base de Dados'!$C$2))))) -> 66.4 | Q143: =IF(C143="","",IF(E143<>"Retorno",(I143+K143+M143),IF($G$20=Parâmetros!$D$2,SUM(G143,I143,K143,M143,O143),PMT($O$25,SUM($G$17),($O$10)*-1)+O143+M143+K143))) -> 10609.85209 | S143: 989925.7268
A144: 2035-07-02 | C144: 111 | D144: 1900-04-20 | E144: Retorno | G144: =IFERROR(IF(C144="","",IF(E144<>"Retorno",0,IF($G$20=Parâmetros!$D$2,Simulador!$O$10/$G$17,IF($G$20=Parâmetros!$D$3,Simulador!Q144-Simulador!O144-Simulador!M144-Simulador!K144-Simulador!I144,"")))),"") -> 505.5566246 | I144: 9615.989122 | K144: 0 | M144: =IFERROR(IF(C144="","",IF($C$10=Parâmetros!$C$3,0,VLOOKUP(A144,'Base de Dados'!$E$3:$G$422,3,FALSE)*S144)),0) -> 421.6908765 | O144: =IF(C144="","",IF(C145="",0,IF(E144="Construção",0,IF(E144="Seguro",$C$17*'Base de Dados'!$C$2,IF($C$14=Parâmetros!$B$4,0,Simulador!$C$17*'Base de Dados'!$C$2))))) -> 66.4 | Q144: =IF(C144="","",IF(E144<>"Retorno",(I144+K144+M144),IF($G$20=Parâmetros!$D$2,SUM(G144,I144,K144,M144,O144),PMT($O$25,SUM($G$17),($O$10)*-1)+O144+M144+K144))) -> 10609.63662 | S144: 989420.1702
A145: 2035-08-02 | C145: 112 | D145: 1900-04-21 | E145: Retorno | G145: =IFERROR(IF(C145="","",IF(E145<>"Retorno",0,IF($G$20=Parâmetros!$D$2,Simulador!$O$10/$G$17,IF($G$20=Parâmetros!$D$3,Simulador!Q145-Simulador!O145-Simulador!M145-Simulador!K145-Simulador!I145,"")))),"") -> 510.4675253 | I145: 9611.078221 | K145: 0 | M145: =IFERROR(IF(C145="","",IF($C$10=Parâmetros!$C$3,0,VLOOKUP(A145,'Base de Dados'!$E$3:$G$422,3,FALSE)*S145)),0) -> 421.4733153 | O145: =IF(C145="","",IF(C146="",0,IF(E145="Construção",0,IF(E145="Seguro",$C$17*'Base de Dados'!$C$2,IF($C$14=Parâmetros!$B$4,0,Simulador!$C$17*'Base de Dados'!$C$2))))) -> 66.4 | Q145: =IF(C145="","",IF(E145<>"Retorno",(I145+K145+M145),IF($G$20=Parâmetros!$D$2,SUM(G145,I145,K145,M145,O145),PMT($O$25,SUM($G$17),($O$10)*-1)+O145+M145+K145))) -> 10609.41906 | S145: 988909.7026
A146: 2035-09-02 | C146: 113 | D146: 1900-04-22 | E146: Retorno | G146: =IFERROR(IF(C146="","",IF(E146<>"Retorno",0,IF($G$20=Parâmetros!$D$2,Simulador!$O$10/$G$17,IF($G$20=Parâmetros!$D$3,Simulador!Q146-Simulador!O146-Simulador!M146-Simulador!K146-Simulador!I146,"")))),"") -> 515.4261299 | I146: 9606.119616 | K146: 0 | M146: =IFERROR(IF(C146="","",IF($C$10=Parâmetros!$C$3,0,VLOOKUP(A146,'Base de Dados'!$E$3:$G$422,3,FALSE)*S146)),0) -> 421.2536406 | O146: =IF(C146="","",IF(C147="",0,IF(E146="Construção",0,IF(E146="Seguro",$C$17*'Base de Dados'!$C$2,IF($C$14=Parâmetros!$B$4,0,Simulador!$C$17*'Base de Dados'!$C$2))))) -> 66.4 | Q146: =IF(C146="","",IF(E146<>"Retorno",(I146+K146+M146),IF($G$20=Parâmetros!$D$2,SUM(G146,I146,K146,M146,O146),PMT($O$25,SUM($G$17),($O$10)*-1)+O146+M146+K146))) -> 10609.19939 | S146: 988394.2765
A147: 2035-10-02 | C147: 114 | D147: 1900-04-23 | E147: Retorno | G147: =IFERROR(IF(C147="","",IF(E147<>"Retorno",0,IF($G$20=Parâmetros!$D$2,Simulador!$O$10/$G$17,IF($G$20=Parâmetros!$D$3,Simulador!Q147-Simulador!O147-Simulador!M147-Simulador!K147-Simulador!I147,"")))),"") -> 520.4329015 | I147: 9601.112845 | K147: 0 | M147: =IFERROR(IF(C147="","",IF($C$10=Parâmetros!$C$3,0,VLOOKUP(A147,'Base de Dados'!$E$3:$G$422,3,FALSE)*S147)),0) -> 421.0318321 | O147: =IF(C147="","",IF(C148="",0,IF(E147="Construção",0,IF(E147="Seguro",$C$17*'Base de Dados'!$C$2,IF($C$14=Parâmetros!$B$4,0,Simulador!$C$17*'Base de Dados'!$C$2))))) -> 66.4 | Q147: =IF(C147="","",IF(E147<>"Retorno",(I147+K147+M147),IF($G$20=Parâmetros!$D$2,SUM(G147,I147,K147,M147,O147),PMT($O$25,SUM($G$17),($O$10)*-1)+O147+M147+K147))) -> 10608.97758 | S147: 987873.8436
A148: 2035-11-02 | C148: 115 | D148: 1900-04-24 | E148: Retorno | G148: =IFERROR(IF(C148="","",IF(E148<>"Retorno",0,IF($G$20=Parâmetros!$D$2,Simulador!$O$10/$G$17,IF($G$20=Parâmetros!$D$3,Simulador!Q148-Simulador!O148-Simulador!M148-Simulador!K148-Simulador!I148,"")))),"") -> 525.4883082 | I148: 9596.057438 | K148: 0 | M148: =IFERROR(IF(C148="","",IF($C$10=Parâmetros!$C$3,0,VLOOKUP(A148,'Base de Dados'!$E$3:$G$422,3,FALSE)*S148)),0) -> 420.807869 | O148: =IF(C148="","",IF(C149="",0,IF(E148="Construção",0,IF(E148="Seguro",$C$17*'Base de Dados'!$C$2,IF($C$14=Parâmetros!$B$4,0,Simulador!$C$17*'Base de Dados'!$C$2))))) -> 66.4 | Q148: =IF(C148="","",IF(E148<>"Retorno",(I148+K148+M148),IF($G$20=Parâmetros!$D$2,SUM(G148,I148,K148,M148,O148),PMT($O$25,SUM($G$17),($O$10)*-1)+O148+M148+K148))) -> 10608.75362 | S148: 987348.3553
A149: 2035-12-02 | C149: 116 | D149: 1900-04-25 | E149: Retorno | G149: =IFERROR(IF(C149="","",IF(E149<>"Retorno",0,IF($G$20=Parâmetros!$D$2,Simulador!$O$10/$G$17,IF($G$20=Parâmetros!$D$3,Simulador!Q149-Simulador!O149-Simulador!M149-Simulador!K149-Simulador!I149,"")))),"") -> 530.5928223 | I149: 9590.952924 | K149: 0 | M149: =IFERROR(IF(C149="","",IF($C$10=Parâmetros!$C$3,0,VLOOKUP(A149,'Base de Dados'!$E$3:$G$422,3,FALSE)*S149)),0) -> 420.5817304 | O149: =IF(C149="","",IF(C150="",0,IF(E149="Construção",0,IF(E149="Seguro",$C$17*'Base de Dados'!$C$2,IF($C$14=Parâmetros!$B$4,0,Simulador!$C$17*'Base de Dados'!$C$2))))) -> 66.4 | Q149: =IF(C149="","",IF(E149<>"Retorno",(I149+K149+M149),IF($G$20=Parâmetros!$D$2,SUM(G149,I149,K149,M149,O149),PMT($O$25,SUM($G$17),($O$10)*-1)+O149+M149+K149))) -> 10608.52748 | S149: 986817.7625
A150: 2036-01-02 | C150: 117 | D150: 1900-04-26 | E150: Retorno | G150: =IFERROR(IF(C150="","",IF(E150<>"Retorno",0,IF($G$20=Parâmetros!$D$2,Simulador!$O$10/$G$17,IF($G$20=Parâmetros!$D$3,Simulador!Q150-Simulador!O150-Simulador!M150-Simulador!K150-Simulador!I150,"")))),"") -> 535.7469209 | I150: 9585.798825 | K150: 0 | M150: =IFERROR(IF(C150="","",IF($C$10=Parâmetros!$C$3,0,VLOOKUP(A150,'Base de Dados'!$E$3:$G$422,3,FALSE)*S150)),0) -> 420.353395 | O150: =IF(C150="","",IF(C151="",0,IF(E150="Construção",0,IF(E150="Seguro",$C$17*'Base de Dados'!$C$2,IF($C$14=Parâmetros!$B$4,0,Simulador!$C$17*'Base de Dados'!$C$2))))) -> 66.4 | Q150: =IF(C150="","",IF(E150<>"Retorno",(I150+K150+M150),IF($G$20=Parâmetros!$D$2,SUM(G150,I150,K150,M150,O150),PMT($O$25,SUM($G$17),($O$10)*-1)+O150+M150+K150))) -> 10608.29914 | S150: 986282.0155
A151: 2036-02-02 | C151: 118 | D151: 1900-04-27 | E151: Retorno | G151: =IFERROR(IF(C151="","",IF(E151<>"Retorno",0,IF($G$20=Parâmetros!$D$2,Simulador!$O$10/$G$17,IF($G$20=Parâmetros!$D$3,Simulador!Q151-Simulador!O151-Simulador!M151-Simulador!K151-Simulador!I151,"")))),"") -> 540.9510856 | I151: 9580.59466 | K151: 0 | M151: =IFERROR(IF(C151="","",IF($C$10=Parâmetros!$C$3,0,VLOOKUP(A151,'Base de Dados'!$E$3:$G$422,3,FALSE)*S151)),0) -> 420.1228417 | O151: =IF(C151="","",IF(C152="",0,IF(E151="Construção",0,IF(E151="Seguro",$C$17*'Base de Dados'!$C$2,IF($C$14=Parâmetros!$B$4,0,Simulador!$C$17*'Base de Dados'!$C$2))))) -> 66.4 | Q151: =IF(C151="","",IF(E151<>"Retorno",(I151+K151+M151),IF($G$20=Parâmetros!$D$2,SUM(G151,I151,K151,M151,O151),PMT($O$25,SUM($G$17),($O$10)*-1)+O151+M151+K151))) -> 10608.06859 | S151: 985741.0645
A152: 2036-03-02 | C152: 119 | D152: 1900-04-28 | E152: Retorno | G152: =IFERROR(IF(C152="","",IF(E152<>"Retorno",0,IF($G$20=Parâmetros!$D$2,Simulador!$O$10/$G$17,IF($G$20=Parâmetros!$D$3,Simulador!Q152-Simulador!O152-Simulador!M152-Simulador!K152-Simulador!I152,"")))),"") -> 546.2058028 | I152: 9575.339943 | K152: 0 | M152: =IFERROR(IF(C152="","",IF($C$10=Parâmetros!$C$3,0,VLOOKUP(A152,'Base de Dados'!$E$3:$G$422,3,FALSE)*S152)),0) -> 419.8900488 | O152: =IF(C152="","",IF(C153="",0,IF(E152="Construção",0,IF(E152="Seguro",$C$17*'Base de Dados'!$C$2,IF($C$14=Parâmetros!$B$4,0,Simulador!$C$17*'Base de Dados'!$C$2))))) -> 66.4 | Q152: =IF(C152="","",IF(E152<>"Retorno",(I152+K152+M152),IF($G$20=Parâmetros!$D$2,SUM(G152,I152,K152,M152,O152),PMT($O$25,SUM($G$17),($O$10)*-1)+O152+M152+K152))) -> 10607.83579 | S152: 985194.8587
A153: 2036-04-02 | C153: 120 | D153: 1900-04-29 | E153: Retorno | G153: =IFERROR(IF(C153="","",IF(E153<>"Retorno",0,IF($G$20=Parâmetros!$D$2,Simulador!$O$10/$G$17,IF($G$20=Parâmetros!$D$3,Simulador!Q153-Simulador!O153-Simulador!M153-Simulador!K153-Simulador!I153,"")))),"") -> 551.5115636 | I153: 9570.034183 | K153: 0 | M153: =IFERROR(IF(C153="","",IF($C$10=Parâmetros!$C$3,0,VLOOKUP(A153,'Base de Dados'!$E$3:$G$422,3,FALSE)*S153)),0) -> 419.6549945 | O153: =IF(C153="","",IF(C154="",0,IF(E153="Construção",0,IF(E153="Seguro",$C$17*'Base de Dados'!$C$2,IF($C$14=Parâmetros!$B$4,0,Simulador!$C$17*'Base de Dados'!$C$2))))) -> 66.4 | Q153: =IF(C153="","",IF(E153<>"Retorno",(I153+K153+M153),IF($G$20=Parâmetros!$D$2,SUM(G153,I153,K153,M153,O153),PMT($O$25,SUM($G$17),($O$10)*-1)+O153+M153+K153))) -> 10607.60074 | S153: 984643.3471
A154: 2036-05-02 | C154: 121 | D154: 1900-04-30 | E154: Retorno | G154: =IFERROR(IF(C154="","",IF(E154<>"Retorno",0,IF($G$20=Parâmetros!$D$2,Simulador!$O$10/$G$17,IF($G$20=Parâmetros!$D$3,Simulador!Q154-Simulador!O154-Simulador!M154-Simulador!K154-Simulador!I154,"")))),"") -> 556.8688637 | I154: 9564.676882 | K154: 0 | M154: =IFERROR(IF(C154="","",IF($C$10=Parâmetros!$C$3,0,VLOOKUP(A154,'Base de Dados'!$E$3:$G$422,3,FALSE)*S154)),0) -> 419.417657 | O154: =IF(C154="","",IF(C155="",0,IF(E154="Construção",0,IF(E154="Seguro",$C$17*'Base de Dados'!$C$2,IF($C$14=Parâmetros!$B$4,0,Simulador!$C$17*'Base de Dados'!$C$2))))) -> 66.4 | Q154: =IF(C154="","",IF(E154<>"Retorno",(I154+K154+M154),IF($G$20=Parâmetros!$D$2,SUM(G154,I154,K154,M154,O154),PMT($O$25,SUM($G$17),($O$10)*-1)+O154+M154+K154))) -> 10607.3634 | S154: 984086.4782
A155: 2036-06-02 | C155: 122 | D155: 1900-05-01 | E155: Retorno | G155: =IFERROR(IF(C155="","",IF(E155<>"Retorno",0,IF($G$20=Parâmetros!$D$2,Simulador!$O$10/$G$17,IF($G$20=Parâmetros!$D$3,Simulador!Q155-Simulador!O155-Simulador!M155-Simulador!K155-Simulador!I155,"")))),"") -> 562.2782038 | I155: 9559.267542 | K155: 0 | M155: =IFERROR(IF(C155="","",IF($C$10=Parâmetros!$C$3,0,VLOOKUP(A155,'Base de Dados'!$E$3:$G$422,3,FALSE)*S155)),0) -> 419.1780141 | O155: =IF(C155="","",IF(C156="",0,IF(E155="Construção",0,IF(E155="Seguro",$C$17*'Base de Dados'!$C$2,IF($C$14=Parâmetros!$B$4,0,Simulador!$C$17*'Base de Dados'!$C$2))))) -> 66.4 | Q155: =IF(C155="","",IF(E155<>"Retorno",(I155+K155+M155),IF($G$20=Parâmetros!$D$2,SUM(G155,I155,K155,M155,O155),PMT($O$25,SUM($G$17),($O$10)*-1)+O155+M155+K155))) -> 10607.12376 | S155: 983524.2
A156: 2036-07-02 | C156: 123 | D156: 1900-05-02 | E156: Retorno | G156: =IFERROR(IF(C156="","",IF(E156<>"Retorno",0,IF($G$20=Parâmetros!$D$2,Simulador!$O$10/$G$17,IF($G$20=Parâmetros!$D$3,Simulador!Q156-Simulador!O156-Simulador!M156-Simulador!K156-Simulador!I156,"")))),"") -> 567.7400894 | I156: 9553.805657 | K156: 0 | M156: =IFERROR(IF(C156="","",IF($C$10=Parâmetros!$C$3,0,VLOOKUP(A156,'Base de Dados'!$E$3:$G$422,3,FALSE)*S156)),0) -> 418.9360432 | O156: =IF(C156="","",IF(C157="",0,IF(E156="Construção",0,IF(E156="Seguro",$C$17*'Base de Dados'!$C$2,IF($C$14=Parâmetros!$B$4,0,Simulador!$C$17*'Base de Dados'!$C$2))))) -> 66.4 | Q156: =IF(C156="","",IF(E156<>"Retorno",(I156+K156+M156),IF($G$20=Parâmetros!$D$2,SUM(G156,I156,K156,M156,O156),PMT($O$25,SUM($G$17),($O$10)*-1)+O156+M156+K156))) -> 10606.88179 | S156: 982956.4599
A157: 2036-08-02 | C157: 124 | D157: 1900-05-03 | E157: Retorno | G157: =IFERROR(IF(C157="","",IF(E157<>"Retorno",0,IF($G$20=Parâmetros!$D$2,Simulador!$O$10/$G$17,IF($G$20=Parâmetros!$D$3,Simulador!Q157-Simulador!O157-Simulador!M157-Simulador!K157-Simulador!I157,"")))),"") -> 573.255031 | I157: 9548.290715 | K157: 0 | M157: =IFERROR(IF(C157="","",IF($C$10=Parâmetros!$C$3,0,VLOOKUP(A157,'Base de Dados'!$E$3:$G$422,3,FALSE)*S157)),0) -> 418.6917219 | O157: =IF(C157="","",IF(C158="",0,IF(E157="Construção",0,IF(E157="Seguro",$C$17*'Base de Dados'!$C$2,IF($C$14=Parâmetros!$B$4,0,Simulador!$C$17*'Base de Dados'!$C$2))))) -> 66.4 | Q157: =IF(C157="","",IF(E157<>"Retorno",(I157+K157+M157),IF($G$20=Parâmetros!$D$2,SUM(G157,I157,K157,M157,O157),PMT($O$25,SUM($G$17),($O$10)*-1)+O157+M157+K157))) -> 10606.63747 | S157: 982383.2049
A158: 2036-09-02 | C158: 125 | D158: 1900-05-04 | E158: Retorno | G158: =IFERROR(IF(C158="","",IF(E158<>"Retorno",0,IF($G$20=Parâmetros!$D$2,Simulador!$O$10/$G$17,IF($G$20=Parâmetros!$D$3,Simulador!Q158-Simulador!O158-Simulador!M158-Simulador!K158-Simulador!I158,"")))),"") -> 578.8235438 | I158: 9542.722202 | K158: 0 | M158: =IFERROR(IF(C158="","",IF($C$10=Parâmetros!$C$3,0,VLOOKUP(A158,'Base de Dados'!$E$3:$G$422,3,FALSE)*S158)),0) -> 418.4450273 | O158: =IF(C158="","",IF(C159="",0,IF(E158="Construção",0,IF(E158="Seguro",$C$17*'Base de Dados'!$C$2,IF($C$14=Parâmetros!$B$4,0,Simulador!$C$17*'Base de Dados'!$C$2))))) -> 66.4 | Q158: =IF(C158="","",IF(E158<>"Retorno",(I158+K158+M158),IF($G$20=Parâmetros!$D$2,SUM(G158,I158,K158,M158,O158),PMT($O$25,SUM($G$17),($O$10)*-1)+O158+M158+K158))) -> 10606.39077 | S158: 981804.3814
A159: 2036-10-02 | C159: 126 | D159: 1900-05-05 | E159: Retorno | G159: =IFERROR(IF(C159="","",IF(E159<>"Retorno",0,IF($G$20=Parâmetros!$D$2,Simulador!$O$10/$G$17,IF($G$20=Parâmetros!$D$3,Simulador!Q159-Simulador!O159-Simulador!M159-Simulador!K159-Simulador!I159,"")))),"") -> 584.4461484 | I159: 9537.099598 | K159: 0 | M159: =IFERROR(IF(C159="","",IF($C$10=Parâmetros!$C$3,0,VLOOKUP(A159,'Base de Dados'!$E$3:$G$422,3,FALSE)*S159)),0) -> 418.1959364 | O159: =IF(C159="","",IF(C160="",0,IF(E159="Construção",0,IF(E159="Seguro",$C$17*'Base de Dados'!$C$2,IF($C$14=Parâmetros!$B$4,0,Simulador!$C$17*'Base de Dados'!$C$2))))) -> 66.4 | Q159: =IF(C159="","",IF(E159<>"Retorno",(I159+K159+M159),IF($G$20=Parâmetros!$D$2,SUM(G159,I159,K159,M159,O159),PMT($O$25,SUM($G$17),($O$10)*-1)+O159+M159+K159))) -> 10606.14168 | S159: 981219.9352
A160: 2036-11-02 | C160: 127 | D160: 1900-05-06 | E160: Retorno | G160: =IFERROR(IF(C160="","",IF(E160<>"Retorno",0,IF($G$20=Parâmetros!$D$2,Simulador!$O$10/$G$17,IF($G$20=Parâmetros!$D$3,Simulador!Q160-Simulador!O160-Simulador!M160-Simulador!K160-Simulador!I160,"")))),"") -> 590.1233701 | I160: 9531.422376 | K160: 0 | M160: =IFERROR(IF(C160="","",IF($C$10=Parâmetros!$C$3,0,VLOOKUP(A160,'Base de Dados'!$E$3:$G$422,3,FALSE)*S160)),0) -> 417.9444258 | O160: =IF(C160="","",IF(C161="",0,IF(E160="Construção",0,IF(E160="Seguro",$C$17*'Base de Dados'!$C$2,IF($C$14=Parâmetros!$B$4,0,Simulador!$C$17*'Base de Dados'!$C$2))))) -> 66.4 | Q160: =IF(C160="","",IF(E160<>"Retorno",(I160+K160+M160),IF($G$20=Parâmetros!$D$2,SUM(G160,I160,K160,M160,O160),PMT($O$25,SUM($G$17),($O$10)*-1)+O160+M160+K160))) -> 10605.89017 | S160: 980629.8118
A161: 2036-12-02 | C161: 128 | D161: 1900-05-07 | E161: Retorno | G161: =IFERROR(IF(C161="","",IF(E161<>"Retorno",0,IF($G$20=Parâmetros!$D$2,Simulador!$O$10/$G$17,IF($G$20=Parâmetros!$D$3,Simulador!Q161-Simulador!O161-Simulador!M161-Simulador!K161-Simulador!I161,"")))),"") -> 595.8557394 | I161: 9525.690007 | K161: 0 | M161: =IFERROR(IF(C161="","",IF($C$10=Parâmetros!$C$3,0,VLOOKUP(A161,'Base de Dados'!$E$3:$G$422,3,FALSE)*S161)),0) -> 417.6904721 | O161: =IF(C161="","",IF(C162="",0,IF(E161="Construção",0,IF(E161="Seguro",$C$17*'Base de Dados'!$C$2,IF($C$14=Parâmetros!$B$4,0,Simulador!$C$17*'Base de Dados'!$C$2))))) -> 66.4 | Q161: =IF(C161="","",IF(E161<>"Retorno",(I161+K161+M161),IF($G$20=Parâmetros!$D$2,SUM(G161,I161,K161,M161,O161),PMT($O$25,SUM($G$17),($O$10)*-1)+O161+M161+K161))) -> 10605.63622 | S161: 980033.9561
A162: 2037-01-02 | C162: 129 | D162: 1900-05-08 | E162: Retorno | G162: =IFERROR(IF(C162="","",IF(E162<>"Retorno",0,IF($G$20=Parâmetros!$D$2,Simulador!$O$10/$G$17,IF($G$20=Parâmetros!$D$3,Simulador!Q162-Simulador!O162-Simulador!M162-Simulador!K162-Simulador!I162,"")))),"") -> 601.6437922 | I162: =IFERROR(IF(C162="","",FV($O$25,1,,-S161,0)-S161),"") -> 9519.901954 | K162: 0 | M162: =IFERROR(IF(C162="","",IF($C$10=Parâmetros!$C$3,0,VLOOKUP(A162,'Base de Dados'!$E$3:$G$422,3,FALSE)*S162)),0) -> 417.4340515 | O162: =IF(C162="","",IF(C163="",0,IF(E162="Construção",0,IF(E162="Seguro",$C$17*'Base de Dados'!$C$2,IF($C$14=Parâmetros!$B$4,0,Simulador!$C$17*'Base de Dados'!$C$2))))) -> 66.4 | Q162: =IF(C162="","",IF(E162<>"Retorno",(I162+K162+M162),IF($G$20=Parâmetros!$D$2,SUM(G162,I162,K162,M162,O162),PMT($O$25,SUM($G$17),($O$10)*-1)+O162+M162+K162))) -> 10605.3798 | S162: 979432.3123
A163: =IF(C163="","",IF(C162>$G$17,0,EDATE(A162,1))) -> 2037-02-02 | B163: =IF(AND(E163="Retorno",E162<>"Retorno"),"Primeira",IF(AND(E163="Retorno",E162=""),"Primeira","")) ->  | C163: =IF(OR(C162>=$K$19,C162=""),"",C162+1) -> 130 | D163: =C163 -> 1900-05-09 | E163: =IF(C163="","","Retorno") -> Retorno | G163: =IFERROR(IF(C163="","",IF(E163<>"Retorno",0,IF($G$20=Parâmetros!$D$2,Simulador!$O$10/$G$17,IF($G$20=Parâmetros!$D$3,Simulador!Q163-Simulador!O163-Simulador!M163-Simulador!K163-Simulador!I163,"")))),"") -> 607.4880692 | I163: 9514.057677 | K163: =IF(C163="","",IF(AND($O$23<12.01%,$C$17<2250000.01),25,0)) -> 0 | M163: =IFERROR(IF(C163="","",IF($C$10=Parâmetros!$C$3,0,VLOOKUP(A163,'Base de Dados'!$E$3:$G$422,3,FALSE)*S163)),0) -> 417.1751401 | O163: =IF(C163="","",IF(C164="",0,IF(E163="Construção",0,IF(E163="Seguro",$C$17*'Base de Dados'!$C$2,IF($C$14=Parâmetros!$B$4,0,Simulador!$C$17*'Base de Dados'!$C$2))))) -> 66.4 | Q163: =IF(C163="","",IF(E163<>"Retorno",(I163+K163+M163),IF($G$20=Parâmetros!$D$2,SUM(G163,I163,K163,M163,O163),PMT($O$25,SUM($G$17),($O$10)*-1)+O163+M163+K163))) -> 10605.12089 | S163: =IF(E163="Construção",S162+(U163*-1),IF(E163="Carência",S162,IF(E163="Retorno",S162-G163,""))) -> 978824.8242 | U163: =IF(E163="Construção",(($O$10+$U$33)/$K$10)*-1,"") -> 
A164: 2037-03-02 | C164: 131 | D164: 1900-05-10 | E164: Retorno | G164: =IFERROR(IF(C164="","",IF(E164<>"Retorno",0,IF($G$20=Parâmetros!$D$2,Simulador!$O$10/$G$17,IF($G$20=Parâmetros!$D$3,Simulador!Q164-Simulador!O164-Simulador!M164-Simulador!K164-Simulador!I164,"")))),"") -> 613.3891166 | I164: 9508.15663 | K164: 0 | M164: =IFERROR(IF(C164="","",IF($C$10=Parâmetros!$C$3,0,VLOOKUP(A164,'Base de Dados'!$E$3:$G$422,3,FALSE)*S164)),0) -> 416.9137137 | O164: =IF(C164="","",IF(C165="",0,IF(E164="Construção",0,IF(E164="Seguro",$C$17*'Base de Dados'!$C$2,IF($C$14=Parâmetros!$B$4,0,Simulador!$C$17*'Base de Dados'!$C$2))))) -> 66.4 | Q164: =IF(C164="","",IF(E164<>"Retorno",(I164+K164+M164),IF($G$20=Parâmetros!$D$2,SUM(G164,I164,K164,M164,O164),PMT($O$25,SUM($G$17),($O$10)*-1)+O164+M164+K164))) -> 10604.85946 | S164: 978211.4351
A165: 2037-04-02 | C165: 132 | D165: 1900-05-11 | E165: Retorno | G165: =IFERROR(IF(C165="","",IF(E165<>"Retorno",0,IF($G$20=Parâmetros!$D$2,Simulador!$O$10/$G$17,IF($G$20=Parâmetros!$D$3,Simulador!Q165-Simulador!O165-Simulador!M165-Simulador!K165-Simulador!I165,"")))),"") -> 619.3474859 | I165: 9502.19826 | K165: 0 | M165: =IFERROR(IF(C165="","",IF($C$10=Parâmetros!$C$3,0,VLOOKUP(A165,'Base de Dados'!$E$3:$G$422,3,FALSE)*S165)),0) -> 416.6497478 | O165: =IF(C165="","",IF(C166="",0,IF(E165="Construção",0,IF(E165="Seguro",$C$17*'Base de Dados'!$C$2,IF($C$14=Parâmetros!$B$4,0,Simulador!$C$17*'Base de Dados'!$C$2))))) -> 66.4 | Q165: =IF(C165="","",IF(E165<>"Retorno",(I165+K165+M165),IF($G$20=Parâmetros!$D$2,SUM(G165,I165,K165,M165,O165),PMT($O$25,SUM($G$17),($O$10)*-1)+O165+M165+K165))) -> 10604.59549 | S165: 977592.0876
A166: 2037-05-02 | C166: 133 | D166: 1900-05-12 | E166: Retorno | G166: =IFERROR(IF(C166="","",IF(E166<>"Retorno",0,IF($G$20=Parâmetros!$D$2,Simulador!$O$10/$G$17,IF($G$20=Parâmetros!$D$3,Simulador!Q166-Simulador!O166-Simulador!M166-Simulador!K166-Simulador!I166,"")))),"") -> 625.3637339 | I166: 9496.182012 | K166: 0 | M166: =IFERROR(IF(C166="","",IF($C$10=Parâmetros!$C$3,0,VLOOKUP(A166,'Base de Dados'!$E$3:$G$422,3,FALSE)*S166)),0) -> 416.3832177 | O166: =IF(C166="","",IF(C167="",0,IF(E166="Construção",0,IF(E166="Seguro",$C$17*'Base de Dados'!$C$2,IF($C$14=Parâmetros!$B$4,0,Simulador!$C$17*'Base de Dados'!$C$2))))) -> 66.4 | Q166: =IF(C166="","",IF(E166<>"Retorno",(I166+K166+M166),IF($G$20=Parâmetros!$D$2,SUM(G166,I166,K166,M166,O166),PMT($O$25,SUM($G$17),($O$10)*-1)+O166+M166+K166))) -> 10604.32896 | S166: 976966.7239
A167: 2037-06-02 | C167: 134 | D167: 1900-05-13 | E167: Retorno | G167: =IFERROR(IF(C167="","",IF(E167<>"Retorno",0,IF($G$20=Parâmetros!$D$2,Simulador!$O$10/$G$17,IF($G$20=Parâmetros!$D$3,Simulador!Q167-Simulador!O167-Simulador!M167-Simulador!K167-Simulador!I167,"")))),"") -> 631.4384229 | I167: 9490.107323 | K167: 0 | M167: =IFERROR(IF(C167="","",IF($C$10=Parâmetros!$C$3,0,VLOOKUP(A167,'Base de Dados'!$E$3:$G$422,3,FALSE)*S167)),0) -> 416.1140987 | O167: =IF(C167="","",IF(C168="",0,IF(E167="Construção",0,IF(E167="Seguro",$C$17*'Base de Dados'!$C$2,IF($C$14=Parâmetros!$B$4,0,Simulador!$C$17*'Base de Dados'!$C$2))))) -> 66.4 | Q167: =IF(C167="","",IF(E167<>"Retorno",(I167+K167+M167),IF($G$20=Parâmetros!$D$2,SUM(G167,I167,K167,M167,O167),PMT($O$25,SUM($G$17),($O$10)*-1)+O167+M167+K167))) -> 10604.05984 | S167: 976335.2855
A168: 2037-07-02 | C168: 135 | D168: 1900-05-14 | E168: Retorno | G168: =IFERROR(IF(C168="","",IF(E168<>"Retorno",0,IF($G$20=Parâmetros!$D$2,Simulador!$O$10/$G$17,IF($G$20=Parâmetros!$D$3,Simulador!Q168-Simulador!O168-Simulador!M168-Simulador!K168-Simulador!I168,"")))),"") -> 637.5721204 | I168: 9483.973626 | K168: 0 | M168: =IFERROR(IF(C168="","",IF($C$10=Parâmetros!$C$3,0,VLOOKUP(A168,'Base de Dados'!$E$3:$G$422,3,FALSE)*S168)),0) -> 415.8423654 | O168: =IF(C168="","",IF(C169="",0,IF(E168="Construção",0,IF(E168="Seguro",$C$17*'Base de Dados'!$C$2,IF($C$14=Parâmetros!$B$4,0,Simulador!$C$17*'Base de Dados'!$C$2))))) -> 66.4 | Q168: =IF(C168="","",IF(E168<>"Retorno",(I168+K168+M168),IF($G$20=Parâmetros!$D$2,SUM(G168,I168,K168,M168,O168),PMT($O$25,SUM($G$17),($O$10)*-1)+O168+M168+K168))) -> 10603.78811 | S168: 975697.7134
A169: 2037-08-02 | C169: 136 | D169: 1900-05-15 | E169: Retorno | G169: =IFERROR(IF(C169="","",IF(E169<>"Retorno",0,IF($G$20=Parâmetros!$D$2,Simulador!$O$10/$G$17,IF($G$20=Parâmetros!$D$3,Simulador!Q169-Simulador!O169-Simulador!M169-Simulador!K169-Simulador!I169,"")))),"") -> 643.7653998 | I169: 9477.780346 | K169: 0 | M169: =IFERROR(IF(C169="","",IF($C$10=Parâmetros!$C$3,0,VLOOKUP(A169,'Base de Dados'!$E$3:$G$422,3,FALSE)*S169)),0) -> 415.5679926 | O169: =IF(C169="","",IF(C170="",0,IF(E169="Construção",0,IF(E169="Seguro",$C$17*'Base de Dados'!$C$2,IF($C$14=Parâmetros!$B$4,0,Simulador!$C$17*'Base de Dados'!$C$2))))) -> 66.4 | Q169: =IF(C169="","",IF(E169<>"Retorno",(I169+K169+M169),IF($G$20=Parâmetros!$D$2,SUM(G169,I169,K169,M169,O169),PMT($O$25,SUM($G$17),($O$10)*-1)+O169+M169+K169))) -> 10603.51374 | S169: 975053.948
A170: 2037-09-02 | C170: 137 | D170: 1900-05-16 | E170: Retorno | G170: =IFERROR(IF(C170="","",IF(E170<>"Retorno",0,IF($G$20=Parâmetros!$D$2,Simulador!$O$10/$G$17,IF($G$20=Parâmetros!$D$3,Simulador!Q170-Simulador!O170-Simulador!M170-Simulador!K170-Simulador!I170,"")))),"") -> 650.0188397 | I170: 9471.526906 | K170: 0 | M170: =IFERROR(IF(C170="","",IF($C$10=Parâmetros!$C$3,0,VLOOKUP(A170,'Base de Dados'!$E$3:$G$422,3,FALSE)*S170)),0) -> 560.3796996 | O170: =IF(C170="","",IF(C171="",0,IF(E170="Construção",0,IF(E170="Seguro",$C$17*'Base de Dados'!$C$2,IF($C$14=Parâmetros!$B$4,0,Simulador!$C$17*'Base de Dados'!$C$2))))) -> 66.4 | Q170: =IF(C170="","",IF(E170<>"Retorno",(I170+K170+M170),IF($G$20=Parâmetros!$D$2,SUM(G170,I170,K170,M170,O170),PMT($O$25,SUM($G$17),($O$10)*-1)+O170+M170+K170))) -> 10748.32545 | S170: 974403.9291
A171: 2037-10-02 | C171: 138 | D171: 1900-05-17 | E171: Retorno | G171: =IFERROR(IF(C171="","",IF(E171<>"Retorno",0,IF($G$20=Parâmetros!$D$2,Simulador!$O$10/$G$17,IF($G$20=Parâmetros!$D$3,Simulador!Q171-Simulador!O171-Simulador!M171-Simulador!K171-Simulador!I171,"")))),"") -> 656.3330246 | I171: 9465.212721 | K171: 0 | M171: =IFERROR(IF(C171="","",IF($C$10=Parâmetros!$C$3,0,VLOOKUP(A171,'Base de Dados'!$E$3:$G$422,3,FALSE)*S171)),0) -> 560.0022425 | O171: =IF(C171="","",IF(C172="",0,IF(E171="Construção",0,IF(E171="Seguro",$C$17*'Base de Dados'!$C$2,IF($C$14=Parâmetros!$B$4,0,Simulador!$C$17*'Base de Dados'!$C$2))))) -> 66.4 | Q171: =IF(C171="","",IF(E171<>"Retorno",(I171+K171+M171),IF($G$20=Parâmetros!$D$2,SUM(G171,I171,K171,M171,O171),PMT($O$25,SUM($G$17),($O$10)*-1)+O171+M171+K171))) -> 10747.94799 | S171: 973747.5961
A172: 2037-11-02 | C172: 139 | D172: 1900-05-18 | E172: Retorno | G172: =IFERROR(IF(C172="","",IF(E172<>"Retorno",0,IF($G$20=Parâmetros!$D$2,Simulador!$O$10/$G$17,IF($G$20=Parâmetros!$D$3,Simulador!Q172-Simulador!O172-Simulador!M172-Simulador!K172-Simulador!I172,"")))),"") -> 662.7085446 | I172: 9458.837202 | K172: 0 | M172: =IFERROR(IF(C172="","",IF($C$10=Parâmetros!$C$3,0,VLOOKUP(A172,'Base de Dados'!$E$3:$G$422,3,FALSE)*S172)),0) -> 559.6211188 | O172: =IF(C172="","",IF(C173="",0,IF(E172="Construção",0,IF(E172="Seguro",$C$17*'Base de Dados'!$C$2,IF($C$14=Parâmetros!$B$4,0,Simulador!$C$17*'Base de Dados'!$C$2))))) -> 66.4 | Q172: =IF(C172="","",IF(E172<>"Retorno",(I172+K172+M172),IF($G$20=Parâmetros!$D$2,SUM(G172,I172,K172,M172,O172),PMT($O$25,SUM($G$17),($O$10)*-1)+O172+M172+K172))) -> 10747.56686 | S172: 973084.8876
A173: 2037-12-02 | C173: 140 | D173: 1900-05-19 | E173: Retorno | G173: =IFERROR(IF(C173="","",IF(E173<>"Retorno",0,IF($G$20=Parâmetros!$D$2,Simulador!$O$10/$G$17,IF($G$20=Parâmetros!$D$3,Simulador!Q173-Simulador!O173-Simulador!M173-Simulador!K173-Simulador!I173,"")))),"") -> 669.1459954 | I173: 9452.399751 | K173: 0 | M173: =IFERROR(IF(C173="","",IF($C$10=Parâmetros!$C$3,0,VLOOKUP(A173,'Base de Dados'!$E$3:$G$422,3,FALSE)*S173)),0) -> 559.236293 | O173: =IF(C173="","",IF(C174="",0,IF(E173="Construção",0,IF(E173="Seguro",$C$17*'Base de Dados'!$C$2,IF($C$14=Parâmetros!$B$4,0,Simulador!$C$17*'Base de Dados'!$C$2))))) -> 66.4 | Q173: =IF(C173="","",IF(E173<>"Retorno",(I173+K173+M173),IF($G$20=Parâmetros!$D$2,SUM(G173,I173,K173,M173,O173),PMT($O$25,SUM($G$17),($O$10)*-1)+O173+M173+K173))) -> 10747.18204 | S173: 972415.7416
A174: 2038-01-02 | C174: 141 | D174: 1900-05-20 | E174: Retorno | G174: =IFERROR(IF(C174="","",IF(E174<>"Retorno",0,IF($G$20=Parâmetros!$D$2,Simulador!$O$10/$G$17,IF($G$20=Parâmetros!$D$3,Simulador!Q174-Simulador!O174-Simulador!M174-Simulador!K174-Simulador!I174,"")))),"") -> 675.6459786 | I174: 9445.899768 | K174: 0 | M174: =IFERROR(IF(C174="","",IF($C$10=Parâmetros!$C$3,0,VLOOKUP(A174,'Base de Dados'!$E$3:$G$422,3,FALSE)*S174)),0) -> 558.847729 | O174: =IF(C174="","",IF(C175="",0,IF(E174="Construção",0,IF(E174="Seguro",$C$17*'Base de Dados'!$C$2,IF($C$14=Parâmetros!$B$4,0,Simulador!$C$17*'Base de Dados'!$C$2))))) -> 66.4 | Q174: =IF(C174="","",IF(E174<>"Retorno",(I174+K174+M174),IF($G$20=Parâmetros!$D$2,SUM(G174,I174,K174,M174,O174),PMT($O$25,SUM($G$17),($O$10)*-1)+O174+M174+K174))) -> 10746.79348 | S174: 971740.0956
A175: 2038-02-02 | C175: 142 | D175: 1900-05-21 | E175: Retorno | G175: =IFERROR(IF(C175="","",IF(E175<>"Retorno",0,IF($G$20=Parâmetros!$D$2,Simulador!$O$10/$G$17,IF($G$20=Parâmetros!$D$3,Simulador!Q175-Simulador!O175-Simulador!M175-Simulador!K175-Simulador!I175,"")))),"") -> 682.2091017 | I175: 9439.336644 | K175: 0 | M175: =IFERROR(IF(C175="","",IF($C$10=Parâmetros!$C$3,0,VLOOKUP(A175,'Base de Dados'!$E$3:$G$422,3,FALSE)*S175)),0) -> 558.4553905 | O175: =IF(C175="","",IF(C176="",0,IF(E175="Construção",0,IF(E175="Seguro",$C$17*'Base de Dados'!$C$2,IF($C$14=Parâmetros!$B$4,0,Simulador!$C$17*'Base de Dados'!$C$2))))) -> 66.4 | Q175: =IF(C175="","",IF(E175<>"Retorno",(I175+K175+M175),IF($G$20=Parâmetros!$D$2,SUM(G175,I175,K175,M175,O175),PMT($O$25,SUM($G$17),($O$10)*-1)+O175+M175+K175))) -> 10746.40114 | S175: 971057.8865
A176: 2038-03-02 | C176: 143 | D176: 1900-05-22 | E176: Retorno | G176: =IFERROR(IF(C176="","",IF(E176<>"Retorno",0,IF($G$20=Parâmetros!$D$2,Simulador!$O$10/$G$17,IF($G$20=Parâmetros!$D$3,Simulador!Q176-Simulador!O176-Simulador!M176-Simulador!K176-Simulador!I176,"")))),"") -> 688.8359779 | I176: 9432.709768 | K176: 0 | M176: =IFERROR(IF(C176="","",IF($C$10=Parâmetros!$C$3,0,VLOOKUP(A176,'Base de Dados'!$E$3:$G$422,3,FALSE)*S176)),0) -> 558.0592409 | O176: =IF(C176="","",IF(C177="",0,IF(E176="Construção",0,IF(E176="Seguro",$C$17*'Base de Dados'!$C$2,IF($C$14=Parâmetros!$B$4,0,Simulador!$C$17*'Base de Dados'!$C$2))))) -> 66.4 | Q176: =IF(C176="","",IF(E176<>"Retorno",(I176+K176+M176),IF($G$20=Parâmetros!$D$2,SUM(G176,I176,K176,M176,O176),PMT($O$25,SUM($G$17),($O$10)*-1)+O176+M176+K176))) -> 10746.00499 | S176: 970369.0505
A177: 2038-04-02 | C177: 144 | D177: 1900-05-23 | E177: Retorno | G177: =IFERROR(IF(C177="","",IF(E177<>"Retorno",0,IF($G$20=Parâmetros!$D$2,Simulador!$O$10/$G$17,IF($G$20=Parâmetros!$D$3,Simulador!Q177-Simulador!O177-Simulador!M177-Simulador!K177-Simulador!I177,"")))),"") -> 695.5272267 | I177: 9426.018519 | K177: 0 | M177: =IFERROR(IF(C177="","",IF($C$10=Parâmetros!$C$3,0,VLOOKUP(A177,'Base de Dados'!$E$3:$G$422,3,FALSE)*S177)),0) -> 557.6592432 | O177: =IF(C177="","",IF(C178="",0,IF(E177="Construção",0,IF(E177="Seguro",$C$17*'Base de Dados'!$C$2,IF($C$14=Parâmetros!$B$4,0,Simulador!$C$17*'Base de Dados'!$C$2))))) -> 66.4 | Q177: =IF(C177="","",IF(E177<>"Retorno",(I177+K177+M177),IF($G$20=Parâmetros!$D$2,SUM(G177,I177,K177,M177,O177),PMT($O$25,SUM($G$17),($O$10)*-1)+O177+M177+K177))) -> 10745.60499 | S177: 969673.5233
A178: 2038-05-02 | C178: 145 | D178: 1900-05-24 | E178: Retorno | G178: =IFERROR(IF(C178="","",IF(E178<>"Retorno",0,IF($G$20=Parâmetros!$D$2,Simulador!$O$10/$G$17,IF($G$20=Parâmetros!$D$3,Simulador!Q178-Simulador!O178-Simulador!M178-Simulador!K178-Simulador!I178,"")))),"") -> 702.2834732 | I178: 9419.262273 | K178: 0 | M178: =IFERROR(IF(C178="","",IF($C$10=Parâmetros!$C$3,0,VLOOKUP(A178,'Base de Dados'!$E$3:$G$422,3,FALSE)*S178)),0) -> 557.25536 | O178: =IF(C178="","",IF(C179="",0,IF(E178="Construção",0,IF(E178="Seguro",$C$17*'Base de Dados'!$C$2,IF($C$14=Parâmetros!$B$4,0,Simulador!$C$17*'Base de Dados'!$C$2))))) -> 66.4 | Q178: =IF(C178="","",IF(E178<>"Retorno",(I178+K178+M178),IF($G$20=Parâmetros!$D$2,SUM(G178,I178,K178,M178,O178),PMT($O$25,SUM($G$17),($O$10)*-1)+O178+M178+K178))) -> 10745.20111 | S178: 968971.2398
A179: 2038-06-02 | C179: 146 | D179: 1900-05-25 | E179: Retorno | G179: =IFERROR(IF(C179="","",IF(E179<>"Retorno",0,IF($G$20=Parâmetros!$D$2,Simulador!$O$10/$G$17,IF($G$20=Parâmetros!$D$3,Simulador!Q179-Simulador!O179-Simulador!M179-Simulador!K179-Simulador!I179,"")))),"") -> 709.1053489 | I179: 9412.440397 | K179: 0 | M179: =IFERROR(IF(C179="","",IF($C$10=Parâmetros!$C$3,0,VLOOKUP(A179,'Base de Dados'!$E$3:$G$422,3,FALSE)*S179)),0) -> 556.8475535 | O179: =IF(C179="","",IF(C180="",0,IF(E179="Construção",0,IF(E179="Seguro",$C$17*'Base de Dados'!$C$2,IF($C$14=Parâmetros!$B$4,0,Simulador!$C$17*'Base de Dados'!$C$2))))) -> 66.4 | Q179: =IF(C179="","",IF(E179<>"Retorno",(I179+K179+M179),IF($G$20=Parâmetros!$D$2,SUM(G179,I179,K179,M179,O179),PMT($O$25,SUM($G$17),($O$10)*-1)+O179+M179+K179))) -> 10744.7933 | S179: 968262.1345
A180: 2038-07-02 | C180: 147 | D180: 1900-05-26 | E180: Retorno | G180: =IFERROR(IF(C180="","",IF(E180<>"Retorno",0,IF($G$20=Parâmetros!$D$2,Simulador!$O$10/$G$17,IF($G$20=Parâmetros!$D$3,Simulador!Q180-Simulador!O180-Simulador!M180-Simulador!K180-Simulador!I180,"")))),"") -> 715.9934912 | I180: 9405.552255 | K180: 0 | M180: =IFERROR(IF(C180="","",IF($C$10=Parâmetros!$C$3,0,VLOOKUP(A180,'Base de Dados'!$E$3:$G$422,3,FALSE)*S180)),0) -> 556.4357857 | O180: =IF(C180="","",IF(C181="",0,IF(E180="Construção",0,IF(E180="Seguro",$C$17*'Base de Dados'!$C$2,IF($C$14=Parâmetros!$B$4,0,Simulador!$C$17*'Base de Dados'!$C$2))))) -> 66.4 | Q180: =IF(C180="","",IF(E180<>"Retorno",(I180+K180+M180),IF($G$20=Parâmetros!$D$2,SUM(G180,I180,K180,M180,O180),PMT($O$25,SUM($G$17),($O$10)*-1)+O180+M180+K180))) -> 10744.38153 | S180: 967546.141
A181: 2038-08-02 | C181: 148 | D181: 1900-05-27 | E181: Retorno | G181: =IFERROR(IF(C181="","",IF(E181<>"Retorno",0,IF($G$20=Parâmetros!$D$2,Simulador!$O$10/$G$17,IF($G$20=Parâmetros!$D$3,Simulador!Q181-Simulador!O181-Simulador!M181-Simulador!K181-Simulador!I181,"")))),"") -> 722.9485439 | I181: 9398.597202 | K181: 0 | M181: =IFERROR(IF(C181="","",IF($C$10=Parâmetros!$C$3,0,VLOOKUP(A181,'Base de Dados'!$E$3:$G$422,3,FALSE)*S181)),0) -> 556.020018 | O181: =IF(C181="","",IF(C182="",0,IF(E181="Construção",0,IF(E181="Seguro",$C$17*'Base de Dados'!$C$2,IF($C$14=Parâmetros!$B$4,0,Simulador!$C$17*'Base de Dados'!$C$2))))) -> 66.4 | Q181: =IF(C181="","",IF(E181<>"Retorno",(I181+K181+M181),IF($G$20=Parâmetros!$D$2,SUM(G181,I181,K181,M181,O181),PMT($O$25,SUM($G$17),($O$10)*-1)+O181+M181+K181))) -> 10743.96576 | S181: 966823.1924
A182: 2038-09-02 | C182: 149 | D182: 1900-05-28 | E182: Retorno | G182: =IFERROR(IF(C182="","",IF(E182<>"Retorno",0,IF($G$20=Parâmetros!$D$2,Simulador!$O$10/$G$17,IF($G$20=Parâmetros!$D$3,Simulador!Q182-Simulador!O182-Simulador!M182-Simulador!K182-Simulador!I182,"")))),"") -> 729.971157 | I182: 9391.574589 | K182: 0 | M182: =IFERROR(IF(C182="","",IF($C$10=Parâmetros!$C$3,0,VLOOKUP(A182,'Base de Dados'!$E$3:$G$422,3,FALSE)*S182)),0) -> 555.6002115 | O182: =IF(C182="","",IF(C183="",0,IF(E182="Construção",0,IF(E182="Seguro",$C$17*'Base de Dados'!$C$2,IF($C$14=Parâmetros!$B$4,0,Simulador!$C$17*'Base de Dados'!$C$2))))) -> 66.4 | Q182: =IF(C182="","",IF(E182<>"Retorno",(I182+K182+M182),IF($G$20=Parâmetros!$D$2,SUM(G182,I182,K182,M182,O182),PMT($O$25,SUM($G$17),($O$10)*-1)+O182+M182+K182))) -> 10743.54596 | S182: 966093.2213
A183: 2038-10-02 | C183: 150 | D183: 1900-05-29 | E183: Retorno | G183: =IFERROR(IF(C183="","",IF(E183<>"Retorno",0,IF($G$20=Parâmetros!$D$2,Simulador!$O$10/$G$17,IF($G$20=Parâmetros!$D$3,Simulador!Q183-Simulador!O183-Simulador!M183-Simulador!K183-Simulador!I183,"")))),"") -> 737.0619867 | I183: 9384.483759 | K183: 0 | M183: =IFERROR(IF(C183="","",IF($C$10=Parâmetros!$C$3,0,VLOOKUP(A183,'Base de Dados'!$E$3:$G$422,3,FALSE)*S183)),0) -> 555.1763272 | O183: =IF(C183="","",IF(C184="",0,IF(E183="Construção",0,IF(E183="Seguro",$C$17*'Base de Dados'!$C$2,IF($C$14=Parâmetros!$B$4,0,Simulador!$C$17*'Base de Dados'!$C$2))))) -> 66.4 | Q183: =IF(C183="","",IF(E183<>"Retorno",(I183+K183+M183),IF($G$20=Parâmetros!$D$2,SUM(G183,I183,K183,M183,O183),PMT($O$25,SUM($G$17),($O$10)*-1)+O183+M183+K183))) -> 10743.12207 | S183: 965356.1593
A184: 2038-11-02 | C184: 151 | D184: 1900-05-30 | E184: Retorno | G184: =IFERROR(IF(C184="","",IF(E184<>"Retorno",0,IF($G$20=Parâmetros!$D$2,Simulador!$O$10/$G$17,IF($G$20=Parâmetros!$D$3,Simulador!Q184-Simulador!O184-Simulador!M184-Simulador!K184-Simulador!I184,"")))),"") -> 744.2216956 | I184: 9377.324051 | K184: 0 | M184: =IFERROR(IF(C184="","",IF($C$10=Parâmetros!$C$3,0,VLOOKUP(A184,'Base de Dados'!$E$3:$G$422,3,FALSE)*S184)),0) -> 554.7483253 | O184: =IF(C184="","",IF(C185="",0,IF(E184="Construção",0,IF(E184="Seguro",$C$17*'Base de Dados'!$C$2,IF($C$14=Parâmetros!$B$4,0,Simulador!$C$17*'Base de Dados'!$C$2))))) -> 66.4 | Q184: =IF(C184="","",IF(E184<>"Retorno",(I184+K184+M184),IF($G$20=Parâmetros!$D$2,SUM(G184,I184,K184,M184,O184),PMT($O$25,SUM($G$17),($O$10)*-1)+O184+M184+K184))) -> 10742.69407 | S184: 964611.9376
A185: 2038-12-02 | C185: 152 | D185: 1900-05-31 | E185: Retorno | G185: =IFERROR(IF(C185="","",IF(E185<>"Retorno",0,IF($G$20=Parâmetros!$D$2,Simulador!$O$10/$G$17,IF($G$20=Parâmetros!$D$3,Simulador!Q185-Simulador!O185-Simulador!M185-Simulador!K185-Simulador!I185,"")))),"") -> 751.4509528 | I185: 9370.094793 | K185: 0 | M185: =IFERROR(IF(C185="","",IF($C$10=Parâmetros!$C$3,0,VLOOKUP(A185,'Base de Dados'!$E$3:$G$422,3,FALSE)*S185)),0) -> 554.3161659 | O185: =IF(C185="","",IF(C186="",0,IF(E185="Construção",0,IF(E185="Seguro",$C$17*'Base de Dados'!$C$2,IF($C$14=Parâmetros!$B$4,0,Simulador!$C$17*'Base de Dados'!$C$2))))) -> 66.4 | Q185: =IF(C185="","",IF(E185<>"Retorno",(I185+K185+M185),IF($G$20=Parâmetros!$D$2,SUM(G185,I185,K185,M185,O185),PMT($O$25,SUM($G$17),($O$10)*-1)+O185+M185+K185))) -> 10742.26191 | S185: 963860.4866
A186: 2039-01-02 | C186: 153 | D186: 1900-06-01 | E186: Retorno | G186: =IFERROR(IF(C186="","",IF(E186<>"Retorno",0,IF($G$20=Parâmetros!$D$2,Simulador!$O$10/$G$17,IF($G$20=Parâmetros!$D$3,Simulador!Q186-Simulador!O186-Simulador!M186-Simulador!K186-Simulador!I186,"")))),"") -> 758.750434 | I186: 9362.795312 | K186: 0 | M186: =IFERROR(IF(C186="","",IF($C$10=Parâmetros!$C$3,0,VLOOKUP(A186,'Base de Dados'!$E$3:$G$422,3,FALSE)*S186)),0) -> 553.8798085 | O186: =IF(C186="","",IF(C187="",0,IF(E186="Construção",0,IF(E186="Seguro",$C$17*'Base de Dados'!$C$2,IF($C$14=Parâmetros!$B$4,0,Simulador!$C$17*'Base de Dados'!$C$2))))) -> 66.4 | Q186: =IF(C186="","",IF(E186<>"Retorno",(I186+K186+M186),IF($G$20=Parâmetros!$D$2,SUM(G186,I186,K186,M186,O186),PMT($O$25,SUM($G$17),($O$10)*-1)+O186+M186+K186))) -> 10741.82555 | S186: 963101.7362
A187: 2039-02-02 | C187: 154 | D187: 1900-06-02 | E187: Retorno | G187: =IFERROR(IF(C187="","",IF(E187<>"Retorno",0,IF($G$20=Parâmetros!$D$2,Simulador!$O$10/$G$17,IF($G$20=Parâmetros!$D$3,Simulador!Q187-Simulador!O187-Simulador!M187-Simulador!K187-Simulador!I187,"")))),"") -> 766.1208212 | I187: 9355.424925 | K187: 0 | M187: =IFERROR(IF(C187="","",IF($C$10=Parâmetros!$C$3,0,VLOOKUP(A187,'Base de Dados'!$E$3:$G$422,3,FALSE)*S187)),0) -> 553.4392124 | O187: =IF(C187="","",IF(C188="",0,IF(E187="Construção",0,IF(E187="Seguro",$C$17*'Base de Dados'!$C$2,IF($C$14=Parâmetros!$B$4,0,Simulador!$C$17*'Base de Dados'!$C$2))))) -> 66.4 | Q187: =IF(C187="","",IF(E187<>"Retorno",(I187+K187+M187),IF($G$20=Parâmetros!$D$2,SUM(G187,I187,K187,M187,O187),PMT($O$25,SUM($G$17),($O$10)*-1)+O187+M187+K187))) -> 10741.38496 | S187: 962335.6154
A188: 2039-03-02 | C188: 155 | D188: 1900-06-03 | E188: Retorno | G188: =IFERROR(IF(C188="","",IF(E188<>"Retorno",0,IF($G$20=Parâmetros!$D$2,Simulador!$O$10/$G$17,IF($G$20=Parâmetros!$D$3,Simulador!Q188-Simulador!O188-Simulador!M188-Simulador!K188-Simulador!I188,"")))),"") -> 773.5628032 | I188: 9347.982943 | K188: 0 | M188: =IFERROR(IF(C188="","",IF($C$10=Parâmetros!$C$3,0,VLOOKUP(A188,'Base de Dados'!$E$3:$G$422,3,FALSE)*S188)),0) -> 552.9943364 | O188: =IF(C188="","",IF(C189="",0,IF(E188="Construção",0,IF(E188="Seguro",$C$17*'Base de Dados'!$C$2,IF($C$14=Parâmetros!$B$4,0,Simulador!$C$17*'Base de Dados'!$C$2))))) -> 66.4 | Q188: =IF(C188="","",IF(E188<>"Retorno",(I188+K188+M188),IF($G$20=Parâmetros!$D$2,SUM(G188,I188,K188,M188,O188),PMT($O$25,SUM($G$17),($O$10)*-1)+O188+M188+K188))) -> 10740.94008 | S188: 961562.0526
A189: 2039-04-02 | C189: 156 | D189: 1900-06-04 | E189: Retorno | G189: =IFERROR(IF(C189="","",IF(E189<>"Retorno",0,IF($G$20=Parâmetros!$D$2,Simulador!$O$10/$G$17,IF($G$20=Parâmetros!$D$3,Simulador!Q189-Simulador!O189-Simulador!M189-Simulador!K189-Simulador!I189,"")))),"") -> 781.0770756 | I189: 9340.468671 | K189: 0 | M189: =IFERROR(IF(C189="","",IF($C$10=Parâmetros!$C$3,0,VLOOKUP(A189,'Base de Dados'!$E$3:$G$422,3,FALSE)*S189)),0) -> 552.545139 | O189: =IF(C189="","",IF(C190="",0,IF(E189="Construção",0,IF(E189="Seguro",$C$17*'Base de Dados'!$C$2,IF($C$14=Parâmetros!$B$4,0,Simulador!$C$17*'Base de Dados'!$C$2))))) -> 66.4 | Q189: =IF(C189="","",IF(E189<>"Retorno",(I189+K189+M189),IF($G$20=Parâmetros!$D$2,SUM(G189,I189,K189,M189,O189),PMT($O$25,SUM($G$17),($O$10)*-1)+O189+M189+K189))) -> 10740.49089 | S189: 960780.9755
A190: 2039-05-02 | C190: 157 | D190: 1900-06-05 | E190: Retorno | G190: =IFERROR(IF(C190="","",IF(E190<>"Retorno",0,IF($G$20=Parâmetros!$D$2,Simulador!$O$10/$G$17,IF($G$20=Parâmetros!$D$3,Simulador!Q190-Simulador!O190-Simulador!M190-Simulador!K190-Simulador!I190,"")))),"") -> 788.6643404 | I190: 9332.881406 | K190: 0 | M190: =IFERROR(IF(C190="","",IF($C$10=Parâmetros!$C$3,0,VLOOKUP(A190,'Base de Dados'!$E$3:$G$422,3,FALSE)*S190)),0) -> 552.0915781 | O190: =IF(C190="","",IF(C191="",0,IF(E190="Construção",0,IF(E190="Seguro",$C$17*'Base de Dados'!$C$2,IF($C$14=Parâmetros!$B$4,0,Simulador!$C$17*'Base de Dados'!$C$2))))) -> 66.4 | Q190: =IF(C190="","",IF(E190<>"Retorno",(I190+K190+M190),IF($G$20=Parâmetros!$D$2,SUM(G190,I190,K190,M190,O190),PMT($O$25,SUM($G$17),($O$10)*-1)+O190+M190+K190))) -> 10740.03732 | S190: 959992.3112
A191: 2039-06-02 | C191: 158 | D191: 1900-06-06 | E191: Retorno | G191: =IFERROR(IF(C191="","",IF(E191<>"Retorno",0,IF($G$20=Parâmetros!$D$2,Simulador!$O$10/$G$17,IF($G$20=Parâmetros!$D$3,Simulador!Q191-Simulador!O191-Simulador!M191-Simulador!K191-Simulador!I191,"")))),"") -> 796.3253068 | I191: 9325.220439 | K191: 0 | M191: =IFERROR(IF(C191="","",IF($C$10=Parâmetros!$C$3,0,VLOOKUP(A191,'Base de Dados'!$E$3:$G$422,3,FALSE)*S191)),0) -> 551.6336115 | O191: =IF(C191="","",IF(C192="",0,IF(E191="Construção",0,IF(E191="Seguro",$C$17*'Base de Dados'!$C$2,IF($C$14=Parâmetros!$B$4,0,Simulador!$C$17*'Base de Dados'!$C$2))))) -> 66.4 | Q191: =IF(C191="","",IF(E191<>"Retorno",(I191+K191+M191),IF($G$20=Parâmetros!$D$2,SUM(G191,I191,K191,M191,O191),PMT($O$25,SUM($G$17),($O$10)*-1)+O191+M191+K191))) -> 10739.57936 | S191: 959195.9858
A192: 2039-07-02 | C192: 159 | D192: 1900-06-07 | E192: Retorno | G192: =IFERROR(IF(C192="","",IF(E192<>"Retorno",0,IF($G$20=Parâmetros!$D$2,Simulador!$O$10/$G$17,IF($G$20=Parâmetros!$D$3,Simulador!Q192-Simulador!O192-Simulador!M192-Simulador!K192-Simulador!I192,"")))),"") -> 804.0606906 | I192: 9317.485055 | K192: 0 | M192: =IFERROR(IF(C192="","",IF($C$10=Parâmetros!$C$3,0,VLOOKUP(A192,'Base de Dados'!$E$3:$G$422,3,FALSE)*S192)),0) -> 551.1711962 | O192: =IF(C192="","",IF(C193="",0,IF(E192="Construção",0,IF(E192="Seguro",$C$17*'Base de Dados'!$C$2,IF($C$14=Parâmetros!$B$4,0,Simulador!$C$17*'Base de Dados'!$C$2))))) -> 66.4 | Q192: =IF(C192="","",IF(E192<>"Retorno",(I192+K192+M192),IF($G$20=Parâmetros!$D$2,SUM(G192,I192,K192,M192,O192),PMT($O$25,SUM($G$17),($O$10)*-1)+O192+M192+K192))) -> 10739.11694 | S192: 958391.9252
A193: 2039-08-02 | C193: 160 | D193: 1900-06-08 | E193: Retorno | G193: =IFERROR(IF(C193="","",IF(E193<>"Retorno",0,IF($G$20=Parâmetros!$D$2,Simulador!$O$10/$G$17,IF($G$20=Parâmetros!$D$3,Simulador!Q193-Simulador!O193-Simulador!M193-Simulador!K193-Simulador!I193,"")))),"") -> 811.8712149 | I193: 9309.674531 | K193: 0 | M193: =IFERROR(IF(C193="","",IF($C$10=Parâmetros!$C$3,0,VLOOKUP(A193,'Base de Dados'!$E$3:$G$422,3,FALSE)*S193)),0) -> 550.704289 | O193: =IF(C193="","",IF(C194="",0,IF(E193="Construção",0,IF(E193="Seguro",$C$17*'Base de Dados'!$C$2,IF($C$14=Parâmetros!$B$4,0,Simulador!$C$17*'Base de Dados'!$C$2))))) -> 66.4 | Q193: =IF(C193="","",IF(E193<>"Retorno",(I193+K193+M193),IF($G$20=Parâmetros!$D$2,SUM(G193,I193,K193,M193,O193),PMT($O$25,SUM($G$17),($O$10)*-1)+O193+M193+K193))) -> 10738.65004 | S193: 957580.0539
A194: 2039-09-02 | C194: 161 | D194: 1900-06-09 | E194: Retorno | G194: =IFERROR(IF(C194="","",IF(E194<>"Retorno",0,IF($G$20=Parâmetros!$D$2,Simulador!$O$10/$G$17,IF($G$20=Parâmetros!$D$3,Simulador!Q194-Simulador!O194-Simulador!M194-Simulador!K194-Simulador!I194,"")))),"") -> 819.7576093 | I194: 9301.788137 | K194: 0 | M194: =IFERROR(IF(C194="","",IF($C$10=Parâmetros!$C$3,0,VLOOKUP(A194,'Base de Dados'!$E$3:$G$422,3,FALSE)*S194)),0) -> 550.2328464 | O194: =IF(C194="","",IF(C195="",0,IF(E194="Construção",0,IF(E194="Seguro",$C$17*'Base de Dados'!$C$2,IF($C$14=Parâmetros!$B$4,0,Simulador!$C$17*'Base de Dados'!$C$2))))) -> 66.4 | Q194: =IF(C194="","",IF(E194<>"Retorno",(I194+K194+M194),IF($G$20=Parâmetros!$D$2,SUM(G194,I194,K194,M194,O194),PMT($O$25,SUM($G$17),($O$10)*-1)+O194+M194+K194))) -> 10738.17859 | S194: 956760.2963
A195: 2039-10-02 | C195: 162 | D195: 1900-06-10 | E195: Retorno | G195: =IFERROR(IF(C195="","",IF(E195<>"Retorno",0,IF($G$20=Parâmetros!$D$2,Simulador!$O$10/$G$17,IF($G$20=Parâmetros!$D$3,Simulador!Q195-Simulador!O195-Simulador!M195-Simulador!K195-Simulador!I195,"")))),"") -> 827.720611 | I195: 9293.825135 | K195: 0 | M195: =IFERROR(IF(C195="","",IF($C$10=Parâmetros!$C$3,0,VLOOKUP(A195,'Base de Dados'!$E$3:$G$422,3,FALSE)*S195)),0) -> 549.7568243 | O195: =IF(C195="","",IF(C196="",0,IF(E195="Construção",0,IF(E195="Seguro",$C$17*'Base de Dados'!$C$2,IF($C$14=Parâmetros!$B$4,0,Simulador!$C$17*'Base de Dados'!$C$2))))) -> 66.4 | Q195: =IF(C195="","",IF(E195<>"Retorno",(I195+K195+M195),IF($G$20=Parâmetros!$D$2,SUM(G195,I195,K195,M195,O195),PMT($O$25,SUM($G$17),($O$10)*-1)+O195+M195+K195))) -> 10737.70257 | S195: 955932.5757
A196: 2039-11-02 | C196: 163 | D196: 1900-06-11 | E196: Retorno | G196: =IFERROR(IF(C196="","",IF(E196<>"Retorno",0,IF($G$20=Parâmetros!$D$2,Simulador!$O$10/$G$17,IF($G$20=Parâmetros!$D$3,Simulador!Q196-Simulador!O196-Simulador!M196-Simulador!K196-Simulador!I196,"")))),"") -> 835.7609641 | I196: 9285.784782 | K196: 0 | M196: =IFERROR(IF(C196="","",IF($C$10=Parâmetros!$C$3,0,VLOOKUP(A196,'Base de Dados'!$E$3:$G$422,3,FALSE)*S196)),0) -> 549.2761782 | O196: =IF(C196="","",IF(C197="",0,IF(E196="Construção",0,IF(E196="Seguro",$C$17*'Base de Dados'!$C$2,IF($C$14=Parâmetros!$B$4,0,Simulador!$C$17*'Base de Dados'!$C$2))))) -> 66.4 | Q196: =IF(C196="","",IF(E196<>"Retorno",(I196+K196+M196),IF($G$20=Parâmetros!$D$2,SUM(G196,I196,K196,M196,O196),PMT($O$25,SUM($G$17),($O$10)*-1)+O196+M196+K196))) -> 10737.22192 | S196: 955096.8148
A197: 2039-12-02 | C197: 164 | D197: 1900-06-12 | E197: Retorno | G197: =IFERROR(IF(C197="","",IF(E197<>"Retorno",0,IF($G$20=Parâmetros!$D$2,Simulador!$O$10/$G$17,IF($G$20=Parâmetros!$D$3,Simulador!Q197-Simulador!O197-Simulador!M197-Simulador!K197-Simulador!I197,"")))),"") -> 843.87942 | I197: 9277.666326 | K197: 0 | M197: =IFERROR(IF(C197="","",IF($C$10=Parâmetros!$C$3,0,VLOOKUP(A197,'Base de Dados'!$E$3:$G$422,3,FALSE)*S197)),0) -> 548.7908631 | O197: =IF(C197="","",IF(C198="",0,IF(E197="Construção",0,IF(E197="Seguro",$C$17*'Base de Dados'!$C$2,IF($C$14=Parâmetros!$B$4,0,Simulador!$C$17*'Base de Dados'!$C$2))))) -> 66.4 | Q197: =IF(C197="","",IF(E197<>"Retorno",(I197+K197+M197),IF($G$20=Parâmetros!$D$2,SUM(G197,I197,K197,M197,O197),PMT($O$25,SUM($G$17),($O$10)*-1)+O197+M197+K197))) -> 10736.73661 | S197: 954252.9353
A198: 2040-01-02 | C198: 165 | D198: 1900-06-13 | E198: Retorno | G198: =IFERROR(IF(C198="","",IF(E198<>"Retorno",0,IF($G$20=Parâmetros!$D$2,Simulador!$O$10/$G$17,IF($G$20=Parâmetros!$D$3,Simulador!Q198-Simulador!O198-Simulador!M198-Simulador!K198-Simulador!I198,"")))),"") -> 852.0767374 | I198: 9269.469009 | K198: 0 | M198: =IFERROR(IF(C198="","",IF($C$10=Parâmetros!$C$3,0,VLOOKUP(A198,'Base de Dados'!$E$3:$G$422,3,FALSE)*S198)),0) -> 548.3008338 | O198: =IF(C198="","",IF(C199="",0,IF(E198="Construção",0,IF(E198="Seguro",$C$17*'Base de Dados'!$C$2,IF($C$14=Parâmetros!$B$4,0,Simulador!$C$17*'Base de Dados'!$C$2))))) -> 66.4 | Q198: =IF(C198="","",IF(E198<>"Retorno",(I198+K198+M198),IF($G$20=Parâmetros!$D$2,SUM(G198,I198,K198,M198,O198),PMT($O$25,SUM($G$17),($O$10)*-1)+O198+M198+K198))) -> 10736.24658 | S198: 953400.8586
A199: 2040-02-02 | C199: 166 | D199: 1900-06-14 | E199: Retorno | G199: =IFERROR(IF(C199="","",IF(E199<>"Retorno",0,IF($G$20=Parâmetros!$D$2,Simulador!$O$10/$G$17,IF($G$20=Parâmetros!$D$3,Simulador!Q199-Simulador!O199-Simulador!M199-Simulador!K199-Simulador!I199,"")))),"") -> 860.3536822 | I199: 9261.192064 | K199: 0 | M199: =IFERROR(IF(C199="","",IF($C$10=Parâmetros!$C$3,0,VLOOKUP(A199,'Base de Dados'!$E$3:$G$422,3,FALSE)*S199)),0) -> 547.8060444 | O199: =IF(C199="","",IF(C200="",0,IF(E199="Construção",0,IF(E199="Seguro",$C$17*'Base de Dados'!$C$2,IF($C$14=Parâmetros!$B$4,0,Simulador!$C$17*'Base de Dados'!$C$2))))) -> 66.4 | Q199: =IF(C199="","",IF(E199<>"Retorno",(I199+K199+M199),IF($G$20=Parâmetros!$D$2,SUM(G199,I199,K199,M199,O199),PMT($O$25,SUM($G$17),($O$10)*-1)+O199+M199+K199))) -> 10735.75179 | S199: 952540.5049
A200: 2040-03-02 | C200: 167 | D200: 1900-06-15 | E200: Retorno | G200: =IFERROR(IF(C200="","",IF(E200<>"Retorno",0,IF($G$20=Parâmetros!$D$2,Simulador!$O$10/$G$17,IF($G$20=Parâmetros!$D$3,Simulador!Q200-Simulador!O200-Simulador!M200-Simulador!K200-Simulador!I200,"")))),"") -> 868.711028 | I200: 9252.834718 | K200: 0 | M200: =IFERROR(IF(C200="","",IF($C$10=Parâmetros!$C$3,0,VLOOKUP(A200,'Base de Dados'!$E$3:$G$422,3,FALSE)*S200)),0) -> 547.3064487 | O200: =IF(C200="","",IF(C201="",0,IF(E200="Construção",0,IF(E200="Seguro",$C$17*'Base de Dados'!$C$2,IF($C$14=Parâmetros!$B$4,0,Simulador!$C$17*'Base de Dados'!$C$2))))) -> 66.4 | Q200: =IF(C200="","",IF(E200<>"Retorno",(I200+K200+M200),IF($G$20=Parâmetros!$D$2,SUM(G200,I200,K200,M200,O200),PMT($O$25,SUM($G$17),($O$10)*-1)+O200+M200+K200))) -> 10735.25219 | S200: 951671.7939
A201: 2040-04-02 | C201: 168 | D201: 1900-06-16 | E201: Retorno | G201: =IFERROR(IF(C201="","",IF(E201<>"Retorno",0,IF($G$20=Parâmetros!$D$2,Simulador!$O$10/$G$17,IF($G$20=Parâmetros!$D$3,Simulador!Q201-Simulador!O201-Simulador!M201-Simulador!K201-Simulador!I201,"")))),"") -> 877.1495559 | I201: 9244.39619 | K201: 0 | M201: =IFERROR(IF(C201="","",IF($C$10=Parâmetros!$C$3,0,VLOOKUP(A201,'Base de Dados'!$E$3:$G$422,3,FALSE)*S201)),0) -> 546.802 | O201: =IF(C201="","",IF(C202="",0,IF(E201="Construção",0,IF(E201="Seguro",$C$17*'Base de Dados'!$C$2,IF($C$14=Parâmetros!$B$4,0,Simulador!$C$17*'Base de Dados'!$C$2))))) -> 66.4 | Q201: =IF(C201="","",IF(E201<>"Retorno",(I201+K201+M201),IF($G$20=Parâmetros!$D$2,SUM(G201,I201,K201,M201,O201),PMT($O$25,SUM($G$17),($O$10)*-1)+O201+M201+K201))) -> 10734.74775 | S201: 950794.6443
A202: 2040-05-02 | C202: 169 | D202: 1900-06-17 | E202: Retorno | G202: =IFERROR(IF(C202="","",IF(E202<>"Retorno",0,IF($G$20=Parâmetros!$D$2,Simulador!$O$10/$G$17,IF($G$20=Parâmetros!$D$3,Simulador!Q202-Simulador!O202-Simulador!M202-Simulador!K202-Simulador!I202,"")))),"") -> 885.6700543 | I202: 9235.875692 | K202: 0 | M202: =IFERROR(IF(C202="","",IF($C$10=Parâmetros!$C$3,0,VLOOKUP(A202,'Base de Dados'!$E$3:$G$422,3,FALSE)*S202)),0) -> 546.2926511 | O202: =IF(C202="","",IF(C203="",0,IF(E202="Construção",0,IF(E202="Seguro",$C$17*'Base de Dados'!$C$2,IF($C$14=Parâmetros!$B$4,0,Simulador!$C$17*'Base de Dados'!$C$2))))) -> 66.4 | Q202: =IF(C202="","",IF(E202<>"Retorno",(I202+K202+M202),IF($G$20=Parâmetros!$D$2,SUM(G202,I202,K202,M202,O202),PMT($O$25,SUM($G$17),($O$10)*-1)+O202+M202+K202))) -> 10734.2384 | S202: 949908.9743
A203: 2040-06-02 | C203: 170 | D203: 1900-06-18 | E203: Retorno | G203: =IFERROR(IF(C203="","",IF(E203<>"Retorno",0,IF($G$20=Parâmetros!$D$2,Simulador!$O$10/$G$17,IF($G$20=Parâmetros!$D$3,Simulador!Q203-Simulador!O203-Simulador!M203-Simulador!K203-Simulador!I203,"")))),"") -> 894.2733195 | I203: 9227.272427 | K203: 0 | M203: =IFERROR(IF(C203="","",IF($C$10=Parâmetros!$C$3,0,VLOOKUP(A203,'Base de Dados'!$E$3:$G$422,3,FALSE)*S203)),0) -> 545.7783545 | O203: =IF(C203="","",IF(C204="",0,IF(E203="Construção",0,IF(E203="Seguro",$C$17*'Base de Dados'!$C$2,IF($C$14=Parâmetros!$B$4,0,Simulador!$C$17*'Base de Dados'!$C$2))))) -> 66.4 | Q203: =IF(C203="","",IF(E203<>"Retorno",(I203+K203+M203),IF($G$20=Parâmetros!$D$2,SUM(G203,I203,K203,M203,O203),PMT($O$25,SUM($G$17),($O$10)*-1)+O203+M203+K203))) -> 10733.7241 | S203: 949014.701
A204: 2040-07-02 | C204: 171 | D204: 1900-06-19 | E204: Retorno | G204: =IFERROR(IF(C204="","",IF(E204<>"Retorno",0,IF($G$20=Parâmetros!$D$2,Simulador!$O$10/$G$17,IF($G$20=Parâmetros!$D$3,Simulador!Q204-Simulador!O204-Simulador!M204-Simulador!K204-Simulador!I204,"")))),"") -> 902.9601556 | I204: 9218.585591 | K204: 0 | M204: =IFERROR(IF(C204="","",IF($C$10=Parâmetros!$C$3,0,VLOOKUP(A204,'Base de Dados'!$E$3:$G$422,3,FALSE)*S204)),0) -> 545.2590621 | O204: =IF(C204="","",IF(C205="",0,IF(E204="Construção",0,IF(E204="Seguro",$C$17*'Base de Dados'!$C$2,IF($C$14=Parâmetros!$B$4,0,Simulador!$C$17*'Base de Dados'!$C$2))))) -> 66.4 | Q204: =IF(C204="","",IF(E204<>"Retorno",(I204+K204+M204),IF($G$20=Parâmetros!$D$2,SUM(G204,I204,K204,M204,O204),PMT($O$25,SUM($G$17),($O$10)*-1)+O204+M204+K204))) -> 10733.20481 | S204: 948111.7408
A205: 2040-08-02 | C205: 172 | D205: 1900-06-20 | E205: Retorno | G205: =IFERROR(IF(C205="","",IF(E205<>"Retorno",0,IF($G$20=Parâmetros!$D$2,Simulador!$O$10/$G$17,IF($G$20=Parâmetros!$D$3,Simulador!Q205-Simulador!O205-Simulador!M205-Simulador!K205-Simulador!I205,"")))),"") -> 911.7313743 | I205: 9209.814372 | K205: 0 | M205: =IFERROR(IF(C205="","",IF($C$10=Parâmetros!$C$3,0,VLOOKUP(A205,'Base de Dados'!$E$3:$G$422,3,FALSE)*S205)),0) -> 544.7347254 | O205: =IF(C205="","",IF(C206="",0,IF(E205="Construção",0,IF(E205="Seguro",$C$17*'Base de Dados'!$C$2,IF($C$14=Parâmetros!$B$4,0,Simulador!$C$17*'Base de Dados'!$C$2))))) -> 66.4 | Q205: =IF(C205="","",IF(E205<>"Retorno",(I205+K205+M205),IF($G$20=Parâmetros!$D$2,SUM(G205,I205,K205,M205,O205),PMT($O$25,SUM($G$17),($O$10)*-1)+O205+M205+K205))) -> 10732.68047 | S205: 947200.0094
A206: 2040-09-02 | C206: 173 | D206: 1900-06-21 | E206: Retorno | G206: =IFERROR(IF(C206="","",IF(E206<>"Retorno",0,IF($G$20=Parâmetros!$D$2,Simulador!$O$10/$G$17,IF($G$20=Parâmetros!$D$3,Simulador!Q206-Simulador!O206-Simulador!M206-Simulador!K206-Simulador!I206,"")))),"") -> 920.5877953 | I206: 9200.957951 | K206: 0 | M206: =IFERROR(IF(C206="","",IF($C$10=Parâmetros!$C$3,0,VLOOKUP(A206,'Base de Dados'!$E$3:$G$422,3,FALSE)*S206)),0) -> 697.2186779 | O206: =IF(C206="","",IF(C207="",0,IF(E206="Construção",0,IF(E206="Seguro",$C$17*'Base de Dados'!$C$2,IF($C$14=Parâmetros!$B$4,0,Simulador!$C$17*'Base de Dados'!$C$2))))) -> 66.4 | Q206: =IF(C206="","",IF(E206<>"Retorno",(I206+K206+M206),IF($G$20=Parâmetros!$D$2,SUM(G206,I206,K206,M206,O206),PMT($O$25,SUM($G$17),($O$10)*-1)+O206+M206+K206))) -> 10885.16442 | S206: 946279.4216
A207: 2040-10-02 | C207: 174 | D207: 1900-06-22 | E207: Retorno | G207: =IFERROR(IF(C207="","",IF(E207<>"Retorno",0,IF($G$20=Parâmetros!$D$2,Simulador!$O$10/$G$17,IF($G$20=Parâmetros!$D$3,Simulador!Q207-Simulador!O207-Simulador!M207-Simulador!K207-Simulador!I207,"")))),"") -> 929.5302462 | I207: 9192.0155 | K207: 0 | M207: =IFERROR(IF(C207="","",IF($C$10=Parâmetros!$C$3,0,VLOOKUP(A207,'Base de Dados'!$E$3:$G$422,3,FALSE)*S207)),0) -> 696.5338 | O207: =IF(C207="","",IF(C208="",0,IF(E207="Construção",0,IF(E207="Seguro",$C$17*'Base de Dados'!$C$2,IF($C$14=Parâmetros!$B$4,0,Simulador!$C$17*'Base de Dados'!$C$2))))) -> 66.4 | Q207: =IF(C207="","",IF(E207<>"Retorno",(I207+K207+M207),IF($G$20=Parâmetros!$D$2,SUM(G207,I207,K207,M207,O207),PMT($O$25,SUM($G$17),($O$10)*-1)+O207+M207+K207))) -> 10884.47955 | S207: 945349.8914
A208: 2040-11-02 | C208: 175 | D208: 1900-06-23 | E208: Retorno | G208: =IFERROR(IF(C208="","",IF(E208<>"Retorno",0,IF($G$20=Parâmetros!$D$2,Simulador!$O$10/$G$17,IF($G$20=Parâmetros!$D$3,Simulador!Q208-Simulador!O208-Simulador!M208-Simulador!K208-Simulador!I208,"")))),"") -> 938.5595627 | I208: 9182.986183 | K208: 0 | M208: =IFERROR(IF(C208="","",IF($C$10=Parâmetros!$C$3,0,VLOOKUP(A208,'Base de Dados'!$E$3:$G$422,3,FALSE)*S208)),0) -> 695.8422693 | O208: =IF(C208="","",IF(C209="",0,IF(E208="Construção",0,IF(E208="Seguro",$C$17*'Base de Dados'!$C$2,IF($C$14=Parâmetros!$B$4,0,Simulador!$C$17*'Base de Dados'!$C$2))))) -> 66.4 | Q208: =IF(C208="","",IF(E208<>"Retorno",(I208+K208+M208),IF($G$20=Parâmetros!$D$2,SUM(G208,I208,K208,M208,O208),PMT($O$25,SUM($G$17),($O$10)*-1)+O208+M208+K208))) -> 10883.78802 | S208: 944411.3318
A209: 2040-12-02 | C209: 176 | D209: 1900-06-24 | E209: Retorno | G209: =IFERROR(IF(C209="","",IF(E209<>"Retorno",0,IF($G$20=Parâmetros!$D$2,Simulador!$O$10/$G$17,IF($G$20=Parâmetros!$D$3,Simulador!Q209-Simulador!O209-Simulador!M209-Simulador!K209-Simulador!I209,"")))),"") -> 947.6765887 | I209: 9173.869157 | K209: 0 | M209: =IFERROR(IF(C209="","",IF($C$10=Parâmetros!$C$3,0,VLOOKUP(A209,'Base de Dados'!$E$3:$G$422,3,FALSE)*S209)),0) -> 695.1440212 | O209: =IF(C209="","",IF(C210="",0,IF(E209="Construção",0,IF(E209="Seguro",$C$17*'Base de Dados'!$C$2,IF($C$14=Parâmetros!$B$4,0,Simulador!$C$17*'Base de Dados'!$C$2))))) -> 66.4 | Q209: =IF(C209="","",IF(E209<>"Retorno",(I209+K209+M209),IF($G$20=Parâmetros!$D$2,SUM(G209,I209,K209,M209,O209),PMT($O$25,SUM($G$17),($O$10)*-1)+O209+M209+K209))) -> 10883.08977 | S209: 943463.6552
... 244 more rows

Sheet Parâmetros (hidden)
B1: Tipo de Imóvel | C1: Tipo de Pessoa | D1: Sist. Amort | E1: Opção | F1: Nascimento | G1: Dt Ppt em mês | H1: Alíquota IOF PF | I1: Alíquota IOF PJ | J1: ID Simulação | K1: CRV Simulador | L1: LTV Simulador | M1: Prazo total simul | N1: Tipo de Produto | O1: Prazo Total | P1: IOF | Q1: Alíquota | R1: Idade | S1: Idade mínima | T1: Taxa de Juros | U1: ID simplificado | V1: Funcionário | W1: ID Secundário | X1: Segmento Enquadra no SFH | Y1: Enquadramento | Z1: Carteira
B2: RESIDENCIAL | C2: PESSOA FÍSICA | D2: SAC | E2: SIM | F2: =Simulador!G14 -> 1989-09-14 | G2: =TODAY() -> 2026-04-02 | H2: 0.03 | I2: 0.03 | J2: =U2 -> Repasse/AquisiçãoRESIDENCIALPRICEPRINCIPAL | K2: =_xlfn.XLOOKUP(J2,'Base de Dados'!N:N,'Base de Dados'!O:O,"",0,1) -> 0.25 | L2: =VLOOKUP(J2,'Base de Dados'!N1:P100000,3,FALSE) -> 0.8 | M2: =Simulador!K19 -> 420 | N2: =Simulador!E6 -> Repasse/Aquisição | O2: 50 | P2: =VLOOKUP(J2,'Base de Dados'!N1:X100000,11,FALSE) -> NÃO | Q2: =VLOOKUP(J2,'Base de Dados'!N1:Y100000,12,FALSE) -> 0 | R2: =YEAR(TODAY())-YEAR(F2) -> 37 | S2: 18 | T2: =T3 -> 02:57:07.200 | U2: =IF(Simulador!C10=Parâmetros!C3,Simulador!E6&Parâmetros!Z2&Simulador!G20,Simulador!E6&Y2&Simulador!G20&Simulador!C26) -> Repasse/AquisiçãoRESIDENCIALPRICEPRINCIPAL | V2: =IF(AND('Simulador Bradesco'!I13=Parâmetros!E2,'Simulador Bradesco'!D13=Parâmetros!AK2),"Funcionário","") ->  | W2: =Simulador!E6&Z2&Simulador!G20 -> Repasse/AquisiçãoFALSOPRICE | X2: =_xlfn.IFNA(VLOOKUP(Simulador!C26,Parâmetros!G22:I26,3,FALSE),"NÃO") -> NÃO | Y2: =IF(Simulador!C14=Parâmetros!B2,Parâmetros!C8,IF(AND(Simulador!C14=Parâmetros!B2,Simulador!C17>2250000),Parâmetros!C9,IF(Simulador!C14=Parâmetros!B3,Parâmetros!C11,Parâmetros!C7))) -> RESIDENCIAL | Z2: =IF(AND(Simulador!C10=Parâmetros!C3,Simulador!C14=Parâmetros!B3),C16,IF(AND(Simulador!C10=Parâmetros!C3,Simulador!C14=Parâmetros!B2),C15,IF(AND(Simulador!C10=Parâmetros!C3,Simulador!C14=Parâmetros!B4),Parâmetros!C14))) -> FALSE | AK2: PESSOA FÍSICA
B3: COMERCIAL | C3: PESSOA JURÍDICA | D3: PRICE | E3: NÃO | H3: 0.0038 | I3: 0.0038 | K3: =K2 -> 0.25 | N3: =IF(N2=D24,"Construção",IF(N2=D25,"Construção",IF(N2=D23,"Aquisição",IF(N2=D22,"Aquisição","")))) -> Aquisição | T3: =IF(Simulador!C10=Parâmetros!C3,VLOOKUP(Parâmetros!W2,'Base de Dados'!N2:W71,10,FALSE),VLOOKUP(Parâmetros!U2,'Base de Dados'!N2:W71,10,FALSE)) -> 0.123
B4: LOTE | H4: =SUM(H2:H3) -> 0.0338 | I4: =SUM(I2:I3) -> 0.0338 | O4: =Simulador!K17 -> 
B5: Pessoa Física
B6: Carteira | C6: Sigla | D6: Taxa | E6: LTV SAC | F6: LTV PRICE | G6: CRV SAC | H6: CRV PRICE | I6: Prazo Mínimo | J6: Prazo Máximo | K6: IOF | L6: Tarifa de Avaliação | M6: Prazo Mínimo Poup+ | N6: Prazo Max Poup+ | O6: LTV Poup+ | P6: Prime | Q6: Exclusive | R6: Classic | S6: Principal | T6: Private | U6: Valor Mínimo imóvel
B7: Lote | C7: LOTE | D7: 0.1399 | E7: 0.7 | F7: 0.7 | G7: 0.2 | H7: 0.15 | I7: 121 | J7: 240 | K7: SIM | L7: 3400 | P7: 0.1399 | Q7: 0.1399 | R7: 0.1399 | S7: 0.1399 | T7: 0.1399 | U7: 0
B8: Residencial até 2,25mm | C8: RESIDENCIAL | D8: 0.123 | E8: 0.8 | F8: 0.8 | G8: 0.35 | H8: 0.25 | I8: 121 | J8: 420 | K8: NÃO | L8: 1021.25 | M8: 240 | N8: 420 | O8: 0.8 | U8: 0
B9: Residencial maior 2,25mm | C9: RESIDENCIAL > 225 | D9: 0.123 | E9: 0.8 | F9: 0.8 | G9: 0.35 | H9: 0.25 | I9: 121 | J9: 420 | K9: NÃO | L9: 2114.03 | M9: 240 | N9: 420 | O9: 0.8 | P9: 0.123 | Q9: 0.123 | R9: 0.123 | S9: 0.123 | T9: 0.123 | U9: 2250000.01
B10: Residencial até 2,25mm < 12 | C10: RESIDENCIAL | D10: 0.12 | E10: 0.9 | F10: 0.8 | G10: 0.35 | H10: 0.25 | I10: 121 | J10: 420 | K10: NÃO | L10: 2114.03 | M10: 240 | N10: 420 | O10: 0.8 | P10: 0.123 | Q10: 0.123 | R10: 0.123 | S10: 0.123 | T10: 0.123 | U10: 0
B11: Comercial | C11: COMERCIAL | D11: 0.1399 | E11: 0.8 | F11: 0.8 | G11: 0.35 | H11: 0.25 | I11: 121 | J11: 360 | K11: SIM | L11: 3400 | U11: 0
G12: Pessoa Jurídica
B13: Carteira | C13: Sigla | D13: Taxa | E13: LTV SAC | F13: LTV PRICE | G13: CRV SAC | H13: CRV PRICE | I13: Prazo Mínimo | J13: Prazo Máximo | K13: IOF | L13: Tarifa de Avaliação | M13: Prazo Mínimo Poup+ | N13: Prazo Max Poup+ | O13: LTV Poup+
B14: Lote Pj | C14: CHH Lote PJ | D14: 0.1399 | E14: 0.7 | F14: 0.7 | G14: N/A | H14: N/A | I14: 121 | J14: 240 | K14: SIM | L14: 3400
B15: Residencial PJ | C15: CHH PJ | D15: 0.1399 | E15: 0.7 | F15: 0.7 | G15: N/A | H15: N/A | I15: 121 | J15: 240 | K15: NÃO | L15: 2114.03 | M15: 240 | N15: 240 | O15: 0.8
B16: Comercial PJ | C16: CHC PJ | D16: 0.1399 | E16: 0.6 | F16: 0.6 | G16: N/A | H16: N/A | I16: 121 | J16: 240 | K16: SIM | L16: 3400
B18: Prazo Máximo de Amortização
B19: 80.5
B21: Condições e Taxa Poup+
B22: Taxa Selic Atual | C22: 0.1325 | D22: Repasse/Aquisição | E22: Construção | G22: PRIME | H22: =MIN(P7:P11) -> 0.123 | I22: =IF(H22<12%,"SIM","NÃO") -> NÃO
B23: Fator Utilizado | C23: =IF(C22>8.5%,6.17%,0.7*C22) -> 0.0617 | D23: Poupança+ | E23: Aquisição | F23: =C23 -> 0.0617 | G23: EXCLUSIVE | H23: =MIN(Q7:Q11) -> 0.123 | I23: =IF(H23<12%,"SIM","NÃO") -> NÃO
B24: Spread | C24: 0.0782 | D24: Término de Construção | F24: =C24 -> 0.0782 | G24: CLASSIC | H24: =MIN(R7:R11) -> 0.123 | I24: NÃO
D25: Crédito Associativo | G25: PRINCIPAL | H25: =MIN(S7:S11) -> 0.123 | I25: NÃO
G26: PRIVATE | H26: =MIN(T7:T11) -> 0.123 | I26: NÃO
B27: Término de Construção
B28: Carteira | C28: Sigla | D28: Taxa | E28: LTV SAC | F28: LTV PRICE | G28: CRV SAC | H28: CRV PRICE | I28: Prazo Mínimo | J28: Prazo Máximo | K28: IOF | L28: Tarifa de Avaliação | M28: Prazo max constru | N28: Prazo max care
B29: Construção | C29: SFH | D29: 0.105 | E29: 0.7 | F29: 0.7 | G29: 0.3 | H29: 0.15 | I29: 100 | J29: 334 | K29: NÃO | L29: 2114.03 | M29: 24 | N29: 2
B30: Construção | C30: CHH | D30: 0.11 | E30: 0.7 | F30: 0.7 | G30: 0.3 | H30: 0.15 | I30: 100 | J30: 334 | K30: NÃO | L30: 2114.03 | M30: 24 | N30: 2
B31: Construção | C31: CHH PJ | D31: 0.11 | E31: 0.7 | F31: 0.7 | G31: N/A | H31: N/A | I31: 90 | J31: 240 | K31: SIM | L31: 2114.03 | M31: 24 | N31: 2
B32: Construção | C32: CHC PJ | D32: 0.11 | E32: 0.7 | F32: 0.7 | G32: N/A | H32: N/A | I32: 90 | J32: 240 | K32: SIM | L32: 3400 | M32: 24 | N32: 2
B35: Crédito Associativo
B36: Carteira | C36: Sigla | D36: Taxa | E36: LTV SAC | F36: LTV PRICE | G36: CRV SAC | H36: CRV PRICE | I36: Prazo Mínimo | J36: Prazo Máximo | K36: IOF | L36: Tarifa de Avaliação | M36: Prazo max constru | N36: Prazo max care
B37: Construção | C37: SFH | D37: 0.095 | E37: 0.9 | F37: 0.8 | G37: 0.35 | H37: 0.15 | I37: 180 | J37: 360 | K37: NÃO | L37: 2114.03 | M37: 40 | N37: 6
B38: Construção | C38: CHH | D38: 0.095 | E38: 0.9 | F38: 0.8 | G38: 0.35 | H38: 0.15 | I38: 180 | J38: 360 | K38: NÃO | L38: 2114.03 | M38: 40 | N38: 6
B39: Início da Construção | C39: Término da Construção

Sheet Simulador Bradesco
C7: =IF(T39="","É necessário o preenchimento de todos os campos obrigatórios para geração da simulação","") -> 
B9: Produto | D9: Repasse/Aquisição | Q9: 1ª Prestação
G10: =IF(D9=Parâmetros!D25,"Mês entrega da Obra","") ->  | L10: =IF(D9=Parâmetros!D25,"Prazo de Construção restante","") ->  | O10: =IFERROR(ROUNDUP(IF(L10<>"",(I10-TODAY())/30,""),2),"") ->  | Q10: =IFERROR(VLOOKUP("Primeira",Simulador!B31:Q453,16,FALSE),"") -> 10369.77714
M11: =IF(D9=Parâmetros!D25,"Prazo Total do PE","") ->  | O11: =IF(D9=Parâmetros!D25,Parâmetros!O2,"") -> 
B13: Tipo de Pessoa | D13: PESSOA FÍSICA | G13: Segmento | I13: PRINCIPAL | L13: =IF(D9=Parâmetros!D24,"Prazo de Construção","") -> 
O14: =IF(L13<>"","Máx","") ->  | P14: =IF(D9=Parâmetros!D24,Simulador!O27,"") ->  | Q14: Valor Financiado ($)
B15: Tipo de Imóvel | D15: RESIDENCIAL | G15: Valor do Imóvel ($) | I15: 1328000 | L15: =IF(Parâmetros!N3=Parâmetros!E22,"Prazo de Carência","") ->  | O15: =IFERROR(IF(VLOOKUP(Parâmetros!J2,'Base de Dados'!N1:V33,9,FALSE)="","",VLOOKUP(Parâmetros!J2,'Base de Dados'!N1:V33,9,FALSE)),"") -> 
B17: Financia Despesas? | D17: NÃO | G17: Valor Financiamento ($) | I17: 1024000
H18: =IF(AND(D15="LOTE",I17<750000),"Mín Lote 750mil",IF(I19>J20,"Valor superior ao permitido","")) ->  | I18: ="Máx" -> Máx | J18: =IFERROR((Simulador!C23-I19),"") -> 1062400
B19: Sistema de Amort. | D19: PRICE | G19: Valor de Despesas ($) | I19: 0 | Q19: =Simulador!O10 -> 1024000
I20: Máx | J20: =IF(I17="",0,IF(I17=0,0,Simulador!I26)) -> 38400 | R20: =IFERROR(CONCATENATE(Simulador!T27,Simulador!S27,Simulador!C23),"") -> Máx 1062400
B21: =IF(D13=Parâmetros!C2,"Dt. Nascimento","") -> Dt. Nascimento | D21: 1989-09-14 | G21: Prazo de Amort. | I21: 420
B22: "" | D22: =IF(Parâmetros!R2<18,"Idade menor do que 18 anos","") ->  | G22: =IF(Simulador!S10="Prazo Superior","O prazo de amortização, construção e carência (se houver), somados a idade do proponente, não pode superar 80 anos","") ->  | I22: Mín/Máx | J22: =IFERROR(Simulador!O19,"") -> 121 | K22: =IFERROR(Simulador!O21,"") -> 420
H23: =TODAY() -> 2026-04-02 | J23: =(I10-H23)/30 -> -1537.133333
B24: Carteira | D24: =IF(AND(D13=Parâmetros!C3,Simulador!C14=Parâmetros!B2),"CHH PJ",Simulador!O8) -> CHH FGTS | G24: Tarifa de Avaliação ($) | I24: =IFERROR(Simulador!S25,"") -> 2114.03 | Q24: Taxa Efetiva
B25: IOF | D25: =IFERROR(IF(D9="",0,Simulador!S21),"") -> 0 | G25: Renda Necessária | I25: =Simulador!O13 -> 41479.10857 | Q25: =IFERROR(Simulador!O23,"") -> 0.123
D26: =IF(D25>0,"Alíquota Aplicada",IF(D9="","","")) ->  | E26: =IFERROR(IF(D25>0,Simulador!S23,IF(D9="","","")),"") ->  | Q26: CET
H27: =IF(D9=Parâmetros!D23,CONCATENATE("*Valor da taxa é composto por"," ",Parâmetros!C24*100,"%"," mais 70% da selic, que hoje é ",Parâmetros!C23*100,"%"," limitado a 10,66%a.a."),"") ->  | Q27: =Simulador!S16 -> 0.1291888297
B28: * Tarifas: quando houver IOF os valores são somados às tarifas. Valores detalhados no resultado
B29: *Seguro MIP somente aplicado quando Pessoa Física, baseado na data do proponente mais velho
B30: *O resultado dessa simulação é meramente referencial, baseado em datas e informações nela inserida e não representa proposta ou oferta de crédito/financiamento nem gera qualquer espécie de obrigação mútua. As datas e demais informações serão conferidas quando da emissão do contrato, sendo que os valores serão apurados pelo índice de remuneração básica da poupança que atualmente é a tr - taxa referencial.
B33: Fluxo de Prestações
B35: Total | H35: =SUM(H38:H458) -> 1024000 | J35: =SUM(J38:J458) -> 3227049.213 | L35: 2114.03 | N35: 260491.1555 | P35: 27888 | R35: 4541542.399
B37: =Simulador!A31 -> DATA DO ENCARGO | D37: =Simulador!C31 -> N PREST | F37: =Simulador!E31 -> Tipo de encargo | H37: =Simulador!G31 -> AMORTIZAÇÃO | J37: =Simulador!I31 -> JUROS | L37: =Simulador!K31 -> Tarifas* | N37: =Simulador!M31 -> MIP* | P37: =Simulador!O31 -> DFI* | R37: =Simulador!Q31 -> ENCARGO | T37: =Simulador!S31 -> SALDO DEVEDOR
B38: =IFERROR(Simulador!A33,"") -> 2026-04-02 | D38: =IFERROR(Simulador!C33,"") -> 0 | H38: =IFERROR(Simulador!G33,"") -> 0 | J38: =IFERROR(Simulador!I33,"") -> 0 | L38: =IFERROR(Simulador!K33,"") -> 2114.03 | N38: =Simulador!M33 -> 181.8624 | P38: =IFERROR(Simulador!O33,"") -> 66.4 | R38: =IFERROR(Simulador!Q33,"") -> 2362.2924 | T38: =IFERROR(Simulador!S33,"") -> 1024000
B39: =Simulador!A34 -> 2026-05-02 | D39: =Simulador!C34 -> 1 | F39: =Simulador!E34 -> Retorno | H39: =Simulador!G34 -> 174.5642767 | J39: =Simulador!I34 -> 9946.981469 | L39: =Simulador!K34 -> 0 | N39: =Simulador!M34 -> 181.8313974 | P39: =Simulador!O34 -> 66.4 | R39: =Simulador!Q34 -> 10369.77714 | T39: =Simulador!S34 -> 1023825.436
B40: =Simulador!A35 -> 2026-06-02 | D40: =Simulador!C35 -> 2 | F40: =Simulador!E35 -> Retorno | H40: =Simulador!G35 -> 176.2599677 | J40: =Simulador!I35 -> 9945.285778 | L40: =Simulador!K35 -> 0 | N40: =Simulador!M35 -> 181.8000936 | P40: =Simulador!O35 -> 66.4 | R40: =Simulador!Q35 -> 10369.74584 | T40: =Simulador!S35 -> 1023649.176
B41: =Simulador!A36 -> 2026-07-02 | D41: =Simulador!C36 -> 3 | F41: =Simulador!E36 -> Retorno | H41: =Simulador!G36 -> 177.9721304 | J41: =Simulador!I36 -> 9943.573616 | L41: =Simulador!K36 -> 0 | N41: =Simulador!M36 -> 181.7684858 | P41: =Simulador!O36 -> 66.4 | R41: =Simulador!Q36 -> 10369.71423 | T41: =Simulador!S36 -> 1023471.204
B42: =Simulador!A37 -> 2026-08-02 | D42: =Simulador!C37 -> 4 | F42: =Simulador!E37 -> Retorno | H42: =Simulador!G37 -> 179.7009248 | J42: =Simulador!I37 -> 9941.844821 | L42: =Simulador!K37 -> 0 | N42: =Simulador!M37 -> 181.7365709 | P42: =Simulador!O37 -> 66.4 | R42: =Simulador!Q37 -> 10369.68232 | T42: =Simulador!S37 -> 1023291.503
B43: =Simulador!A38 -> 2026-09-02 | D43: =Simulador!C38 -> 5 | F43: =Simulador!E38 -> Retorno | H43: =Simulador!G38 -> 181.4465125 | J43: =Simulador!I38 -> 9940.099234 | L43: =Simulador!K38 -> 0 | N43: =Simulador!M38 -> 181.704346 | P43: =Simulador!O38 -> 66.4 | R43: =Simulador!Q38 -> 10369.65009 | T43: =Simulador!S38 -> 1023110.056
B44: =Simulador!A39 -> 2026-10-02 | D44: =Simulador!C39 -> 6 | F44: =Simulador!E39 -> Retorno | H44: =Simulador!G39 -> 183.2090565 | J44: =Simulador!I39 -> 9938.33669 | L44: =Simulador!K39 -> 0 | N44: =Simulador!M39 -> 181.6718081 | P44: =Simulador!O39 -> 66.4 | R44: =Simulador!Q39 -> 10369.61755 | T44: =Simulador!S39 -> 1022926.847
B45: =Simulador!A40 -> 2026-11-02 | D45: =Simulador!C40 -> 7 | F45: =Simulador!E40 -> Retorno | H45: =Simulador!G40 -> 184.9887217 | J45: =Simulador!I40 -> 9936.557024 | L45: =Simulador!K40 -> 0 | N45: =Simulador!M40 -> 181.6389541 | P45: =Simulador!O40 -> 66.4 | R45: =Simulador!Q40 -> 10369.5847 | T45: =Simulador!S40 -> 1022741.858
B46: =Simulador!A41 -> 2026-12-02 | D46: =Simulador!C41 -> 8 | F46: =Simulador!E41 -> Retorno | H46: =Simulador!G41 -> 186.7856742 | J46: =Simulador!I41 -> 9934.760072 | L46: =Simulador!K41 -> 0 | N46: =Simulador!M41 -> 181.6057809 | P46: =Simulador!O41 -> 66.4 | R46: =Simulador!Q41 -> 10369.55153 | T46: =Simulador!S41 -> 1022555.073
B47: =Simulador!A42 -> 2027-01-02 | D47: =Simulador!C42 -> 9 | F47: =Simulador!E42 -> Retorno | H47: =Simulador!G42 -> 188.6000821 | J47: =Simulador!I42 -> 9932.945664 | L47: =Simulador!K42 -> 0 | N47: =Simulador!M42 -> 181.5722855 | P47: =Simulador!O42 -> 66.4 | R47: =Simulador!Q42 -> 10369.51803 | T47: =Simulador!S42 -> 1022366.473
B48: =Simulador!A43 -> 2027-02-02 | D48: =Simulador!C43 -> 10 | F48: =Simulador!E43 -> Retorno | H48: =Simulador!G43 -> 190.4321148 | J48: =Simulador!I43 -> 9931.113631 | L48: =Simulador!K43 -> 0 | N48: =Simulador!M43 -> 181.5384648 | P48: =Simulador!O43 -> 66.4 | R48: =Simulador!Q43 -> 10369.48421 | T48: =Simulador!S43 -> 1022176.041
B49: =Simulador!A44 -> 2027-03-02 | D49: =Simulador!C44 -> 11 | F49: =Simulador!E44 -> Retorno | H49: =Simulador!G44 -> 192.2819436 | J49: =Simulador!I44 -> 9929.263802 | L49: =Simulador!K44 -> 0 | N49: =Simulador!M44 -> 181.5043155 | P49: =Simulador!O44 -> 66.4 | R49: =Simulador!Q44 -> 10369.45006 | T49: =Simulador!S44 -> 1021983.759
B50: =Simulador!A45 -> 2027-04-02 | D50: =Simulador!C45 -> 12 | F50: =Simulador!E45 -> Retorno | H50: =Simulador!G45 -> 194.1497414 | J50: =Simulador!I45 -> 9927.396005 | L50: =Simulador!K45 -> 0 | N50: =Simulador!M45 -> 181.4698345 | P50: =Simulador!O45 -> 66.4 | R50: =Simulador!Q45 -> 10369.41558 | T50: =Simulador!S45 -> 1021789.609
B51: =Simulador!A46 -> 2027-05-02 | D51: =Simulador!C46 -> 13 | F51: =Simulador!E46 -> Retorno | H51: =Simulador!G46 -> 196.0356827 | J51: =Simulador!I46 -> 9925.510063 | L51: =Simulador!K46 -> 0 | N51: =Simulador!M46 -> 181.4350186 | P51: =Simulador!O46 -> 66.4 | R51: =Simulador!Q46 -> 10369.38076 | T51: =Simulador!S46 -> 1021593.573
B52: =Simulador!A47 -> 2027-06-02 | D52: =Simulador!C47 -> 14 | F52: =Simulador!E47 -> Retorno | H52: =Simulador!G47 -> 197.9399437 | J52: =Simulador!I47 -> 9923.605802 | L52: =Simulador!K47 -> 0 | N52: =Simulador!M47 -> 181.3998645 | P52: =Simulador!O47 -> 66.4 | R52: =Simulador!Q47 -> 10369.34561 | T52: =Simulador!S47 -> 1021395.633
B53: =Simulador!A48 -> 2027-07-02 | D53: =Simulador!C48 -> 15 | F53: =Simulador!E48 -> Retorno | H53: =Simulador!G48 -> 199.8627025 | J53: =Simulador!I48 -> 9921.683044 | L53: =Simulador!K48 -> 0 | N53: =Simulador!M48 -> 181.3643688 | P53: =Simulador!O48 -> 66.4 | R53: =Simulador!Q48 -> 10369.31011 | T53: =Simulador!S48 -> 1021195.771
B54: =Simulador!A49 -> 2027-08-02 | D54: =Simulador!C49 -> 16 | F54: =Simulador!E49 -> Retorno | H54: =Simulador!G49 -> 201.8041386 | J54: =Simulador!I49 -> 9919.741608 | L54: =Simulador!K49 -> 0 | N54: =Simulador!M49 -> 181.3285284 | P54: =Simulador!O49 -> 66.4 | R54: =Simulador!Q49 -> 10369.27427 | T54: =Simulador!S49 -> 1020993.966
B55: =Simulador!A50 -> 2027-09-02 | D55: =Simulador!C50 -> 17 | F55: =Simulador!E50 -> Retorno | H55: =Simulador!G50 -> 203.7644335 | J55: =Simulador!I50 -> 9917.781313 | L55: =Simulador!K50 -> 0 | N55: =Simulador!M50 -> 181.2923399 | P55: =Simulador!O50 -> 66.4 | R55: =Simulador!Q50 -> 10369.23809 | T55: =Simulador!S50 -> 1020790.202
B56: =Simulador!A51 -> 2027-10-02 | D56: =Simulador!C51 -> 18 | F56: =Simulador!E51 -> Retorno | H56: =Simulador!G51 -> 205.7437705 | J56: =Simulador!I51 -> 9915.801976 | L56: =Simulador!K51 -> 0 | N56: =Simulador!M51 -> 181.2557998 | P56: =Simulador!O51 -> 66.4 | R56: =Simulador!Q51 -> 10369.20155 | T56: =Simulador!S51 -> 1020584.458
B57: =Simulador!A52 -> 2027-11-02 | D57: =Simulador!C52 -> 19 | F57: =Simulador!E52 -> Retorno | H57: =Simulador!G52 -> 207.7423344 | J57: =Simulador!I52 -> 9913.803412 | L57: =Simulador!K52 -> 0 | N57: =Simulador!M52 -> 181.2189047 | P57: =Simulador!O52 -> 66.4 | R57: =Simulador!Q52 -> 10369.16465 | T57: =Simulador!S52 -> 1020376.716
B58: =Simulador!A53 -> 2027-12-02 | D58: =Simulador!C53 -> 20 | F58: =Simulador!E53 -> Retorno | H58: =Simulador!G53 -> 209.7603121 | J58: =Simulador!I53 -> 9911.785434 | L58: =Simulador!K53 -> 0 | N58: =Simulador!M53 -> 181.1816513 | P58: =Simulador!O53 -> 66.4 | R58: =Simulador!Q53 -> 10369.1274 | T58: =Simulador!S53 -> 1020166.956
B59: =Simulador!A54 -> 2028-01-02 | D59: =Simulador!C54 -> 21 | F59: =Simulador!E54 -> Retorno | H59: =Simulador!G54 -> 211.7978921 | J59: =Simulador!I54 -> 9909.747854 | L59: =Simulador!K54 -> 0 | N59: =Simulador!M54 -> 181.144036 | P59: =Simulador!O54 -> 66.4 | R59: =Simulador!Q54 -> 10369.08978 | T59: =Simulador!S54 -> 1019955.158
B60: =Simulador!A55 -> 2028-02-02 | D60: =Simulador!C55 -> 22 | F60: =Simulador!E55 -> Retorno | H60: =Simulador!G55 -> 213.8552649 | J60: =Simulador!I55 -> 9907.690481 | L60: =Simulador!K55 -> 0 | N60: =Simulador!M55 -> 181.1060553 | P60: =Simulador!O55 -> 66.4 | R60: =Simulador!Q55 -> 10369.0518 | T60: =Simulador!S55 -> 1019741.302
B61: =Simulador!A56 -> 2028-03-02 | D61: =Simulador!C56 -> 23 | F61: =Simulador!E56 -> Retorno | H61: =Simulador!G56 -> 215.9326227 | J61: =Simulador!I56 -> 9905.613123 | L61: =Simulador!K56 -> 0 | N61: =Simulador!M56 -> 181.0677057 | P61: =Simulador!O56 -> 66.4 | R61: =Simulador!Q56 -> 10369.01345 | T61: =Simulador!S56 -> 1019525.37
B62: =Simulador!A57 -> 2028-04-02 | D62: =Simulador!C57 -> 24 | F62: =Simulador!E57 -> Retorno | H62: =Simulador!G57 -> 218.0301596 | J62: =Simulador!I57 -> 9903.515587 | L62: =Simulador!K57 -> 0 | N62: =Simulador!M57 -> 181.0289835 | P62: =Simulador!O57 -> 66.4 | R62: =Simulador!Q57 -> 10368.97473 | T62: =Simulador!S57 -> 1019307.34
B63: =Simulador!A58 -> 2028-05-02 | D63: =Simulador!C58 -> 25 | F63: =Simulador!E58 -> Retorno | H63: =Simulador!G58 -> 220.1480717 | J63: =Simulador!I58 -> 9901.397674 | L63: =Simulador!K58 -> 0 | N63: =Simulador!M58 -> 180.9898852 | P63: =Simulador!O58 -> 66.4 | R63: =Simulador!Q58 -> 10368.93563 | T63: =Simulador!S58 -> 1019087.192
B64: =Simulador!A59 -> 2028-06-02 | D64: =Simulador!C59 -> 26 | F64: =Simulador!E59 -> Retorno | H64: =Simulador!G59 -> 222.2865568 | J64: =Simulador!I59 -> 9899.259189 | L64: =Simulador!K59 -> 0 | N64: =Simulador!M59 -> 180.9504071 | P64: =Simulador!O59 -> 66.4 | R64: =Simulador!Q59 -> 10368.89615 | T64: =Simulador!S59 -> 1018864.905
B65: =Simulador!A60 -> 2028-07-02 | D65: =Simulador!C60 -> 27 | F65: =Simulador!E60 -> Retorno | H65: =Simulador!G60 -> 224.4458149 | J65: =Simulador!I60 -> 9897.099931 | L65: =Simulador!K60 -> 0 | N65: =Simulador!M60 -> 180.9105455 | P65: =Simulador!O60 -> 66.4 | R65: =Simulador!Q60 -> 10368.85629 | T65: =Simulador!S60 -> 1018640.459
B66: =Simulador!A61 -> 2028-08-02 | D66: =Simulador!C61 -> 28 | F66: =Simulador!E61 -> Retorno | H66: =Simulador!G61 -> 226.6260476 | J66: =Simulador!I61 -> 9894.919698 | L66: =Simulador!K61 -> 0 | N66: =Simulador!M61 -> 180.8702968 | P66: =Simulador!O61 -> 66.4 | R66: =Simulador!Q61 -> 10368.81604 | T66: =Simulador!S61 -> 1018413.833
B67: =Simulador!A62 -> 2028-09-02 | D67: =Simulador!C62 -> 29 | F67: =Simulador!E62 -> Retorno | H67: =Simulador!G62 -> 228.8274589 | J67: =Simulador!I62 -> 9892.718287 | L67: =Simulador!K62 -> 0 | N67: =Simulador!M62 -> 180.829657 | P67: =Simulador!O62 -> 66.4 | R67: =Simulador!Q62 -> 10368.7754 | T67: =Simulador!S62 -> 1018185.006
B68: =Simulador!A63 -> 2028-10-02 | D68: =Simulador!C63 -> 30 | F68: =Simulador!E63 -> Retorno | H68: =Simulador!G63 -> 231.0502543 | J68: =Simulador!I63 -> 9890.495492 | L68: =Simulador!K63 -> 0 | N68: =Simulador!M63 -> 222.8301208 | P68: =Simulador!O63 -> 66.4 | R68: =Simulador!Q63 -> 10410.77587 | T68: =Simulador!S63 -> 1017953.955
B69: =Simulador!A64 -> 2028-11-02 | D69: =Simulador!C64 -> 31 | F69: =Simulador!E64 -> Retorno | H69: =Simulador!G64 -> 233.2946416 | J69: =Simulador!I64 -> 9888.251105 | L69: =Simulador!K64 -> 0 | N69: =Simulador!M64 -> 222.7790526 | P69: =Simulador!O64 -> 66.4 | R69: =Simulador!Q64 -> 10410.7248 | T69: =Simulador!S64 -> 1017720.661
B70: =Simulador!A65 -> 2028-12-02 | D70: =Simulador!C65 -> 32 | F70: =Simulador!E65 -> Retorno | H70: =Simulador!G65 -> 235.5608305 | J70: =Simulador!I65 -> 9885.984916 | L70: =Simulador!K65 -> 0 | N70: =Simulador!M65 -> 222.7274884 | P70: =Simulador!O65 -> 66.4 | R70: =Simulador!Q65 -> 10410.67323 | T70: =Simulador!S65 -> 1017485.1
B71: =Simulador!A66 -> 2029-01-02 | D71: =Simulador!C66 -> 33 | F71: =Simulador!E66 -> Retorno | H71: =Simulador!G66 -> 237.8490329 | J71: =Simulador!I66 -> 9883.696713 | L71: =Simulador!K66 -> 0 | N71: =Simulador!M66 -> 222.6754232 | P71: =Simulador!O66 -> 66.4 | R71: =Simulador!Q66 -> 10410.62117 | T71: =Simulador!S66 -> 1017247.251
B72: =Simulador!A67 -> 2029-02-02 | D72: =Simulador!C67 -> 34 | F72: =Simulador!E67 -> Retorno | H72: =Simulador!G67 -> 240.1594625 | J72: =Simulador!I67 -> 9881.386284 | L72: =Simulador!K67 -> 0 | N72: =Simulador!M67 -> 222.6228523 | P72: =Simulador!O67 -> 66.4 | R72: =Simulador!Q67 -> 10410.5686 | T72: =Simulador!S67 -> 1017007.091
B73: =Simulador!A68 -> 2029-03-02 | D73: =Simulador!C68 -> 35 | F73: =Simulador!E68 -> Retorno | H73: =Simulador!G68 -> 242.4923353 | J73: =Simulador!I68 -> 9879.053411 | L73: =Simulador!K68 -> 0 | N73: =Simulador!M68 -> 222.5697707 | P73: =Simulador!O68 -> 66.4 | R73: =Simulador!Q68 -> 10410.51552 | T73: =Simulador!S68 -> 1016764.599
B74: =Simulador!A69 -> 2029-04-02 | D74: =Simulador!C69 -> 36 | F74: =Simulador!E69 -> Retorno | H74: =Simulador!G69 -> 244.8478692 | J74: =Simulador!I69 -> 9876.697877 | L74: =Simulador!K69 -> 0 | N74: =Simulador!M69 -> 222.5161735 | P74: =Simulador!O69 -> 66.4 | R74: =Simulador!Q69 -> 10410.46192 | T74: =Simulador!S69 -> 1016519.751
B75: =Simulador!A70 -> 2029-05-02 | D75: =Simulador!C70 -> 37 | F75: =Simulador!E70 -> Retorno | H75: =Simulador!G70 -> 247.2262845 | J75: =Simulador!I70 -> 9874.319462 | L75: =Simulador!K70 -> 0 | N75: =Simulador!M70 -> 222.4620557 | P75: =Simulador!O70 -> 66.4 | R75: =Simulador!Q70 -> 10410.4078 | T75: =Simulador!S70 -> 1016272.525
B76: =Simulador!A71 -> 2029-06-02 | D76: =Simulador!C71 -> 38 | F76: =Simulador!E71 -> Retorno | H76: =Simulador!G71 -> 249.6278033 | J76: =Simulador!I71 -> 9871.917943 | L76: =Simulador!K71 -> 0 | N76: =Simulador!M71 -> 222.4074122 | P76: =Simulador!O71 -> 66.4 | R76: =Simulador!Q71 -> 10410.35316 | T76: =Simulador!S71 -> 1016022.897
B77: =Simulador!A72 -> 2029-07-02 | D77: =Simulador!C72 -> 39 | F77: =Simulador!E72 -> Retorno | H77: =Simulador!G72 -> 252.0526501 | J77: =Simulador!I72 -> 9869.493096 | L77: =Simulador!K72 -> 0 | N77: =Simulador!M72 -> 222.3522379 | P77: =Simulador!O72 -> 66.4 | R77: =Simulador!Q72 -> 10410.29798 | T77: =Simulador!S72 -> 1015770.844
B78: =Simulador!A73 -> 2029-08-02 | D78: =Simulador!C73 -> 40 | F78: =Simulador!E73 -> Retorno | H78: =Simulador!G73 -> 254.5010515 | J78: =Simulador!I73 -> 9867.044695 | L78: =Simulador!K73 -> 0 | N78: =Simulador!M73 -> 222.2965276 | P78: =Simulador!O73 -> 66.4 | R78: =Simulador!Q73 -> 10410.24227 | T78: =Simulador!S73 -> 1015516.343
B79: =Simulador!A74 -> 2029-09-02 | D79: =Simulador!C74 -> 41 | F79: =Simulador!E74 -> Retorno | H79: =Simulador!G74 -> 256.9732363 | J79: =Simulador!I74 -> 9864.57251 | L79: =Simulador!K74 -> 0 | N79: =Simulador!M74 -> 222.2402761 | P79: =Simulador!O74 -> 66.4 | R79: =Simulador!Q74 -> 10410.18602 | T79: =Simulador!S74 -> 1015259.37
B80: =Simulador!A75 -> 2029-10-02 | D80: =Simulador!C75 -> 42 | F80: =Simulador!E75 -> Retorno | H80: =Simulador!G75 -> 259.4694355 | J80: =Simulador!I75 -> 9862.076311 | L80: =Simulador!K75 -> 0 | N80: =Simulador!M75 -> 222.1834783 | P80: =Simulador!O75 -> 66.4 | R80: =Simulador!Q75 -> 10410.12922 | T80: =Simulador!S75 -> 1014999.901
B81: =Simulador!A76 -> 2029-11-02 | D81: =Simulador!C76 -> 43 | F81: =Simulador!E76 -> Retorno | H81: =Simulador!G76 -> 261.9898825 | J81: =Simulador!I76 -> 9859.555864 | L81: =Simulador!K76 -> 0 | N81: =Simulador!M76 -> 222.1261287 | P81: =Simulador!O76 -> 66.4 | R81: =Simulador!Q76 -> 10410.07187 | T81: =Simulador!S76 -> 1014737.911
B82: =Simulador!A77 -> 2029-12-02 | D82: =Simulador!C77 -> 44 | F82: =Simulador!E77 -> Retorno | H82: =Simulador!G77 -> 264.5348127 | J82: =Simulador!I77 -> 9857.010933 | L82: =Simulador!K77 -> 0 | N82: =Simulador!M77 -> 222.068222 | P82: =Simulador!O77 -> 66.4 | R82: =Simulador!Q77 -> 10410.01397 | T82: =Simulador!S77 -> 1014473.376
B83: =Simulador!A78 -> 2030-01-02 | D83: =Simulador!C78 -> 45 | F83: =Simulador!E78 -> Retorno | H83: =Simulador!G78 -> 267.1044639 | J83: =Simulador!I78 -> 9854.441282 | L83: =Simulador!K78 -> 0 | N83: =Simulador!M78 -> 222.0097529 | P83: =Simulador!O78 -> 66.4 | R83: =Simulador!Q78 -> 10409.9555 | T83: =Simulador!S78 -> 1014206.272
B84: =Simulador!A79 -> 2030-02-02 | D84: =Simulador!C79 -> 46 | F84: =Simulador!E79 -> Retorno | H84: =Simulador!G79 -> 269.6990764 | J84: =Simulador!I79 -> 9851.84667 | L84: =Simulador!K79 -> 0 | N84: =Simulador!M79 -> 221.9507157 | P84: =Simulador!O79 -> 66.4 | R84: =Simulador!Q79 -> 10409.89646 | T84: =Simulador!S79 -> 1013936.573
B85: =Simulador!A80 -> 2030-03-02 | D85: =Simulador!C80 -> 47 | F85: =Simulador!E80 -> Retorno | H85: =Simulador!G80 -> 272.3188925 | J85: =Simulador!I80 -> 9849.226854 | L85: =Simulador!K80 -> 0 | N85: =Simulador!M80 -> 221.8911051 | P85: =Simulador!O80 -> 66.4 | R85: =Simulador!Q80 -> 10409.83685 | T85: =Simulador!S80 -> 1013664.254
B86: =Simulador!A81 -> 2030-04-02 | D86: =Simulador!C81 -> 48 | F86: =Simulador!E81 -> Retorno | H86: =Simulador!G81 -> 274.9641571 | J86: =Simulador!I81 -> 9846.581589 | L86: =Simulador!K81 -> 0 | N86: =Simulador!M81 -> 221.8309155 | P86: =Simulador!O81 -> 66.4 | R86: =Simulador!Q81 -> 10409.77666 | T86: =Simulador!S81 -> 1013389.289
B87: =Simulador!A82 -> 2030-05-02 | D87: =Simulador!C82 -> 49 | F87: =Simulador!E82 -> Retorno | H87: =Simulador!G82 -> 277.6351175 | J87: =Simulador!I82 -> 9843.910629 | L87: =Simulador!K82 -> 0 | N87: =Simulador!M82 -> 221.7701411 | P87: =Simulador!O82 -> 66.4 | R87: =Simulador!Q82 -> 10409.71589 | T87: =Simulador!S82 -> 1013111.654
B88: =Simulador!A83 -> 2030-06-02 | D88: =Simulador!C83 -> 50 | F88: =Simulador!E83 -> Retorno | H88: =Simulador!G83 -> 280.3320231 | J88: =Simulador!I83 -> 9841.213723 | L88: =Simulador!K83 -> 0 | N88: =Simulador!M83 -> 221.7087765 | P88: =Simulador!O83 -> 66.4 | R88: =Simulador!Q83 -> 10409.65452 | T88: =Simulador!S83 -> 1012831.322
B89: =Simulador!A84 -> 2030-07-02 | D89: =Simulador!C84 -> 51 | F89: =Simulador!E84 -> Retorno | H89: =Simulador!G84 -> 283.0551261 | J89: =Simulador!I84 -> 9838.49062 | L89: =Simulador!K84 -> 0 | N89: =Simulador!M84 -> 221.6468157 | P89: =Simulador!O84 -> 66.4 | R89: =Simulador!Q84 -> 10409.59256 | T89: =Simulador!S84 -> 1012548.267
B90: =Simulador!A85 -> 2030-08-02 | D90: =Simulador!C85 -> 52 | F90: =Simulador!E85 -> Retorno | H90: =Simulador!G85 -> 285.8046808 | J90: =Simulador!I85 -> 9835.741065 | L90: =Simulador!K85 -> 0 | N90: =Simulador!M85 -> 221.584253 | P90: =Simulador!O85 -> 66.4 | R90: =Simulador!Q85 -> 10409.53 | T90: =Simulador!S85 -> 1012262.463
B91: =Simulador!A86 -> 2030-09-02 | D91: =Simulador!C86 -> 53 | F91: =Simulador!E86 -> Retorno | H91: =Simulador!G86 -> 288.5809444 | J91: =Simulador!I86 -> 9832.964802 | L91: =Simulador!K86 -> 0 | N91: =Simulador!M86 -> 221.5210827 | P91: =Simulador!O86 -> 66.4 | R91: =Simulador!Q86 -> 10409.46683 | T91: =Simulador!S86 -> 1011973.882
B92: =Simulador!A87 -> 2030-10-02 | D92: =Simulador!C87 -> 54 | F92: =Simulador!E87 -> Retorno | H92: =Simulador!G87 -> 291.3841761 | J92: =Simulador!I87 -> 9830.16157 | L92: =Simulador!K87 -> 0 | N92: =Simulador!M87 -> 221.4572987 | P92: =Simulador!O87 -> 66.4 | R92: =Simulador!Q87 -> 10409.40304 | T92: =Simulador!S87 -> 1011682.497
B93: =Simulador!A88 -> 2030-11-02 | D93: =Simulador!C88 -> 55 | F93: =Simulador!E88 -> Retorno | H93: =Simulador!G88 -> 294.214638 | J93: =Simulador!I88 -> 9827.331108 | L93: =Simulador!K88 -> 0 | N93: =Simulador!M88 -> 221.3928951 | P93: =Simulador!O88 -> 66.4 | R93: =Simulador!Q88 -> 10409.33864 | T93: =Simulador!S88 -> 1011388.283
B94: =Simulador!A89 -> 2030-12-02 | D94: =Simulador!C89 -> 56 | F94: =Simulador!E89 -> Retorno | H94: =Simulador!G89 -> 297.0725946 | J94: =Simulador!I89 -> 9824.473151 | L94: =Simulador!K89 -> 0 | N94: =Simulador!M89 -> 221.3278659 | P94: =Simulador!O89 -> 66.4 | R94: =Simulador!Q89 -> 10409.27361 | T94: =Simulador!S89 -> 1011091.21
B95: =Simulador!A90 -> 2031-01-02 | D95: =Simulador!C90 -> 57 | F95: =Simulador!E90 -> Retorno | H95: =Simulador!G90 -> 299.958313 | J95: =Simulador!I90 -> 9821.587433 | L95: =Simulador!K90 -> 0 | N95: =Simulador!M90 -> 221.262205 | P95: =Simulador!O90 -> 66.4 | R95: =Simulador!Q90 -> 10409.20795 | T95: =Simulador!S90 -> 1010791.252
B96: =Simulador!A91 -> 2031-02-02 | D96: =Simulador!C91 -> 58 | F96: =Simulador!E91 -> Retorno | H96: =Simulador!G91 -> 302.8720628 | J96: =Simulador!I91 -> 9818.673683 | L96: =Simulador!K91 -> 0 | N96: =Simulador!M91 -> 221.1959063 | P96: =Simulador!O91 -> 66.4 | R96: =Simulador!Q91 -> 10409.14165 | T96: =Simulador!S91 -> 1010488.38
B97: =Simulador!A92 -> 2031-03-02 | D97: =Simulador!C92 -> 59 | F97: =Simulador!E92 -> Retorno | H97: =Simulador!G92 -> 305.8141163 | J97: =Simulador!I92 -> 9815.73163 | L97: =Simulador!K92 -> 0 | N97: =Simulador!M92 -> 221.1289636 | P97: =Simulador!O92 -> 66.4 | R97: =Simulador!Q92 -> 10409.07471 | T97: =Simulador!S92 -> 1010182.566
B98: =Simulador!A93 -> 2031-04-02 | D98: =Simulador!C93 -> 60 | F98: =Simulador!E93 -> Retorno | H98: =Simulador!G93 -> 308.7847485 | J98: =Simulador!I93 -> 9812.760998 | L98: =Simulador!K93 -> 0 | N98: =Simulador!M93 -> 221.0613706 | P98: =Simulador!O93 -> 66.4 | R98: =Simulador!Q93 -> 10409.00712 | T98: =Simulador!S93 -> 1009873.781
B99: =Simulador!A94 -> 2031-05-02 | D99: =Simulador!C94 -> 61 | F99: =Simulador!E94 -> Retorno | H99: =Simulador!G94 -> 311.7842369 | J99: =Simulador!I94 -> 9809.761509 | L99: =Simulador!K94 -> 0 | N99: =Simulador!M94 -> 220.9931211 | P99: =Simulador!O94 -> 66.4 | R99: =Simulador!Q94 -> 10408.93887 | T99: =Simulador!S94 -> 1009561.997
B100: =Simulador!A95 -> 2031-06-02 | D100: =Simulador!C95 -> 62 | F100: =Simulador!E95 -> Retorno | H100: =Simulador!G95 -> 314.8128619 | J100: =Simulador!I95 -> 9806.732884 | L100: =Simulador!K95 -> 0 | N100: =Simulador!M95 -> 220.9242085 | P100: =Simulador!O95 -> 66.4 | R100: =Simulador!Q95 -> 10408.86995 | T100: =Simulador!S95 -> 1009247.184
B101: =Simulador!A96 -> 2031-07-02 | D101: =Simulador!C96 -> 63 | F101: =Simulador!E96 -> Retorno | H101: =Simulador!G96 -> 317.8709066 | J101: =Simulador!I96 -> 9803.67484 | L101: =Simulador!K96 -> 0 | N101: =Simulador!M96 -> 220.8546266 | P101: =Simulador!O96 -> 66.4 | R101: =Simulador!Q96 -> 10408.80037 | T101: =Simulador!S96 -> 1008929.313
B102: =Simulador!A97 -> 2031-08-02 | D102: =Simulador!C97 -> 64 | F102: =Simulador!E97 -> Retorno | H102: =Simulador!G97 -> 320.9586566 | J102: =Simulador!I97 -> 9800.58709 | L102: =Simulador!K97 -> 0 | N102: =Simulador!M97 -> 220.7843687 | P102: =Simulador!O97 -> 66.4 | R102: =Simulador!Q97 -> 10408.73011 | T102: =Simulador!S97 -> 1008608.354
B103: =Simulador!A98 -> 2031-09-02 | D103: =Simulador!C98 -> 65 | F103: =Simulador!E98 -> Retorno | H103: =Simulador!G98 -> 324.0764005 | J103: =Simulador!I98 -> 9797.469346 | L103: =Simulador!K98 -> 0 | N103: =Simulador!M98 -> 220.7134284 | P103: =Simulador!O98 -> 66.4 | R103: =Simulador!Q98 -> 10408.65917 | T103: =Simulador!S98 -> 1008284.278
B104: =Simulador!A99 -> 2031-10-02 | D104: =Simulador!C99 -> 66 | F104: =Simulador!E99 -> Retorno | H104: =Simulador!G99 -> 327.2244298 | J104: =Simulador!I99 -> 9794.321316 | L104: =Simulador!K99 -> 0 | N104: =Simulador!M99 -> 312.8698694 | P104: =Simulador!O99 -> 66.4 | R104: =Simulador!Q99 -> 10500.81562 | T104: =Simulador!S99 -> 1007957.053
B105: =Simulador!A100 -> 2031-11-02 | D105: =Simulador!C100 -> 67 | F105: =Simulador!E100 -> Retorno | H105: =Simulador!G100 -> 330.4030385 | J105: =Simulador!I100 -> 9791.142708 | L105: =Simulador!K100 -> 0 | N105: =Simulador!M100 -> 312.7673123 | P105: =Simulador!O100 -> 66.4 | R105: =Simulador!Q100 -> 10500.71306 | T105: =Simulador!S100 -> 1007626.65
B106: =Simulador!A101 -> 2031-12-02 | D106: =Simulador!C101 -> 68 | F106: =Simulador!E101 -> Retorno | H106: =Simulador!G101 -> 333.6125238 | J106: =Simulador!I101 -> 9787.933222 | L106: =Simulador!K101 -> 0 | N106: =Simulador!M101 -> 312.663759 | P106: =Simulador!O101 -> 66.4 | R106: =Simulador!Q101 -> 10500.60951 | T106: =Simulador!S101 -> 1007293.038
B107: =Simulador!A102 -> 2032-01-02 | D107: =Simulador!C102 -> 69 | F107: =Simulador!E102 -> Retorno | H107: =Simulador!G102 -> 336.8531855 | J107: =Simulador!I102 -> 9784.692561 | L107: =Simulador!K102 -> 0 | N107: =Simulador!M102 -> 312.5591997 | P107: =Simulador!O102 -> 66.4 | R107: =Simulador!Q102 -> 10500.50495 | T107: =Simulador!S102 -> 1006956.185
B108: =Simulador!A103 -> 2032-02-02 | D108: =Simulador!C103 -> 70 | F108: =Simulador!E103 -> Retorno | H108: =Simulador!G103 -> 340.1253265 | J108: =Simulador!I103 -> 9781.42042 | L108: =Simulador!K103 -> 0 | N108: =Simulador!M103 -> 312.4536248 | P108: =Simulador!O103 -> 66.4 | R108: =Simulador!Q103 -> 10500.39937 | T108: =Simulador!S103 -> 1006616.059
B109: =Simulador!A104 -> 2032-03-02 | D109: =Simulador!C104 -> 71 | F109: =Simulador!E104 -> Retorno | H109: =Simulador!G104 -> 343.4292526 | J109: =Simulador!I104 -> 9778.116494 | L109: =Simulador!K104 -> 0 | N109: =Simulador!M104 -> 312.3470244 | P109: =Simulador!O104 -> 66.4 | R109: =Simulador!Q104 -> 10500.29277 | T109: =Simulador!S104 -> 1006272.63
B110: =Simulador!A105 -> 2032-04-02 | D110: =Simulador!C105 -> 72 | F110: =Simulador!E105 -> Retorno | H110: =Simulador!G105 -> 346.7652725 | J110: =Simulador!I105 -> 9774.780474 | L110: =Simulador!K105 -> 0 | N110: =Simulador!M105 -> 312.2393884 | P110: =Simulador!O105 -> 66.4 | R110: =Simulador!Q105 -> 10500.18513 | T110: =Simulador!S105 -> 1005925.865
B111: =Simulador!A106 -> 2032-05-02 | D111: =Simulador!C106 -> 73 | F111: =Simulador!E106 -> Retorno | H111: =Simulador!G106 -> 350.133698 | J111: =Simulador!I106 -> 9771.412048 | L111: =Simulador!K106 -> 0 | N111: =Simulador!M106 -> 312.1307069 | P111: =Simulador!O106 -> 66.4 | R111: =Simulador!Q106 -> 10500.07645 | T111: =Simulador!S106 -> 1005575.731
B112: =Simulador!A107 -> 2032-06-02 | D112: =Simulador!C107 -> 74 | F112: =Simulador!E107 -> Retorno | H112: =Simulador!G107 -> 353.5348439 | J112: =Simulador!I107 -> 9768.010902 | L112: =Simulador!K107 -> 0 | N112: =Simulador!M107 -> 312.0209697 | P112: =Simulador!O107 -> 66.4 | R112: =Simulador!Q107 -> 10499.96672 | T112: =Simulador!S107 -> 1005222.196
B113: =Simulador!A108 -> 2032-07-02 | D113: =Simulador!C108 -> 75 | F113: =Simulador!E108 -> Retorno | H113: =Simulador!G108 -> 356.9690281 | J113: =Simulador!I108 -> 9764.576718 | L113: =Simulador!K108 -> 0 | N113: =Simulador!M108 -> 311.9101665 | P113: =Simulador!O108 -> 66.4 | R113: =Simulador!Q108 -> 10499.85591 | T113: =Simulador!S108 -> 1004865.227
B114: =Simulador!A109 -> 2032-08-02 | D114: =Simulador!C109 -> 76 | F114: =Simulador!E109 -> Retorno | H114: =Simulador!G109 -> 360.4365713 | J114: =Simulador!I109 -> 9761.109175 | L114: =Simulador!K109 -> 0 | N114: =Simulador!M109 -> 311.798287 | P114: =Simulador!O109 -> 66.4 | R114: =Simulador!Q109 -> 10499.74403 | T114: =Simulador!S109 -> 1004504.791
B115: =Simulador!A110 -> 2032-09-02 | D115: =Simulador!C110 -> 77 | F115: =Simulador!E110 -> Retorno | H115: =Simulador!G110 -> 363.9377978 | J115: =Simulador!I110 -> 9757.607948 | L115: =Simulador!K110 -> 0 | N115: =Simulador!M110 -> 311.6853207 | P115: =Simulador!O110 -> 66.4 | R115: =Simulador!Q110 -> 10499.63107 | T115: =Simulador!S110 -> 1004140.853
B116: =Simulador!A111 -> 2032-10-02 | D116: =Simulador!C111 -> 78 | F116: =Simulador!E111 -> Retorno | H116: =Simulador!G111 -> 367.4730346 | J116: =Simulador!I111 -> 9754.072711 | L116: =Simulador!K111 -> 0 | N116: =Simulador!M111 -> 311.5712571 | P116: =Simulador!O111 -> 66.4 | R116: =Simulador!Q111 -> 10499.517 | T116: =Simulador!S111 -> 1003773.38
B117: =Simulador!A112 -> 2032-11-02 | D117: =Simulador!C112 -> 79 | F117: =Simulador!E112 -> Retorno | H117: =Simulador!G112 -> 371.0426123 | J117: =Simulador!I112 -> 9750.503134 | L117: =Simulador!K112 -> 0 | N117: =Simulador!M112 -> 311.4560855 | P117: =Simulador!O112 -> 66.4 | R117: =Simulador!Q112 -> 10499.40183 | T117: =Simulador!S112 -> 1003402.337
B118: =Simulador!A113 -> 2032-12-02 | D118: =Simulador!C113 -> 80 | F118: =Simulador!E113 -> Retorno | H118: =Simulador!G113 -> 374.6468642 | J118: =Simulador!I113 -> 9746.898882 | L118: =Simulador!K113 -> 0 | N118: =Simulador!M113 -> 311.3397951 | P118: =Simulador!O113 -> 66.4 | R118: =Simulador!Q113 -> 10499.28554 | T118: =Simulador!S113 -> 1003027.69
B119: =Simulador!A114 -> 2033-01-02 | D119: =Simulador!C114 -> 81 | F119: =Simulador!E114 -> Retorno | H119: =Simulador!G114 -> 378.2861273 | J119: =Simulador!I114 -> 9743.259619 | L119: =Simulador!K114 -> 0 | N119: =Simulador!M114 -> 311.2223751 | P119: =Simulador!O114 -> 66.4 | R119: =Simulador!Q114 -> 10499.16812 | T119: =Simulador!S114 -> 1002649.404
B120: =Simulador!A115 -> 2033-02-02 | D120: =Simulador!C115 -> 82 | F120: =Simulador!E115 -> Retorno | H120: =Simulador!G115 -> 381.9607416 | J120: =Simulador!I115 -> 9739.585004 | L120: =Simulador!K115 -> 0 | N120: =Simulador!M115 -> 311.1038145 | P120: =Simulador!O115 -> 66.4 | R120: =Simulador!Q115 -> 10499.04956 | T120: =Simulador!S115 -> 1002267.444
B121: =Simulador!A116 -> 2033-03-02 | D121: =Simulador!C116 -> 83 | F121: =Simulador!E116 -> Retorno | H121: =Simulador!G116 -> 385.6710507 | J121: =Simulador!I116 -> 9735.874695 | L121: =Simulador!K116 -> 0 | N121: =Simulador!M116 -> 310.9841022 | P121: =Simulador!O116 -> 66.4 | R121: =Simulador!Q116 -> 10498.92985 | T121: =Simulador!S116 -> 1001881.772
B122: =Simulador!A117 -> 2033-04-02 | D122: =Simulador!C117 -> 84 | F122: =Simulador!E117 -> Retorno | H122: =Simulador!G117 -> 389.417401 | J122: =Simulador!I117 -> 9732.128345 | L122: =Simulador!K117 -> 0 | N122: =Simulador!M117 -> 310.863227 | P122: =Simulador!O117 -> 66.4 | R122: =Simulador!Q117 -> 10498.80897 | T122: =Simulador!S117 -> 1001492.355
B123: =Simulador!A118 -> 2033-05-02 | D123: =Simulador!C118 -> 85 | F123: =Simulador!E118 -> Retorno | H123: =Simulador!G118 -> 393.2001429 | J123: =Simulador!I118 -> 9728.345603 | L123: =Simulador!K118 -> 0 | N123: =Simulador!M118 -> 310.7411777 | P123: =Simulador!O118 -> 66.4 | R123: =Simulador!Q118 -> 10498.68692 | T123: =Simulador!S118 -> 1001099.155
B124: =Simulador!A119 -> 2033-06-02 | D124: =Simulador!C119 -> 86 | F124: =Simulador!E119 -> Retorno | H124: =Simulador!G119 -> 397.0196298 | J124: =Simulador!I119 -> 9724.526116 | L124: =Simulador!K119 -> 0 | N124: =Simulador!M119 -> 310.6179428 | P124: =Simulador!O119 -> 66.4 | R124: =Simulador!Q119 -> 10498.56369 | T124: =Simulador!S119 -> 1000702.135
B125: =Simulador!A120 -> 2033-07-02 | D125: =Simulador!C120 -> 87 | F125: =Simulador!E120 -> Retorno | H125: =Simulador!G120 -> 400.8762185 | J125: =Simulador!I120 -> 9720.669528 | L125: =Simulador!K120 -> 0 | N125: =Simulador!M120 -> 310.4935108 | P125: =Simulador!O120 -> 66.4 | R125: =Simulador!Q120 -> 10498.43926 | T125: =Simulador!S120 -> 1000301.259
B126: =Simulador!A121 -> 2033-08-02 | D126: =Simulador!C121 -> 88 | F126: =Simulador!E121 -> Retorno | H126: =Simulador!G121 -> 404.7702696 | J126: =Simulador!I121 -> 9716.775476 | L126: =Simulador!K121 -> 0 | N126: =Simulador!M121 -> 310.3678701 | P126: =Simulador!O121 -> 66.4 | R126: =Simulador!Q121 -> 10498.31362 | T126: =Simulador!S121 -> 999896.4888
B127: =Simulador!A122 -> 2033-09-02 | D127: =Simulador!C122 -> 89 | F127: =Simulador!E122 -> Retorno | H127: =Simulador!G122 -> 408.7021469 | J127: =Simulador!I122 -> 9712.843599 | L127: =Simulador!K122 -> 0 | N127: =Simulador!M122 -> 310.241009 | P127: =Simulador!O122 -> 66.4 | R127: =Simulador!Q122 -> 10498.18676 | T127: =Simulador!S122 -> 999487.7867
B128: =Simulador!A123 -> 2033-10-02 | D128: =Simulador!C123 -> 90 | F128: =Simulador!E123 -> Retorno | H128: =Simulador!G123 -> 412.6722179 | J128: =Simulador!I123 -> 9708.873528 | L128: =Simulador!K123 -> 0 | N128: =Simulador!M123 -> 310.1129155 | P128: =Simulador!O123 -> 66.4 | R128: =Simulador!Q123 -> 10498.05866 | T128: =Simulador!S123 -> 999075.1144
B129: =Simulador!A124 -> 2033-11-02 | D129: =Simulador!C124 -> 91 | F129: =Simulador!E124 -> Retorno | H129: =Simulador!G124 -> 416.6808536 | J129: =Simulador!I124 -> 9704.864893 | L129: =Simulador!K124 -> 0 | N129: =Simulador!M124 -> 309.9835778 | P129: =Simulador!O124 -> 66.4 | R129: =Simulador!Q124 -> 10497.92932 | T129: =Simulador!S124 -> 998658.4336
B130: =Simulador!A125 -> 2033-12-02 | D130: =Simulador!C125 -> 92 | F130: =Simulador!E125 -> Retorno | H130: =Simulador!G125 -> 420.7284285 | J130: =Simulador!I125 -> 9700.817318 | L130: =Simulador!K125 -> 0 | N130: =Simulador!M125 -> 309.8529837 | P130: =Simulador!O125 -> 66.4 | R130: =Simulador!Q125 -> 10497.79873 | T130: =Simulador!S125 -> 998237.7052
B131: =Simulador!A126 -> 2034-01-02 | D131: =Simulador!C126 -> 93 | F131: =Simulador!E126 -> Retorno | H131: =Simulador!G126 -> 424.815321 | J131: =Simulador!I126 -> 9696.730425 | L131: =Simulador!K126 -> 0 | N131: =Simulador!M126 -> 309.721121 | P131: =Simulador!O126 -> 66.4 | R131: =Simulador!Q126 -> 10497.66687 | T131: =Simulador!S126 -> 997812.8898
B132: =Simulador!A127 -> 2034-02-02 | D132: =Simulador!C127 -> 94 | F132: =Simulador!E127 -> Retorno | H132: =Simulador!G127 -> 428.9419129 | J132: =Simulador!I127 -> 9692.603833 | L132: =Simulador!K127 -> 0 | N132: =Simulador!M127 -> 309.5879774 | P132: =Simulador!O127 -> 66.4 | R132: =Simulador!Q127 -> 10497.53372 | T132: =Simulador!S127 -> 997383.9479
B133: =Simulador!A128 -> 2034-03-02 | D133: =Simulador!C128 -> 95 | F133: =Simulador!E128 -> Retorno | H133: =Simulador!G128 -> 433.1085899 | J133: =Simulador!I128 -> 9688.437156 | L133: =Simulador!K128 -> 0 | N133: =Simulador!M128 -> 309.4535405 | P133: =Simulador!O128 -> 66.4 | R133: =Simulador!Q128 -> 10497.39929 | T133: =Simulador!S128 -> 996950.8393
B134: =Simulador!A129 -> 2034-04-02 | D134: =Simulador!C129 -> 96 | F134: =Simulador!E129 -> Retorno | H134: =Simulador!G129 -> 437.3157414 | J134: =Simulador!I129 -> 9684.230005 | L134: =Simulador!K129 -> 0 | N134: =Simulador!M129 -> 309.3177977 | P134: =Simulador!O129 -> 66.4 | R134: =Simulador!Q129 -> 10497.26354 | T134: =Simulador!S129 -> 996513.5236
B135: =Simulador!A130 -> 2034-05-02 | D135: =Simulador!C130 -> 97 | F135: =Simulador!E130 -> Retorno | H135: =Simulador!G130 -> 441.5637605 | J135: =Simulador!I130 -> 9679.981986 | L135: =Simulador!K130 -> 0 | N135: =Simulador!M130 -> 309.1807363 | P135: =Simulador!O130 -> 66.4 | R135: =Simulador!Q130 -> 10497.12648 | T135: =Simulador!S130 -> 996071.9598
B136: =Simulador!A131 -> 2034-06-02 | D136: =Simulador!C131 -> 98 | F136: =Simulador!E131 -> Retorno | H136: =Simulador!G131 -> 445.8530442 | J136: =Simulador!I131 -> 9675.692702 | L136: =Simulador!K131 -> 0 | N136: =Simulador!M131 -> 309.0423435 | P136: =Simulador!O131 -> 66.4 | R136: =Simulador!Q131 -> 10496.98809 | T136: =Simulador!S131 -> 995626.1068
B137: =Simulador!A132 -> 2034-07-02 | D137: =Simulador!C132 -> 99 | F137: =Simulador!E132 -> Retorno | H137: =Simulador!G132 -> 450.1839934 | J137: =Simulador!I132 -> 9671.361753 | L137: =Simulador!K132 -> 0 | N137: =Simulador!M132 -> 308.9026064 | P137: =Simulador!O132 -> 66.4 | R137: =Simulador!Q132 -> 10496.84835 | T137: =Simulador!S132 -> 995175.9228
B138: =Simulador!A133 -> 2034-08-02 | D138: =Simulador!C133 -> 100 | F138: =Simulador!E133 -> Retorno | H138: =Simulador!G133 -> 454.5570128 | J138: =Simulador!I133 -> 9666.988733 | L138: =Simulador!K133 -> 0 | N138: =Simulador!M133 -> 308.7615119 | P138: =Simulador!O133 -> 66.4 | R138: =Simulador!Q133 -> 10496.70726 | T138: =Simulador!S133 -> 994721.3658
B139: =Simulador!A134 -> 2034-09-02 | D139: =Simulador!C134 -> 101 | F139: =Simulador!E134 -> Retorno | H139: =Simulador!G134 -> 458.972511 | J139: =Simulador!I134 -> 9662.573235 | L139: =Simulador!K134 -> 0 | N139: =Simulador!M134 -> 308.6190469 | P139: =Simulador!O134 -> 66.4 | R139: =Simulador!Q134 -> 10496.56479 | T139: =Simulador!S134 -> 994262.3933
B140: =Simulador!A135 -> 2034-10-02 | D140: =Simulador!C135 -> 102 | F140: =Simulador!E135 -> Retorno | H140: =Simulador!G135 -> 463.4309007 | J140: =Simulador!I135 -> 9658.114845 | L140: =Simulador!K135 -> 0 | N140: =Simulador!M135 -> 423.5571178 | P140: =Simulador!O135 -> 66.4 | R140: =Simulador!Q135 -> 10611.50286 | T140: =Simulador!S135 -> 993798.9624
B141: =Simulador!A136 -> 2034-11-02 | D141: =Simulador!C136 -> 103 | F141: =Simulador!E136 -> Retorno | H141: =Simulador!G136 -> 467.9325985 | J141: =Simulador!I136 -> 9653.613148 | L141: =Simulador!K136 -> 0 | N141: =Simulador!M136 -> 423.3576849 | P141: =Simulador!O136 -> 66.4 | R141: =Simulador!Q136 -> 10611.30343 | T141: =Simulador!S136 -> 993331.0298
B142: =Simulador!A137 -> 2034-12-02 | D142: =Simulador!C137 -> 104 | F142: =Simulador!E137 -> Retorno | H142: =Simulador!G137 -> 472.4780252 | J142: =Simulador!I137 -> 9649.067721 | L142: =Simulador!K137 -> 0 | N142: =Simulador!M137 -> 423.1563148 | P142: =Simulador!O137 -> 66.4 | R142: =Simulador!Q137 -> 10611.10206 | T142: =Simulador!S137 -> 992858.5518
B143: =Simulador!A138 -> 2035-01-02 | D143: =Simulador!C138 -> 105 | F143: =Simulador!E138 -> Retorno | H143: =Simulador!G138 -> 477.0676054 | J143: =Simulador!I138 -> 9644.478141 | L143: =Simulador!K138 -> 0 | N143: =Simulador!M138 -> 422.9529885 | P143: =Simulador!O138 -> 66.4 | R143: =Simulador!Q138 -> 10610.89873 | T143: =Simulador!S138 -> 992381.4841
B144: =Simulador!A139 -> 2035-02-02 | D144: =Simulador!C139 -> 106 | F144: =Simulador!E139 -> Retorno | H144: =Simulador!G139 -> 481.7017682 | J144: =Simulador!I139 -> 9639.843978 | L144: =Simulador!K139 -> 0 | N144: =Simulador!M139 -> 422.7476872 | P144: =Simulador!O139 -> 66.4 | R144: =Simulador!Q139 -> 10610.69343 | T144: =Simulador!S139 -> 991899.7824
B145: =Simulador!A140 -> 2035-03-02 | D145: =Simulador!C140 -> 107 | F145: =Simulador!E140 -> Retorno | H145: =Simulador!G140 -> 486.3809464 | J145: =Simulador!I140 -> 9635.1648 | L145: =Simulador!K140 -> 0 | N145: =Simulador!M140 -> 422.5403917 | P145: =Simulador!O140 -> 66.4 | R145: =Simulador!Q140 -> 10610.48614 | T145: =Simulador!S140 -> 991413.4014
B146: =Simulador!A141 -> 2035-04-02 | D146: =Simulador!C141 -> 108 | F146: =Simulador!E141 -> Retorno | H146: =Simulador!G141 -> 491.1055776 | J146: =Simulador!I141 -> 9630.440169 | L146: =Simulador!K141 -> 0 | N146: =Simulador!M141 -> 422.3310825 | P146: =Simulador!O141 -> 66.4 | R146: =Simulador!Q141 -> 10610.27683 | T146: =Simulador!S141 -> 990922.2959
B147: =Simulador!A142 -> 2035-05-02 | D147: =Simulador!C142 -> 109 | F147: =Simulador!E142 -> Retorno | H147: =Simulador!G142 -> 495.876103 | J147: =Simulador!I142 -> 9625.669643 | L147: =Simulador!K142 -> 0 | N147: =Simulador!M142 -> 422.1197401 | P147: =Simulador!O142 -> 66.4 | R147: =Simulador!Q142 -> 10610.06549 | T147: =Simulador!S142 -> 990426.4198
B148: =Simulador!A143 -> 2035-06-02 | D148: =Simulador!C143 -> 110 | F148: =Simulador!E143 -> Retorno | H148: =Simulador!G143 -> 500.6929687 | J148: =Simulador!I143 -> 9620.852777 | L148: =Simulador!K143 -> 0 | N148: =Simulador!M143 -> 421.9063448 | P148: =Simulador!O143 -> 66.4 | R148: =Simulador!Q143 -> 10609.85209 | T148: =Simulador!S143 -> 989925.7268
B149: =Simulador!A144 -> 2035-07-02 | D149: =Simulador!C144 -> 111 | F149: =Simulador!E144 -> Retorno | H149: =Simulador!G144 -> 505.5566246 | J149: =Simulador!I144 -> 9615.989122 | L149: =Simulador!K144 -> 0 | N149: =Simulador!M144 -> 421.6908765 | P149: =Simulador!O144 -> 66.4 | R149: =Simulador!Q144 -> 10609.63662 | T149: =Simulador!S144 -> 989420.1702
B150: =Simulador!A145 -> 2035-08-02 | D150: =Simulador!C145 -> 112 | F150: =Simulador!E145 -> Retorno | H150: =Simulador!G145 -> 510.4675253 | J150: =Simulador!I145 -> 9611.078221 | L150: =Simulador!K145 -> 0 | N150: =Simulador!M145 -> 421.4733153 | P150: =Simulador!O145 -> 66.4 | R150: =Simulador!Q145 -> 10609.41906 | T150: =Simulador!S145 -> 988909.7026
B151: =Simulador!A146 -> 2035-09-02 | D151: =Simulador!C146 -> 113 | F151: =Simulador!E146 -> Retorno | H151: =Simulador!G146 -> 515.4261299 | J151: =Simulador!I146 -> 9606.119616 | L151: =Simulador!K146 -> 0 | N151: =Simulador!M146 -> 421.2536406 | P151: =Simulador!O146 -> 66.4 | R151: =Simulador!Q146 -> 10609.19939 | T151: =Simulador!S146 -> 988394.2765
B152: =Simulador!A147 -> 2035-10-02 | D152: =Simulador!C147 -> 114 | F152: =Simulador!E147 -> Retorno | H152: =Simulador!G147 -> 520.4329015 | J152: =Simulador!I147 -> 9601.112845 | L152: =Simulador!K147 -> 0 | N152: =Simulador!M147 -> 421.0318321 | P152: =Simulador!O147 -> 66.4 | R152: =Simulador!Q147 -> 10608.97758 | T152: =Simulador!S147 -> 987873.8436
B153: =Simulador!A148 -> 2035-11-02 | D153: =Simulador!C148 -> 115 | F153: =Simulador!E148 -> Retorno | H153: =Simulador!G148 -> 525.4883082 | J153: =Simulador!I148 -> 9596.057438 | L153: =Simulador!K148 -> 0 | N153: =Simulador!M148 -> 420.807869 | P153: =Simulador!O148 -> 66.4 | R153: =Simulador!Q148 -> 10608.75362 | T153: =Simulador!S148 -> 987348.3553
B154: =Simulador!A149 -> 2035-12-02 | D154: =Simulador!C149 -> 116 | F154: =Simulador!E149 -> Retorno | H154: =Simulador!G149 -> 530.5928223 | J154: =Simulador!I149 -> 9590.952924 | L154: =Simulador!K149 -> 0 | N154: =Simulador!M149 -> 420.5817304 | P154: =Simulador!O149 -> 66.4 | R154: =Simulador!Q149 -> 10608.52748 | T154: =Simulador!S149 -> 986817.7625
B155: =Simulador!A150 -> 2036-01-02 | D155: =Simulador!C150 -> 117 | F155: =Simulador!E150 -> Retorno | H155: =Simulador!G150 -> 535.7469209 | J155: =Simulador!I150 -> 9585.798825 | L155: =Simulador!K150 -> 0 | N155: =Simulador!M150 -> 420.353395 | P155: =Simulador!O150 -> 66.4 | R155: =Simulador!Q150 -> 10608.29914 | T155: =Simulador!S150 -> 986282.0155
B156: =Simulador!A151 -> 2036-02-02 | D156: =Simulador!C151 -> 118 | F156: =Simulador!E151 -> Retorno | H156: =Simulador!G151 -> 540.9510856 | J156: =Simulador!I151 -> 9580.59466 | L156: =Simulador!K151 -> 0 | N156: =Simulador!M151 -> 420.1228417 | P156: =Simulador!O151 -> 66.4 | R156: =Simulador!Q151 -> 10608.06859 | T156: =Simulador!S151 -> 985741.0645
B157: =Simulador!A152 -> 2036-03-02 | D157: =Simulador!C152 -> 119 | F157: =Simulador!E152 -> Retorno | H157: =Simulador!G152 -> 546.2058028 | J157: =Simulador!I152 -> 9575.339943 | L157: =Simulador!K152 -> 0 | N157: =Simulador!M152 -> 419.8900488 | P157: =Simulador!O152 -> 66.4 | R157: =Simulador!Q152 -> 10607.83579 | T157: =Simulador!S152 -> 985194.8587
B158: =Simulador!A153 -> 2036-04-02 | D158: =Simulador!C153 -> 120 | F158: =Simulador!E153 -> Retorno | H158: =Simulador!G153 -> 551.5115636 | J158: =Simulador!I153 -> 9570.034183 | L158: =Simulador!K153 -> 0 | N158: =Simulador!M153 -> 419.6549945 | P158: =Simulador!O153 -> 66.4 | R158: =Simulador!Q153 -> 10607.60074 | T158: =Simulador!S153 -> 984643.3471
B159: =Simulador!A154 -> 2036-05-02 | D159: =Simulador!C154 -> 121 | F159: =Simulador!E154 -> Retorno | H159: =Simulador!G154 -> 556.8688637 | J159: =Simulador!I154 -> 9564.676882 | L159: =Simulador!K154 -> 0 | N159: =Simulador!M154 -> 419.417657 | P159: =Simulador!O154 -> 66.4 | R159: =Simulador!Q154 -> 10607.3634 | T159: =Simulador!S154 -> 984086.4782
B160: =Simulador!A155 -> 2036-06-02 | D160: =Simulador!C155 -> 122 | F160: =Simulador!E155 -> Retorno | H160: =Simulador!G155 -> 562.2782038 | J160: =Simulador!I155 -> 9559.267542 | L160: =Simulador!K155 -> 0 | N160: =Simulador!M155 -> 419.1780141 | P160: =Simulador!O155 -> 66.4 | R160: =Simulador!Q155 -> 10607.12376 | T160: =Simulador!S155 -> 983524.2
B161: =Simulador!A156 -> 2036-07-02 | D161: =Simulador!C156 -> 123 | F161: =Simulador!E156 -> Retorno | H161: =Simulador!G156 -> 567.7400894 | J161: =Simulador!I156 -> 9553.805657 | L161: =Simulador!K156 -> 0 | N161: =Simulador!M156 -> 418.9360432 | P161: =Simulador!O156 -> 66.4 | R161: =Simulador!Q156 -> 10606.88179 | T161: =Simulador!S156 -> 982956.4599
B162: =Simulador!A157 -> 2036-08-02 | D162: =Simulador!C157 -> 124 | F162: =Simulador!E157 -> Retorno | H162: =Simulador!G157 -> 573.255031 | J162: =Simulador!I157 -> 9548.290715 | L162: =Simulador!K157 -> 0 | N162: =Simulador!M157 -> 418.6917219 | P162: =Simulador!O157 -> 66.4 | R162: =Simulador!Q157 -> 10606.63747 | T162: =Simulador!S157 -> 982383.2049
B163: =Simulador!A158 -> 2036-09-02 | D163: =Simulador!C158 -> 125 | F163: =Simulador!E158 -> Retorno | H163: =Simulador!G158 -> 578.8235438 | J163: =Simulador!I158 -> 9542.722202 | L163: =Simulador!K158 -> 0 | N163: =Simulador!M158 -> 418.4450273 | P163: =Simulador!O158 -> 66.4 | R163: =Simulador!Q158 -> 10606.39077 | T163: =Simulador!S158 -> 981804.3814
B164: =Simulador!A159 -> 2036-10-02 | D164: =Simulador!C159 -> 126 | F164: =Simulador!E159 -> Retorno | H164: =Simulador!G159 -> 584.4461484 | J164: =Simulador!I159 -> 9537.099598 | L164: =Simulador!K159 -> 0 | N164: =Simulador!M159 -> 418.1959364 | P164: =Simulador!O159 -> 66.4 | R164: =Simulador!Q159 -> 10606.14168 | T164: =Simulador!S159 -> 981219.9352
B165: =Simulador!A160 -> 2036-11-02 | D165: =Simulador!C160 -> 127 | F165: =Simulador!E160 -> Retorno | H165: =Simulador!G160 -> 590.1233701 | J165: =Simulador!I160 -> 9531.422376 | L165: =Simulador!K160 -> 0 | N165: =Simulador!M160 -> 417.9444258 | P165: =Simulador!O160 -> 66.4 | R165: =Simulador!Q160 -> 10605.89017 | T165: =Simulador!S160 -> 980629.8118
B166: =Simulador!A161 -> 2036-12-02 | D166: =Simulador!C161 -> 128 | F166: =Simulador!E161 -> Retorno | H166: =Simulador!G161 -> 595.8557394 | J166: =Simulador!I161 -> 9525.690007 | L166: =Simulador!K161 -> 0 | N166: =Simulador!M161 -> 417.6904721 | P166: =Simulador!O161 -> 66.4 | R166: =Simulador!Q161 -> 10605.63622 | T166: =Simulador!S161 -> 980033.9561
B167: =Simulador!A162 -> 2037-01-02 | D167: =Simulador!C162 -> 129 | F167: =Simulador!E162 -> Retorno | H167: =Simulador!G162 -> 601.6437922 | J167: =Simulador!I162 -> 9519.901954 | L167: =Simulador!K162 -> 0 | N167: =Simulador!M162 -> 417.4340515 | P167: =Simulador!O162 -> 66.4 | R167: =Simulador!Q162 -> 10605.3798 | T167: =Simulador!S162 -> 979432.3123
B168: =Simulador!A163 -> 2037-02-02 | D168: =Simulador!C163 -> 130 | F168: =Simulador!E163 -> Retorno | H168: =Simulador!G163 -> 607.4880692 | J168: =Simulador!I163 -> 9514.057677 | L168: =Simulador!K163 -> 0 | N168: =Simulador!M163 -> 417.1751401 | P168: =Simulador!O163 -> 66.4 | R168: =Simulador!Q163 -> 10605.12089 | T168: =Simulador!S163 -> 978824.8242
B169: =Simulador!A164 -> 2037-03-02 | D169: =Simulador!C164 -> 131 | F169: =Simulador!E164 -> Retorno | H169: =Simulador!G164 -> 613.3891166 | J169: =Simulador!I164 -> 9508.15663 | L169: =Simulador!K164 -> 0 | N169: =Simulador!M164 -> 416.9137137 | P169: =Simulador!O164 -> 66.4 | R169: =Simulador!Q164 -> 10604.85946 | T169: =Simulador!S164 -> 978211.4351
B170: =Simulador!A165 -> 2037-04-02 | D170: =Simulador!C165 -> 132 | F170: =Simulador!E165 -> Retorno | H170: =Simulador!G165 -> 619.3474859 | J170: =Simulador!I165 -> 9502.19826 | L170: =Simulador!K165 -> 0 | N170: =Simulador!M165 -> 416.6497478 | P170: =Simulador!O165 -> 66.4 | R170: =Simulador!Q165 -> 10604.59549 | T170: =Simulador!S165 -> 977592.0876
B171: =Simulador!A166 -> 2037-05-02 | D171: =Simulador!C166 -> 133 | F171: =Simulador!E166 -> Retorno | H171: =Simulador!G166 -> 625.3637339 | J171: =Simulador!I166 -> 9496.182012 | L171: =Simulador!K166 -> 0 | N171: =Simulador!M166 -> 416.3832177 | P171: =Simulador!O166 -> 66.4 | R171: =Simulador!Q166 -> 10604.32896 | T171: =Simulador!S166 -> 976966.7239
B172: =Simulador!A167 -> 2037-06-02 | D172: =Simulador!C167 -> 134 | F172: =Simulador!E167 -> Retorno | H172: =Simulador!G167 -> 631.4384229 | J172: =Simulador!I167 -> 9490.107323 | L172: =Simulador!K167 -> 0 | N172: =Simulador!M167 -> 416.1140987 | P172: =Simulador!O167 -> 66.4 | R172: =Simulador!Q167 -> 10604.05984 | T172: =Simulador!S167 -> 976335.2855
B173: =Simulador!A168 -> 2037-07-02 | D173: =Simulador!C168 -> 135 | F173: =Simulador!E168 -> Retorno | H173: =Simulador!G168 -> 637.5721204 | J173: =Simulador!I168 -> 9483.973626 | L173: =Simulador!K168 -> 0 | N173: =Simulador!M168 -> 415.8423654 | P173: =Simulador!O168 -> 66.4 | R173: =Simulador!Q168 -> 10603.78811 | T173: =Simulador!S168 -> 975697.7134
B174: =Simulador!A169 -> 2037-08-02 | D174: =Simulador!C169 -> 136 | F174: =Simulador!E169 -> Retorno | H174: =Simulador!G169 -> 643.7653998 | J174: =Simulador!I169 -> 9477.780346 | L174: =Simulador!K169 -> 0 | N174: =Simulador!M169 -> 415.5679926 | P174: =Simulador!O169 -> 66.4 | R174: =Simulador!Q169 -> 10603.51374 | T174: =Simulador!S169 -> 975053.948
B175: =Simulador!A170 -> 2037-09-02 | D175: =Simulador!C170 -> 137 | F175: =Simulador!E170 -> Retorno | H175: =Simulador!G170 -> 650.0188397 | J175: =Simulador!I170 -> 9471.526906 | L175: =Simulador!K170 -> 0 | N175: =Simulador!M170 -> 560.3796996 | P175: =Simulador!O170 -> 66.4 | R175: =Simulador!Q170 -> 10748.32545 | T175: =Simulador!S170 -> 974403.9291
B176: =Simulador!A171 -> 2037-10-02 | D176: =Simulador!C171 -> 138 | F176: =Simulador!E171 -> Retorno | H176: =Simulador!G171 -> 656.3330246 | J176: =Simulador!I171 -> 9465.212721 | L176: =Simulador!K171 -> 0 | N176: =Simulador!M171 -> 560.0022425 | P176: =Simulador!O171 -> 66.4 | R176: =Simulador!Q171 -> 10747.94799 | T176: =Simulador!S171 -> 973747.5961
B177: =Simulador!A172 -> 2037-11-02 | D177: =Simulador!C172 -> 139 | F177: =Simulador!E172 -> Retorno | H177: =Simulador!G172 -> 662.7085446 | J177: =Simulador!I172 -> 9458.837202 | L177: =Simulador!K172 -> 0 | N177: =Simulador!M172 -> 559.6211188 | P177: =Simulador!O172 -> 66.4 | R177: =Simulador!Q172 -> 10747.56686 | T177: =Simulador!S172 -> 973084.8876
B178: =Simulador!A173 -> 2037-12-02 | D178: =Simulador!C173 -> 140 | F178: =Simulador!E173 -> Retorno | H178: =Simulador!G173 -> 669.1459954 | J178: =Simulador!I173 -> 9452.399751 | L178: =Simulador!K173 -> 0 | N178: =Simulador!M173 -> 559.236293 | P178: =Simulador!O173 -> 66.4 | R178: =Simulador!Q173 -> 10747.18204 | T178: =Simulador!S173 -> 972415.7416
B179: =Simulador!A174 -> 2038-01-02 | D179: =Simulador!C174 -> 141 | F179: =Simulador!E174 -> Retorno | H179: =Simulador!G174 -> 675.6459786 | J179: =Simulador!I174 -> 9445.899768 | L179: =Simulador!K174 -> 0 | N179: =Simulador!M174 -> 558.847729 | P179: =Simulador!O174 -> 66.4 | R179: =Simulador!Q174 -> 10746.79348 | T179: =Simulador!S174 -> 971740.0956
B180: =Simulador!A175 -> 2038-02-02 | D180: =Simulador!C175 -> 142 | F180: =Simulador!E175 -> Retorno | H180: =Simulador!G175 -> 682.2091017 | J180: =Simulador!I175 -> 9439.336644 | L180: =Simulador!K175 -> 0 | N180: =Simulador!M175 -> 558.4553905 | P180: =Simulador!O175 -> 66.4 | R180: =Simulador!Q175 -> 10746.40114 | T180: =Simulador!S175 -> 971057.8865
B181: =Simulador!A176 -> 2038-03-02 | D181: =Simulador!C176 -> 143 | F181: =Simulador!E176 -> Retorno | H181: =Simulador!G176 -> 688.8359779 | J181: =Simulador!I176 -> 9432.709768 | L181: =Simulador!K176 -> 0 | N181: =Simulador!M176 -> 558.0592409 | P181: =Simulador!O176 -> 66.4 | R181: =Simulador!Q176 -> 10746.00499 | T181: =Simulador!S176 -> 970369.0505
B182: =Simulador!A177 -> 2038-04-02 | D182: =Simulador!C177 -> 144 | F182: =Simulador!E177 -> Retorno | H182: =Simulador!G177 -> 695.5272267 | J182: =Simulador!I177 -> 9426.018519 | L182: =Simulador!K177 -> 0 | N182: =Simulador!M177 -> 557.6592432 | P182: =Simulador!O177 -> 66.4 | R182: =Simulador!Q177 -> 10745.60499 | T182: =Simulador!S177 -> 969673.5233
B183: =Simulador!A178 -> 2038-05-02 | D183: =Simulador!C178 -> 145 | F183: =Simulador!E178 -> Retorno | H183: =Simulador!G178 -> 702.2834732 | J183: =Simulador!I178 -> 9419.262273 | L183: =Simulador!K178 -> 0 | N183: =Simulador!M178 -> 557.25536 | P183: =Simulador!O178 -> 66.4 | R183: =Simulador!Q178 -> 10745.20111 | T183: =Simulador!S178 -> 968971.2398
B184: =Simulador!A179 -> 2038-06-02 | D184: =Simulador!C179 -> 146 | F184: =Simulador!E179 -> Retorno | H184: =Simulador!G179 -> 709.1053489 | J184: =Simulador!I179 -> 9412.440397 | L184: =Simulador!K179 -> 0 | N184: =Simulador!M179 -> 556.8475535 | P184: =Simulador!O179 -> 66.4 | R184: =Simulador!Q179 -> 10744.7933 | T184: =Simulador!S179 -> 968262.1345
B185: =Simulador!A180 -> 2038-07-02 | D185: =Simulador!C180 -> 147 | F185: =Simulador!E180 -> Retorno | H185: =Simulador!G180 -> 715.9934912 | J185: =Simulador!I180 -> 9405.552255 | L185: =Simulador!K180 -> 0 | N185: =Simulador!M180 -> 556.4357857 | P185: =Simulador!O180 -> 66.4 | R185: =Simulador!Q180 -> 10744.38153 | T185: =Simulador!S180 -> 967546.141
B186: =Simulador!A181 -> 2038-08-02 | D186: =Simulador!C181 -> 148 | F186: =Simulador!E181 -> Retorno | H186: =Simulador!G181 -> 722.9485439 | J186: =Simulador!I181 -> 9398.597202 | L186: =Simulador!K181 -> 0 | N186: =Simulador!M181 -> 556.020018 | P186: =Simulador!O181 -> 66.4 | R186: =Simulador!Q181 -> 10743.96576 | T186: =Simulador!S181 -> 966823.1924
B187: =Simulador!A182 -> 2038-09-02 | D187: =Simulador!C182 -> 149 | F187: =Simulador!E182 -> Retorno | H187: =Simulador!G182 -> 729.971157 | J187: =Simulador!I182 -> 9391.574589 | L187: =Simulador!K182 -> 0 | N187: =Simulador!M182 -> 555.6002115 | P187: =Simulador!O182 -> 66.4 | R187: =Simulador!Q182 -> 10743.54596 | T187: =Simulador!S182 -> 966093.2213
B188: =Simulador!A183 -> 2038-10-02 | D188: =Simulador!C183 -> 150 | F188: =Simulador!E183 -> Retorno | H188: =Simulador!G183 -> 737.0619867 | J188: =Simulador!I183 -> 9384.483759 | L188: =Simulador!K183 -> 0 | N188: =Simulador!M183 -> 555.1763272 | P188: =Simulador!O183 -> 66.4 | R188: =Simulador!Q183 -> 10743.12207 | T188: =Simulador!S183 -> 965356.1593
B189: =Simulador!A184 -> 2038-11-02 | D189: =Simulador!C184 -> 151 | F189: =Simulador!E184 -> Retorno | H189: =Simulador!G184 -> 744.2216956 | J189: =Simulador!I184 -> 9377.324051 | L189: =Simulador!K184 -> 0 | N189: =Simulador!M184 -> 554.7483253 | P189: =Simulador!O184 -> 66.4 | R189: =Simulador!Q184 -> 10742.69407 | T189: =Simulador!S184 -> 964611.9376
B190: =Simulador!A185 -> 2038-12-02 | D190: =Simulador!C185 -> 152 | F190: =Simulador!E185 -> Retorno | H190: =Simulador!G185 -> 751.4509528 | J190: =Simulador!I185 -> 9370.094793 | L190: =Simulador!K185 -> 0 | N190: =Simulador!M185 -> 554.3161659 | P190: =Simulador!O185 -> 66.4 | R190: =Simulador!Q185 -> 10742.26191 | T190: =Simulador!S185 -> 963860.4866
B191: =Simulador!A186 -> 2039-01-02 | D191: =Simulador!C186 -> 153 | F191: =Simulador!E186 -> Retorno | H191: =Simulador!G186 -> 758.750434 | J191: =Simulador!I186 -> 9362.795312 | L191: =Simulador!K186 -> 0 | N191: =Simulador!M186 -> 553.8798085 | P191: =Simulador!O186 -> 66.4 | R191: =Simulador!Q186 -> 10741.82555 | T191: =Simulador!S186 -> 963101.7362
B192: =Simulador!A187 -> 2039-02-02 | D192: =Simulador!C187 -> 154 | F192: =Simulador!E187 -> Retorno | H192: =Simulador!G187 -> 766.1208212 | J192: =Simulador!I187 -> 9355.424925 | L192: =Simulador!K187 -> 0 | N192: =Simulador!M187 -> 553.4392124 | P192: =Simulador!O187 -> 66.4 | R192: =Simulador!Q187 -> 10741.38496 | T192: =Simulador!S187 -> 962335.6154
B193: =Simulador!A188 -> 2039-03-02 | D193: =Simulador!C188 -> 155 | F193: =Simulador!E188 -> Retorno | H193: =Simulador!G188 -> 773.5628032 | J193: =Simulador!I188 -> 9347.982943 | L193: =Simulador!K188 -> 0 | N193: =Simulador!M188 -> 552.9943364 | P193: =Simulador!O188 -> 66.4 | R193: =Simulador!Q188 -> 10740.94008 | T193: =Simulador!S188 -> 961562.0526
B194: =Simulador!A189 -> 2039-04-02 | D194: =Simulador!C189 -> 156 | F194: =Simulador!E189 -> Retorno | H194: =Simulador!G189 -> 781.0770756 | J194: =Simulador!I189 -> 9340.468671 | L194: =Simulador!K189 -> 0 | N194: =Simulador!M189 -> 552.545139 | P194: =Simulador!O189 -> 66.4 | R194: =Simulador!Q189 -> 10740.49089 | T194: =Simulador!S189 -> 960780.9755
B195: =Simulador!A190 -> 2039-05-02 | D195: =Simulador!C190 -> 157 | F195: =Simulador!E190 -> Retorno | H195: =Simulador!G190 -> 788.6643404 | J195: =Simulador!I190 -> 9332.881406 | L195: =Simulador!K190 -> 0 | N195: =Simulador!M190 -> 552.0915781 | P195: =Simulador!O190 -> 66.4 | R195: =Simulador!Q190 -> 10740.03732 | T195: =Simulador!S190 -> 959992.3112
B196: =Simulador!A191 -> 2039-06-02 | D196: =Simulador!C191 -> 158 | F196: =Simulador!E191 -> Retorno | H196: =Simulador!G191 -> 796.3253068 | J196: =Simulador!I191 -> 9325.220439 | L196: =Simulador!K191 -> 0 | N196: =Simulador!M191 -> 551.6336115 | P196: =Simulador!O191 -> 66.4 | R196: =Simulador!Q191 -> 10739.57936 | T196: =Simulador!S191 -> 959195.9858
B197: =Simulador!A192 -> 2039-07-02 | D197: =Simulador!C192 -> 159 | F197: =Simulador!E192 -> Retorno | H197: =Simulador!G192 -> 804.0606906 | J197: =Simulador!I192 -> 9317.485055 | L197: =Simulador!K192 -> 0 | N197: =Simulador!M192 -> 551.1711962 | P197: =Simulador!O192 -> 66.4 | R197: =Simulador!Q192 -> 10739.11694 | T197: =Simulador!S192 -> 958391.9252
B198: =Simulador!A193 -> 2039-08-02 | D198: =Simulador!C193 -> 160 | F198: =Simulador!E193 -> Retorno | H198: =Simulador!G193 -> 811.8712149 | J198: =Simulador!I193 -> 9309.674531 | L198: =Simulador!K193 -> 0 | N198: =Simulador!M193 -> 550.704289 | P198: =Simulador!O193 -> 66.4 | R198: =Simulador!Q193 -> 10738.65004 | T198: =Simulador!S193 -> 957580.0539
B199: =Simulador!A194 -> 2039-09-02 | D199: =Simulador!C194 -> 161 | F199: =Simulador!E194 -> Retorno | H199: =Simulador!G194 -> 819.7576093 | J199: =Simulador!I194 -> 9301.788137 | L199: =Simulador!K194 -> 0 | N199: =Simulador!M194 -> 550.2328464 | P199: =Simulador!O194 -> 66.4 | R199: =Simulador!Q194 -> 10738.17859 | T199: =Simulador!S194 -> 956760.2963
B200: =Simulador!A195 -> 2039-10-02 | D200: =Simulador!C195 -> 162 | F200: =Simulador!E195 -> Retorno | H200: =Simulador!G195 -> 827.720611 | J200: =Simulador!I195 -> 9293.825135 | L200: =Simulador!K195 -> 0 | N200: =Simulador!M195 -> 549.7568243 | P200: =Simulador!O195 -> 66.4 | R200: =Simulador!Q195 -> 10737.70257 | T200: =Simulador!S195 -> 955932.5757
B201: =Simulador!A196 -> 2039-11-02 | D201: =Simulador!C196 -> 163 | F201: =Simulador!E196 -> Retorno | H201: =Simulador!G196 -> 835.7609641 | J201: =Simulador!I196 -> 9285.784782 | L201: =Simulador!K196 -> 0 | N201: =Simulador!M196 -> 549.2761782 | P201: =Simulador!O196 -> 66.4 | R201: =Simulador!Q196 -> 10737.22192 | T201: =Simulador!S196 -> 955096.8148
B202: =Simulador!A197 -> 2039-12-02 | D202: =Simulador!C197 -> 164 | F202: =Simulador!E197 -> Retorno | H202: =Simulador!G197 -> 843.87942 | J202: =Simulador!I197 -> 9277.666326 | L202: =Simulador!K197 -> 0 | N202: =Simulador!M197 -> 548.7908631 | P202: =Simulador!O197 -> 66.4 | R202: =Simulador!Q197 -> 10736.73661 | T202: =Simulador!S197 -> 954252.9353
B203: =Simulador!A198 -> 2040-01-02 | D203: =Simulador!C198 -> 165 | F203: =Simulador!E198 -> Retorno | H203: =Simulador!G198 -> 852.0767374 | J203: =Simulador!I198 -> 9269.469009 | L203: =Simulador!K198 -> 0 | N203: =Simulador!M198 -> 548.3008338 | P203: =Simulador!O198 -> 66.4 | R203: =Simulador!Q198 -> 10736.24658 | T203: =Simulador!S198 -> 953400.8586
B204: =Simulador!A199 -> 2040-02-02 | D204: =Simulador!C199 -> 166 | F204: =Simulador!E199 -> Retorno | H204: =Simulador!G199 -> 860.3536822 | J204: =Simulador!I199 -> 9261.192064 | L204: =Simulador!K199 -> 0 | N204: =Simulador!M199 -> 547.8060444 | P204: =Simulador!O199 -> 66.4 | R204: =Simulador!Q199 -> 10735.75179 | T204: =Simulador!S199 -> 952540.5049
B205: =Simulador!A200 -> 2040-03-02 | D205: =Simulador!C200 -> 167 | F205: =Simulador!E200 -> Retorno | H205: =Simulador!G200 -> 868.711028 | J205: =Simulador!I200 -> 9252.834718 | L205: =Simulador!K200 -> 0 | N205: =Simulador!M200 -> 547.3064487 | P205: =Simulador!O200 -> 66.4 | R205: =Simulador!Q200 -> 10735.25219 | T205: =Simulador!S200 -> 951671.7939
B206: =Simulador!A201 -> 2040-04-02 | D206: =Simulador!C201 -> 168 | F206: =Simulador!E201 -> Retorno | H206: =Simulador!G201 -> 877.1495559 | J206: =Simulador!I201 -> 9244.39619 | L206: =Simulador!K201 -> 0 | N206: =Simulador!M201 -> 546.802 | P206: =Simulador!O201 -> 66.4 | R206: =Simulador!Q201 -> 10734.74775 | T206: =Simulador!S201 -> 950794.6443
B207: =Simulador!A202 -> 2040-05-02 | D207: =Simulador!C202 -> 169 | F207: =Simulador!E202 -> Retorno | H207: =Simulador!G202 -> 885.6700543 | J207: =Simulador!I202 -> 9235.875692 | L207: =Simulador!K202 -> 0 | N207: =Simulador!M202 -> 546.2926511 | P207: =Simulador!O202 -> 66.4 | R207: =Simulador!Q202 -> 10734.2384 | T207: =Simulador!S202 -> 949908.9743
B208: =Simulador!A203 -> 2040-06-02 | D208: =Simulador!C203 -> 170 | F208: =Simulador!E203 -> Retorno | H208: =Simulador!G203 -> 894.2733195 | J208: =Simulador!I203 -> 9227.272427 | L208: =Simulador!K203 -> 0 | N208: =Simulador!M203 -> 545.7783545 | P208: =Simulador!O203 -> 66.4 | R208: =Simulador!Q203 -> 10733.7241 | T208: =Simulador!S203 -> 949014.701
B209: =Simulador!A204 -> 2040-07-02 | D209: =Simulador!C204 -> 171 | F209: =Simulador!E204 -> Retorno | H209: =Simulador!G204 -> 902.9601556 | J209: =Simulador!I204 -> 9218.585591 | L209: =Simulador!K204 -> 0 | N209: =Simulador!M204 -> 545.2590621 | P209: =Simulador!O204 -> 66.4 | R209: =Simulador!Q204 -> 10733.20481 | T209: =Simulador!S204 -> 948111.7408
B210: =Simulador!A205 -> 2040-08-02 | D210: =Simulador!C205 -> 172 | F210: =Simulador!E205 -> Retorno | H210: =Simulador!G205 -> 911.7313743 | J210: =Simulador!I205 -> 9209.814372 | L210: =Simulador!K205 -> 0 | N210: =Simulador!M205 -> 544.7347254 | P210: =Simulador!O205 -> 66.4 | R210: =Simulador!Q205 -> 10732.68047 | T210: =Simulador!S205 -> 947200.0094
B211: =Simulador!A206 -> 2040-09-02 | D211: =Simulador!C206 -> 173 | F211: =Simulador!E206 -> Retorno | H211: =Simulador!G206 -> 920.5877953 | J211: =Simulador!I206 -> 9200.957951 | L211: =Simulador!K206 -> 0 | N211: =Simulador!M206 -> 697.2186779 | P211: =Simulador!O206 -> 66.4 | R211: =Simulador!Q206 -> 10885.16442 | T211: =Simulador!S206 -> 946279.4216
B212: =Simulador!A207 -> 2040-10-02 | D212: =Simulador!C207 -> 174 | F212: =Simulador!E207 -> Retorno | H212: =Simulador!G207 -> 929.5302462 | J212: =Simulador!I207 -> 9192.0155 | L212: =Simulador!K207 -> 0 | N212: =Simulador!M207 -> 696.5338 | P212: =Simulador!O207 -> 66.4 | R212: =Simulador!Q207 -> 10884.47955 | T212: =Simulador!S207 -> 945349.8914
B213: =Simulador!A208 -> 2040-11-02 | D213: =Simulador!C208 -> 175 | F213: =Simulador!E208 -> Retorno | H213: =Simulador!G208 -> 938.5595627 | J213: =Simulador!I208 -> 9182.986183 | L213: =Simulador!K208 -> 0 | N213: =Simulador!M208 -> 695.8422693 | P213: =Simulador!O208 -> 66.4 | R213: =Simulador!Q208 -> 10883.78802 | T213: =Simulador!S208 -> 944411.3318
... 245 more rows

Sheet Base de Dados (hidden)
A1: Seguro MIP | B1: =Simulador!G14 -> 1989-09-14 | C1: Seguro DFI | D1: Encargo | E1: Dt Encargo | F1: Idade na data do encargo | G1: Alíquota que deve ser utilizada | H1: Data do Encargo | I1: Nascimento | J1: Prazo Proposta | L1: Data cálculo CET | M1: Parcela | N1: ID CARTEIRA | O1: CRV | P1: LTV | Q1: Poup+Permitido | R1: Tarifa de Avaliação | S1: Prazo Mínimo | T1: Prazo máximo | U1: Prazo de Construção | V1: Prazo de carência | W1: Taxa | X1: IOF | Z1: Permite despesas | AA1: MENSAGENS
A2: 18 | B2: 0.0001149 | C2: 5e-05 | D2: =Simulador!C33 -> 0 | E2: =H2 -> 2026-04-02 | F2: =ROUNDDOWN(_xlfn.DAYS(E2,$B$1)/365,0) -> 1900-02-05 | G2: =VLOOKUP(F2&'Simulador Bradesco'!$I$13,$A$2:$B$600,2,FALSE) -> 0.0001776 | H2: =TODAY() -> 2026-04-02 | I2: =Simulador!G14 -> 1989-09-14 | J2: =Simulador!G17 -> 420 | L2: =IF(Simulador!A32="",Simulador!$C$8,Simulador!A32) -> 2026-04-02 | M2: =Simulador!O10 -> 1024000 | O2: =Parâmetros!$H$7 -> 0.15 | P2: =Parâmetros!$F$7 -> 0.7 | Q2: =IF(AND(Simulador!E6=Parâmetros!D23,Simulador!C14<>Parâmetros!B2),"Poup+ só residencial","") ->  | R2: =Parâmetros!$L$7 -> 3400 | S2: =Parâmetros!$I$7 -> 121 | T2: =Parâmetros!$J$7 -> 240 | W2: =Parâmetros!$D$7 -> 0.1399 | X2: SIM | Y2: =Parâmetros!$H$4 -> 0.0338 | Z2: SIM | AA2: SIMULAÇÃO NOK
A3: 19 | B3: 0.0001149 | D3: =Simulador!C34 -> 1 | E3: =H3 -> 2026-05-02 | F3: =ROUNDDOWN(_xlfn.DAYS(E3,$B$1)/365,0) -> 1900-02-05 | G3: =VLOOKUP(F3&'Simulador Bradesco'!$I$13,$A$2:$B$600,2,FALSE) -> 0.0001776 | H3: =Simulador!A34 -> 2026-05-02 | L3: =IF(Simulador!A33="",Simulador!$C$8,Simulador!A33) -> 2026-04-02 | M3: =IF(Simulador!Q33="",0,Simulador!Q33*-1) -> -2362.2924 | N3: =CONCATENATE(Parâmetros!$D$22,Parâmetros!$C$8,Parâmetros!$D$3) -> Repasse/AquisiçãoRESIDENCIALPRICE | O3: =Parâmetros!$H$8 -> 0.25 | P3: =Parâmetros!$F$8 -> 0.8 | R3: =Parâmetros!$L$8 -> 1021.25 | S3: =Parâmetros!$I$8 -> 121 | T3: =Parâmetros!$J$8 -> 420 | W3: =Parâmetros!$D$8 -> 0.123 | X3: NÃO | Y3: 0 | Z3: SIM | AA3: LTV NÃO PERMITIDO
A4: 20 | B4: 0.0001149 | D4: =Simulador!C35 -> 2 | E4: 2026-06-02 | F4: =ROUNDDOWN(_xlfn.DAYS(E4,$B$1)/365,0) -> 1900-02-05 | G4: =VLOOKUP(F4&'Simulador Bradesco'!$I$13,$A$2:$B$600,2,FALSE) -> 0.0001776 | H4: =Simulador!A35 -> 2026-06-02 | L4: =IF(Simulador!A34="",Simulador!$C$8,Simulador!A34) -> 2026-05-02 | M4: =IF(Simulador!Q34="",0,Simulador!Q34*-1) -> -10369.77714 | N4: =CONCATENATE(Parâmetros!$D$22,Parâmetros!$C$9,Parâmetros!D$3) -> Repasse/AquisiçãoRESIDENCIAL > 225PRICE | O4: =Parâmetros!$H$9 -> 0.25 | P4: =Parâmetros!$F$9 -> 0.8 | R4: =Parâmetros!$L$9 -> 2114.03 | S4: =Parâmetros!$I$9 -> 121 | T4: =Parâmetros!$J$9 -> 420 | W4: =Parâmetros!$D$9 -> 0.123 | X4: NÃO | Y4: 0 | Z4: SIM
A5: 21 | B5: 0.000113 | D5: =Simulador!C36 -> 3 | E5: 2026-07-02 | F5: 1900-02-05 | G5: =VLOOKUP(F5&'Simulador Bradesco'!$I$13,$A$2:$B$600,2,FALSE) -> 0.0001776 | H5: =Simulador!A36 -> 2026-07-02 | L5: =IF(Simulador!A35="",Simulador!$C$8,Simulador!A35) -> 2026-06-02 | M5: =IF(Simulador!Q35="",0,Simulador!Q35*-1) -> -10369.74584 | N5: =CONCATENATE(Parâmetros!D22,Parâmetros!C11,Parâmetros!$D$3) -> Repasse/AquisiçãoCOMERCIALPRICE | O5: =Parâmetros!H11 -> 0.25 | P5: =Parâmetros!F11 -> 0.8 | R5: =Parâmetros!L11 -> 3400 | S5: =Parâmetros!I11 -> 121 | T5: =Parâmetros!J11 -> 360 | W5: =Parâmetros!D11 -> 0.1399 | X5: SIM | Y5: =Parâmetros!H4 -> 0.0338 | Z5: SIM
A6: 22 | B6: 0.000113 | D6: =Simulador!C37 -> 4 | E6: 2026-08-02 | F6: 1900-02-05 | G6: =VLOOKUP(F6&'Simulador Bradesco'!$I$13,$A$2:$B$600,2,FALSE) -> 0.0001776 | H6: =Simulador!A37 -> 2026-08-02 | L6: =IF(Simulador!A36="",Simulador!$C$8,Simulador!A36) -> 2026-07-02 | M6: =IF(Simulador!Q36="",0,Simulador!Q36*-1) -> -10369.71423 | N6: =CONCATENATE(Parâmetros!D22,Parâmetros!C7,Parâmetros!$D$2) -> Repasse/AquisiçãoLOTESAC | O6: =Parâmetros!G7 -> 0.2 | P6: =Parâmetros!E7 -> 0.7 | R6: =Parâmetros!L7 -> 3400 | S6: =Parâmetros!I7 -> 121 | T6: =Parâmetros!J7 -> 240 | W6: =Parâmetros!D7 -> 0.1399 | X6: SIM | Y6: =Parâmetros!H4 -> 0.0338 | Z6: SIM
A7: 23 | B7: 0.000113 | D7: =Simulador!C38 -> 5 | E7: 2026-09-02 | F7: 1900-02-05 | G7: =VLOOKUP(F7&'Simulador Bradesco'!$I$13,$A$2:$B$600,2,FALSE) -> 0.0001776 | H7: =Simulador!A38 -> 2026-09-02 | L7: =IF(Simulador!A37="",Simulador!$C$8,Simulador!A37) -> 2026-08-02 | M7: =IF(Simulador!Q37="",0,Simulador!Q37*-1) -> -10369.68232 | N7: =CONCATENATE(Parâmetros!$D$22,Parâmetros!$C$8,Parâmetros!$D$2) -> Repasse/AquisiçãoRESIDENCIALSAC | O7: =Parâmetros!$G$8 -> 0.35 | P7: =Parâmetros!$E$8 -> 0.8 | R7: =Parâmetros!$L$8 -> 1021.25 | S7: =Parâmetros!$I$8 -> 121 | T7: =Parâmetros!$J$8 -> 420 | W7: =Parâmetros!$D$8 -> 0.123 | X7: NÃO | Y7: 0 | Z7: SIM
A8: 24 | B8: 0.0001193 | D8: =Simulador!C39 -> 6 | E8: 2026-10-02 | F8: 1900-02-06 | G8: =VLOOKUP(F8&'Simulador Bradesco'!$I$13,$A$2:$B$600,2,FALSE) -> 0.0001776 | H8: =Simulador!A39 -> 2026-10-02 | L8: =IF(Simulador!A38="",Simulador!$C$8,Simulador!A38) -> 2026-09-02 | M8: =IF(Simulador!Q38="",0,Simulador!Q38*-1) -> -10369.65009 | N8: =CONCATENATE(Parâmetros!$D$22,Parâmetros!$C$9,Parâmetros!$D$2) -> Repasse/AquisiçãoRESIDENCIAL > 225SAC | O8: =Parâmetros!$G$9 -> 0.35 | P8: =Parâmetros!$E$9 -> 0.8 | R8: =Parâmetros!$L$9 -> 2114.03 | S8: =Parâmetros!$I$9 -> 121 | T8: =Parâmetros!$J$9 -> 420 | W8: =Parâmetros!$D$9 -> 0.123 | X8: NÃO | Y8: 0 | Z8: SIM
A9: 25 | B9: 0.0001193 | D9: =Simulador!C40 -> 7 | E9: 2026-11-02 | F9: 1900-02-06 | G9: =VLOOKUP(F9&'Simulador Bradesco'!$I$13,$A$2:$B$600,2,FALSE) -> 0.0001776 | H9: =Simulador!A40 -> 2026-11-02 | L9: =IF(Simulador!A39="",Simulador!$C$8,Simulador!A39) -> 2026-10-02 | M9: =IF(Simulador!Q39="",0,Simulador!Q39*-1) -> -10369.61755 | N9: =CONCATENATE(Parâmetros!D22,Parâmetros!C11,Parâmetros!$D$2) -> Repasse/AquisiçãoCOMERCIALSAC | O9: =Parâmetros!G11 -> 0.35 | P9: =Parâmetros!E11 -> 0.8 | R9: =Parâmetros!L11 -> 3400 | S9: =Parâmetros!I11 -> 121 | T9: =Parâmetros!J11 -> 360 | W9: =Parâmetros!D11 -> 0.1399 | X9: SIM | Y9: =Parâmetros!H4 -> 0.0338 | Z9: SIM
A10: 26 | B10: 0.0001193 | D10: =Simulador!C41 -> 8 | E10: 2026-12-02 | F10: 1900-02-06 | G10: =VLOOKUP(F10&'Simulador Bradesco'!$I$13,$A$2:$B$600,2,FALSE) -> 0.0001776 | H10: =Simulador!A41 -> 2026-12-02 | L10: =IF(Simulador!A40="",Simulador!$C$8,Simulador!A40) -> 2026-11-02 | M10: =IF(Simulador!Q40="",0,Simulador!Q40*-1) -> -10369.5847 | N10: =CONCATENATE(Parâmetros!D22,Parâmetros!C14,Parâmetros!$D$3) -> Repasse/AquisiçãoCHH Lote PJPRICE | O10: N/A | P10: =Parâmetros!F14 -> 0.7 | R10: =Parâmetros!L14 -> 3400 | S10: =Parâmetros!I14 -> 121 | T10: =Parâmetros!J14 -> 240 | W10: =Parâmetros!D14 -> 0.1399 | X10: SIM | Y10: =Parâmetros!I4 -> 0.0338 | Z10: NÃO
A11: 27 | B11: 0.0001304 | D11: =Simulador!C42 -> 9 | E11: 2027-01-02 | F11: 1900-02-06 | G11: =VLOOKUP(F11&'Simulador Bradesco'!$I$13,$A$2:$B$600,2,FALSE) -> 0.0001776 | H11: =Simulador!A42 -> 2027-01-02 | L11: =IF(Simulador!A41="",Simulador!$C$8,Simulador!A41) -> 2026-12-02 | M11: =IF(Simulador!Q41="",0,Simulador!Q41*-1) -> -10369.55153 | N11: =CONCATENATE(Parâmetros!D22,Parâmetros!C15,Parâmetros!$D$3) -> Repasse/AquisiçãoCHH PJPRICE | O11: N/A | P11: =Parâmetros!F15 -> 0.7 | R11: =Parâmetros!L15 -> 2114.03 | S11: =Parâmetros!I15 -> 121 | T11: =Parâmetros!J15 -> 240 | W11: =Parâmetros!D15 -> 0.1399 | X11: SIM | Y11: 0 | Z11: NÃO
A12: 28 | B12: 0.0001304 | D12: =Simulador!C43 -> 10 | E12: 2027-02-02 | F12: 1900-02-06 | G12: =VLOOKUP(F12&'Simulador Bradesco'!$I$13,$A$2:$B$600,2,FALSE) -> 0.0001776 | H12: =Simulador!A43 -> 2027-02-02 | L12: =IF(Simulador!A42="",Simulador!$C$8,Simulador!A42) -> 2027-01-02 | M12: =IF(Simulador!Q42="",0,Simulador!Q42*-1) -> -10369.51803 | N12: =CONCATENATE(Parâmetros!D22,Parâmetros!C16,Parâmetros!$D$3) -> Repasse/AquisiçãoCHC PJPRICE | O12: N/A | P12: =Parâmetros!F16 -> 0.6 | R12: =Parâmetros!L16 -> 3400 | S12: =Parâmetros!I16 -> 121 | T12: =Parâmetros!J16 -> 240 | W12: =Parâmetros!D16 -> 0.1399 | X12: SIM | Y12: =Parâmetros!I4 -> 0.0338 | Z12: NÃO
A13: 29 | B13: 0.0001304 | D13: =Simulador!C44 -> 11 | E13: 2027-03-02 | F13: 1900-02-06 | G13: =VLOOKUP(F13&'Simulador Bradesco'!$I$13,$A$2:$B$600,2,FALSE) -> 0.0001776 | H13: =Simulador!A44 -> 2027-03-02 | L13: =IF(Simulador!A43="",Simulador!$C$8,Simulador!A43) -> 2027-02-02 | M13: =IF(Simulador!Q43="",0,Simulador!Q43*-1) -> -10369.48421 | N13: =CONCATENATE(Parâmetros!D22,Parâmetros!C14,Parâmetros!$D$2) -> Repasse/AquisiçãoCHH Lote PJSAC | O13: N/A | P13: =Parâmetros!E14 -> 0.7 | R13: =Parâmetros!L14 -> 3400 | S13: =Parâmetros!I14 -> 121 | T13: =Parâmetros!J14 -> 240 | W13: =Parâmetros!D14 -> 0.1399 | X13: SIM | Y13: =Parâmetros!I4 -> 0.0338 | Z13: NÃO
A14: 30 | B14: 0.0001438 | D14: =Simulador!C45 -> 12 | E14: 2027-04-02 | F14: 1900-02-06 | G14: =VLOOKUP(F14&'Simulador Bradesco'!$I$13,$A$2:$B$600,2,FALSE) -> 0.0001776 | H14: =Simulador!A45 -> 2027-04-02 | L14: =IF(Simulador!A44="",Simulador!$C$8,Simulador!A44) -> 2027-03-02 | M14: =IF(Simulador!Q44="",0,Simulador!Q44*-1) -> -10369.45006 | N14: =CONCATENATE(Parâmetros!D22,Parâmetros!C15,Parâmetros!$D$2) -> Repasse/AquisiçãoCHH PJSAC | O14: N/A | P14: =Parâmetros!E15 -> 0.7 | R14: =Parâmetros!L15 -> 2114.03 | S14: =Parâmetros!I15 -> 121 | T14: =Parâmetros!J15 -> 240 | W14: =Parâmetros!D15 -> 0.1399 | X14: SIM | Y14: 0 | Z14: NÃO
A15: 31 | B15: 0.0001438 | D15: =Simulador!C46 -> 13 | E15: 2027-05-02 | F15: 1900-02-06 | G15: =VLOOKUP(F15&'Simulador Bradesco'!$I$13,$A$2:$B$600,2,FALSE) -> 0.0001776 | H15: =Simulador!A46 -> 2027-05-02 | L15: =IF(Simulador!A45="",Simulador!$C$8,Simulador!A45) -> 2027-04-02 | M15: =IF(Simulador!Q45="",0,Simulador!Q45*-1) -> -10369.41558 | N15: =CONCATENATE(Parâmetros!D22,Parâmetros!C16,Parâmetros!$D$2) -> Repasse/AquisiçãoCHC PJSAC | O15: N/A | P15: =Parâmetros!E16 -> 0.6 | R15: =Parâmetros!L16 -> 3400 | S15: =Parâmetros!I16 -> 121 | T15: =Parâmetros!J16 -> 240 | W15: =Parâmetros!D16 -> 0.1399 | X15: SIM | Y15: =Parâmetros!I4 -> 0.0338 | Z15: NÃO
A16: 32 | B16: 0.0001438 | D16: =Simulador!C47 -> 14 | E16: 2027-06-02 | F16: 1900-02-06 | G16: =VLOOKUP(F16&'Simulador Bradesco'!$I$13,$A$2:$B$600,2,FALSE) -> 0.0001776 | H16: =Simulador!A47 -> 2027-06-02 | L16: =IF(Simulador!A46="",Simulador!$C$8,Simulador!A46) -> 2027-05-02 | M16: =IF(Simulador!Q46="",0,Simulador!Q46*-1) -> -10369.38076 | N16: =CONCATENATE(Parâmetros!D23,Parâmetros!C8,Parâmetros!D2) -> Poupança+RESIDENCIALSAC | O16: 0.3 | P16: =Parâmetros!O8 -> 0.8 | R16: =Parâmetros!L8 -> 1021.25 | S16: 240 | T16: =Parâmetros!J8 -> 420 | W16: =IF(SUM(Parâmetros!$C$23+Parâmetros!$C$24)>9.17,9.17,SUM(Parâmetros!$C$23+Parâmetros!$C$24)) -> 0.1399 | X16: NÃO | Y16: 0 | Z16: SIM
A17: 33 | B17: 0.0001568 | D17: =Simulador!C48 -> 15 | E17: 2027-07-02 | F17: 1900-02-06 | G17: =VLOOKUP(F17&'Simulador Bradesco'!$I$13,$A$2:$B$600,2,FALSE) -> 0.0001776 | H17: =Simulador!A48 -> 2027-07-02 | L17: =IF(Simulador!A47="",Simulador!$C$8,Simulador!A47) -> 2027-06-02 | M17: =IF(Simulador!Q47="",0,Simulador!Q47*-1) -> -10369.34561 | N17: =CONCATENATE(Parâmetros!D23,Parâmetros!C8,Parâmetros!D3) -> Poupança+RESIDENCIALPRICE | O17: 0.15 | P17: =Parâmetros!F8 -> 0.8 | R17: =Parâmetros!L8 -> 1021.25 | S17: 240 | T17: =Parâmetros!J8 -> 420 | W17: =IF(SUM(Parâmetros!$C$23+Parâmetros!$C$24)>9.17,9.17,SUM(Parâmetros!$C$23+Parâmetros!$C$24)) -> 0.1399 | X17: NÃO | Y17: 0 | Z17: SIM
A18: 34 | B18: 0.0001568 | D18: =Simulador!C49 -> 16 | E18: 2027-08-02 | F18: 1900-02-06 | G18: =VLOOKUP(F18&'Simulador Bradesco'!$I$13,$A$2:$B$600,2,FALSE) -> 0.0001776 | H18: =Simulador!A49 -> 2027-08-02 | L18: =IF(Simulador!A48="",Simulador!$C$8,Simulador!A48) -> 2027-07-02 | M18: =IF(Simulador!Q48="",0,Simulador!Q48*-1) -> -10369.31011 | N18: =CONCATENATE(Parâmetros!D23,Parâmetros!C9,Parâmetros!D2) -> Poupança+RESIDENCIAL > 225SAC | O18: 0.3 | P18: =Parâmetros!O9 -> 0.8 | R18: =Parâmetros!L9 -> 2114.03 | S18: 240 | T18: =Parâmetros!J9 -> 420 | W18: =IF(SUM(Parâmetros!$C$23+Parâmetros!$C$24)>9.17,9.17,SUM(Parâmetros!$C$23+Parâmetros!$C$24)) -> 0.1399 | X18: NÃO | Y18: 0 | Z18: SIM
A19: 35 | B19: 0.0001568 | D19: =Simulador!C50 -> 17 | E19: 2027-09-02 | F19: 1900-02-06 | G19: =VLOOKUP(F19&'Simulador Bradesco'!$I$13,$A$2:$B$600,2,FALSE) -> 0.0001776 | H19: =Simulador!A50 -> 2027-09-02 | L19: =IF(Simulador!A49="",Simulador!$C$8,Simulador!A49) -> 2027-08-02 | M19: =IF(Simulador!Q49="",0,Simulador!Q49*-1) -> -10369.27427 | N19: =CONCATENATE(Parâmetros!D23,Parâmetros!C9,Parâmetros!D3) -> Poupança+RESIDENCIAL > 225PRICE | O19: 0.15 | P19: =Parâmetros!F9 -> 0.8 | R19: =Parâmetros!L9 -> 2114.03 | S19: 240 | T19: =Parâmetros!J9 -> 420 | W19: =IF(SUM(Parâmetros!$C$23+Parâmetros!$C$24)>9.17,9.17,SUM(Parâmetros!$C$23+Parâmetros!$C$24)) -> 0.1399 | X19: NÃO | Y19: 0 | Z19: SIM
A20: 36 | B20: 0.0001814 | D20: =Simulador!C51 -> 18 | E20: 2027-10-02 | F20: 1900-02-07 | G20: =VLOOKUP(F20&'Simulador Bradesco'!$I$13,$A$2:$B$600,2,FALSE) -> 0.0001776 | H20: =Simulador!A51 -> 2027-10-02 | L20: =IF(Simulador!A50="",Simulador!$C$8,Simulador!A50) -> 2027-09-02 | M20: =IF(Simulador!Q50="",0,Simulador!Q50*-1) -> -10369.23809 | N20: =CONCATENATE(Parâmetros!D23,Parâmetros!C15,Parâmetros!D2) -> Poupança+CHH PJSAC | O20: N/A | P20: 0.8 | R20: =Parâmetros!L15 -> 2114.03 | S20: =Parâmetros!I15 -> 121 | T20: =Parâmetros!J15 -> 240 | W20: =IF(SUM(Parâmetros!$C$23+Parâmetros!$C$24)>9.17,9.17,SUM(Parâmetros!$C$23+Parâmetros!$C$24)) -> 0.1399 | X20: SIM | Y20: =Parâmetros!I4 -> 0.0338 | Z20: NÃO
A21: 37 | B21: 0.0001814 | D21: =Simulador!C52 -> 19 | E21: 2027-11-02 | F21: 1900-02-07 | G21: =VLOOKUP(F21&'Simulador Bradesco'!$I$13,$A$2:$B$600,2,FALSE) -> 0.0001776 | H21: =Simulador!A52 -> 2027-11-02 | L21: =IF(Simulador!A51="",Simulador!$C$8,Simulador!A51) -> 2027-10-02 | M21: =IF(Simulador!Q51="",0,Simulador!Q51*-1) -> -10369.20155 | N21: =CONCATENATE(Parâmetros!D23,Parâmetros!C15,Parâmetros!D3) -> Poupança+CHH PJPRICE | O21: N/A | P21: 0.8 | R21: =Parâmetros!L15 -> 2114.03 | S21: =Parâmetros!I15 -> 121 | T21: =Parâmetros!J15 -> 240 | W21: =IF(SUM(Parâmetros!$C$23+Parâmetros!$C$24)>9.17,9.17,SUM(Parâmetros!$C$23+Parâmetros!$C$24)) -> 0.1399 | X21: SIM | Y21: =Parâmetros!I4 -> 0.0338 | Z21: NÃO
A22: 38 | B22: 0.0001814 | D22: =Simulador!C53 -> 20 | E22: 2027-12-02 | F22: 1900-02-07 | G22: =VLOOKUP(F22&'Simulador Bradesco'!$I$13,$A$2:$B$600,2,FALSE) -> 0.0001776 | H22: =Simulador!A53 -> 2027-12-02 | L22: =IF(Simulador!A52="",Simulador!$C$8,Simulador!A52) -> 2027-11-02 | M22: =IF(Simulador!Q52="",0,Simulador!Q52*-1) -> -10369.16465 | N22: =Parâmetros!$D$22&Parâmetros!C7&Parâmetros!$D$2&Parâmetros!$G$22 -> Repasse/AquisiçãoLOTESACPRIME | O22: =Parâmetros!G7 -> 0.2 | P22: =Parâmetros!$E$7 -> 0.7 | R22: =Parâmetros!$L$7 -> 3400 | S22: =Parâmetros!$I$7 -> 121 | T22: =Parâmetros!$J$7 -> 240 | W22: =Parâmetros!$P$7 -> 0.1399 | X22: SIM | Y22: =IF(X22="SIM",3.38%,0%) -> 0.0338 | Z22: SIM
A23: 39 | B23: 0.0002237 | D23: =Simulador!C54 -> 21 | E23: 2028-01-02 | F23: 1900-02-07 | G23: =VLOOKUP(F23&'Simulador Bradesco'!$I$13,$A$2:$B$600,2,FALSE) -> 0.0001776 | H23: =Simulador!A54 -> 2028-01-02 | L23: =IF(Simulador!A53="",Simulador!$C$8,Simulador!A53) -> 2027-12-02 | M23: =IF(Simulador!Q53="",0,Simulador!Q53*-1) -> -10369.1274 | O23: =Parâmetros!G8 -> 0.35 | P23: =Parâmetros!$E$8 -> 0.8 | R23: =Parâmetros!$L$8 -> 1021.25 | S23: =Parâmetros!$I$8 -> 121 | T23: =Parâmetros!$J$8 -> 420 | W23: =Parâmetros!$P$8 -> 0 | X23: NÃO | Y23: =IF(X23="SIM",3.38%,0%) -> 0 | Z23: SIM
A24: 40 | B24: 0.0002237 | D24: =Simulador!C55 -> 22 | E24: 2028-02-02 | F24: 1900-02-07 | G24: =VLOOKUP(F24&'Simulador Bradesco'!$I$13,$A$2:$B$600,2,FALSE) -> 0.0001776 | H24: =Simulador!A55 -> 2028-02-02 | L24: =IF(Simulador!A54="",Simulador!$C$8,Simulador!A54) -> 2028-01-02 | M24: =IF(Simulador!Q54="",0,Simulador!Q54*-1) -> -10369.08978 | N24: =Parâmetros!$D$22&Parâmetros!C9&Parâmetros!$D$2&Parâmetros!$G$22 -> Repasse/AquisiçãoRESIDENCIAL > 225SACPRIME | O24: =Parâmetros!G9 -> 0.35 | P24: =Parâmetros!$E$9 -> 0.8 | R24: =Parâmetros!$L$9 -> 2114.03 | S24: =Parâmetros!$I$9 -> 121 | T24: =Parâmetros!$J$9 -> 420 | W24: =Parâmetros!$P$9 -> 0.123 | X24: NÃO | Y24: 0 | Z24: SIM
A25: 41 | B25: 0.0002237 | D25: =Simulador!C56 -> 23 | E25: 2028-03-02 | F25: 1900-02-07 | G25: =VLOOKUP(F25&'Simulador Bradesco'!$I$13,$A$2:$B$600,2,FALSE) -> 0.0001776 | H25: =Simulador!A56 -> 2028-03-02 | L25: =IF(Simulador!A55="",Simulador!$C$8,Simulador!A55) -> 2028-02-02 | M25: =IF(Simulador!Q55="",0,Simulador!Q55*-1) -> -10369.0518 | N25: =Parâmetros!$D$22&Parâmetros!C10&Parâmetros!$D$2&Parâmetros!$G$22 -> Repasse/AquisiçãoRESIDENCIALSACPRIME | O25: =Parâmetros!G10 -> 0.35 | P25: =Parâmetros!$E$10 -> 0.9 | R25: =Parâmetros!$L$10 -> 2114.03 | S25: =Parâmetros!$I$10 -> 121 | T25: =Parâmetros!$J$10 -> 420 | W25: =Parâmetros!$P$10 -> 0.123 | X25: NÃO | Y25: 0 | Z25: SIM
A26: 42 | B26: 0.0003169 | D26: =Simulador!C57 -> 24 | E26: 2028-04-02 | F26: 1900-02-07 | G26: =VLOOKUP(F26&'Simulador Bradesco'!$I$13,$A$2:$B$600,2,FALSE) -> 0.0001776 | H26: =Simulador!A57 -> 2028-04-02 | L26: =IF(Simulador!A56="",Simulador!$C$8,Simulador!A56) -> 2028-03-02 | M26: =IF(Simulador!Q56="",0,Simulador!Q56*-1) -> -10369.01345 | N26: =Parâmetros!$D$22&Parâmetros!C11&Parâmetros!$D$2&Parâmetros!$G$22 -> Repasse/AquisiçãoCOMERCIALSACPRIME | O26: =Parâmetros!G11 -> 0.35 | P26: =Parâmetros!$E$11 -> 0.8 | R26: =Parâmetros!$L$11 -> 3400 | S26: =Parâmetros!$I$11 -> 121 | T26: =Parâmetros!$J$11 -> 360 | W26: =Parâmetros!$P$11 -> 0 | X26: SIM | Y26: 0.0338 | Z26: SIM
A27: 43 | B27: 0.0003169 | D27: =Simulador!C58 -> 25 | E27: 2028-05-02 | F27: 1900-02-07 | G27: =VLOOKUP(F27&'Simulador Bradesco'!$I$13,$A$2:$B$600,2,FALSE) -> 0.0001776 | H27: =Simulador!A58 -> 2028-05-02 | L27: =IF(Simulador!A57="",Simulador!$C$8,Simulador!A57) -> 2028-04-02 | M27: =IF(Simulador!Q57="",0,Simulador!Q57*-1) -> -10368.97473 | N27: =Parâmetros!$D$22&Parâmetros!C7&Parâmetros!$D$3&Parâmetros!$G$22 -> Repasse/AquisiçãoLOTEPRICEPRIME | O27: =Parâmetros!H7 -> 0.15 | P27: =Parâmetros!$F$7 -> 0.7 | R27: =Parâmetros!$L$7 -> 3400 | S27: =Parâmetros!$I$7 -> 121 | T27: =Parâmetros!$J$7 -> 240 | W27: =Parâmetros!$P$7 -> 0.1399 | X27: SIM | Y27: 0.0338 | Z27: SIM
A28: 44 | B28: 0.0003169 | D28: =Simulador!C59 -> 26 | E28: 2028-06-02 | F28: 1900-02-07 | G28: =VLOOKUP(F28&'Simulador Bradesco'!$I$13,$A$2:$B$600,2,FALSE) -> 0.0001776 | H28: =Simulador!A59 -> 2028-06-02 | L28: =IF(Simulador!A58="",Simulador!$C$8,Simulador!A58) -> 2028-05-02 | M28: =IF(Simulador!Q58="",0,Simulador!Q58*-1) -> -10368.93563 | O28: =Parâmetros!H8 -> 0.25 | P28: =Parâmetros!$F$8 -> 0.8 | R28: =Parâmetros!$L$8 -> 1021.25 | S28: =Parâmetros!$I$8 -> 121 | T28: =Parâmetros!$J$8 -> 420 | W28: =Parâmetros!$P$8 -> 0 | X28: NÃO | Y28: 0 | Z28: SIM
A29: 45 | B29: 0.0004352 | D29: =Simulador!C60 -> 27 | E29: 2028-07-02 | F29: 1900-02-07 | G29: =VLOOKUP(F29&'Simulador Bradesco'!$I$13,$A$2:$B$600,2,FALSE) -> 0.0001776 | H29: =Simulador!A60 -> 2028-07-02 | L29: =IF(Simulador!A59="",Simulador!$C$8,Simulador!A59) -> 2028-06-02 | M29: =IF(Simulador!Q59="",0,Simulador!Q59*-1) -> -10368.89615 | N29: =Parâmetros!$D$22&Parâmetros!C9&Parâmetros!$D$3&Parâmetros!$G$22 -> Repasse/AquisiçãoRESIDENCIAL > 225PRICEPRIME | O29: =Parâmetros!H9 -> 0.25 | P29: =Parâmetros!$F$9 -> 0.8 | R29: =Parâmetros!$L$9 -> 2114.03 | S29: =Parâmetros!$I$9 -> 121 | T29: =Parâmetros!$J$9 -> 420 | W29: =Parâmetros!$P$9 -> 0.123 | X29: NÃO | Y29: 0 | Z29: SIM
A30: 46 | B30: 0.0004352 | D30: =Simulador!C61 -> 28 | E30: 2028-08-02 | F30: 1900-02-07 | G30: =VLOOKUP(F30&'Simulador Bradesco'!$I$13,$A$2:$B$600,2,FALSE) -> 0.0001776 | H30: =Simulador!A61 -> 2028-08-02 | L30: =IF(Simulador!A60="",Simulador!$C$8,Simulador!A60) -> 2028-07-02 | M30: =IF(Simulador!Q60="",0,Simulador!Q60*-1) -> -10368.85629 | N30: =Parâmetros!$D$22&Parâmetros!C10&Parâmetros!$D$3&Parâmetros!$G$22 -> Repasse/AquisiçãoRESIDENCIALPRICEPRIME | O30: =Parâmetros!H10 -> 0.25 | P30: =Parâmetros!$F$10 -> 0.8 | R30: =Parâmetros!$L$10 -> 2114.03 | S30: =Parâmetros!$I$10 -> 121 | T30: =Parâmetros!$J$10 -> 420 | W30: =Parâmetros!$P$10 -> 0.123 | X30: NÃO | Y30: 0 | Z30: SIM
A31: 47 | B31: 0.0004352 | D31: =Simulador!C62 -> 29 | E31: 2028-09-02 | F31: 1900-02-07 | G31: =VLOOKUP(F31&'Simulador Bradesco'!$I$13,$A$2:$B$600,2,FALSE) -> 0.0001776 | H31: =Simulador!A62 -> 2028-09-02 | L31: =IF(Simulador!A61="",Simulador!$C$8,Simulador!A61) -> 2028-08-02 | M31: =IF(Simulador!Q61="",0,Simulador!Q61*-1) -> -10368.81604 | N31: =Parâmetros!$D$22&Parâmetros!C11&Parâmetros!$D$3&Parâmetros!$G$22 -> Repasse/AquisiçãoCOMERCIALPRICEPRIME | O31: =Parâmetros!H11 -> 0.25 | P31: =Parâmetros!$F$11 -> 0.8 | R31: =Parâmetros!$L$11 -> 3400 | S31: =Parâmetros!$I$11 -> 121 | T31: =Parâmetros!$J$11 -> 360 | W31: =Parâmetros!$P$11 -> 0 | X31: SIM | Y31: 0.0338 | Z31: SIM
A32: 48 | B32: 0.0005872 | D32: =Simulador!C63 -> 30 | E32: 2028-10-02 | F32: 1900-02-08 | G32: =VLOOKUP(F32&'Simulador Bradesco'!$I$13,$A$2:$B$600,2,FALSE) -> 0.0002189 | H32: =Simulador!A63 -> 2028-10-02 | L32: =IF(Simulador!A62="",Simulador!$C$8,Simulador!A62) -> 2028-09-02 | M32: =IF(Simulador!Q62="",0,Simulador!Q62*-1) -> -10368.7754 | N32: =Parâmetros!$D$22&Parâmetros!C7&Parâmetros!$D$2&Parâmetros!$G$23 -> Repasse/AquisiçãoLOTESACEXCLUSIVE | O32: =Parâmetros!G7 -> 0.2 | P32: =Parâmetros!$E$7 -> 0.7 | R32: =Parâmetros!$L$7 -> 3400 | S32: =Parâmetros!$I$7 -> 121 | T32: =Parâmetros!$J$7 -> 240 | W32: =Parâmetros!$Q$7 -> 0.1399 | X32: SIM | Y32: 0.0338 | Z32: SIM
A33: 49 | B33: 0.0005872 | D33: =Simulador!C64 -> 31 | E33: 2028-11-02 | F33: 1900-02-08 | G33: =VLOOKUP(F33&'Simulador Bradesco'!$I$13,$A$2:$B$600,2,FALSE) -> 0.0002189 | H33: =Simulador!A64 -> 2028-11-02 | L33: =IF(Simulador!A63="",Simulador!$C$8,Simulador!A63) -> 2028-10-02 | M33: =IF(Simulador!Q63="",0,Simulador!Q63*-1) -> -10410.77587 | N33: =Parâmetros!$D$22&Parâmetros!C8&Parâmetros!$D$2&Parâmetros!$G$23 -> Repasse/AquisiçãoRESIDENCIALSACEXCLUSIVE | O33: =Parâmetros!G8 -> 0.35 | P33: =Parâmetros!$E$8 -> 0.8 | R33: =Parâmetros!$L$8 -> 1021.25 | S33: =Parâmetros!$I$8 -> 121 | T33: =Parâmetros!$J$8 -> 420 | W33: =Parâmetros!$Q$10 -> 0.123 | X33: NÃO | Y33: 0 | Z33: SIM
A34: 50 | B34: 0.0005872 | D34: =Simulador!C65 -> 32 | E34: 2028-12-02 | F34: 1900-02-08 | G34: =VLOOKUP(F34&'Simulador Bradesco'!$I$13,$A$2:$B$600,2,FALSE) -> 0.0002189 | H34: =Simulador!A65 -> 2028-12-02 | L34: =IF(Simulador!A64="",Simulador!$C$8,Simulador!A64) -> 2028-11-02 | M34: =IF(Simulador!Q64="",0,Simulador!Q64*-1) -> -10410.7248 | N34: =Parâmetros!$D$22&Parâmetros!C9&Parâmetros!$D$2&Parâmetros!$G$23 -> Repasse/AquisiçãoRESIDENCIAL > 225SACEXCLUSIVE | O34: =Parâmetros!G9 -> 0.35 | P34: =Parâmetros!$E$9 -> 0.8 | R34: =Parâmetros!$L$9 -> 2114.03 | S34: =Parâmetros!$I$9 -> 121 | T34: =Parâmetros!$J$9 -> 420 | W34: =Parâmetros!$Q$9 -> 0.123 | X34: NÃO | Y34: 0 | Z34: SIM
A35: 51 | B35: 0.00076 | D35: =Simulador!C66 -> 33 | E35: 2029-01-02 | F35: 1900-02-08 | G35: =VLOOKUP(F35&'Simulador Bradesco'!$I$13,$A$2:$B$600,2,FALSE) -> 0.0002189 | H35: =Simulador!A66 -> 2029-01-02 | L35: =IF(Simulador!A65="",Simulador!$C$8,Simulador!A65) -> 2028-12-02 | M35: =IF(Simulador!Q65="",0,Simulador!Q65*-1) -> -10410.67323 | O35: =Parâmetros!G10 -> 0.35 | P35: =Parâmetros!$E$10 -> 0.9 | R35: =Parâmetros!$L$10 -> 2114.03 | S35: =Parâmetros!$I$10 -> 121 | T35: =Parâmetros!$J$10 -> 420 | W35: =Parâmetros!#REF! ->  | X35: NÃO | Y35: 0 | Z35: SIM
A36: 52 | B36: 0.00076 | D36: =Simulador!C67 -> 34 | E36: 2029-02-02 | F36: 1900-02-08 | G36: =VLOOKUP(F36&'Simulador Bradesco'!$I$13,$A$2:$B$600,2,FALSE) -> 0.0002189 | H36: =Simulador!A67 -> 2029-02-02 | L36: =IF(Simulador!A66="",Simulador!$C$8,Simulador!A66) -> 2029-01-02 | M36: =IF(Simulador!Q66="",0,Simulador!Q66*-1) -> -10410.62117 | N36: =Parâmetros!$D$22&Parâmetros!C11&Parâmetros!$D$2&Parâmetros!$G$23 -> Repasse/AquisiçãoCOMERCIALSACEXCLUSIVE | O36: =Parâmetros!G11 -> 0.35 | P36: =Parâmetros!$E$11 -> 0.8 | R36: =Parâmetros!$L$11 -> 3400 | S36: =Parâmetros!$I$11 -> 121 | T36: =Parâmetros!$J$11 -> 360 | W36: =Parâmetros!$Q$11 -> 0 | X36: SIM | Y36: 0.0338 | Z36: SIM
A37: 53 | B37: 0.00076 | D37: =Simulador!C68 -> 35 | E37: 2029-03-02 | F37: 1900-02-08 | G37: =VLOOKUP(F37&'Simulador Bradesco'!$I$13,$A$2:$B$600,2,FALSE) -> 0.0002189 | H37: =Simulador!A68 -> 2029-03-02 | L37: =IF(Simulador!A67="",Simulador!$C$8,Simulador!A67) -> 2029-02-02 | M37: =IF(Simulador!Q67="",0,Simulador!Q67*-1) -> -10410.5686 | N37: =Parâmetros!$D$22&Parâmetros!C7&Parâmetros!$D$3&Parâmetros!$G$23 -> Repasse/AquisiçãoLOTEPRICEEXCLUSIVE | O37: =Parâmetros!H7 -> 0.15 | P37: =Parâmetros!$F$7 -> 0.7 | R37: =Parâmetros!$L$7 -> 3400 | S37: =Parâmetros!$I$7 -> 121 | T37: =Parâmetros!$J$7 -> 240 | W37: =Parâmetros!$Q$7 -> 0.1399 | X37: SIM | Y37: 0.0338 | Z37: SIM
A38: 54 | B38: 0.0009359 | D38: =Simulador!C69 -> 36 | E38: 2029-04-02 | F38: 1900-02-08 | G38: =VLOOKUP(F38&'Simulador Bradesco'!$I$13,$A$2:$B$600,2,FALSE) -> 0.0002189 | H38: =Simulador!A69 -> 2029-04-02 | L38: =IF(Simulador!A68="",Simulador!$C$8,Simulador!A68) -> 2029-03-02 | M38: =IF(Simulador!Q68="",0,Simulador!Q68*-1) -> -10410.51552 | N38: =Parâmetros!$D$22&Parâmetros!C8&Parâmetros!$D$3&Parâmetros!$G$23 -> Repasse/AquisiçãoRESIDENCIALPRICEEXCLUSIVE | O38: =Parâmetros!H8 -> 0.25 | P38: =Parâmetros!$F$8 -> 0.8 | R38: =Parâmetros!$L$8 -> 1021.25 | S38: =Parâmetros!$I$8 -> 121 | T38: =Parâmetros!$J$8 -> 420 | W38: =Parâmetros!$Q$10 -> 0.123 | X38: NÃO | Y38: 0 | Z38: SIM
A39: 55 | B39: 0.0009359 | D39: =Simulador!C70 -> 37 | E39: 2029-05-02 | F39: 1900-02-08 | G39: =VLOOKUP(F39&'Simulador Bradesco'!$I$13,$A$2:$B$600,2,FALSE) -> 0.0002189 | H39: =Simulador!A70 -> 2029-05-02 | L39: =IF(Simulador!A69="",Simulador!$C$8,Simulador!A69) -> 2029-04-02 | M39: =IF(Simulador!Q69="",0,Simulador!Q69*-1) -> -10410.46192 | N39: =Parâmetros!$D$22&Parâmetros!C9&Parâmetros!$D$3&Parâmetros!$G$23 -> Repasse/AquisiçãoRESIDENCIAL > 225PRICEEXCLUSIVE | O39: =Parâmetros!H9 -> 0.25 | P39: =Parâmetros!$F$9 -> 0.8 | R39: =Parâmetros!$L$9 -> 2114.03 | S39: =Parâmetros!$I$9 -> 121 | T39: =Parâmetros!$J$9 -> 420 | W39: =Parâmetros!$Q$9 -> 0.123 | X39: NÃO | Y39: 0 | Z39: SIM
A40: 56 | B40: 0.0009359 | D40: =Simulador!C71 -> 38 | E40: 2029-06-02 | F40: 1900-02-08 | G40: =VLOOKUP(F40&'Simulador Bradesco'!$I$13,$A$2:$B$600,2,FALSE) -> 0.0002189 | H40: =Simulador!A71 -> 2029-06-02 | L40: =IF(Simulador!A70="",Simulador!$C$8,Simulador!A70) -> 2029-05-02 | M40: =IF(Simulador!Q70="",0,Simulador!Q70*-1) -> -10410.4078 | O40: =Parâmetros!H10 -> 0.25 | P40: =Parâmetros!$F$10 -> 0.8 | R40: =Parâmetros!$L$10 -> 2114.03 | S40: =Parâmetros!$I$10 -> 121 | T40: =Parâmetros!$J$10 -> 420 | W40: =Parâmetros!#REF! ->  | X40: NÃO | Y40: 0 | Z40: SIM
A41: 57 | B41: 0.0011306 | D41: =Simulador!C72 -> 39 | E41: 2029-07-02 | F41: 1900-02-08 | G41: =VLOOKUP(F41&'Simulador Bradesco'!$I$13,$A$2:$B$600,2,FALSE) -> 0.0002189 | H41: =Simulador!A72 -> 2029-07-02 | L41: =IF(Simulador!A71="",Simulador!$C$8,Simulador!A71) -> 2029-06-02 | M41: =IF(Simulador!Q71="",0,Simulador!Q71*-1) -> -10410.35316 | N41: =Parâmetros!$D$22&Parâmetros!C11&Parâmetros!$D$3&Parâmetros!$G$23 -> Repasse/AquisiçãoCOMERCIALPRICEEXCLUSIVE | O41: =Parâmetros!H11 -> 0.25 | P41: =Parâmetros!$F$11 -> 0.8 | R41: =Parâmetros!$L$11 -> 3400 | S41: =Parâmetros!$I$11 -> 121 | T41: =Parâmetros!$J$11 -> 360 | W41: =Parâmetros!$Q$11 -> 0 | X41: SIM | Y41: 0.0338 | Z41: SIM
A42: 58 | B42: 0.0011306 | D42: =Simulador!C73 -> 40 | E42: 2029-08-02 | F42: 1900-02-08 | G42: =VLOOKUP(F42&'Simulador Bradesco'!$I$13,$A$2:$B$600,2,FALSE) -> 0.0002189 | H42: =Simulador!A73 -> 2029-08-02 | L42: =IF(Simulador!A72="",Simulador!$C$8,Simulador!A72) -> 2029-07-02 | M42: =IF(Simulador!Q72="",0,Simulador!Q72*-1) -> -10410.29798 | N42: =Parâmetros!$D$22&Parâmetros!C7&Parâmetros!$D$2&Parâmetros!$G$24 -> Repasse/AquisiçãoLOTESACCLASSIC | O42: =Parâmetros!G7 -> 0.2 | P42: =Parâmetros!$E$7 -> 0.7 | R42: =Parâmetros!$L$7 -> 3400 | S42: =Parâmetros!$I$7 -> 121 | T42: =Parâmetros!$J$7 -> 240 | W42: =Parâmetros!$R$7 -> 0.1399 | X42: SIM | Y42: 0.0338 | Z42: SIM
A43: 59 | B43: 0.0011306 | D43: =Simulador!C74 -> 41 | E43: 2029-09-02 | F43: 1900-02-08 | G43: =VLOOKUP(F43&'Simulador Bradesco'!$I$13,$A$2:$B$600,2,FALSE) -> 0.0002189 | H43: =Simulador!A74 -> 2029-09-02 | L43: =IF(Simulador!A73="",Simulador!$C$8,Simulador!A73) -> 2029-08-02 | M43: =IF(Simulador!Q73="",0,Simulador!Q73*-1) -> -10410.24227 | N43: =Parâmetros!$D$22&Parâmetros!C8&Parâmetros!$D$2&Parâmetros!$G$24 -> Repasse/AquisiçãoRESIDENCIALSACCLASSIC | O43: =Parâmetros!G8 -> 0.35 | P43: =Parâmetros!$E$8 -> 0.8 | R43: =Parâmetros!$L$8 -> 1021.25 | S43: =Parâmetros!$I$8 -> 121 | T43: =Parâmetros!$J$8 -> 420 | W43: =Parâmetros!$R$10 -> 0.123 | X43: NÃO | Y43: 0 | Z43: SIM
A44: 60 | B44: 0.0013822 | D44: =Simulador!C75 -> 42 | E44: 2029-10-02 | F44: 1900-02-09 | G44: =VLOOKUP(F44&'Simulador Bradesco'!$I$13,$A$2:$B$600,2,FALSE) -> 0.0002189 | H44: =Simulador!A75 -> 2029-10-02 | L44: =IF(Simulador!A74="",Simulador!$C$8,Simulador!A74) -> 2029-09-02 | M44: =IF(Simulador!Q74="",0,Simulador!Q74*-1) -> -10410.18602 | N44: =Parâmetros!$D$22&Parâmetros!C9&Parâmetros!$D$2&Parâmetros!$G$24 -> Repasse/AquisiçãoRESIDENCIAL > 225SACCLASSIC | O44: =Parâmetros!G9 -> 0.35 | P44: =Parâmetros!$E$9 -> 0.8 | R44: =Parâmetros!$L$9 -> 2114.03 | S44: =Parâmetros!$I$9 -> 121 | T44: =Parâmetros!$J$9 -> 420 | W44: =Parâmetros!$R$9 -> 0.123 | X44: NÃO | Y44: 0 | Z44: SIM
A45: 61 | B45: 0.0013822 | D45: =Simulador!C76 -> 43 | E45: 2029-11-02 | F45: 1900-02-09 | G45: =VLOOKUP(F45&'Simulador Bradesco'!$I$13,$A$2:$B$600,2,FALSE) -> 0.0002189 | H45: =Simulador!A76 -> 2029-11-02 | L45: =IF(Simulador!A75="",Simulador!$C$8,Simulador!A75) -> 2029-10-02 | M45: =IF(Simulador!Q75="",0,Simulador!Q75*-1) -> -10410.12922 | O45: =Parâmetros!G10 -> 0.35 | P45: =Parâmetros!$E$10 -> 0.9 | R45: =Parâmetros!$L$10 -> 2114.03 | S45: =Parâmetros!$I$10 -> 121 | T45: =Parâmetros!$J$10 -> 420 | W45: =Parâmetros!#REF! ->  | X45: NÃO | Y45: 0 | Z45: SIM
A46: 62 | B46: 0.0013822 | D46: =Simulador!C77 -> 44 | E46: 2029-12-02 | F46: 1900-02-09 | G46: =VLOOKUP(F46&'Simulador Bradesco'!$I$13,$A$2:$B$600,2,FALSE) -> 0.0002189 | H46: =Simulador!A77 -> 2029-12-02 | L46: =IF(Simulador!A76="",Simulador!$C$8,Simulador!A76) -> 2029-11-02 | M46: =IF(Simulador!Q76="",0,Simulador!Q76*-1) -> -10410.07187 | N46: =Parâmetros!$D$22&Parâmetros!C11&Parâmetros!$D$2&Parâmetros!$G$24 -> Repasse/AquisiçãoCOMERCIALSACCLASSIC | O46: =Parâmetros!G11 -> 0.35 | P46: =Parâmetros!$E$11 -> 0.8 | R46: =Parâmetros!$L$11 -> 3400 | S46: =Parâmetros!$I$11 -> 121 | T46: =Parâmetros!$J$11 -> 360 | W46: =Parâmetros!$R$11 -> 0 | X46: SIM | Y46: 0.0338 | Z46: SIM
A47: 63 | B47: 0.0017816 | D47: =Simulador!C78 -> 45 | E47: 2030-01-02 | F47: 1900-02-09 | G47: =VLOOKUP(F47&'Simulador Bradesco'!$I$13,$A$2:$B$600,2,FALSE) -> 0.0002189 | H47: =Simulador!A78 -> 2030-01-02 | L47: =IF(Simulador!A77="",Simulador!$C$8,Simulador!A77) -> 2029-12-02 | M47: =IF(Simulador!Q77="",0,Simulador!Q77*-1) -> -10410.01397 | N47: =Parâmetros!$D$22&Parâmetros!C7&Parâmetros!$D$3&Parâmetros!$G$24 -> Repasse/AquisiçãoLOTEPRICECLASSIC | O47: =Parâmetros!H7 -> 0.15 | P47: =Parâmetros!$F$7 -> 0.7 | R47: =Parâmetros!$L$7 -> 3400 | S47: =Parâmetros!$I$7 -> 121 | T47: =Parâmetros!$J$7 -> 240 | W47: =Parâmetros!$R$7 -> 0.1399 | X47: SIM | Y47: 0.0338 | Z47: SIM
A48: 64 | B48: 0.0017816 | D48: =Simulador!C79 -> 46 | E48: 2030-02-02 | F48: 1900-02-09 | G48: =VLOOKUP(F48&'Simulador Bradesco'!$I$13,$A$2:$B$600,2,FALSE) -> 0.0002189 | H48: =Simulador!A79 -> 2030-02-02 | L48: =IF(Simulador!A78="",Simulador!$C$8,Simulador!A78) -> 2030-01-02 | M48: =IF(Simulador!Q78="",0,Simulador!Q78*-1) -> -10409.9555 | N48: =Parâmetros!$D$22&Parâmetros!C8&Parâmetros!$D$3&Parâmetros!$G$24 -> Repasse/AquisiçãoRESIDENCIALPRICECLASSIC | O48: =Parâmetros!H8 -> 0.25 | P48: =Parâmetros!$F$8 -> 0.8 | R48: =Parâmetros!$L$8 -> 1021.25 | S48: =Parâmetros!$I$8 -> 121 | T48: =Parâmetros!$J$8 -> 420 | W48: =Parâmetros!$R$10 -> 0.123 | X48: NÃO | Y48: 0 | Z48: SIM
A49: 65 | B49: 0.0017816 | D49: =Simulador!C80 -> 47 | E49: 2030-03-02 | F49: 1900-02-09 | G49: =VLOOKUP(F49&'Simulador Bradesco'!$I$13,$A$2:$B$600,2,FALSE) -> 0.0002189 | H49: =Simulador!A80 -> 2030-03-02 | L49: =IF(Simulador!A79="",Simulador!$C$8,Simulador!A79) -> 2030-02-02 | M49: =IF(Simulador!Q79="",0,Simulador!Q79*-1) -> -10409.89646 | N49: =Parâmetros!$D$22&Parâmetros!C9&Parâmetros!$D$3&Parâmetros!$G$24 -> Repasse/AquisiçãoRESIDENCIAL > 225PRICECLASSIC | O49: =Parâmetros!H9 -> 0.25 | P49: =Parâmetros!$F$9 -> 0.8 | R49: =Parâmetros!$L$9 -> 2114.03 | S49: =Parâmetros!$I$9 -> 121 | T49: =Parâmetros!$J$9 -> 420 | W49: =Parâmetros!$R$9 -> 0.123 | X49: NÃO | Y49: 0 | Z49: SIM
A50: 66 | B50: 0.0022041 | D50: =Simulador!C81 -> 48 | E50: 2030-04-02 | F50: 1900-02-09 | G50: =VLOOKUP(F50&'Simulador Bradesco'!$I$13,$A$2:$B$600,2,FALSE) -> 0.0002189 | H50: =Simulador!A81 -> 2030-04-02 | L50: =IF(Simulador!A80="",Simulador!$C$8,Simulador!A80) -> 2030-03-02 | M50: =IF(Simulador!Q80="",0,Simulador!Q80*-1) -> -10409.83685 | O50: =Parâmetros!H10 -> 0.25 | P50: =Parâmetros!$F$10 -> 0.8 | R50: =Parâmetros!$L$10 -> 2114.03 | S50: =Parâmetros!$I$10 -> 121 | T50: =Parâmetros!$J$10 -> 420 | W50: =Parâmetros!#REF! ->  | X50: NÃO | Y50: 0 | Z50: SIM
A51: 67 | B51: 0.0022041 | D51: =Simulador!C82 -> 49 | E51: 2030-05-02 | F51: 1900-02-09 | G51: =VLOOKUP(F51&'Simulador Bradesco'!$I$13,$A$2:$B$600,2,FALSE) -> 0.0002189 | H51: =Simulador!A82 -> 2030-05-02 | L51: =IF(Simulador!A81="",Simulador!$C$8,Simulador!A81) -> 2030-04-02 | M51: =IF(Simulador!Q81="",0,Simulador!Q81*-1) -> -10409.77666 | N51: =Parâmetros!$D$22&Parâmetros!C11&Parâmetros!$D$3&Parâmetros!$G$24 -> Repasse/AquisiçãoCOMERCIALPRICECLASSIC | O51: =Parâmetros!H11 -> 0.25 | P51: =Parâmetros!$F$11 -> 0.8 | R51: =Parâmetros!$L$11 -> 3400 | S51: =Parâmetros!$I$11 -> 121 | T51: =Parâmetros!$J$11 -> 360 | W51: =Parâmetros!$R$11 -> 0 | X51: SIM | Y51: 0.0338 | Z51: SIM
A52: 68 | B52: 0.0022041 | D52: =Simulador!C83 -> 50 | E52: 2030-06-02 | F52: 1900-02-09 | G52: =VLOOKUP(F52&'Simulador Bradesco'!$I$13,$A$2:$B$600,2,FALSE) -> 0.0002189 | H52: =Simulador!A83 -> 2030-06-02 | L52: =IF(Simulador!A82="",Simulador!$C$8,Simulador!A82) -> 2030-05-02 | M52: =IF(Simulador!Q82="",0,Simulador!Q82*-1) -> -10409.71589 | N52: =Parâmetros!$D$22&Parâmetros!C7&Parâmetros!$D$2&Parâmetros!$G$25 -> Repasse/AquisiçãoLOTESACPRINCIPAL | O52: =Parâmetros!G7 -> 0.2 | P52: =Parâmetros!$E$7 -> 0.7 | R52: =Parâmetros!$L$7 -> 3400 | S52: =Parâmetros!$I$7 -> 121 | T52: =Parâmetros!$J$7 -> 240 | W52: =Parâmetros!$S$7 -> 0.1399 | X52: SIM | Y52: 0.0338 | Z52: SIM
A53: 69 | B53: 0.002983 | D53: =Simulador!C84 -> 51 | E53: 2030-07-02 | F53: 1900-02-09 | G53: =VLOOKUP(F53&'Simulador Bradesco'!$I$13,$A$2:$B$600,2,FALSE) -> 0.0002189 | H53: =Simulador!A84 -> 2030-07-02 | L53: =IF(Simulador!A83="",Simulador!$C$8,Simulador!A83) -> 2030-06-02 | M53: =IF(Simulador!Q83="",0,Simulador!Q83*-1) -> -10409.65452 | O53: =Parâmetros!G8 -> 0.35 | P53: =Parâmetros!$E$8 -> 0.8 | R53: =Parâmetros!$L$8 -> 1021.25 | S53: =Parâmetros!$I$8 -> 121 | T53: =Parâmetros!$J$8 -> 420 | W53: =Parâmetros!$S$8 -> 0 | X53: NÃO | Y53: 0 | Z53: SIM
A54: 70 | B54: 0.002983 | D54: =Simulador!C85 -> 52 | E54: 2030-08-02 | F54: 1900-02-09 | G54: =VLOOKUP(F54&'Simulador Bradesco'!$I$13,$A$2:$B$600,2,FALSE) -> 0.0002189 | H54: =Simulador!A85 -> 2030-08-02 | L54: =IF(Simulador!A84="",Simulador!$C$8,Simulador!A84) -> 2030-07-02 | M54: =IF(Simulador!Q84="",0,Simulador!Q84*-1) -> -10409.59256 | N54: =Parâmetros!$D$22&Parâmetros!C9&Parâmetros!$D$2&Parâmetros!$G$25 -> Repasse/AquisiçãoRESIDENCIAL > 225SACPRINCIPAL | O54: =Parâmetros!G9 -> 0.35 | P54: =Parâmetros!$E$9 -> 0.8 | R54: =Parâmetros!$L$9 -> 2114.03 | S54: =Parâmetros!$I$9 -> 121 | T54: =Parâmetros!$J$9 -> 420 | W54: =Parâmetros!$S$9 -> 0.123 | X54: NÃO | Y54: 0 | Z54: SIM
A55: 71 | B55: 0.002983 | D55: =Simulador!C86 -> 53 | E55: 2030-09-02 | F55: 1900-02-09 | G55: =VLOOKUP(F55&'Simulador Bradesco'!$I$13,$A$2:$B$600,2,FALSE) -> 0.0002189 | H55: =Simulador!A86 -> 2030-09-02 | L55: =IF(Simulador!A85="",Simulador!$C$8,Simulador!A85) -> 2030-08-02 | M55: =IF(Simulador!Q85="",0,Simulador!Q85*-1) -> -10409.53 | N55: =Parâmetros!$D$22&Parâmetros!C10&Parâmetros!$D$2&Parâmetros!$G$25 -> Repasse/AquisiçãoRESIDENCIALSACPRINCIPAL | O55: =Parâmetros!G10 -> 0.35 | P55: =Parâmetros!$E$10 -> 0.9 | R55: =Parâmetros!$L$10 -> 2114.03 | S55: =Parâmetros!$I$10 -> 121 | T55: =Parâmetros!$J$10 -> 420 | W55: =Parâmetros!$S$10 -> 0.123 | X55: NÃO | Y55: 0 | Z55: SIM
A56: 72 | B56: 0.0040109 | D56: =Simulador!C87 -> 54 | E56: 2030-10-02 | F56: 1900-02-10 | G56: =VLOOKUP(F56&'Simulador Bradesco'!$I$13,$A$2:$B$600,2,FALSE) -> 0.0002189 | H56: =Simulador!A87 -> 2030-10-02 | L56: =IF(Simulador!A86="",Simulador!$C$8,Simulador!A86) -> 2030-09-02 | M56: =IF(Simulador!Q86="",0,Simulador!Q86*-1) -> -10409.46683 | N56: =Parâmetros!$D$22&Parâmetros!C11&Parâmetros!$D$2&Parâmetros!$G$25 -> Repasse/AquisiçãoCOMERCIALSACPRINCIPAL | O56: =Parâmetros!G11 -> 0.35 | P56: =Parâmetros!$E$11 -> 0.8 | R56: =Parâmetros!$L$11 -> 3400 | S56: =Parâmetros!$I$11 -> 121 | T56: =Parâmetros!$J$11 -> 360 | W56: =Parâmetros!$S$11 -> 0 | X56: SIM | Y56: 0.0338 | Z56: SIM
A57: 73 | B57: 0.0040109 | D57: =Simulador!C88 -> 55 | E57: 2030-11-02 | F57: 1900-02-10 | G57: =VLOOKUP(F57&'Simulador Bradesco'!$I$13,$A$2:$B$600,2,FALSE) -> 0.0002189 | H57: =Simulador!A88 -> 2030-11-02 | L57: =IF(Simulador!A87="",Simulador!$C$8,Simulador!A87) -> 2030-10-02 | M57: =IF(Simulador!Q87="",0,Simulador!Q87*-1) -> -10409.40304 | N57: =Parâmetros!$D$22&Parâmetros!C7&Parâmetros!$D$3&Parâmetros!$G$25 -> Repasse/AquisiçãoLOTEPRICEPRINCIPAL | O57: =Parâmetros!H7 -> 0.15 | P57: =Parâmetros!$F$7 -> 0.7 | R57: =Parâmetros!$L$7 -> 3400 | S57: =Parâmetros!$I$7 -> 121 | T57: =Parâmetros!$J$7 -> 240 | W57: =Parâmetros!$S$7 -> 0.1399 | X57: SIM | Y57: 0.0338 | Z57: SIM
A58: 74 | B58: 0.0040109 | D58: =Simulador!C89 -> 56 | E58: 2030-12-02 | F58: 1900-02-10 | G58: =VLOOKUP(F58&'Simulador Bradesco'!$I$13,$A$2:$B$600,2,FALSE) -> 0.0002189 | H58: =Simulador!A89 -> 2030-12-02 | L58: =IF(Simulador!A88="",Simulador!$C$8,Simulador!A88) -> 2030-11-02 | M58: =IF(Simulador!Q88="",0,Simulador!Q88*-1) -> -10409.33864 | O58: =Parâmetros!H8 -> 0.25 | P58: =Parâmetros!$F$8 -> 0.8 | R58: =Parâmetros!$L$8 -> 1021.25 | S58: =Parâmetros!$I$8 -> 121 | T58: =Parâmetros!$J$8 -> 420 | W58: =Parâmetros!$S$8 -> 0 | X58: NÃO | Y58: 0 | Z58: SIM
A59: 75 | B59: 0.0081248 | D59: =Simulador!C90 -> 57 | E59: 2031-01-02 | F59: 1900-02-10 | G59: =VLOOKUP(F59&'Simulador Bradesco'!$I$13,$A$2:$B$600,2,FALSE) -> 0.0002189 | H59: =Simulador!A90 -> 2031-01-02 | L59: =IF(Simulador!A89="",Simulador!$C$8,Simulador!A89) -> 2030-12-02 | M59: =IF(Simulador!Q89="",0,Simulador!Q89*-1) -> -10409.27361 | N59: =Parâmetros!$D$22&Parâmetros!C9&Parâmetros!$D$3&Parâmetros!$G$25 -> Repasse/AquisiçãoRESIDENCIAL > 225PRICEPRINCIPAL | O59: =Parâmetros!H9 -> 0.25 | P59: =Parâmetros!$F$9 -> 0.8 | R59: =Parâmetros!$L$9 -> 2114.03 | S59: =Parâmetros!$I$9 -> 121 | T59: =Parâmetros!$J$9 -> 420 | W59: =Parâmetros!$S$9 -> 0.123 | X59: NÃO | Y59: 0 | Z59: SIM
A60: 76 | B60: 0.0081248 | D60: =Simulador!C91 -> 58 | E60: 2031-02-02 | F60: 1900-02-10 | G60: =VLOOKUP(F60&'Simulador Bradesco'!$I$13,$A$2:$B$600,2,FALSE) -> 0.0002189 | H60: =Simulador!A91 -> 2031-02-02 | L60: =IF(Simulador!A90="",Simulador!$C$8,Simulador!A90) -> 2031-01-02 | M60: =IF(Simulador!Q90="",0,Simulador!Q90*-1) -> -10409.20795 | N60: =Parâmetros!$D$22&Parâmetros!C10&Parâmetros!$D$3&Parâmetros!$G$25 -> Repasse/AquisiçãoRESIDENCIALPRICEPRINCIPAL | O60: =Parâmetros!H10 -> 0.25 | P60: =Parâmetros!$F$10 -> 0.8 | R60: =Parâmetros!$L$10 -> 2114.03 | S60: =Parâmetros!$I$10 -> 121 | T60: =Parâmetros!$J$10 -> 420 | W60: =Parâmetros!$S$10 -> 0.123 | X60: NÃO | Y60: 0 | Z60: SIM
A61: 77 | B61: 0.0081248 | D61: =Simulador!C92 -> 59 | E61: 2031-03-02 | F61: 1900-02-10 | G61: =VLOOKUP(F61&'Simulador Bradesco'!$I$13,$A$2:$B$600,2,FALSE) -> 0.0002189 | H61: =Simulador!A92 -> 2031-03-02 | L61: =IF(Simulador!A91="",Simulador!$C$8,Simulador!A91) -> 2031-02-02 | M61: =IF(Simulador!Q91="",0,Simulador!Q91*-1) -> -10409.14165 | N61: =Parâmetros!$D$22&Parâmetros!C11&Parâmetros!$D$3&Parâmetros!$G$25 -> Repasse/AquisiçãoCOMERCIALPRICEPRINCIPAL | O61: =Parâmetros!H11 -> 0.25 | P61: =Parâmetros!$F$11 -> 0.8 | R61: =Parâmetros!$L$11 -> 3400 | S61: =Parâmetros!$I$11 -> 121 | T61: =Parâmetros!$J$11 -> 360 | W61: =Parâmetros!$S$11 -> 0 | X61: SIM | Y61: 0.0338 | Z61: SIM
A62: 78 | B62: 0.0095272 | D62: =Simulador!C93 -> 60 | E62: 2031-04-02 | F62: 1900-02-10 | G62: =VLOOKUP(F62&'Simulador Bradesco'!$I$13,$A$2:$B$600,2,FALSE) -> 0.0002189 | H62: =Simulador!A93 -> 2031-04-02 | L62: =IF(Simulador!A92="",Simulador!$C$8,Simulador!A92) -> 2031-03-02 | M62: =IF(Simulador!Q92="",0,Simulador!Q92*-1) -> -10409.07471 | N62: =Parâmetros!$D$22&Parâmetros!C7&Parâmetros!$D$2&Parâmetros!$G$26 -> Repasse/AquisiçãoLOTESACPRIVATE | O62: =Parâmetros!G7 -> 0.2 | P62: =Parâmetros!$E$7 -> 0.7 | R62: =Parâmetros!$L$7 -> 3400 | S62: =Parâmetros!$I$7 -> 121 | T62: =Parâmetros!$J$7 -> 240 | W62: =Parâmetros!$T$7 -> 0.1399 | X62: SIM | Y62: 0.0338 | Z62: SIM
A63: 79 | B63: 0.0095272 | D63: =Simulador!C94 -> 61 | E63: 2031-05-02 | F63: 1900-02-10 | G63: =VLOOKUP(F63&'Simulador Bradesco'!$I$13,$A$2:$B$600,2,FALSE) -> 0.0002189 | H63: =Simulador!A94 -> 2031-05-02 | L63: =IF(Simulador!A93="",Simulador!$C$8,Simulador!A93) -> 2031-04-02 | M63: =IF(Simulador!Q93="",0,Simulador!Q93*-1) -> -10409.00712 | O63: =Parâmetros!G8 -> 0.35 | P63: =Parâmetros!$E$8 -> 0.8 | R63: =Parâmetros!$L$8 -> 1021.25 | S63: =Parâmetros!$I$8 -> 121 | T63: =Parâmetros!$J$8 -> 420 | W63: =Parâmetros!$T$8 -> 0 | X63: NÃO | Y63: 0 | Z63: SIM
A64: 80 | B64: 0.0095272 | D64: =Simulador!C95 -> 62 | E64: 2031-06-02 | F64: 1900-02-10 | G64: =VLOOKUP(F64&'Simulador Bradesco'!$I$13,$A$2:$B$600,2,FALSE) -> 0.0002189 | H64: =Simulador!A95 -> 2031-06-02 | L64: =IF(Simulador!A94="",Simulador!$C$8,Simulador!A94) -> 2031-05-02 | M64: =IF(Simulador!Q94="",0,Simulador!Q94*-1) -> -10408.93887 | N64: =Parâmetros!$D$22&Parâmetros!C9&Parâmetros!$D$2&Parâmetros!$G$26 -> Repasse/AquisiçãoRESIDENCIAL > 225SACPRIVATE | O64: =Parâmetros!G9 -> 0.35 | P64: =Parâmetros!$E$9 -> 0.8 | R64: =Parâmetros!$L$9 -> 2114.03 | S64: =Parâmetros!$I$9 -> 121 | T64: =Parâmetros!$J$9 -> 420 | W64: =Parâmetros!$T$9 -> 0.123 | X64: NÃO | Y64: 0 | Z64: SIM
A65: 18PRIME | B65: 0.0001026 | D65: =Simulador!C96 -> 63 | E65: 2031-07-02 | F65: 1900-02-10 | G65: =VLOOKUP(F65&'Simulador Bradesco'!$I$13,$A$2:$B$600,2,FALSE) -> 0.0002189 | H65: =Simulador!A96 -> 2031-07-02 | L65: =IF(Simulador!A95="",Simulador!$C$8,Simulador!A95) -> 2031-06-02 | M65: =IF(Simulador!Q95="",0,Simulador!Q95*-1) -> -10408.86995 | N65: =Parâmetros!$D$22&Parâmetros!C10&Parâmetros!$D$2&Parâmetros!$G$26 -> Repasse/AquisiçãoRESIDENCIALSACPRIVATE | O65: =Parâmetros!G10 -> 0.35 | P65: =Parâmetros!$E$10 -> 0.9 | R65: =Parâmetros!$L$10 -> 2114.03 | S65: =Parâmetros!$I$10 -> 121 | T65: =Parâmetros!$J$10 -> 420 | W65: =Parâmetros!$T$10 -> 0.123 | X65: NÃO | Y65: 0 | Z65: SIM
A66: 19PRIME | B66: 0.0001026 | D66: =Simulador!C97 -> 64 | E66: 2031-08-02 | F66: 1900-02-10 | G66: =VLOOKUP(F66&'Simulador Bradesco'!$I$13,$A$2:$B$600,2,FALSE) -> 0.0002189 | H66: =Simulador!A97 -> 2031-08-02 | L66: =IF(Simulador!A96="",Simulador!$C$8,Simulador!A96) -> 2031-07-02 | M66: =IF(Simulador!Q96="",0,Simulador!Q96*-1) -> -10408.80037 | N66: =Parâmetros!$D$22&Parâmetros!C11&Parâmetros!$D$2&Parâmetros!$G$26 -> Repasse/AquisiçãoCOMERCIALSACPRIVATE | O66: =Parâmetros!G11 -> 0.35 | P66: =Parâmetros!$E$11 -> 0.8 | R66: =Parâmetros!$L$11 -> 3400 | S66: =Parâmetros!$I$11 -> 121 | T66: =Parâmetros!$J$11 -> 360 | W66: =Parâmetros!$T$11 -> 0 | X66: SIM | Y66: 0.0338 | Z66: SIM
A67: 20PRIME | B67: 0.0001026 | D67: =Simulador!C98 -> 65 | E67: =H67 -> 2031-09-02 | F67: 1900-02-10 | G67: =VLOOKUP(F67&'Simulador Bradesco'!$I$13,$A$2:$B$600,2,FALSE) -> 0.0002189 | H67: =Simulador!A98 -> 2031-09-02 | L67: =IF(Simulador!A97="",Simulador!$C$8,Simulador!A97) -> 2031-08-02 | M67: =IF(Simulador!Q97="",0,Simulador!Q97*-1) -> -10408.73011 | N67: =Parâmetros!$D$22&Parâmetros!C7&Parâmetros!$D$3&Parâmetros!$G$26 -> Repasse/AquisiçãoLOTEPRICEPRIVATE | O67: =Parâmetros!H7 -> 0.15 | P67: =Parâmetros!$F$7 -> 0.7 | R67: =Parâmetros!$L$7 -> 3400 | S67: =Parâmetros!$I$7 -> 121 | T67: =Parâmetros!$J$7 -> 240 | W67: =Parâmetros!$T$7 -> 0.1399 | X67: SIM | Y67: 0.0338 | Z67: SIM
A68: 21PRIME | B68: 0.0001105 | D68: =Simulador!C99 -> 66 | E68: 2031-10-02 | F68: =ROUNDDOWN(_xlfn.DAYS(E68,$B$1)/365,0) -> 1900-02-11 | G68: =VLOOKUP(F68&'Simulador Bradesco'!$I$13,$A$2:$B$600,2,FALSE) -> 0.0003104 | H68: =Simulador!A99 -> 2031-10-02 | L68: =IF(Simulador!A98="",Simulador!$C$8,Simulador!A98) -> 2031-09-02 | M68: =IF(Simulador!Q98="",0,Simulador!Q98*-1) -> -10408.65917 | O68: =Parâmetros!H8 -> 0.25 | P68: =Parâmetros!$F$8 -> 0.8 | R68: =Parâmetros!$L$8 -> 1021.25 | S68: =Parâmetros!$I$8 -> 121 | T68: =Parâmetros!$J$8 -> 420 | W68: =Parâmetros!$T$8 -> 0 | X68: NÃO | Y68: 0 | Z68: SIM
A69: 22PRIME | B69: 0.0001105 | D69: =Simulador!C100 -> 67 | E69: 2031-11-02 | F69: 1900-02-11 | G69: =VLOOKUP(F69&'Simulador Bradesco'!$I$13,$A$2:$B$600,2,FALSE) -> 0.0003104 | H69: =Simulador!A100 -> 2031-11-02 | L69: =IF(Simulador!A99="",Simulador!$C$8,Simulador!A99) -> 2031-10-02 | M69: =IF(Simulador!Q99="",0,Simulador!Q99*-1) -> -10500.81562 | N69: =Parâmetros!$D$22&Parâmetros!C9&Parâmetros!$D$3&Parâmetros!$G$26 -> Repasse/AquisiçãoRESIDENCIAL > 225PRICEPRIVATE | O69: =Parâmetros!H9 -> 0.25 | P69: =Parâmetros!$F$9 -> 0.8 | R69: =Parâmetros!$L$9 -> 2114.03 | S69: =Parâmetros!$I$9 -> 121 | T69: =Parâmetros!$J$9 -> 420 | W69: =Parâmetros!$T$9 -> 0.123 | X69: NÃO | Y69: 0 | Z69: SIM
A70: 23PRIME | B70: 0.0001105 | D70: =Simulador!C101 -> 68 | E70: 2031-12-02 | F70: 1900-02-11 | G70: =VLOOKUP(F70&'Simulador Bradesco'!$I$13,$A$2:$B$600,2,FALSE) -> 0.0003104 | H70: =Simulador!A101 -> 2031-12-02 | L70: =IF(Simulador!A100="",Simulador!$C$8,Simulador!A100) -> 2031-11-02 | M70: =IF(Simulador!Q100="",0,Simulador!Q100*-1) -> -10500.71306 | N70: =Parâmetros!$D$22&Parâmetros!C10&Parâmetros!$D$3&Parâmetros!$G$26 -> Repasse/AquisiçãoRESIDENCIALPRICEPRIVATE | O70: =Parâmetros!H10 -> 0.25 | P70: =Parâmetros!$F$10 -> 0.8 | R70: =Parâmetros!$L$10 -> 2114.03 | S70: =Parâmetros!$I$10 -> 121 | T70: =Parâmetros!$J$10 -> 420 | W70: =Parâmetros!$T$10 -> 0.123 | X70: NÃO | Y70: 0 | Z70: SIM
A71: 24PRIME | B71: 0.0001167 | D71: =Simulador!C102 -> 69 | E71: 2032-01-02 | F71: 1900-02-11 | G71: =VLOOKUP(F71&'Simulador Bradesco'!$I$13,$A$2:$B$600,2,FALSE) -> 0.0003104 | H71: =Simulador!A102 -> 2032-01-02 | L71: =IF(Simulador!A101="",Simulador!$C$8,Simulador!A101) -> 2031-12-02 | M71: =IF(Simulador!Q101="",0,Simulador!Q101*-1) -> -10500.60951 | N71: =Parâmetros!$D$22&Parâmetros!C11&Parâmetros!$D$3&Parâmetros!$G$26 -> Repasse/AquisiçãoCOMERCIALPRICEPRIVATE | O71: =Parâmetros!H11 -> 0.25 | P71: =Parâmetros!$F$11 -> 0.8 | R71: =Parâmetros!$L$11 -> 3400 | S71: =Parâmetros!$I$11 -> 121 | T71: =Parâmetros!$J$11 -> 360 | W71: =Parâmetros!$T$11 -> 0 | X71: SIM | Y71: 0.0338 | Z71: SIM
A72: 25PRIME | B72: 0.0001167 | D72: =Simulador!C103 -> 70 | E72: 2032-02-02 | F72: 1900-02-11 | G72: =VLOOKUP(F72&'Simulador Bradesco'!$I$13,$A$2:$B$600,2,FALSE) -> 0.0003104 | H72: =Simulador!A103 -> 2032-02-02 | L72: =IF(Simulador!A102="",Simulador!$C$8,Simulador!A102) -> 2032-01-02 | M72: =IF(Simulador!Q102="",0,Simulador!Q102*-1) -> -10500.50495
A73: 26PRIME | B73: 0.0001167 | D73: =Simulador!C104 -> 71 | E73: 2032-03-02 | F73: 1900-02-11 | G73: =VLOOKUP(F73&'Simulador Bradesco'!$I$13,$A$2:$B$600,2,FALSE) -> 0.0003104 | H73: =Simulador!A104 -> 2032-03-02 | L73: =IF(Simulador!A103="",Simulador!$C$8,Simulador!A103) -> 2032-02-02 | M73: =IF(Simulador!Q103="",0,Simulador!Q103*-1) -> -10500.39937
A74: 27PRIME | B74: 0.0001276 | D74: =Simulador!C105 -> 72 | E74: 2032-04-02 | F74: 1900-02-11 | G74: =VLOOKUP(F74&'Simulador Bradesco'!$I$13,$A$2:$B$600,2,FALSE) -> 0.0003104 | H74: =Simulador!A105 -> 2032-04-02 | L74: =IF(Simulador!A104="",Simulador!$C$8,Simulador!A104) -> 2032-03-02 | M74: =IF(Simulador!Q104="",0,Simulador!Q104*-1) -> -10500.29277
A75: 28PRIME | B75: 0.0001276 | D75: =Simulador!C106 -> 73 | E75: 2032-05-02 | F75: 1900-02-11 | G75: =VLOOKUP(F75&'Simulador Bradesco'!$I$13,$A$2:$B$600,2,FALSE) -> 0.0003104 | H75: =Simulador!A106 -> 2032-05-02 | L75: =IF(Simulador!A105="",Simulador!$C$8,Simulador!A105) -> 2032-04-02 | M75: =IF(Simulador!Q105="",0,Simulador!Q105*-1) -> -10500.18513
A76: 29PRIME | B76: 0.0001276 | D76: =Simulador!C107 -> 74 | E76: 2032-06-02 | F76: 1900-02-11 | G76: =VLOOKUP(F76&'Simulador Bradesco'!$I$13,$A$2:$B$600,2,FALSE) -> 0.0003104 | H76: =Simulador!A107 -> 2032-06-02 | L76: =IF(Simulador!A106="",Simulador!$C$8,Simulador!A106) -> 2032-05-02 | M76: =IF(Simulador!Q106="",0,Simulador!Q106*-1) -> -10500.07645
A77: 30PRIME | B77: 0.0001408 | D77: =Simulador!C108 -> 75 | E77: 2032-07-02 | F77: 1900-02-11 | G77: =VLOOKUP(F77&'Simulador Bradesco'!$I$13,$A$2:$B$600,2,FALSE) -> 0.0003104 | H77: =Simulador!A108 -> 2032-07-02 | L77: =IF(Simulador!A107="",Simulador!$C$8,Simulador!A107) -> 2032-06-02 | M77: =IF(Simulador!Q107="",0,Simulador!Q107*-1) -> -10499.96672
A78: 31PRIME | B78: 0.0001408 | D78: =Simulador!C109 -> 76 | E78: 2032-08-02 | F78: 1900-02-11 | G78: =VLOOKUP(F78&'Simulador Bradesco'!$I$13,$A$2:$B$600,2,FALSE) -> 0.0003104 | H78: =Simulador!A109 -> 2032-08-02 | L78: =IF(Simulador!A108="",Simulador!$C$8,Simulador!A108) -> 2032-07-02 | M78: =IF(Simulador!Q108="",0,Simulador!Q108*-1) -> -10499.85591
A79: 32PRIME | B79: 0.0001408 | D79: =Simulador!C110 -> 77 | E79: 2032-09-02 | F79: 1900-02-11 | G79: =VLOOKUP(F79&'Simulador Bradesco'!$I$13,$A$2:$B$600,2,FALSE) -> 0.0003104 | H79: =Simulador!A110 -> 2032-09-02 | L79: =IF(Simulador!A109="",Simulador!$C$8,Simulador!A109) -> 2032-08-02 | M79: =IF(Simulador!Q109="",0,Simulador!Q109*-1) -> -10499.74403
A80: 33PRIME | B80: 0.0001535 | D80: =Simulador!C111 -> 78 | E80: 2032-10-02 | F80: 1900-02-12 | G80: =VLOOKUP(F80&'Simulador Bradesco'!$I$13,$A$2:$B$600,2,FALSE) -> 0.0003104 | H80: =Simulador!A111 -> 2032-10-02 | L80: =IF(Simulador!A110="",Simulador!$C$8,Simulador!A110) -> 2032-09-02 | M80: =IF(Simulador!Q110="",0,Simulador!Q110*-1) -> -10499.63107
A81: 34PRIME | B81: 0.0001535 | D81: =Simulador!C112 -> 79 | E81: 2032-11-02 | F81: 1900-02-12 | G81: =VLOOKUP(F81&'Simulador Bradesco'!$I$13,$A$2:$B$600,2,FALSE) -> 0.0003104 | H81: =Simulador!A112 -> 2032-11-02 | L81: =IF(Simulador!A111="",Simulador!$C$8,Simulador!A111) -> 2032-10-02 | M81: =IF(Simulador!Q111="",0,Simulador!Q111*-1) -> -10499.517
A82: 35PRIME | B82: 0.0001535 | D82: =Simulador!C113 -> 80 | E82: 2032-12-02 | F82: 1900-02-12 | G82: =VLOOKUP(F82&'Simulador Bradesco'!$I$13,$A$2:$B$600,2,FALSE) -> 0.0003104 | H82: =Simulador!A113 -> 2032-12-02 | L82: =IF(Simulador!A112="",Simulador!$C$8,Simulador!A112) -> 2032-11-02 | M82: =IF(Simulador!Q112="",0,Simulador!Q112*-1) -> -10499.40183
A83: 36PRIME | B83: 0.0001776 | D83: =Simulador!C114 -> 81 | E83: 2033-01-02 | F83: 1900-02-12 | G83: =VLOOKUP(F83&'Simulador Bradesco'!$I$13,$A$2:$B$600,2,FALSE) -> 0.0003104 | H83: =Simulador!A114 -> 2033-01-02 | L83: =IF(Simulador!A113="",Simulador!$C$8,Simulador!A113) -> 2032-12-02 | M83: =IF(Simulador!Q113="",0,Simulador!Q113*-1) -> -10499.28554
A84: 37PRIME | B84: 0.0001776 | D84: =Simulador!C115 -> 82 | E84: 2033-02-02 | F84: 1900-02-12 | G84: =VLOOKUP(F84&'Simulador Bradesco'!$I$13,$A$2:$B$600,2,FALSE) -> 0.0003104 | H84: =Simulador!A115 -> 2033-02-02 | L84: =IF(Simulador!A114="",Simulador!$C$8,Simulador!A114) -> 2033-01-02 | M84: =IF(Simulador!Q114="",0,Simulador!Q114*-1) -> -10499.16812
A85: 38PRIME | B85: 0.0001776 | D85: =Simulador!C116 -> 83 | E85: 2033-03-02 | F85: 1900-02-12 | G85: =VLOOKUP(F85&'Simulador Bradesco'!$I$13,$A$2:$B$600,2,FALSE) -> 0.0003104 | H85: =Simulador!A116 -> 2033-03-02 | L85: =IF(Simulador!A115="",Simulador!$C$8,Simulador!A115) -> 2033-02-02 | M85: =IF(Simulador!Q115="",0,Simulador!Q115*-1) -> -10499.04956
A86: 39PRIME | B86: 0.0002189 | D86: =Simulador!C117 -> 84 | E86: 2033-04-02 | F86: 1900-02-12 | G86: =VLOOKUP(F86&'Simulador Bradesco'!$I$13,$A$2:$B$600,2,FALSE) -> 0.0003104 | H86: =Simulador!A117 -> 2033-04-02 | L86: =IF(Simulador!A116="",Simulador!$C$8,Simulador!A116) -> 2033-03-02 | M86: =IF(Simulador!Q116="",0,Simulador!Q116*-1) -> -10498.92985
A87: 40PRIME | B87: 0.0002189 | D87: =Simulador!C118 -> 85 | E87: 2033-05-02 | F87: 1900-02-12 | G87: =VLOOKUP(F87&'Simulador Bradesco'!$I$13,$A$2:$B$600,2,FALSE) -> 0.0003104 | H87: =Simulador!A118 -> 2033-05-02 | L87: =IF(Simulador!A117="",Simulador!$C$8,Simulador!A117) -> 2033-04-02 | M87: =IF(Simulador!Q117="",0,Simulador!Q117*-1) -> -10498.80897
A88: 41PRIME | B88: 0.0002189 | D88: =Simulador!C119 -> 86 | E88: 2033-06-02 | F88: 1900-02-12 | G88: =VLOOKUP(F88&'Simulador Bradesco'!$I$13,$A$2:$B$600,2,FALSE) -> 0.0003104 | H88: =Simulador!A119 -> 2033-06-02 | L88: =IF(Simulador!A118="",Simulador!$C$8,Simulador!A118) -> 2033-05-02 | M88: =IF(Simulador!Q118="",0,Simulador!Q118*-1) -> -10498.68692
A89: 42PRIME | B89: 0.0003104 | D89: =Simulador!C120 -> 87 | E89: 2033-07-02 | F89: 1900-02-12 | G89: =VLOOKUP(F89&'Simulador Bradesco'!$I$13,$A$2:$B$600,2,FALSE) -> 0.0003104 | H89: =Simulador!A120 -> 2033-07-02 | L89: =IF(Simulador!A119="",Simulador!$C$8,Simulador!A119) -> 2033-06-02 | M89: =IF(Simulador!Q119="",0,Simulador!Q119*-1) -> -10498.56369
A90: 43PRIME | B90: 0.0003104 | D90: =Simulador!C121 -> 88 | E90: 2033-08-02 | F90: 1900-02-12 | G90: =VLOOKUP(F90&'Simulador Bradesco'!$I$13,$A$2:$B$600,2,FALSE) -> 0.0003104 | H90: =Simulador!A121 -> 2033-08-02 | L90: =IF(Simulador!A120="",Simulador!$C$8,Simulador!A120) -> 2033-07-02 | M90: =IF(Simulador!Q120="",0,Simulador!Q120*-1) -> -10498.43926
A91: 44PRIME | B91: 0.0003104 | D91: =Simulador!C122 -> 89 | E91: 2033-09-02 | F91: 1900-02-12 | G91: =VLOOKUP(F91&'Simulador Bradesco'!$I$13,$A$2:$B$600,2,FALSE) -> 0.0003104 | H91: =Simulador!A122 -> 2033-09-02 | L91: =IF(Simulador!A121="",Simulador!$C$8,Simulador!A121) -> 2033-08-02 | M91: =IF(Simulador!Q121="",0,Simulador!Q121*-1) -> -10498.31362
A92: 45PRIME | B92: 0.0004262 | D92: =Simulador!C123 -> 90 | E92: 2033-10-02 | F92: 1900-02-13 | G92: =VLOOKUP(F92&'Simulador Bradesco'!$I$13,$A$2:$B$600,2,FALSE) -> 0.0003104 | H92: =Simulador!A123 -> 2033-10-02 | L92: =IF(Simulador!A122="",Simulador!$C$8,Simulador!A122) -> 2033-09-02 | M92: =IF(Simulador!Q122="",0,Simulador!Q122*-1) -> -10498.18676
A93: 46PRIME | B93: 0.0004262 | D93: =Simulador!C124 -> 91 | E93: 2033-11-02 | F93: 1900-02-13 | G93: =VLOOKUP(F93&'Simulador Bradesco'!$I$13,$A$2:$B$600,2,FALSE) -> 0.0003104 | H93: =Simulador!A124 -> 2033-11-02 | L93: =IF(Simulador!A123="",Simulador!$C$8,Simulador!A123) -> 2033-10-02 | M93: =IF(Simulador!Q123="",0,Simulador!Q123*-1) -> -10498.05866
A94: 47PRIME | B94: 0.0004262 | D94: =Simulador!C125 -> 92 | E94: 2033-12-02 | F94: 1900-02-13 | G94: =VLOOKUP(F94&'Simulador Bradesco'!$I$13,$A$2:$B$600,2,FALSE) -> 0.0003104 | H94: =Simulador!A125 -> 2033-12-02 | L94: =IF(Simulador!A124="",Simulador!$C$8,Simulador!A124) -> 2033-11-02 | M94: =IF(Simulador!Q124="",0,Simulador!Q124*-1) -> -10497.92932
A95: 48PRIME | B95: 0.0005751 | D95: =Simulador!C126 -> 93 | E95: 2034-01-02 | F95: 1900-02-13 | G95: =VLOOKUP(F95&'Simulador Bradesco'!$I$13,$A$2:$B$600,2,FALSE) -> 0.0003104 | H95: =Simulador!A126 -> 2034-01-02 | L95: =IF(Simulador!A125="",Simulador!$C$8,Simulador!A125) -> 2033-12-02 | M95: =IF(Simulador!Q125="",0,Simulador!Q125*-1) -> -10497.79873
A96: 49PRIME | B96: 0.0005751 | D96: =Simulador!C127 -> 94 | E96: 2034-02-02 | F96: 1900-02-13 | G96: =VLOOKUP(F96&'Simulador Bradesco'!$I$13,$A$2:$B$600,2,FALSE) -> 0.0003104 | H96: =Simulador!A127 -> 2034-02-02 | L96: =IF(Simulador!A126="",Simulador!$C$8,Simulador!A126) -> 2034-01-02 | M96: =IF(Simulador!Q126="",0,Simulador!Q126*-1) -> -10497.66687
A97: 50PRIME | B97: 0.0005751 | D97: =Simulador!C128 -> 95 | E97: 2034-03-02 | F97: 1900-02-13 | G97: =VLOOKUP(F97&'Simulador Bradesco'!$I$13,$A$2:$B$600,2,FALSE) -> 0.0003104 | H97: =Simulador!A128 -> 2034-03-02 | L97: =IF(Simulador!A127="",Simulador!$C$8,Simulador!A127) -> 2034-02-02 | M97: =IF(Simulador!Q127="",0,Simulador!Q127*-1) -> -10497.53372
A98: 51PRIME | B98: 0.0007368 | D98: =Simulador!C129 -> 96 | E98: 2034-04-02 | F98: 1900-02-13 | G98: =VLOOKUP(F98&'Simulador Bradesco'!$I$13,$A$2:$B$600,2,FALSE) -> 0.0003104 | H98: =Simulador!A129 -> 2034-04-02 | L98: =IF(Simulador!A128="",Simulador!$C$8,Simulador!A128) -> 2034-03-02 | M98: =IF(Simulador!Q128="",0,Simulador!Q128*-1) -> -10497.39929
A99: 52PRIME | B99: 0.0007368 | D99: =Simulador!C130 -> 97 | E99: 2034-05-02 | F99: 1900-02-13 | G99: =VLOOKUP(F99&'Simulador Bradesco'!$I$13,$A$2:$B$600,2,FALSE) -> 0.0003104 | H99: =Simulador!A130 -> 2034-05-02 | L99: =IF(Simulador!A129="",Simulador!$C$8,Simulador!A129) -> 2034-04-02 | M99: =IF(Simulador!Q129="",0,Simulador!Q129*-1) -> -10497.26354
A100: 53PRIME | B100: 0.0007368 | D100: =Simulador!C131 -> 98 | E100: 2034-06-02 | F100: 1900-02-13 | G100: =VLOOKUP(F100&'Simulador Bradesco'!$I$13,$A$2:$B$600,2,FALSE) -> 0.0003104 | H100: =Simulador!A131 -> 2034-06-02 | L100: =IF(Simulador!A130="",Simulador!$C$8,Simulador!A130) -> 2034-05-02 | M100: =IF(Simulador!Q130="",0,Simulador!Q130*-1) -> -10497.12648
A101: 54PRIME | B101: 0.0009072 | D101: =Simulador!C132 -> 99 | E101: 2034-07-02 | F101: 1900-02-13 | G101: =VLOOKUP(F101&'Simulador Bradesco'!$I$13,$A$2:$B$600,2,FALSE) -> 0.0003104 | H101: =Simulador!A132 -> 2034-07-02 | L101: =IF(Simulador!A131="",Simulador!$C$8,Simulador!A131) -> 2034-06-02 | M101: =IF(Simulador!Q131="",0,Simulador!Q131*-1) -> -10496.98809
A102: 55PRIME | B102: 0.0009072 | D102: =Simulador!C133 -> 100 | E102: 2034-08-02 | F102: 1900-02-13 | G102: =VLOOKUP(F102&'Simulador Bradesco'!$I$13,$A$2:$B$600,2,FALSE) -> 0.0003104 | H102: =Simulador!A133 -> 2034-08-02 | L102: =IF(Simulador!A132="",Simulador!$C$8,Simulador!A132) -> 2034-07-02 | M102: =IF(Simulador!Q132="",0,Simulador!Q132*-1) -> -10496.84835
A103: 56PRIME | B103: 0.0009072 | D103: =Simulador!C134 -> 101 | E103: 2034-09-02 | F103: 1900-02-13 | G103: =VLOOKUP(F103&'Simulador Bradesco'!$I$13,$A$2:$B$600,2,FALSE) -> 0.0003104 | H103: =Simulador!A134 -> 2034-09-02 | L103: =IF(Simulador!A133="",Simulador!$C$8,Simulador!A133) -> 2034-08-02 | M103: =IF(Simulador!Q133="",0,Simulador!Q133*-1) -> -10496.70726
A104: 57PRIME | B104: 0.0011075 | D104: =Simulador!C135 -> 102 | E104: 2034-10-02 | F104: 1900-02-14 | G104: =VLOOKUP(F104&'Simulador Bradesco'!$I$13,$A$2:$B$600,2,FALSE) -> 0.0004262 | H104: =Simulador!A135 -> 2034-10-02 | L104: =IF(Simulador!A134="",Simulador!$C$8,Simulador!A134) -> 2034-09-02 | M104: =IF(Simulador!Q134="",0,Simulador!Q134*-1) -> -10496.56479
A105: 58PRIME | B105: 0.0011075 | D105: =Simulador!C136 -> 103 | E105: 2034-11-02 | F105: 1900-02-14 | G105: =VLOOKUP(F105&'Simulador Bradesco'!$I$13,$A$2:$B$600,2,FALSE) -> 0.0004262 | H105: =Simulador!A136 -> 2034-11-02 | L105: =IF(Simulador!A135="",Simulador!$C$8,Simulador!A135) -> 2034-10-02 | M105: =IF(Simulador!Q135="",0,Simulador!Q135*-1) -> -10611.50286
A106: 59PRIME | B106: 0.0011075 | D106: =Simulador!C137 -> 104 | E106: 2034-12-02 | F106: 1900-02-14 | G106: =VLOOKUP(F106&'Simulador Bradesco'!$I$13,$A$2:$B$600,2,FALSE) -> 0.0004262 | H106: =Simulador!A137 -> 2034-12-02 | L106: =IF(Simulador!A136="",Simulador!$C$8,Simulador!A136) -> 2034-11-02 | M106: =IF(Simulador!Q136="",0,Simulador!Q136*-1) -> -10611.30343
A107: 60PRIME | B107: 0.0013539 | D107: =Simulador!C138 -> 105 | E107: 2035-01-02 | F107: 1900-02-14 | G107: =VLOOKUP(F107&'Simulador Bradesco'!$I$13,$A$2:$B$600,2,FALSE) -> 0.0004262 | H107: =Simulador!A138 -> 2035-01-02 | L107: =IF(Simulador!A137="",Simulador!$C$8,Simulador!A137) -> 2034-12-02 | M107: =IF(Simulador!Q137="",0,Simulador!Q137*-1) -> -10611.10206
A108: 61PRIME | B108: 0.0013539 | D108: =Simulador!C139 -> 106 | E108: 2035-02-02 | F108: 1900-02-14 | G108: =VLOOKUP(F108&'Simulador Bradesco'!$I$13,$A$2:$B$600,2,FALSE) -> 0.0004262 | H108: =Simulador!A139 -> 2035-02-02 | L108: =IF(Simulador!A138="",Simulador!$C$8,Simulador!A138) -> 2035-01-02 | M108: =IF(Simulador!Q138="",0,Simulador!Q138*-1) -> -10610.89873
A109: 62PRIME | B109: 0.0013539 | D109: =Simulador!C140 -> 107 | E109: 2035-03-02 | F109: 1900-02-14 | G109: =VLOOKUP(F109&'Simulador Bradesco'!$I$13,$A$2:$B$600,2,FALSE) -> 0.0004262 | H109: =Simulador!A140 -> 2035-03-02 | L109: =IF(Simulador!A139="",Simulador!$C$8,Simulador!A139) -> 2035-02-02 | M109: =IF(Simulador!Q139="",0,Simulador!Q139*-1) -> -10610.69343
A110: 63PRIME | B110: 0.0017452 | D110: =Simulador!C141 -> 108 | E110: 2035-04-02 | F110: 1900-02-14 | G110: =VLOOKUP(F110&'Simulador Bradesco'!$I$13,$A$2:$B$600,2,FALSE) -> 0.0004262 | H110: =Simulador!A141 -> 2035-04-02 | L110: =IF(Simulador!A140="",Simulador!$C$8,Simulador!A140) -> 2035-03-02 | M110: =IF(Simulador!Q140="",0,Simulador!Q140*-1) -> -10610.48614
A111: 64PRIME | B111: 0.0017452 | D111: =Simulador!C142 -> 109 | E111: 2035-05-02 | F111: 1900-02-14 | G111: =VLOOKUP(F111&'Simulador Bradesco'!$I$13,$A$2:$B$600,2,FALSE) -> 0.0004262 | H111: =Simulador!A142 -> 2035-05-02 | L111: =IF(Simulador!A141="",Simulador!$C$8,Simulador!A141) -> 2035-04-02 | M111: =IF(Simulador!Q141="",0,Simulador!Q141*-1) -> -10610.27683
A112: 65PRIME | B112: 0.0017452 | D112: =Simulador!C143 -> 110 | E112: 2035-06-02 | F112: 1900-02-14 | G112: =VLOOKUP(F112&'Simulador Bradesco'!$I$13,$A$2:$B$600,2,FALSE) -> 0.0004262 | H112: =Simulador!A143 -> 2035-06-02 | L112: =IF(Simulador!A142="",Simulador!$C$8,Simulador!A142) -> 2035-05-02 | M112: =IF(Simulador!Q142="",0,Simulador!Q142*-1) -> -10610.06549
A113: 66PRIME | B113: 0.0021591 | D113: =Simulador!C144 -> 111 | E113: 2035-07-02 | F113: 1900-02-14 | G113: =VLOOKUP(F113&'Simulador Bradesco'!$I$13,$A$2:$B$600,2,FALSE) -> 0.0004262 | H113: =Simulador!A144 -> 2035-07-02 | L113: =IF(Simulador!A143="",Simulador!$C$8,Simulador!A143) -> 2035-06-02 | M113: =IF(Simulador!Q143="",0,Simulador!Q143*-1) -> -10609.85209
A114: 67PRIME | B114: 0.0021591 | D114: =Simulador!C145 -> 112 | E114: 2035-08-02 | F114: 1900-02-14 | G114: =VLOOKUP(F114&'Simulador Bradesco'!$I$13,$A$2:$B$600,2,FALSE) -> 0.0004262 | H114: =Simulador!A145 -> 2035-08-02 | L114: =IF(Simulador!A144="",Simulador!$C$8,Simulador!A144) -> 2035-07-02 | M114: =IF(Simulador!Q144="",0,Simulador!Q144*-1) -> -10609.63662
A115: 68PRIME | B115: 0.0021591 | D115: =Simulador!C146 -> 113 | E115: 2035-09-02 | F115: 1900-02-14 | G115: =VLOOKUP(F115&'Simulador Bradesco'!$I$13,$A$2:$B$600,2,FALSE) -> 0.0004262 | H115: =Simulador!A146 -> 2035-09-02 | L115: =IF(Simulador!A145="",Simulador!$C$8,Simulador!A145) -> 2035-08-02 | M115: =IF(Simulador!Q145="",0,Simulador!Q145*-1) -> -10609.41906
A116: 69PRIME | B116: 0.0029221 | D116: =Simulador!C147 -> 114 | E116: 2035-10-02 | F116: 1900-02-15 | G116: =VLOOKUP(F116&'Simulador Bradesco'!$I$13,$A$2:$B$600,2,FALSE) -> 0.0004262 | H116: =Simulador!A147 -> 2035-10-02 | L116: =IF(Simulador!A146="",Simulador!$C$8,Simulador!A146) -> 2035-09-02 | M116: =IF(Simulador!Q146="",0,Simulador!Q146*-1) -> -10609.19939
A117: 70PRIME | B117: 0.0029221 | D117: =Simulador!C148 -> 115 | E117: 2035-11-02 | F117: 1900-02-15 | G117: =VLOOKUP(F117&'Simulador Bradesco'!$I$13,$A$2:$B$600,2,FALSE) -> 0.0004262 | H117: =Simulador!A148 -> 2035-11-02 | L117: =IF(Simulador!A147="",Simulador!$C$8,Simulador!A147) -> 2035-10-02 | M117: =IF(Simulador!Q147="",0,Simulador!Q147*-1) -> -10608.97758
A118: 71PRIME | B118: 0.0029221 | D118: =Simulador!C149 -> 116 | E118: 2035-12-02 | F118: 1900-02-15 | G118: =VLOOKUP(F118&'Simulador Bradesco'!$I$13,$A$2:$B$600,2,FALSE) -> 0.0004262 | H118: =Simulador!A149 -> 2035-12-02 | L118: =IF(Simulador!A148="",Simulador!$C$8,Simulador!A148) -> 2035-11-02 | M118: =IF(Simulador!Q148="",0,Simulador!Q148*-1) -> -10608.75362
A119: 72PRIME | B119: 0.003929 | D119: =Simulador!C150 -> 117 | E119: 2036-01-02 | F119: 1900-02-15 | G119: =VLOOKUP(F119&'Simulador Bradesco'!$I$13,$A$2:$B$600,2,FALSE) -> 0.0004262 | H119: =Simulador!A150 -> 2036-01-02 | L119: =IF(Simulador!A149="",Simulador!$C$8,Simulador!A149) -> 2035-12-02 | M119: =IF(Simulador!Q149="",0,Simulador!Q149*-1) -> -10608.52748
A120: 73PRIME | B120: 0.003929 | D120: =Simulador!C151 -> 118 | E120: 2036-02-02 | F120: 1900-02-15 | G120: =VLOOKUP(F120&'Simulador Bradesco'!$I$13,$A$2:$B$600,2,FALSE) -> 0.0004262 | H120: =Simulador!A151 -> 2036-02-02 | L120: =IF(Simulador!A150="",Simulador!$C$8,Simulador!A150) -> 2036-01-02 | M120: =IF(Simulador!Q150="",0,Simulador!Q150*-1) -> -10608.29914
A121: 74PRIME | B121: 0.003929 | D121: =Simulador!C152 -> 119 | E121: 2036-03-02 | F121: 1900-02-15 | G121: =VLOOKUP(F121&'Simulador Bradesco'!$I$13,$A$2:$B$600,2,FALSE) -> 0.0004262 | H121: =Simulador!A152 -> 2036-03-02 | L121: =IF(Simulador!A151="",Simulador!$C$8,Simulador!A151) -> 2036-02-02 | M121: =IF(Simulador!Q151="",0,Simulador!Q151*-1) -> -10608.06859
A122: 75PRIME | B122: 0.0069794 | D122: =Simulador!C153 -> 120 | E122: 2036-04-02 | F122: 1900-02-15 | G122: =VLOOKUP(F122&'Simulador Bradesco'!$I$13,$A$2:$B$600,2,FALSE) -> 0.0004262 | H122: =Simulador!A153 -> 2036-04-02 | L122: =IF(Simulador!A152="",Simulador!$C$8,Simulador!A152) -> 2036-03-02 | M122: =IF(Simulador!Q152="",0,Simulador!Q152*-1) -> -10607.83579
A123: 76PRIME | B123: 0.0069794 | D123: =Simulador!C154 -> 121 | E123: 2036-05-02 | F123: 1900-02-15 | G123: =VLOOKUP(F123&'Simulador Bradesco'!$I$13,$A$2:$B$600,2,FALSE) -> 0.0004262 | H123: =Simulador!A154 -> 2036-05-02 | L123: =IF(Simulador!A153="",Simulador!$C$8,Simulador!A153) -> 2036-04-02 | M123: =IF(Simulador!Q153="",0,Simulador!Q153*-1) -> -10607.60074
A124: 77PRIME | B124: 0.0069794 | D124: =Simulador!C155 -> 122 | E124: 2036-06-02 | F124: 1900-02-15 | G124: =VLOOKUP(F124&'Simulador Bradesco'!$I$13,$A$2:$B$600,2,FALSE) -> 0.0004262 | H124: =Simulador!A155 -> 2036-06-02 | L124: =IF(Simulador!A154="",Simulador!$C$8,Simulador!A154) -> 2036-05-02 | M124: =IF(Simulador!Q154="",0,Simulador!Q154*-1) -> -10607.3634
A125: 78PRIME | B125: 0.0093327 | D125: =Simulador!C156 -> 123 | E125: 2036-07-02 | F125: 1900-02-15 | G125: =VLOOKUP(F125&'Simulador Bradesco'!$I$13,$A$2:$B$600,2,FALSE) -> 0.0004262 | H125: =Simulador!A156 -> 2036-07-02 | L125: =IF(Simulador!A155="",Simulador!$C$8,Simulador!A155) -> 2036-06-02 | M125: =IF(Simulador!Q155="",0,Simulador!Q155*-1) -> -10607.12376
A126: 79PRIME | B126: 0.0093327 | D126: =Simulador!C157 -> 124 | E126: 2036-08-02 | F126: 1900-02-15 | G126: =VLOOKUP(F126&'Simulador Bradesco'!$I$13,$A$2:$B$600,2,FALSE) -> 0.0004262 | H126: =Simulador!A157 -> 2036-08-02 | L126: =IF(Simulador!A156="",Simulador!$C$8,Simulador!A156) -> 2036-07-02 | M126: =IF(Simulador!Q156="",0,Simulador!Q156*-1) -> -10606.88179
A127: 80PRIME | B127: 0.0093327 | D127: =Simulador!C158 -> 125 | E127: 2036-09-02 | F127: 1900-02-16 | G127: =VLOOKUP(F127&'Simulador Bradesco'!$I$13,$A$2:$B$600,2,FALSE) -> 0.0004262 | H127: =Simulador!A158 -> 2036-09-02 | L127: =IF(Simulador!A157="",Simulador!$C$8,Simulador!A157) -> 2036-08-02 | M127: =IF(Simulador!Q157="",0,Simulador!Q157*-1) -> -10606.63747
A128: 18EXCLUSIVE | B128: 0.0001037 | D128: =Simulador!C159 -> 126 | E128: 2036-10-02 | F128: 1900-02-16 | G128: =VLOOKUP(F128&'Simulador Bradesco'!$I$13,$A$2:$B$600,2,FALSE) -> 0.0004262 | H128: =Simulador!A159 -> 2036-10-02 | L128: =IF(Simulador!A158="",Simulador!$C$8,Simulador!A158) -> 2036-09-02 | M128: =IF(Simulador!Q158="",0,Simulador!Q158*-1) -> -10606.39077
A129: 19EXCLUSIVE | B129: 0.0001037 | D129: =Simulador!C160 -> 127 | E129: 2036-11-02 | F129: 1900-02-16 | G129: =VLOOKUP(F129&'Simulador Bradesco'!$I$13,$A$2:$B$600,2,FALSE) -> 0.0004262 | H129: =Simulador!A160 -> 2036-11-02 | L129: =IF(Simulador!A159="",Simulador!$C$8,Simulador!A159) -> 2036-10-02 | M129: =IF(Simulador!Q159="",0,Simulador!Q159*-1) -> -10606.14168
A130: 20EXCLUSIVE | B130: 0.0001037 | D130: =Simulador!C161 -> 128 | E130: 2036-12-02 | F130: 1900-02-16 | G130: =VLOOKUP(F130&'Simulador Bradesco'!$I$13,$A$2:$B$600,2,FALSE) -> 0.0004262 | H130: =Simulador!A161 -> 2036-12-02 | L130: =IF(Simulador!A160="",Simulador!$C$8,Simulador!A160) -> 2036-11-02 | M130: =IF(Simulador!Q160="",0,Simulador!Q160*-1) -> -10605.89017
A131: 21EXCLUSIVE | B131: 0.0001118 | D131: =Simulador!C162 -> 129 | E131: =H131 -> 2037-01-02 | F131: 1900-02-16 | G131: =VLOOKUP(F131&'Simulador Bradesco'!$I$13,$A$2:$B$600,2,FALSE) -> 0.0004262 | H131: =Simulador!A162 -> 2037-01-02 | L131: =IF(Simulador!A161="",Simulador!$C$8,Simulador!A161) -> 2036-12-02 | M131: =IF(Simulador!Q161="",0,Simulador!Q161*-1) -> -10605.63622
A132: 22EXCLUSIVE | B132: 0.0001118 | D132: =Simulador!C163 -> 130 | E132: 2037-02-02 | F132: =ROUNDDOWN(_xlfn.DAYS(E132,$B$1)/365,0) -> 1900-02-16 | G132: =VLOOKUP(F132&'Simulador Bradesco'!$I$13,$A$2:$B$600,2,FALSE) -> 0.0004262 | H132: =Simulador!A163 -> 2037-02-02 | L132: =IF(Simulador!A162="",Simulador!$C$8,Simulador!A162) -> 2037-01-02 | M132: =IF(Simulador!Q162="",0,Simulador!Q162*-1) -> -10605.3798
A133: 23EXCLUSIVE | B133: 0.0001118 | D133: =Simulador!C164 -> 131 | E133: 2037-03-02 | F133: 1900-02-16 | G133: =VLOOKUP(F133&'Simulador Bradesco'!$I$13,$A$2:$B$600,2,FALSE) -> 0.0004262 | H133: =Simulador!A164 -> 2037-03-02 | L133: =IF(Simulador!A163="",Simulador!$C$8,Simulador!A163) -> 2037-02-02 | M133: =IF(Simulador!Q163="",0,Simulador!Q163*-1) -> -10605.12089
A134: 24EXCLUSIVE | B134: 0.000118 | D134: =Simulador!C165 -> 132 | E134: 2037-04-02 | F134: 1900-02-16 | G134: =VLOOKUP(F134&'Simulador Bradesco'!$I$13,$A$2:$B$600,2,FALSE) -> 0.0004262 | H134: =Simulador!A165 -> 2037-04-02 | L134: =IF(Simulador!A164="",Simulador!$C$8,Simulador!A164) -> 2037-03-02 | M134: =IF(Simulador!Q164="",0,Simulador!Q164*-1) -> -10604.85946
A135: 25EXCLUSIVE | B135: 0.000118 | D135: =Simulador!C166 -> 133 | E135: 2037-05-02 | F135: 1900-02-16 | G135: =VLOOKUP(F135&'Simulador Bradesco'!$I$13,$A$2:$B$600,2,FALSE) -> 0.0004262 | H135: =Simulador!A166 -> 2037-05-02 | L135: =IF(Simulador!A165="",Simulador!$C$8,Simulador!A165) -> 2037-04-02 | M135: =IF(Simulador!Q165="",0,Simulador!Q165*-1) -> -10604.59549
A136: 26EXCLUSIVE | B136: 0.000118 | D136: =Simulador!C167 -> 134 | E136: 2037-06-02 | F136: 1900-02-16 | G136: =VLOOKUP(F136&'Simulador Bradesco'!$I$13,$A$2:$B$600,2,FALSE) -> 0.0004262 | H136: =Simulador!A167 -> 2037-06-02 | L136: =IF(Simulador!A166="",Simulador!$C$8,Simulador!A166) -> 2037-05-02 | M136: =IF(Simulador!Q166="",0,Simulador!Q166*-1) -> -10604.32896
A137: 27EXCLUSIVE | B137: 0.000129 | D137: =Simulador!C168 -> 135 | E137: 2037-07-02 | F137: 1900-02-16 | G137: =VLOOKUP(F137&'Simulador Bradesco'!$I$13,$A$2:$B$600,2,FALSE) -> 0.0004262 | H137: =Simulador!A168 -> 2037-07-02 | L137: =IF(Simulador!A167="",Simulador!$C$8,Simulador!A167) -> 2037-06-02 | M137: =IF(Simulador!Q167="",0,Simulador!Q167*-1) -> -10604.05984
A138: 28EXCLUSIVE | B138: 0.000129 | D138: =Simulador!C169 -> 136 | E138: 2037-08-02 | F138: 1900-02-16 | G138: =VLOOKUP(F138&'Simulador Bradesco'!$I$13,$A$2:$B$600,2,FALSE) -> 0.0004262 | H138: =Simulador!A169 -> 2037-08-02 | L138: =IF(Simulador!A168="",Simulador!$C$8,Simulador!A168) -> 2037-07-02 | M138: =IF(Simulador!Q168="",0,Simulador!Q168*-1) -> -10603.78811
A139: 29EXCLUSIVE | B139: 0.000129 | D139: =Simulador!C170 -> 137 | E139: 2037-09-02 | F139: 1900-02-17 | G139: =VLOOKUP(F139&'Simulador Bradesco'!$I$13,$A$2:$B$600,2,FALSE) -> 0.0005751 | H139: =Simulador!A170 -> 2037-09-02 | L139: =IF(Simulador!A169="",Simulador!$C$8,Simulador!A169) -> 2037-08-02 | M139: =IF(Simulador!Q169="",0,Simulador!Q169*-1) -> -10603.51374
A140: 30EXCLUSIVE | B140: 0.0001423 | D140: =Simulador!C171 -> 138 | E140: 2037-10-02 | F140: 1900-02-17 | G140: =VLOOKUP(F140&'Simulador Bradesco'!$I$13,$A$2:$B$600,2,FALSE) -> 0.0005751 | H140: =Simulador!A171 -> 2037-10-02 | L140: =IF(Simulador!A170="",Simulador!$C$8,Simulador!A170) -> 2037-09-02 | M140: =IF(Simulador!Q170="",0,Simulador!Q170*-1) -> -10748.32545
A141: 31EXCLUSIVE | B141: 0.0001423 | D141: =Simulador!C172 -> 139 | E141: 2037-11-02 | F141: 1900-02-17 | G141: =VLOOKUP(F141&'Simulador Bradesco'!$I$13,$A$2:$B$600,2,FALSE) -> 0.0005751 | H141: =Simulador!A172 -> 2037-11-02 | L141: =IF(Simulador!A171="",Simulador!$C$8,Simulador!A171) -> 2037-10-02 | M141: =IF(Simulador!Q171="",0,Simulador!Q171*-1) -> -10747.94799
A142: 32EXCLUSIVE | B142: 0.0001423 | D142: =Simulador!C173 -> 140 | E142: 2037-12-02 | F142: 1900-02-17 | G142: =VLOOKUP(F142&'Simulador Bradesco'!$I$13,$A$2:$B$600,2,FALSE) -> 0.0005751 | H142: =Simulador!A173 -> 2037-12-02 | L142: =IF(Simulador!A172="",Simulador!$C$8,Simulador!A172) -> 2037-11-02 | M142: =IF(Simulador!Q172="",0,Simulador!Q172*-1) -> -10747.56686
A143: 33EXCLUSIVE | B143: 0.0001552 | D143: =Simulador!C174 -> 141 | E143: 2038-01-02 | F143: 1900-02-17 | G143: =VLOOKUP(F143&'Simulador Bradesco'!$I$13,$A$2:$B$600,2,FALSE) -> 0.0005751 | H143: =Simulador!A174 -> 2038-01-02 | L143: =IF(Simulador!A173="",Simulador!$C$8,Simulador!A173) -> 2037-12-02 | M143: =IF(Simulador!Q173="",0,Simulador!Q173*-1) -> -10747.18204
A144: 34EXCLUSIVE | B144: 0.0001552 | D144: =Simulador!C175 -> 142 | E144: 2038-02-02 | F144: 1900-02-17 | G144: =VLOOKUP(F144&'Simulador Bradesco'!$I$13,$A$2:$B$600,2,FALSE) -> 0.0005751 | H144: =Simulador!A175 -> 2038-02-02 | L144: =IF(Simulador!A174="",Simulador!$C$8,Simulador!A174) -> 2038-01-02 | M144: =IF(Simulador!Q174="",0,Simulador!Q174*-1) -> -10746.79348
A145: 35EXCLUSIVE | B145: 0.0001552 | D145: =Simulador!C176 -> 143 | E145: 2038-03-02 | F145: 1900-02-17 | G145: =VLOOKUP(F145&'Simulador Bradesco'!$I$13,$A$2:$B$600,2,FALSE) -> 0.0005751 | H145: =Simulador!A176 -> 2038-03-02 | L145: =IF(Simulador!A175="",Simulador!$C$8,Simulador!A175) -> 2038-02-02 | M145: =IF(Simulador!Q175="",0,Simulador!Q175*-1) -> -10746.40114
A146: 36EXCLUSIVE | B146: 0.0001795 | D146: =Simulador!C177 -> 144 | E146: 2038-04-02 | F146: 1900-02-17 | G146: =VLOOKUP(F146&'Simulador Bradesco'!$I$13,$A$2:$B$600,2,FALSE) -> 0.0005751 | H146: =Simulador!A177 -> 2038-04-02 | L146: =IF(Simulador!A176="",Simulador!$C$8,Simulador!A176) -> 2038-03-02 | M146: =IF(Simulador!Q176="",0,Simulador!Q176*-1) -> -10746.00499
A147: 37EXCLUSIVE | B147: 0.0001795 | D147: =Simulador!C178 -> 145 | E147: 2038-05-02 | F147: 1900-02-17 | G147: =VLOOKUP(F147&'Simulador Bradesco'!$I$13,$A$2:$B$600,2,FALSE) -> 0.0005751 | H147: =Simulador!A178 -> 2038-05-02 | L147: =IF(Simulador!A177="",Simulador!$C$8,Simulador!A177) -> 2038-04-02 | M147: =IF(Simulador!Q177="",0,Simulador!Q177*-1) -> -10745.60499
A148: 38EXCLUSIVE | B148: 0.0001795 | D148: =Simulador!C179 -> 146 | E148: 2038-06-02 | F148: 1900-02-17 | G148: =VLOOKUP(F148&'Simulador Bradesco'!$I$13,$A$2:$B$600,2,FALSE) -> 0.0005751 | H148: =Simulador!A179 -> 2038-06-02 | L148: =IF(Simulador!A178="",Simulador!$C$8,Simulador!A178) -> 2038-05-02 | M148: =IF(Simulador!Q178="",0,Simulador!Q178*-1) -> -10745.20111
